Workbook

Sheet Information
A1: =ROW() -> 1 | B1: =Main!B1 -> Goldfields Gas Pipeline Tariff Model, September 2024 [Revised Proposal]
A2: =ROW() -> 2 | B2: Information
A3: =ROW() -> 3 | B3: Prior to using this model
A4: =ROW() -> 4 | B4: Solver must be both installed using Excel Add-ins and enabled in the VBA window > Tools > References > Check Solver
A5: =ROW() -> 5
A6: =ROW() -> 6 | B6: General
A7: =ROW() -> 7 | B7: The purpose of this model is to calculate the forecast GGP reference tariff for access arrangement period 2025 -2029. This model should not be used for any other purposes.
A8: =ROW() -> 8 | B8: Any data, information and formulas that are not relevant to the calculation of the reference tariff are not to be relied upon.
A9: =ROW() -> 9 | B9: This model was built by expanding the AA4 tariff model used for the latest tariff variation calculation.
A10: =ROW() -> 10
A11: =ROW() -> 11 | B11: Assets
A12: =ROW() -> 12 | B12: Current Cost Accounting deems straight-line depreciation on all capex accounts prior to 1/01/2015 to be in 31/12/2014 dollars thereafter. No deflation or inflation is applied within the Asset Base.
A13: =ROW() -> 13
A14: =ROW() -> 14 | B14: Capex
A15: =ROW() -> 15 | B15: ="Under Current Cost Accounting all capex occuring after 31/12/2014 is inflated to "&TEXT(Inputs!$D$19,"dd/mm/yyyy")&" dollars." -> Under Current Cost Accounting all capex occuring after 31/12/2014 is inflated to 31/12/2023 dollars.
A16: =ROW() -> 16
A17: =ROW() -> 17 | B17: Colour codes
A18: =ROW() -> 18 | B18: blue text | C18: Input cell, hard coded input
A19: =ROW() -> 19 | B19: yellow cell | C19: Extraordinary cell (solver target, solver input etc)
A20: =ROW() -> 20 | B20: blue text | C20: Hard coded input
A21: =ROW() -> 21 | B21: green text | C21: Formula linking to another worksheet
A22: =ROW() -> 22 | B22: pink text | C22: Extraordinary calculation
A23: =ROW() -> 23
A24: =ROW() -> 24 | B24: Worksheets
A25: =ROW() -> 25
A26: =ROW() -> 26 | B26: Worksheet | C26: Description
A27: =ROW() -> 27 | B27: Main | C27: Summary of outputs
A28: =ROW() -> 28 | B28: WACC | C28: Contains the relevant parameters related to computing the WACC
A29: =ROW() -> 29 | B29: Inputs | C29: Contains general inputs of assumptions, capital expenditures, operating expenditures, approved depreciations
A30: =ROW() -> 30 | B30: 2019 Capex NGR 77(2)(a) | C30: Asset roll forward adjustment calculation for 2019
A31: =ROW() -> 31 | B31: Adjustments | C31: This sheet is used when making adjustments to the initial capital base, capital expenditures and operating expenditure and adjustment from NGR 77(2)(a)
A32: =ROW() -> 32 | B32: Load Yarraloola | C32: Contains inputs of gas volumes, distances, reserved capacity and other relevant information required to compute the reference tariffs (from Yaraloola)
A33: =ROW() -> 33 | B33: Load NGI | C33: Contains inputs of gas volumes, distances, reserved capacity and other relevant information required to compute the reference tariffs (from NGI)
A34: =ROW() -> 34 | B34: LoadTotal | C34: Total Yaraloola and NGI loads
A35: =ROW() -> 35 | B35: CoS | C35: Computations of total revenue building block (cost of service), inflationary gain and Credit Foncier Check
A36: =ROW() -> 36 | B36: Revenue | C36: Contains relevant load parameters, tariffs and revenue
A37: =ROW() -> 37 | B37: Tax_CoRE | C37: Contains calculation of tax and imputation credits
A38: =ROW() -> 38 | B38: Assets | C38: ="Contains regulatory asset base. Computations prior to 31/12/2014 are nominal and thereafter are in Real at "&TEXT(Inputs!$D$19,"dd/mm/yyyy")&" $m." -> Contains regulatory asset base. Computations prior to 31/12/2014 are nominal and thereafter are in Real at 31/12/2023 $m.
A39: =ROW() -> 39 | B39: Tax Assets | C39: Contains tax asset base modelled from inception in 1994 based on assumed tax asset lives. The tax depreciation for capex before 2020 are nominal straight line while the capex from 2020 onwards are diminishing value
A40: =ROW() -> 40 | B40: Specul_Inv | C40: This sheet is used to record a speculative investment which could potentially be included in the Regulated Asset Base in the future
A41: =ROW() -> 41 | B41: SolverSheet | C41: This sheet is used with Excel addin Solver to compute the X-Factors and cost of raising equity
A42: =ROW() -> 42 | B42: Tariff Variation Mechanism | C42: This sheet is to check the proposed reference tariff of each year during the access arrangement period.

Sheet Main
B1: Goldfields Gas Pipeline Tariff Model, September 2024 [Revised Proposal]
B2: Main Summary
A3: Ref | B3: =COLUMN() -> 2 | C3: =COLUMN() -> 3 | D3: =COLUMN() -> 4 | E3: =COLUMN() -> 5 | F3: =COLUMN() -> 6 | G3: =COLUMN() -> 7 | H3: =COLUMN() -> 8 | I3: =COLUMN() -> 9 | J3: =COLUMN() -> 10
A4: =ROW() -> 4 | B4: WACC
A5: =ROW() -> 5 | D5: Real | E5: Nominal
A6: =ROW() -> 6 | C6: Post-tax WACC | D6: =WACC!O35 -> 0.04826846161 | E6: =WACC!O34 -> 0.07458
A7: =ROW() -> 7
A8: =ROW() -> 8 | B8: Closing Regulated Asset Base
A9: =ROW() -> 9
A10: =ROW() -> 10 | D10: December 2024 | E10: December 2029
A11: =ROW() -> 11 | D11: ="[m$ " & TEXT(Inputs!$D$19,"dd/mm/yyyy") & "]" -> [m$ 31/12/2023] | E11: ="[m$ " & TEXT(Inputs!$D$19,"dd/mm/yyyy") & "]" -> [m$ 31/12/2023]
A12: =ROW() -> 12 | C12: Closing Value of Regulated Asset Base | D12: =Assets!BF24 -> 445.271556 | E12: =Assets!BK24 -> 403.7930189
A13: =ROW() -> 13
A14: =ROW() -> 14 | B14: Revenue Building Block
A15: =ROW() -> 15
A16: =ROW() -> 16 | D16: Real calculation PV | E16: Nominal calculation PV | F16: Real [%] | G16: Nominal [%] | I16: Real calculation Sum | J16: Nominal calculation Sum
A17: =ROW() -> 17 | B17: ="Total Revenue (CoS) [m$ " & TEXT(Inputs!$D$19,"dd/mm/yyyy") & "]" -> Total Revenue (CoS) [m$ 31/12/2023]
A18: =ROW() -> 18 | C18: Opex | D18: =CoS!$C53 -> 112.4037847 | E18: =CoS!$C43 -> 112.4037847 | F18: =D18/D$24 -> 0.3804026048 | G18: =E18/E$24 -> 0.3804026048 | I18: =CoS!$D53 -> 134.8374901 | J18: =CoS!$D43 -> 149.7280327
A19: =ROW() -> 19 | C19: Depreciation | D19: =CoS!$C52 -> 82.07728786 | E19: =CoS!$C41 -> 82.07728786 | F19: =D19/$D$24 -> 0.2777701318 | G19: =E19/E$24 -> 0.2777701318 | I19: =CoS!$D52 -> 98.09482709 | J19: =CoS!$D41 -> 108.7142488
A20: =ROW() -> 20 | C20: Inflationary Gains on RAB | E20: =CoS!$C42 -> -44.85218877 | F20: =D20/$D$24 -> 0 | G20: =E20/E$24 -> -0.1517910583 | J20: =CoS!$D42 -> -59.56794177
A21: =ROW() -> 21 | C21: Return on Asset | D21: =CoS!$C51 -> 88.4177809 | E21: =CoS!$C40 -> 133.2699697 | F21: =D21/$D$24 -> 0.2992279508 | G21: =E21/E$24 -> 0.4510190091 | I21: =CoS!$D51 -> 105.8584953 | J21: =CoS!$D40 -> 176.9951035
A22: =ROW() -> 22 | C22: Tax | D22: =Tax_CoRE!$C51 -> 25.17503247 | E22: =Tax_CoRE!$C46 -> 25.17503247 | F22: =D22/$D$24 -> 0.08519862522 | G22: =E22/E$24 -> 0.08519862522 | I22: =Tax_CoRE!$D51 -> 30.17159957 | J22: =Tax_CoRE!$D46 -> 33.48913133
A23: =ROW() -> 23 | C23: Imputation Credits | D23: =Tax_CoRE!$C52 -> -12.58751624 | E23: =Tax_CoRE!$C47 -> -12.58751624 | F23: =D23/$D$24 -> -0.04259931261 | G23: =E23/E$24 -> -0.04259931261 | I23: =Tax_CoRE!$D52 -> -15.08579978 | J23: =Tax_CoRE!$D47 -> -16.74456566
A24: =ROW() -> 24 | C24: Total Revenue (Cost of Service) | D24: =SUM(D18:D23) -> 295.4863697 | E24: =SUM(E18:E23) -> 295.4863697 | F24: =SUM(F18:F23) -> 1 | G24: =SUM(G18:G23) -> 1 | I24: =SUM(I18:I23) -> 353.8766122 | J24: =SUM(J18:J23) -> 392.6140088
A25: =ROW() -> 25 | C25: Tariff Revenue | D25: =CoS!$C55 -> 295.4863697 | E25: =CoS!$C46 -> 295.4863697 | I25: =CoS!$D56 -> 353.5339537 | J25: =CoS!$D46 -> 392.0367599
A26: =ROW() -> 26 | C26: Check: | D26: =IF(ROUND(D24-D25,6)=0,"OK","Error") -> OK | E26: =IF(ROUND(E24-E25,6)=0,"OK","Error") -> OK
A27: =ROW() -> 27
A28: =ROW() -> 28 | B28: X-Factor
A29: =ROW() -> 29
A30: =ROW() -> 30 | D30: =YEAR(CoS!G$8) -> 2025 | E30: =YEAR(CoS!H$8) -> 2026 | F30: =YEAR(CoS!I$8) -> 2027 | G30: =YEAR(CoS!J$8) -> 2028 | H30: =YEAR(CoS!K$8) -> 2029
A31: =ROW() -> 31 | C31: 1. Toll charge | D31: =IF(CoS!G61="","",CoS!G61) -> 0.4816094245 | E31: =IF(CoS!H61="","",CoS!H61) ->  | F31: =IF(CoS!I61="","",CoS!I61) ->  | G31: =IF(CoS!J61="","",CoS!J61) ->  | H31: =IF(CoS!K61="","",CoS!K61) -> 
A32: =ROW() -> 32 | C32: 2. Reservation charge | D32: =IF(CoS!G62="","",CoS!G62) -> 0.71567922 | E32: =IF(CoS!H62="","",CoS!H62) ->  | F32: =IF(CoS!I62="","",CoS!I62) ->  | G32: =IF(CoS!J62="","",CoS!J62) ->  | H32: =IF(CoS!K62="","",CoS!K62) -> 
A33: =ROW() -> 33 | C33: 3. Throughput charge | D33: =IF(CoS!G63="","",CoS!G63) -> 0.6870789552 | E33: =IF(CoS!H63="","",CoS!H63) ->  | F33: =IF(CoS!I63="","",CoS!I63) ->  | G33: =IF(CoS!J63="","",CoS!J63) ->  | H33: =IF(CoS!K63="","",CoS!K63) -> 
A34: =ROW() -> 34
A35: =ROW() -> 35 | C35: Delta | D35: =NPVTarget -> 9.999951089e-09
A36: =ROW() -> 36
A37: =ROW() -> 37 | B37: Tariff
A38: =ROW() -> 38
A39: =ROW() -> 39 | C39: Calculated Tariff [Nominal $] | D39: =YEAR(CoS!G$8) -> 2025 | E39: =YEAR(CoS!H$8) -> 2026 | F39: =YEAR(CoS!I$8) -> 2027 | G39: =YEAR(CoS!J$8) -> 2028 | H39: =YEAR(CoS!K$8) -> 2029
A40: =ROW() -> 40 | C40: Toll charge | D40: =CoS!G66 -> 0.1950864761 | E40: =CoS!H66 -> 0.1950864761 | F40: =CoS!I66 -> 0.1950864761 | G40: =CoS!J66 -> 0.1950864761 | H40: =CoS!K66 -> 0.1950864761
A41: =ROW() -> 41 | C41: Reservation charge | D41: =CoS!G67 -> 0.001369112018 | E41: =CoS!H67 -> 0.001369112018 | F41: =CoS!I67 -> 0.001369112018 | G41: =CoS!J67 -> 0.001369112018 | H41: =CoS!K67 -> 0.001369112018
A42: =ROW() -> 42 | C42: Throughput charge | D42: =CoS!G68 -> 0.0003627219754 | E42: =CoS!H68 -> 0.0003627219754 | F42: =CoS!I68 -> 0.0003627219754 | G42: =CoS!J68 -> 0.0003627219754 | H42: =CoS!K68 -> 0.0003627219754

Sheet WACC
B1: =Main!B1 -> Goldfields Gas Pipeline Tariff Model, September 2024 [Revised Proposal]
B2: WACC
A3: Ref | B3: =COLUMN() -> 2 | C3: =COLUMN() -> 3 | D3: =COLUMN() -> 4 | E3: =COLUMN() -> 5 | F3: =COLUMN() -> 6 | G3: =COLUMN() -> 7 | H3: =COLUMN() -> 8 | I3: =COLUMN() -> 9 | J3: =COLUMN() -> 10 | K3: =COLUMN() -> 11 | L3: =COLUMN() -> 12 | M3: =COLUMN() -> 13 | N3: =COLUMN() -> 14 | O3: =COLUMN() -> 15 | P3: =COLUMN() -> 16 | Q3: =COLUMN() -> 17 | R3: =COLUMN() -> 18 | S3: =COLUMN() -> 19
A4: =ROW() -> 4 | C4: ERA | D4: ERA | E4: ERA | F4: ERA | G4: ERA | H4: ERA | I4: ERA | J4: ERA | K4: ERA | L4: ERA | M4: ERA | N4: ERA | O4: ERA | P4: ERA | Q4: ERA | R4: ERA | S4: ERA
A5: =ROW() -> 5 | C5: AA1 | D5: AA2 | E5: AA3 2015 | F5: AA3 2016 | G5: AA3 2017 | H5: AA3 2018 | I5: AA3 2019 | J5: AA4 2020 | K5: AA4 2021 | L5: AA4 2022 | M5: AA4 2023 | N5: AA4 2024 | O5: AA4 2025 | P5: AA4 2026 | Q5: AA4 2027 | R5: AA4 2028 | S5: AA4 2029
A6: =ROW() -> 6 | B6: Return on Debt
A7: =ROW() -> 7 | B7: Debt: Nominal Risk Free Rate (DRfn) | C7: 0.0545 | D7: 0.0579 | E7: 0.0182 | F7: =$E$7 -> 0.0182 | G7: =$E$7 -> 0.0182 | H7: =$E$7 -> 0.0182 | I7: =$E$7 -> 0.0182
A8: =ROW() -> 8 | B8: Debt: Real Risk Free Rate (DRfr) | C8: =((1+C7)/(C25+1))-1 -> 0.02690000847 | D8: =((1+D7)/(D25+1))-1 -> 0.03209756098 | E8: =((1+E7)/(E25+1))-1 -> 0.003548196334 | F8: =$E$8 -> 0.003548196334 | G8: =$E$8 -> 0.003548196334 | H8: =$E$8 -> 0.003548196334 | I8: =$E$8 -> 0.003548196334
A9: =ROW() -> 9 | B9: Cost of Debt; 5 year Interest Rate Swap Spread | E9: 0.00296 | F9: =E9 -> 0.00296 | G9: =F9 -> 0.00296 | H9: =G9 -> 0.00296 | I9: =H9 -> 0.00296 | J9: 0.0087 | K9: =J9 -> 0.0087 | L9: =K9 -> 0.0087 | M9: =L9 -> 0.0087 | N9: =M9 -> 0.0087 | O9: 0.043 | P9: =O9 -> 0.043 | Q9: =P9 -> 0.043 | R9: =Q9 -> 0.043 | S9: =R9 -> 0.043
A10: =ROW() -> 10 | B10: Cost of Debt; Debt Risk Premium (Drp) | D10: 0.0283 | E10: 0.025259 | F10: =IF(ISNUMBER(F53),F42,E10) -> 0.02713 | G10: =IF(ISNUMBER(G53),G42,F10) -> 0.02855 | H10: 0.02666 | I10: 0.02365 | J10: =J39 -> 0.02325 | K10: 0.02288 | L10: 0.0212 | M10: =M39 -> 0.02036 | N10: 0.02002 | O10: =O39 -> 0.01952 | P10: 0.01952 | Q10: 0.01952 | R10: 0.01952 | S10: =S39 -> 0.01952
A11: =ROW() -> 11 | B11: Cost of Debt; Debt Issuing Cost (Disc) + Hedging Cost | D11: 0.00125 | E11: =0.125%+0.114% -> 0.00239 | F11: =$E11 -> 0.00239 | G11: 0.00239 | H11: 0.00239 | I11: 0.00239 | J11: 0.00214 | K11: =J11 -> 0.00214 | L11: 0.00214 | M11: 0.00214 | N11: 0.00214 | O11: =0.165%+0.123% -> 0.00288 | P11: =O11 -> 0.00288 | Q11: =P11 -> 0.00288 | R11: =Q11 -> 0.00288 | S11: =R11 -> 0.00288
A12: =ROW() -> 12 | B12: Cost of Debt; Risk Margin (Rm) -- Nominal Return on Debt (DPn) | D12: =SUM(D9:D11) -> 0.02955 | E12: 0.030609 | F12: =SUM(F9:F11) -> 0.03248 | G12: 0.0339 | H12: 0.03201 | I12: 0.029 | J12: 0.03409 | K12: 0.03372 | L12: 0.03204 | M12: 0.0312 | N12: 0.03086 | O12: =SUM(O9:O11) -> 0.0654 | P12: 0.0654 | Q12: 0.0654 | R12: 0.0654 | S12: =SUM(S9:S11) -> 0.0654
A13: =ROW() -> 13 | B13: Nominal Cost of Debt (DPn) | C13: =C7+C12 -> 0.0545 | D13: 0.08745 | E13: 0.048809 | F13: =F7+F12 -> 0.05068 | G13: =G7+G12 -> 0.0521 | H13: 0.05021 | I13: 0.0472 | J13: =J12 -> 0.03409 | K13: =K12 -> 0.03372 | L13: 0.03204 | M13: 0.0312 | N13: 0.03086 | O13: =O12 -> 0.0654 | P13: =P12 -> 0.0654 | Q13: 0.0654 | R13: 0.0654 | S13: =S12 -> 0.0654
A14: =ROW() -> 14
A15: =ROW() -> 15 | B15: Return on Equity
A16: =ROW() -> 16 | B16: Equity: Nominal Risk Free Rate (ERfn) | C16: 0.0545 | D16: 0.0579 | E16: 0.0182 | F16: =$E$7 -> 0.0182 | G16: =$E$7 -> 0.0182 | H16: =$E$7 -> 0.0182 | I16: =$E$7 -> 0.0182 | J16: 0.0072 | K16: =J16 -> 0.0072 | L16: =K16 -> 0.0072 | M16: 0.0072 | N16: 0.0072 | O16: 0.0431 | P16: =O16 -> 0.0431 | Q16: =P16 -> 0.0431 | R16: =Q16 -> 0.0431 | S16: =R16 -> 0.0431
A17: =ROW() -> 17 | B17: Australian Market Risk Premium (Rp) | D17: 0.06 | E17: 0.074 | F17: =$E17 -> 0.074 | G17: 0.074 | H17: 0.074 | I17: 0.074 | J17: 0.06 | K17: =J17 -> 0.06 | L17: 0.06 | M17: 0.06 | N17: 0.06 | O17: 0.061 | P17: =O17 -> 0.061 | Q17: 0.061 | R17: 0.061 | S17: 0.061
A18: =ROW() -> 18 | B18: Equity Beta (Be) | E18: 0.7 | F18: 0.7 | G18: 0.7 | H18: 0.7 | I18: 0.7 | J18: 0.7 | K18: =J18 -> 0.7 | L18: 0.7 | M18: 0.7 | N18: 0.7 | O18: 0.7 | P18: 0.7 | Q18: 0.7 | R18: 0.7 | S18: 0.7
A19: =ROW() -> 19 | B19: Nominal Pre Tax Cost of Equity (EPn) | C19: =(C7+C17*C18)/(1-C26*(1-C27)) -> 0.07864357864 | D19: 0.1307620693 | E19: =(E7+E17*E18)/(1-E26*(1-E27)) -> 0.08536585366 | F19: =(F7+F17*F18)/(1-F26*(1-F27)) -> 0.08536585366 | G19: =(G7+G17*G18)/(1-G26*(1-G27)) -> 0.08536585366 | H19: =(H7+H17*H18)/(1-H26*(1-H27)) -> 0.08536585366 | I19: =(I7+I17*I18)/(1-I26*(1-I27)) -> 0.08536585366 | J19: =J20/(1-J26*(1-J27)) -> 0.05788235294 | K19: 0.05788235294 | L19: 0.05788235294 | M19: 0.05788235294 | N19: 0.05788235294 | O19: 0.1009411765 | P19: 0.1009411765 | Q19: 0.1009411765 | R19: 0.1009411765 | S19: 0.1009411765
A20: =ROW() -> 20 | B20: Nominal After Tax Cost of Equity (EAn) -- Nominal return on Equity | C20: =C16+C17*C18 -> 0.0545 | D20: 0.1129 | E20: =E16+E17*E18 -> 0.07 | F20: 0.07 | G20: 0.07 | H20: 0.07 | I20: 0.07 | J20: 0.0492 | K20: 0.0492 | L20: 0.0492 | M20: 0.0492 | N20: 0.0492 | O20: =O16+O17*O18 -> 0.0858 | P20: 0.0858 | Q20: 0.0858 | R20: 0.0858 | S20: =S16+S17*S18 -> 0.0858
A21: =ROW() -> 21
A22: =ROW() -> 22 | B22: Other Parameter
A23: =ROW() -> 23 | B23: Debt Proportion (D) | C23: 0.6 | D23: 0.6 | E23: 0.6 | F23: =$E$23 -> 0.6 | G23: =$E$23 -> 0.6 | H23: 0.6 | I23: 0.6 | J23: 0.55 | K23: =J23 -> 0.55 | L23: =K23 -> 0.55 | M23: 0.55 | N23: 0.55 | O23: 0.55 | P23: =O23 -> 0.55 | Q23: =P23 -> 0.55 | R23: =Q23 -> 0.55 | S23: =R23 -> 0.55
A24: =ROW() -> 24 | B24: Equity Proportion (E) | C24: =1-C23 -> 0.4 | D24: =1-D23 -> 0.4 | E24: =1-E23 -> 0.4 | F24: =$E$24 -> 0.4 | G24: =$E$24 -> 0.4 | H24: 0.4 | I24: 0.4 | J24: =1-J23 -> 0.45 | K24: =1-K23 -> 0.45 | L24: 0.45 | M24: 0.45 | N24: 0.45 | O24: =1-O23 -> 0.45 | P24: =1-P23 -> 0.45 | Q24: 0.45 | R24: 0.45 | S24: =1-S23 -> 0.45
A25: =ROW() -> 25 | B25: Inflation Rate for WACC (I) | C25: 0.026877 | D25: 0.025 | E25: 0.0146 | F25: =$E$25 -> 0.0146 | G25: =$E$25 -> 0.0146 | H25: =$E$25 -> 0.0146 | I25: =$E$25 -> 0.0146 | J25: 0.0114 | K25: =J25 -> 0.0114 | L25: 0.0114 | M25: 0.0114 | N25: 0.0114 | O25: 0.0251 | P25: =O25 -> 0.0251 | Q25: =P25 -> 0.0251 | R25: =Q25 -> 0.0251 | S25: =R25 -> 0.0251
A26: =ROW() -> 26 | B26: Corporate Tax Rate (T) | C26: 0.307 | D26: 0.3 | E26: 0.3 | F26: =$E26 -> 0.3 | G26: 0.3 | H26: 0.3 | I26: 0.3 | J26: 0.3 | K26: =J26 -> 0.3 | L26: 0.3 | M26: 0.3 | N26: 0.3 | O26: 0.3 | P26: 0.3 | Q26: 0.3 | R26: 0.3 | S26: 0.3
A27: =ROW() -> 27 | B27: Franking Credit (g) | E27: 0.4 | F27: 0.4 | G27: 0.4 | H27: 0.4 | I27: 0.4 | J27: 0.5 | K27: =J27 -> 0.5 | L27: 0.5 | M27: 0.5 | N27: 0.5 | O27: 0.5 | P27: 0.5 | Q27: 0.5 | R27: 0.5 | S27: 0.5
A28: =ROW() -> 28 | B28: Imputation Adj (G) | J28: =(1-J26)/(1-J26*(1-J27)) -> 0.8235294118 | K28: 0.8235294118 | L28: 0.8235294118 | M28: 0.8235294118 | N28: 0.8235294118 | O28: =(1-O26)/(1-O26*(1-O27)) -> 0.8235294118 | P28: 0.8235294118 | Q28: 0.8235294118 | R28: 0.8235294118 | S28: =(1-S26)/(1-S26*(1-S27)) -> 0.8235294118
A29: =ROW() -> 29
A30: =ROW() -> 30 | B30: WACC; Pre-tax Officer (Market Practise or Forward Transformation)
A31: =ROW() -> 31 | B31: Nominal Pre Tax WACC (WPn) | C31: 0.106 | D31: 0.1047748277 | E31: =E19*E24+E13*E23 -> 0.06343174146 | F31: 0.06455434146 | G31: 0.06540634146 | H31: 0.06427234146 | I31: 0.06246634146 | J31: 0.04479655882 | K31: 0.04459305882 | L31: 0.04366905882 | M31: 0.04320705882 | N31: 0.04302005882 | O31: =O19*O24+O13*O23 -> 0.08139352941 | P31: 0.08139352941 | Q31: 0.08139352941 | R31: 0.08139352941 | S31: =S19*S24+S13*S23 -> 0.08139352941
A32: =ROW() -> 32 | B32: Real Pre Tax WACC (WPr) | C32: =((1+C31)/(1+C25))-1 -> 0.07705207147 | D32: 0.0778 | E32: =(1+E31)/(1+E25)-1 -> 0.04812905723 | F32: 0.04923550312 | G32: 0.05007524292 | H32: 0.04895756107 | I32: 0.04717754924 | J32: =(1+J31)/(1+J25)-1 -> 0.03302012935 | K32: 0.0328189231 | L32: 0.03190533797 | M32: 0.03144854541 | N32: 0.03126365318 | O32: =(1+O31)/(1+O25)-1 -> 0.05491515892 | P32: 0.05491515892 | Q32: 0.05491515892 | R32: 0.05491515892 | S32: =(1+S31)/(1+S25)-1 -> 0.05491515892
A33: =ROW() -> 33 | B33: WACC: Vanilla
A34: =ROW() -> 34 | B34: Nominal After Tax WACC | E34: =E13*E23+E20*E24 -> 0.0572854 | F34: 0.058408 | G34: 0.05926 | H34: 0.058126 | I34: 0.05632 | J34: 0.0408895 | K34: 0.040686 | L34: 0.039762 | M34: 0.0393 | N34: 0.039113 | O34: =O13*O23+O20*O24 -> 0.07458 | P34: 0.07458 | Q34: 0.07458 | R34: 0.07458 | S34: =S13*S23+S20*S24 -> 0.07458
A35: =ROW() -> 35 | B35: Real After Tax WACC | E35: =(1+E34)/(1+E25)-1 -> 0.04207116105 | F35: 0.04317760694 | G35: 0.04401734674 | H35: 0.04289966489 | I35: 0.04111965307 | J35: 0.02915710896 | K35: 0.02895590271 | L35: 0.02804231758 | M35: 0.02758552501 | N35: =(1+N34)/(1+N25)-1 -> 0.02740063279 | O35: =(1+O34)/(1+O25)-1 -> 0.04826846161 | P35: =(1+P34)/(1+P25)-1 -> 0.04826846161 | Q35: 0.04826846161 | R35: 0.04826846161 | S35: =(1+S34)/(1+S25)-1 -> 0.04826846161
A36: =ROW() -> 36
A37: =ROW() -> 37 | B37: Cost of Debt; Debt Risk Premium (Drp)
A38: =ROW() -> 38 | B38: Trailing Average DRP | J38: =IF(Inputs!BE$24="","",Inputs!BE$24) -> 0.02325 | K38: =IF(Inputs!BF$24="","",Inputs!BF$24) -> 0.02288 | L38: =IF(Inputs!BG$24="","",Inputs!BG$24) -> 0.0212 | M38: =IF(Inputs!BH$24="","",Inputs!BH$24) -> 0.02036 | N38: =IF(Inputs!BI$24="","",Inputs!BI$24) -> 0.02002 | O38: =IF(Inputs!BJ$24="","",Inputs!BJ$24) -> 0.01952 | P38: =IF(Inputs!BK$24="","",Inputs!BK$24) ->  | Q38: =IF(Inputs!BL$24="","",Inputs!BL$24) ->  | R38: =IF(Inputs!BM$24="","",Inputs!BM$24) ->  | S38: =IF(Inputs!BN$24="","",Inputs!BN$24) -> 
A39: =ROW() -> 39 | B39: Modelled DRP | J39: =IF(J38="",I39,J38) -> 0.02325 | K39: =IF(K38="",J39,K38) -> 0.02288 | L39: =IF(L38="",K39,L38) -> 0.0212 | M39: =IF(M38="",L39,M38) -> 0.02036 | N39: =IF(N38="",M39,N38) -> 0.02002 | O39: =IF(O38="",N39,O38) -> 0.01952 | P39: =IF(P38="",O39,P38) -> 0.01952 | Q39: =IF(Q38="",P39,Q38) -> 0.01952 | R39: =IF(R38="",Q39,R38) -> 0.01952 | S39: =IF(S38="",R39,S38) -> 0.01952
A40: =ROW() -> 40
A41: =ROW() -> 41 | B41: Annual Update of Debt Risk Premium | E41: 2015 | F41: =E41+1 -> 2016 | G41: =F41+1 -> 2017 | H41: 2018 | I41: 2019 | J41: 2020 | K41: 2021 | L41: 2022 | M41: 2023 | N41: 2024 | O41: =N41+1 -> 2025 | P41: =O41+1 -> 2026 | Q41: =P41+1 -> 2027 | R41: =Q41+1 -> 2028 | S41: =R41+1 -> 2029
A42: =ROW() -> 42 | B42: Trailing Average DRP | E42: =ROUND(AVERAGE(E45:E54),5) -> 0.02526 | F42: =IF(F55="","",ROUND(AVERAGE(F46:F55),5)) -> 0.02713 | G42: =IF(G56="","",ROUND(AVERAGE(G47:G56),5)) -> 0.02855 | H42: =IF(H57="","",ROUND(AVERAGE(H48:H57),5)) -> 0.02666 | I42: =IF(I58="","",ROUND(AVERAGE(I49:I58),5)) -> 0.02365 | J42: =IF(J59="","",ROUND(AVERAGE(J50:J59),5)) -> 0.02325 | K42: =IF(K60="","",ROUND(AVERAGE(K51:K60),5)) -> 0.02288 | L42: =IF(L61="","",ROUND(AVERAGE(L52:L61),5)) -> 0.0212 | M42: =IF(M62="","",ROUND(AVERAGE(M53:M62),5)) -> 0.02036 | N42: =IF(N63="","",ROUND(AVERAGE(N54:N63),5)) -> 0.02002 | O42: =IF(O64="","",ROUND(AVERAGE(O55:O64),5)) -> 0.01952 | P42: =IF(P65="","",ROUND(AVERAGE(P56:P65),5)) ->  | Q42: =IF(Q66="","",ROUND(AVERAGE(Q57:Q66),5)) ->  | R42: =IF(R67="","",ROUND(AVERAGE(R58:R67),5)) ->  | S42: =IF(S68="","",ROUND(AVERAGE(S59:S68),5)) -> 
A43: =ROW() -> 43
A44: =ROW() -> 44 | B44: Annual Debt Risk Premium, Year | E44: =E41 -> 2015 | F44: 2016 | G44: 2017 | H44: 2018 | I44: 2019 | J44: 2020 | K44: 2021 | L44: 2022 | M44: 2023 | N44: 2024 | O44: =O41 -> 2025 | P44: 2026 | Q44: 2027 | R44: 2028 | S44: =S41 -> 2029
A45: =ROW() -> 45 | B45: 2006 | E45: 0.00713
A46: =ROW() -> 46 | B46: =B45+1 -> 2007 | E46: 0.0113 | F46: =E46 -> 0.0113
A47: =ROW() -> 47 | B47: =B46+1 -> 2008 | E47: 0.03756 | F47: 0.03756 | G47: =F47 -> 0.03756
A48: =ROW() -> 48 | B48: 2009 | E48: 0.04624 | F48: 0.04624 | G48: 0.04624 | H48: =G48 -> 0.04624
A49: =ROW() -> 49 | B49: 2010 | E49: 0.02125 | F49: 0.02125 | G49: 0.02125 | H49: 0.02125 | I49: =H49 -> 0.02125
A50: =ROW() -> 50 | B50: 2011 | E50: 0.02379 | F50: 0.02379 | G50: 0.02379 | H50: 0.02379 | I50: 0.02379 | J50: =I50 -> 0.02379
A51: =ROW() -> 51 | B51: 2012 | E51: 0.03168 | F51: 0.03168 | G51: 0.03168 | H51: 0.03168 | I51: 0.03168 | J51: 0.03168 | K51: =J51 -> 0.03168
A52: =ROW() -> 52 | B52: 2013 | E52: 0.03043 | F52: 0.03043 | G52: 0.03043 | H52: 0.03043 | I52: 0.03043 | J52: 0.03043 | K52: 0.03043 | L52: =K52 -> 0.03043
A53: =ROW() -> 53 | B53: 2014 | E53: 0.02251 | F53: 0.02251 | G53: 0.02251 | H53: 0.02251 | I53: 0.02251 | J53: 0.02251 | K53: 0.02251 | L53: 0.02251 | M53: =L53 -> 0.02251
A54: =ROW() -> 54 | B54: 2015 | E54: 0.0207 | F54: 0.0207 | G54: 0.0207 | H54: 0.0207 | I54: 0.0207 | J54: 0.0207 | K54: 0.0207 | L54: 0.0207 | M54: 0.0207 | N54: =M54 -> 0.0207
A55: =ROW() -> 55 | B55: 2016 | F55: 0.02582 | G55: 0.02582 | H55: 0.02582 | I55: 0.02582 | J55: 0.02582 | K55: 0.02582 | L55: 0.02582 | M55: 0.02582 | N55: =M55 -> 0.02582 | O55: =N55 -> 0.02582
A56: =ROW() -> 56 | B56: 2017 | G56: 0.02553 | H56: 0.02553 | I56: 0.02553 | J56: 0.02553 | K56: 0.02553 | L56: 0.02553 | M56: 0.02553 | N56: 0.02553 | O56: 0.02553 | P56: =O56 -> 0.02553
A57: =ROW() -> 57 | B57: 2018 | H57: 0.01862 | I57: 0.01862 | J57: 0.01862 | K57: 0.01862 | L57: 0.01862 | M57: 0.01862 | N57: 0.01862 | O57: 0.01862 | P57: 0.01862 | Q57: =P57 -> 0.01862
A58: =ROW() -> 58 | B58: 2019 | I58: 0.01619 | J58: 0.01619 | K58: 0.01619 | L58: 0.01619 | M58: 0.01619 | N58: 0.01619 | O58: 0.01619 | P58: 0.01619 | Q58: 0.01619 | R58: =Q58 -> 0.01619
A59: =ROW() -> 59 | B59: 2020 | J59: =IF(Inputs!BE$23="","",Inputs!BE$23) -> 0.01725 | K59: 0.01725 | L59: 0.01725 | M59: 0.01725 | N59: 0.01725 | O59: 0.01725 | P59: 0.01725 | Q59: 0.01725 | R59: 0.01725 | S59: =R59 -> 0.01725
A60: =ROW() -> 60 | B60: 2021 | K60: =IF(Inputs!BF$23="","",Inputs!BF$23) -> 0.02009 | L60: 0.02009 | M60: 0.02009 | N60: 0.02009 | O60: 0.02009 | P60: 0.02009 | Q60: 0.02009 | R60: 0.02009 | S60: 0.02009
A61: =ROW() -> 61 | B61: 2022 | L61: =IF(Inputs!BG$23="","",Inputs!BG$23) -> 0.01482 | M61: 0.01482 | N61: 0.01482 | O61: 0.01482 | P61: 0.01482 | Q61: 0.01482 | R61: 0.01482 | S61: 0.01482
A62: =ROW() -> 62 | B62: 2023 | M62: =IF(Inputs!BH$23="","",Inputs!BH$23) -> 0.02209 | N62: 0.02209 | O62: 0.02209 | P62: 0.02209 | Q62: 0.02209 | R62: 0.02209 | S62: 0.02209
A63: =ROW() -> 63 | B63: 2024 | N63: =IF(Inputs!BI$23="","",Inputs!BI$23) -> 0.01908 | O63: 0.01908 | P63: 0.01908 | Q63: 0.01908 | R63: 0.01908 | S63: 0.01908
A64: =ROW() -> 64 | B64: 2025 | O64: =IF(Inputs!BJ$23="","",Inputs!BJ$23) -> 0.01568 | P64: 0.01568 | Q64: 0.01568 | R64: 0.01568 | S64: 0.01568
A65: =ROW() -> 65 | B65: 2026 | P65: =IF(Inputs!BK$23="","",Inputs!BK$23) -> 
A66: =ROW() -> 66 | B66: 2027 | Q66: =IF(Inputs!BL$23="","",Inputs!BL$23) -> 
A67: =ROW() -> 67 | B67: 2028 | R67: =IF(Inputs!BM$23="","",Inputs!BM$23) -> 
A68: =ROW() -> 68 | B68: 2029 | S68: =IF(Inputs!BN$23="","",Inputs!BN$23) -> 
A69: =ROW() -> 69

Sheet Inputs
B1: =Main!B1 -> Goldfields Gas Pipeline Tariff Model, September 2024 [Revised Proposal]
B2: Inputs
A3: Ref | B3: =COLUMN() -> 2 | C3: =COLUMN() -> 3 | D3: =COLUMN() -> 4 | E3: =COLUMN() -> 5 | F3: =COLUMN() -> 6 | G3: =COLUMN() -> 7 | H3: =COLUMN() -> 8 | I3: =COLUMN() -> 9 | J3: =COLUMN() -> 10 | K3: =COLUMN() -> 11 | L3: =COLUMN() -> 12 | M3: =COLUMN() -> 13 | N3: =COLUMN() -> 14 | O3: =COLUMN() -> 15 | P3: =COLUMN() -> 16 | Q3: =COLUMN() -> 17 | R3: =COLUMN() -> 18 | S3: =COLUMN() -> 19 | T3: =COLUMN() -> 20 | U3: =COLUMN() -> 21 | V3: =COLUMN() -> 22 | W3: =COLUMN() -> 23 | X3: =COLUMN() -> 24 | Y3: =COLUMN() -> 25 | Z3: =COLUMN() -> 26 | AA3: =COLUMN() -> 27 | AB3: =COLUMN() -> 28 | AC3: =COLUMN() -> 29 | AD3: =COLUMN() -> 30 | AE3: =COLUMN() -> 31 | AF3: =COLUMN() -> 32 | AG3: =COLUMN() -> 33 | AH3: =COLUMN() -> 34 | AI3: =COLUMN() -> 35 | AJ3: =COLUMN() -> 36 | AK3: =COLUMN() -> 37 | AL3: =COLUMN() -> 38 | AM3: =COLUMN() -> 39 | AN3: =COLUMN() -> 40 | AO3: =COLUMN() -> 41 | AP3: =COLUMN() -> 42 | AQ3: =COLUMN() -> 43 | AR3: =COLUMN() -> 44 | AS3: =COLUMN() -> 45 | AT3: =COLUMN() -> 46 | AU3: =COLUMN() -> 47 | AV3: =COLUMN() -> 48 | AW3: =COLUMN() -> 49 | AX3: =COLUMN() -> 50 | AY3: =COLUMN() -> 51 | AZ3: =COLUMN() -> 52 | BA3: =COLUMN() -> 53 | BB3: =COLUMN() -> 54 | BC3: =COLUMN() -> 55 | BD3: =COLUMN() -> 56 | BE3: =COLUMN() -> 57 | BF3: =COLUMN() -> 58 | BG3: =COLUMN() -> 59 | BH3: =COLUMN() -> 60 | BI3: =COLUMN() -> 61 | BJ3: =COLUMN() -> 62 | BK3: =COLUMN() -> 63 | BL3: =COLUMN() -> 64 | BM3: =COLUMN() -> 65 | BN3: =COLUMN() -> 66
A4: =ROW() -> 4 | B4: Historic, Actual or Forecast | F4: Actual | G4: Actual | H4: Actual | I4: Actual | J4: Actual | K4: Actual | L4: Actual | M4: Actual | N4: Actual | O4: Actual | P4: Actual | Q4: Actual | R4: Actual | S4: Actual | T4: Actual | U4: Actual | V4: Actual | W4: Actual | X4: Actual | Y4: Actual | Z4: Actual | AA4: Actual | AB4: Actual | AC4: Actual | AD4: Actual | AE4: Actual | AF4: Actual | AG4: Actual | AH4: Actual | AI4: Actual | AJ4: Actual | AK4: Actual | AL4: Actual | AM4: Actual | AN4: Actual | AO4: Actual | AP4: Actual | AQ4: Actual | AR4: Actual | AS4: Actual | AT4: Actual | AU4: Actual | AV4: Actual | AW4: Actual | AX4: Actual | AY4: Actual | AZ4: Historic | BA4: Historic | BB4: Historic | BC4: Historic | BD4: Historic | BE4: Historic | BF4: Historic | BG4: Historic | BH4: Forecast | BI4: Forecast | BJ4: Forecast | BK4: Forecast | BL4: Forecast | BM4: Forecast | BN4: Forecast
A5: =ROW() -> 5 | B5: Year Type | F5: Calendar | G5: Calendar | H5: Calendar | I5: Calendar | J5: Calendar | K5: Calendar | L5: Calendar | M5: Calendar | N5: Calendar | O5: Calendar | P5: Calendar | Q5: Calendar | R5: Calendar | S5: Calendar | T5: Calendar | U5: Calendar | V5: Calendar | W5: Calendar | X5: Calendar | Y5: Calendar | Z5: Calendar | AA5: Calendar | AB5: Calendar | AC5: Calendar | AD5: Calendar | AE5: Calendar | AF5: Calendar | AG5: Calendar | AH5: Calendar | AI5: Calendar | AJ5: Calendar | AK5: Calendar | AL5: Calendar | AM5: Calendar | AN5: Calendar | AO5: Calendar | AP5: Calendar | AQ5: Calendar | AR5: Calendar | AS5: Calendar | AT5: Calendar | AU5: Calendar | AV5: Calendar | AW5: Calendar | AX5: Calendar | AY5: Calendar | AZ5: Calendar | BA5: Calendar | BB5: Calendar | BC5: Calendar | BD5: Calendar | BE5: Calendar | BF5: Calendar | BG5: Calendar | BH5: Calendar | BI5: Calendar | BJ5: Calendar | BK5: Calendar | BL5: Calendar | BM5: Calendar | BN5: Calendar
A6: =ROW() -> 6 | B6: Regulatory Period | G6: 1 | H6: 1 | I6: 1 | J6: 1 | K6: 1 | L6: 1 | M6: 1 | N6: 1 | O6: 1 | P6: 1 | Q6: 1 | R6: 1 | S6: 1 | T6: 1 | U6: 1 | V6: 1 | W6: 1 | X6: 1 | Y6: 1 | Z6: 1 | AA6: 1 | AB6: 1 | AC6: 1 | AD6: 1 | AE6: 1 | AF6: 1 | AG6: 1 | AH6: 1 | AI6: 1 | AJ6: 1 | AK6: 1 | AL6: 1 | AM6: 1 | AN6: 1 | AO6: 1 | AP6: 1 | AQ6: 1 | AR6: 1 | AS6: 1 | AT6: 1 | AU6: 2 | AV6: 2 | AW6: 2 | AX6: 2 | AY6: 2 | AZ6: 3 | BA6: 3 | BB6: 3 | BC6: 3 | BD6: 3 | BE6: 4 | BF6: 4 | BG6: 4 | BH6: 4 | BI6: 4 | BJ6: 5 | BK6: 5 | BL6: 5 | BM6: 5 | BN6: 5
A7: =ROW() -> 7 | B7: Start Date | F7: 1999-10-01 | G7: =F8+1 -> 2000-01-01 | H7: 2000-04-01 | I7: 2000-07-01 | J7: 2000-10-01 | K7: 2001-01-01 | L7: 2001-04-01 | M7: 2001-07-01 | N7: 2001-10-01 | O7: 2002-01-01 | P7: 2002-04-01 | Q7: 2002-07-01 | R7: 2002-10-01 | S7: 2003-01-01 | T7: 2003-04-01 | U7: 2003-07-01 | V7: 2003-10-01 | W7: 2004-01-01 | X7: 2004-04-01 | Y7: 2004-07-01 | Z7: 2004-10-01 | AA7: 2005-01-01 | AB7: 2005-04-01 | AC7: 2005-07-01 | AD7: 2005-10-01 | AE7: 2006-01-01 | AF7: 2006-04-01 | AG7: 2006-07-01 | AH7: 2006-10-01 | AI7: 2007-01-01 | AJ7: 2007-04-01 | AK7: 2007-07-01 | AL7: 2007-10-01 | AM7: 2008-01-01 | AN7: 2008-04-01 | AO7: 2008-07-01 | AP7: 2008-10-01 | AQ7: 2009-01-01 | AR7: 2009-04-01 | AS7: 2009-07-01 | AT7: 2009-10-01 | AU7: 2010-01-01 | AV7: 2011-01-01 | AW7: 2012-01-01 | AX7: 2013-01-01 | AY7: 2014-01-01 | AZ7: 2015-01-01 | BA7: 2016-01-01 | BB7: 2017-01-01 | BC7: 2018-01-01 | BD7: 2019-01-01 | BE7: =BD8+1 -> 2020-01-01 | BF7: =BE8+1 -> 2021-01-01 | BG7: =BF8+1 -> 2022-01-01 | BH7: =BG8+1 -> 2023-01-01 | BI7: =BH8+1 -> 2024-01-01 | BJ7: =BI8+1 -> 2025-01-01 | BK7: =BJ8+1 -> 2026-01-01 | BL7: =BK8+1 -> 2027-01-01 | BM7: =BL8+1 -> 2028-01-01 | BN7: =BM8+1 -> 2029-01-01
A8: =ROW() -> 8 | B8: End Date | F8: =F7+F11-1 -> 1999-12-31 | G8: 2000-03-31 | H8: 2000-06-30 | I8: 2000-09-30 | J8: 2000-12-31 | K8: 2001-03-31 | L8: 2001-06-30 | M8: 2001-09-30 | N8: 2001-12-31 | O8: 2002-03-31 | P8: 2002-06-30 | Q8: 2002-09-30 | R8: 2002-12-31 | S8: 2003-03-31 | T8: 2003-06-30 | U8: 2003-09-30 | V8: 2003-12-31 | W8: 2004-03-31 | X8: 2004-06-30 | Y8: 2004-09-30 | Z8: 2004-12-31 | AA8: 2005-03-31 | AB8: 2005-06-30 | AC8: 2005-09-30 | AD8: 2005-12-31 | AE8: 2006-03-31 | AF8: 2006-06-30 | AG8: 2006-09-30 | AH8: 2006-12-31 | AI8: 2007-03-31 | AJ8: 2007-06-30 | AK8: 2007-09-30 | AL8: 2007-12-31 | AM8: 2008-03-31 | AN8: 2008-06-30 | AO8: 2008-09-30 | AP8: 2008-12-31 | AQ8: 2009-03-31 | AR8: 2009-06-30 | AS8: 2009-09-30 | AT8: 2009-12-31 | AU8: 2010-12-31 | AV8: 2011-12-31 | AW8: 2012-12-31 | AX8: 2013-12-31 | AY8: 2014-12-31 | AZ8: 2015-12-31 | BA8: 2016-12-31 | BB8: 2017-12-31 | BC8: 2018-12-31 | BD8: 2019-12-31 | BE8: =BE7+BE11-1 -> 2020-12-31 | BF8: 2021-12-31 | BG8: 2022-12-31 | BH8: 2023-12-31 | BI8: 2024-12-31 | BJ8: =BJ7+BJ11-1 -> 2025-12-31 | BK8: 2026-12-31 | BL8: 2027-12-31 | BM8: 2028-12-31 | BN8: 2029-12-31
A9: =ROW() -> 9 | B9: Year | F9: =YEAR(F8) -> 1999 | G9: 2000 | H9: 2000 | I9: 2000 | J9: 2000 | K9: 2001 | L9: 2001 | M9: 2001 | N9: 2001 | O9: 2002 | P9: 2002 | Q9: 2002 | R9: 2002 | S9: 2003 | T9: 2003 | U9: 2003 | V9: 2003 | W9: 2004 | X9: 2004 | Y9: 2004 | Z9: 2004 | AA9: 2005 | AB9: 2005 | AC9: 2005 | AD9: 2005 | AE9: 2006 | AF9: 2006 | AG9: 2006 | AH9: 2006 | AI9: 2007 | AJ9: 2007 | AK9: 2007 | AL9: 2007 | AM9: 2008 | AN9: 2008 | AO9: 2008 | AP9: 2008 | AQ9: 2009 | AR9: 2009 | AS9: 2009 | AT9: 2009 | AU9: 2010 | AV9: 2011 | AW9: 2012 | AX9: 2013 | AY9: 2014 | AZ9: 2015 | BA9: 2016 | BB9: 2017 | BC9: 2018 | BD9: 2019 | BE9: 2020 | BF9: 2021 | BG9: 2022 | BH9: 2023 | BI9: =YEAR(BI8) -> 2024 | BJ9: =YEAR(BJ8) -> 2025 | BK9: 2026 | BL9: 2027 | BM9: 2028 | BN9: =YEAR(BN8) -> 2029
A10: =ROW() -> 10 | B10: Quarter | G10: Q1 | H10: Q2 | I10: Q3 | J10: Q4 | K10: Q1 | L10: Q2 | M10: Q3 | N10: Q4 | O10: Q1 | P10: Q2 | Q10: Q3 | R10: Q4 | S10: Q1 | T10: Q2 | U10: Q3 | V10: Q4 | W10: Q1 | X10: Q2 | Y10: Q3 | Z10: Q4 | AA10: Q1 | AB10: Q2 | AC10: Q3 | AD10: Q4 | AE10: Q1 | AF10: Q2 | AG10: Q3 | AH10: Q4 | AI10: Q1 | AJ10: Q2 | AK10: Q3 | AL10: Q4 | AM10: Q1 | AN10: Q2 | AO10: Q3 | AP10: Q4 | AQ10: - | AR10: - | AS10: - | AT10: - | AU10: - | AV10: - | AW10: - | AX10: - | AY10: - | AZ10: - | BA10: - | BB10: - | BC10: - | BD10: - | BE10: - | BF10: - | BG10: - | BH10: - | BI10: - | BJ10: - | BK10: - | BL10: - | BM10: - | BN10: -
A11: =ROW() -> 11 | B11: Days | F11: 92 | G11: 91 | H11: 91 | I11: 92 | J11: 92 | K11: 90 | L11: 91 | M11: 92 | N11: 92 | O11: 90 | P11: 91 | Q11: 92 | R11: 92 | S11: 90 | T11: 91 | U11: 92 | V11: 92 | W11: 91 | X11: 91 | Y11: 92 | Z11: 92 | AA11: 90 | AB11: 91 | AC11: 92 | AD11: 92 | AE11: 90 | AF11: 91 | AG11: 92 | AH11: 92 | AI11: 90 | AJ11: 91 | AK11: 92 | AL11: 92 | AM11: 91 | AN11: 91 | AO11: 92 | AP11: 92 | AQ11: 90 | AR11: 91 | AS11: 92 | AT11: 92 | AU11: 365 | AV11: 365 | AW11: 366 | AX11: 365 | AY11: 365 | AZ11: 365 | BA11: 366 | BB11: 365 | BC11: 365 | BD11: 365 | BE11: 366 | BF11: 365 | BG11: 365 | BH11: 365 | BI11: 366 | BJ11: 365 | BK11: 365 | BL11: 365 | BM11: 366 | BN11: 365
A12: =ROW() -> 12 | B12: Years (nearest half) | F12: =ROUND(YEARFRAC(F7,F8),2) -> 0.25 | G12: 0.25 | H12: 0.25 | I12: 0.25 | J12: 0.25 | K12: 0.25 | L12: 0.25 | M12: 0.25 | N12: 0.25 | O12: 0.25 | P12: 0.25 | Q12: 0.25 | R12: 0.25 | S12: 0.25 | T12: 0.25 | U12: 0.25 | V12: 0.25 | W12: 0.25 | X12: 0.25 | Y12: 0.25 | Z12: 0.25 | AA12: 0.25 | AB12: 0.25 | AC12: 0.25 | AD12: 0.25 | AE12: 0.25 | AF12: 0.25 | AG12: 0.25 | AH12: 0.25 | AI12: 0.25 | AJ12: 0.25 | AK12: 0.25 | AL12: 0.25 | AM12: 0.25 | AN12: 0.25 | AO12: 0.25 | AP12: 0.25 | AQ12: 0.25 | AR12: 0.25 | AS12: 0.25 | AT12: 0.25 | AU12: 1 | AV12: 1 | AW12: 1 | AX12: 1 | AY12: 1 | AZ12: 1 | BA12: 1 | BB12: 1 | BC12: 1 | BD12: 1 | BE12: =ROUND(YEARFRAC(BE7,BE8),2) -> 1 | BF12: 1 | BG12: 1 | BH12: 1 | BI12: 1 | BJ12: =ROUND(YEARFRAC(BJ7,BJ8),2) -> 1 | BK12: 1 | BL12: 1 | BM12: 1 | BN12: 1
A13: =ROW() -> 13
A14: =ROW() -> 14 | B14: CPI and Inflation
A15: =ROW() -> 15 | C15: Base period: | D15: 2023-12-31 | G15: 2000-03-01 | H15: 2000-06-01 | I15: 2000-09-01 | J15: 2000-12-01 | K15: 2001-03-01 | L15: 2001-06-01 | M15: 2001-09-01 | N15: 2001-12-01 | O15: 2002-03-01 | P15: 2002-06-01 | Q15: 2002-09-01 | R15: 2002-12-01 | S15: 2003-03-01 | T15: 2003-06-01 | U15: 2003-09-01 | V15: 2003-12-01 | W15: 2004-03-01 | X15: 2004-06-01 | Y15: 2004-09-01 | Z15: 2004-12-01 | AA15: 2005-03-01 | AB15: 2005-06-01 | AC15: 2005-09-01 | AD15: 2005-12-01 | AE15: 2006-03-01 | AF15: 2006-06-01 | AG15: 2006-09-01 | AH15: 2006-12-01 | AI15: 2007-03-01 | AJ15: 2007-06-01 | AK15: 2007-09-01 | AL15: 2007-12-01 | AM15: 2008-03-01 | AN15: 2008-06-01 | AO15: 2008-09-01 | AP15: 2008-12-01 | AQ15: 2009-03-01 | AR15: 2009-06-30 | AS15: 2009-09-30 | AT15: 2009-12-31 | AU15: 2010-12-31 | AV15: 2011-12-31 | AW15: 2012-12-31 | AX15: 2013-12-31 | AY15: 2014-12-31 | AZ15: 2015-12-31 | BA15: 2016-12-31 | BB15: 2017-12-31 | BC15: 2018-12-31 | BD15: 2019-12-31 | BE15: 2020-12-31 | BF15: 2021-12-31 | BG15: 2022-12-31 | BH15: 2023-12-31 | BI15: 2024-12-31 | BJ15: 2025-12-31 | BK15: 2026-12-31 | BL15: 2027-12-31 | BM15: 2028-12-31 | BN15: 2029-12-31
A16: =ROW() -> 16 | B16: Period End CPI | C16: Base CPI: | D16: =HLOOKUP(AZ$79,$G$15:$BI$16,2,FALSE) -> 136.1 | G16: 69.7 | H16: 70.2 | I16: 72.9 | J16: 73.1 | K16: 73.9 | L16: 74.5 | M16: 74.7 | N16: 75.4 | O16: 76.1 | P16: 76.6 | Q16: 77.1 | R16: 77.6 | S16: 78.6 | T16: 78.6 | U16: 79.1 | V16: 79.5 | W16: 80.2 | X16: 80.6 | Y16: 80.9 | Z16: 81.5 | AA16: 82.1 | AB16: 82.6 | AC16: 83.4 | AD16: 83.8 | AE16: 84.5 | AF16: 85.9 | AG16: 86.7 | AH16: 86.6 | AI16: 86.6 | AJ16: 87.7 | AK16: 88.3 | AL16: 89.1 | AM16: 90.3 | AN16: 91.6 | AO16: 92.7 | AP16: 92.4 | AQ16: 92.5 | AR16: 92.9 | AS16: 93.8 | AT16: 94.3 | AU16: 96.9 | AV16: 99.8 | AW16: 102 | AX16: 104.8 | AY16: 106.6 | AZ16: 108.4 | BA16: 110 | BB16: 112.1 | BC16: 114.1 | BD16: 116.2 | BE16: 117.2 | BF16: 121.3 | BG16: 130.8 | BH16: 136.1 | BI16: =BH16*(1+BI17) -> 140.183 | BJ16: =BI16*(1+BJ17) -> 143.7015933 | BK16: =BJ16*(1+BK17) -> 147.3085033 | BL16: =BK16*(1+BL17) -> 151.0059467 | BM16: =BL16*(1+BM17) -> 154.796196 | BN16: =BM16*(1+BN17) -> 158.6815805
A17: =ROW() -> 17 | B17: Period End Inflation | H17: 0.007173601148 | I17: 0.03846153846 | J17: 0.002743484225 | K17: 0.01094391245 | L17: 0.008119079838 | M17: 0.002684563758 | N17: 0.0093708166 | O17: 0.009283819629 | P17: 0.006570302234 | Q17: 0.006527415144 | R17: 0.006485084306 | S17: 0.01288659794 | T17: 0 | U17: 0.006361323155 | V17: 0.005056890013 | W17: 0.008805031447 | X17: 0.004987531172 | Y17: 0.003722084367 | Z17: 0.007416563659 | AA17: 0.00736196319 | AB17: 0.006090133983 | AC17: 0.009685230024 | AD17: 0.00479616307 | AE17: 0.008353221957 | AF17: 0.01656804734 | AG17: 0.009313154831 | AH17: -0.001153402537 | AI17: 0 | AJ17: 0.01270207852 | AK17: 0.006841505131 | AL17: 0.00906002265 | AM17: 0.01346801347 | AN17: 0.01439645626 | AO17: 0.01200873362 | AP17: -0.003236245955 | AQ17: 0.001082251082 | AR17: 0.004324324324 | AS17: 0.009687836383 | AT17: 0.005330490405 | AU17: 0.02757158006 | AV17: 0.02992776058 | AW17: =AW16/AV16-1 -> 0.02204408818 | AX17: 0.02745098039 | AY17: 0.01717557252 | AZ17: 0.01688555347 | BA17: 0.0147601476 | BB17: 0.01909090909 | BC17: =BC16/BB16-1 -> 0.0178412132 | BD17: =BD16/BC16-1 -> 0.01840490798 | BE17: 0.008605851979 | BF17: 0.03498293515 | BG17: 0.07831821929 | BH17: 0.04051987768 | BI17: 0.03 | BJ17: =WACC!O25 -> 0.0251 | BK17: =WACC!P25 -> 0.0251 | BL17: =WACC!Q25 -> 0.0251 | BM17: =WACC!R25 -> 0.0251 | BN17: =WACC!S25 -> 0.0251
A18: =ROW() -> 18
A19: =ROW() -> 19 | B19: ="Deflation Factor (convert nominal to real $ "&D19&")" -> Deflation Factor (convert nominal to real $ 31/12/2023) | C19: Real $ at | D19: =TEXT(D15,"dd/mm/yyyy") -> 31/12/2023 | AS19: =HLOOKUP($D$15,$AS$15:$BI$16,2,FALSE)/AS$16 -> 1.450959488 | AT19: =HLOOKUP($D$15,$AS$15:$BI$16,2,FALSE)/AT$16 -> 1.443266172 | AU19: 1.404540764 | AV19: 1.363727455 | AW19: 1.334313725 | AX19: 1.298664122 | AY19: 1.27673546 | AZ19: 1.255535055 | BA19: 1.237272727 | BB19: 1.214094558 | BC19: 1.192813322 | BD19: 1.171256454 | BE19: 1.161262799 | BF19: 1.122011542 | BG19: 1.040519878 | BH19: 1 | BI19: =HLOOKUP($D$15,$AS$15:$BI$16,2,FALSE)/BI$16 -> 0.9708737864 | BJ19: =HLOOKUP($D$15,$AS$15:$BI$16,2,FALSE)/BJ$16 -> 0.9471015378 | BK19: 0.9239113626 | BL19: 0.9012890085 | BM19: 0.8792205721 | BN19: =HLOOKUP($D$15,$AS$15:$BI$16,2,FALSE)/BN$16 -> 0.8576924906
A20: =ROW() -> 20
A21: =ROW() -> 21 | B21: General Inputs
A22: =ROW() -> 22 | B22: Tariff Recalculation | C22: =IF(ISNUMBER($BN$23),$BN$9,IF(ISNUMBER($BM$23),$BM$9,IF(ISNUMBER($BL$23),$BL$9,IF(ISNUMBER($BK$23),$BK$9,$BJ$9)))) -> 2025 | D22: =BN9 -> 2029
A23: =ROW() -> 23 | B23: Annual Debt Risk Premium (Annual Update) | BE23: 0.01725 | BF23: 0.02009 | BG23: 0.01482 | BH23: 0.02209 | BI23: 0.01908 | BJ23: 0.01568
A24: =ROW() -> 24 | B24: Trailing Average DRP (10 year ave, modelled) | AZ24: =WACC!E42 -> 0.02526 | BA24: =WACC!F42 -> 0.02713 | BB24: =WACC!G42 -> 0.02855 | BC24: =WACC!H42 -> 0.02666 | BD24: =WACC!I42 -> 0.02365 | BE24: =IF(WACC!J42="","",WACC!J42) -> 0.02325 | BF24: =IF(WACC!K42="","",WACC!K42) -> 0.02288 | BG24: =IF(WACC!L42="","",WACC!L42) -> 0.0212 | BH24: =IF(WACC!M42="","",WACC!M42) -> 0.02036 | BI24: =IF(WACC!N42="","",WACC!N42) -> 0.02002 | BJ24: =IF(WACC!O42="","",WACC!O42) -> 0.01952 | BK24: =IF(WACC!P42="","",WACC!P42) ->  | BL24: =IF(WACC!Q42="","",WACC!Q42) ->  | BM24: =IF(WACC!R42="","",WACC!R42) ->  | BN24: =IF(WACC!S42="","",WACC!S42) -> 
A25: =ROW() -> 25 | B25: X-Factor
A26: =ROW() -> 26 | B26: Toll Charge | BE26: =ChangeTol2020 -> 0.4816094245 | BF26: =ChangeTol2021 ->  | BG26: =ChangeTol2022 ->  | BH26: =ChangeTol2023 ->  | BI26: =ChangeTol2024 ->  | BJ26: =ChangeTol2020 -> 0.4816094245 | BK26: =ChangeTol2021 ->  | BL26: =ChangeTol2022 ->  | BM26: =ChangeTol2023 ->  | BN26: =ChangeTol2024 -> 
A27: =ROW() -> 27 | B27: Reservation Charge | BE27: =ChangeRes2020 -> 0.71567922 | BF27: =ChangeRes2021 ->  | BG27: =ChangeRes2022 ->  | BH27: =ChangeRes2023 ->  | BI27: =ChangeRes2024 ->  | BJ27: =ChangeRes2020 -> 0.71567922 | BK27: =ChangeRes2021 ->  | BL27: =ChangeRes2022 ->  | BM27: =ChangeRes2023 ->  | BN27: =ChangeRes2024 -> 
A28: =ROW() -> 28 | B28: Throughput Charge | BE28: =ChangeThr2020 -> 0.6870789552 | BF28: =ChangeThr2021 ->  | BG28: =ChangeThr2022 ->  | BH28: =ChangeThr2023 ->  | BI28: =ChangeThr2024 ->  | BJ28: =ChangeThr2020 -> 0.6870789552 | BK28: =ChangeThr2021 ->  | BL28: =ChangeThr2022 ->  | BM28: =ChangeThr2023 ->  | BN28: =ChangeThr2024 -> 
A29: =ROW() -> 29
A30: =ROW() -> 30 | B30: Asset Sheet Inputs
A31: =ROW() -> 31 | C31: ICB Asset Life (years) | D31: Asset Life (years) | E31: Tax Asset Life (years)
A32: =ROW() -> 32 | B32: Date of Opening Life | C32: 1999-12-31
A33: =ROW() -> 33 | B33: Pipeline and laterals | C33: 64.5 | D33: 70 | E33: 20
A34: =ROW() -> 34 | B34: Main line valve and scraper stations | C34: 44.5 | D34: 50 | E34: 20
A35: =ROW() -> 35 | B35: Compressor stations | C35: 24.5 | D35: 30 | E35: 20
A36: =ROW() -> 36 | B36: Receipt and delivery point facilities | C36: 24.5 | D36: 30 | E36: 20
A37: =ROW() -> 37 | B37: SCADA and communications | C37: 9.5 | D37: 10 | E37: 10
A38: =ROW() -> 38 | B38: Cathodic protection | C38: 9.5 | D38: 15 | E38: 10
A39: =ROW() -> 39 | B39: Maintenance bases and depots | C39: 44.5 | D39: 50 | E39: 20
A40: =ROW() -> 40 | B40: Other assets | C40: 4.5 | D40: 10 | E40: 10
A41: =ROW() -> 41 | B41: Equity Raising Cost | D41: =(SUMPRODUCT($D$33:$D$40,Assets!$BF$194:$BF$201) + SUMPRODUCT($D$43:$D$44,Assets!$BF$204:$BF$205))/SUM(Assets!$BF$194:$BF$201,Assets!$BF$204:$BF$205) -> 25.27240334 | E41: 5 | G41: =SUMPRODUCT($D$33:$D$40,Assets!$BF$194:$BF$201) + SUMPRODUCT($D$43:$D$44,Assets!$BF$204:$BF$205) -> 1811.220225
A42: =ROW() -> 42 | B42: Non-depreciable assets | D42: 0 | E42: 0
A43: =ROW() -> 43 | B43: Shared support assets - IOT & cyber security | D43: 5 | E43: 5
A44: =ROW() -> 44 | B44: Shared support assets (net IOT & cyber security) | D44: 20 | E44: 20
A45: =ROW() -> 45 | B45: Miscellaneous assets | D45: 0 | E45: 0
A46: =ROW() -> 46 | C46: ICB | D46: Tax Asset ICB
A47: =ROW() -> 47 | B47: Date of Dollar Value | C47: 1999-12-31 | D47: 1999-12-31
A48: =ROW() -> 48 | B48: Pipeline and laterals | C48: 438.6555358 | D48: 438.6555358
A49: =ROW() -> 49 | B49: Main line valve and scraper stations | C49: 9.177771758 | D49: 9.177771758
A50: =ROW() -> 50 | B50: Compressor stations | C50: 41.57599489 | D50: 41.57599489
A51: =ROW() -> 51 | B51: Receipt and delivery point facilities | C51: 1.534343975 | D51: 1.534343975
A52: =ROW() -> 52 | B52: SCADA and communications | C52: 10.12958811 | D52: 10.12958811
A53: =ROW() -> 53 | B53: Cathodic protection | C53: 1.828833019 | D53: 1.828833019
A54: =ROW() -> 54 | B54: Maintenance bases and depots | C54: 7.727642558 | D54: 7.727642558
A55: =ROW() -> 55 | B55: Other assets | C55: 0.4393552199 | D55: 0.4393552199
A56: =ROW() -> 56 | B56: Equity Raising Cost
A57: =ROW() -> 57 | B57: Non-depreciable assets | C57: =$F$1872 -> 2.581675929 | D57: 0
A58: =ROW() -> 58 | B58: Shared support assets - IOT & cyber security | C58: 0 | D58: 0
A59: =ROW() -> 59 | B59: Shared support assets (net IOT & cyber security) | C59: 0 | D59: 0
A60: =ROW() -> 60 | B60: Miscellaneous assets | C60: 0 | D60: 0
A61: =ROW() -> 61 | B61: Total (excl Non-depreciable) | C61: 511.0690653
A62: =ROW() -> 62 | B62: ICB Depreciation ($m) HCA
A63: =ROW() -> 63 | B63: Date of Dollar Value | G63: 2000-03-31 | H63: 2000-06-30 | I63: 2000-09-30 | J63: 2000-12-31 | K63: 2001-03-31 | L63: 2001-06-30 | M63: 2001-09-30 | N63: 2001-12-31 | O63: 2002-03-31 | P63: 2002-06-30 | Q63: 2002-09-30 | R63: 2002-12-31 | S63: 2003-03-31 | T63: 2003-06-30 | U63: 2003-09-30 | V63: 2003-12-31 | W63: 2004-03-31 | X63: 2004-06-30 | Y63: 2004-09-30 | Z63: 2004-12-31 | AA63: 2005-03-31 | AB63: 2005-06-30 | AC63: 2005-09-30 | AD63: 2005-12-31 | AE63: 2006-03-31 | AF63: 2006-06-30 | AG63: 2006-09-30 | AH63: 2006-12-31 | AI63: 2007-03-31 | AJ63: 2007-06-30 | AK63: 2007-09-30 | AL63: 2007-12-31 | AM63: 2008-03-31 | AN63: 2008-06-30 | AO63: 2008-09-30 | AP63: 2008-12-31 | AQ63: 2009-03-31 | AR63: 2009-06-30 | AS63: 2009-09-30 | AT63: 2009-12-31 | AU63: 2010-12-31 | AV63: 2011-12-31 | AW63: 2012-12-31 | AX63: 2013-12-31 | AY63: 2014-12-31 | AZ63: 2014-12-31 | BA63: 2014-12-31 | BB63: 2014-12-31 | BC63: 2014-12-31 | BD63: 2014-12-31 | BE63: 2018-12-31 | BF63: 2018-12-31 | BG63: 2018-12-31 | BH63: 2018-12-31 | BI63: 2018-12-31
A64: =ROW() -> 64 | B64: Pipeline and laterals | G64: 6.80086102 | H64: 6.80086102 | I64: 6.80086102 | J64: 6.80086102 | K64: 6.80086102 | L64: 6.80086102 | M64: 6.80086102 | N64: 6.80086102 | O64: 6.80086102 | P64: 6.80086102 | Q64: 6.80086102 | R64: 6.80086102 | S64: 6.80086102 | T64: 6.80086102 | U64: 6.80086102 | V64: 6.80086102 | W64: 6.80086102 | X64: 6.80086102 | Y64: 6.80086102 | Z64: 6.80086102 | AA64: 6.80086102 | AB64: 6.80086102 | AC64: 6.80086102 | AD64: 6.80086102 | AE64: 6.80086102 | AF64: 6.80086102 | AG64: 6.80086102 | AH64: 6.80086102 | AI64: 6.80086102 | AJ64: 6.80086102 | AK64: 6.80086102 | AL64: 6.80086102 | AM64: 6.80086102 | AN64: 6.80086102 | AO64: 6.80086102 | AP64: 6.80086102 | AQ64: 6.80086102 | AR64: 6.80086102 | AS64: 6.80086102 | AT64: 6.80086102 | AU64: 6.80086102 | AV64: 6.80086102 | AW64: 6.80086102 | AX64: 6.80086102 | AY64: 6.80086102 | AZ64: 6.80086102 | BA64: 6.80086102 | BB64: 6.80086102 | BC64: 6.80086102 | BD64: 6.80086102 | BE64: 7.279345613 | BF64: 7.279345613 | BG64: 7.279345613 | BH64: 7.279345613 | BI64: 7.279345613
A65: =ROW() -> 65 | B65: Main line valve and scraper stations | G65: 0.206242062 | H65: 0.206242062 | I65: 0.206242062 | J65: 0.206242062 | K65: 0.206242062 | L65: 0.206242062 | M65: 0.206242062 | N65: 0.206242062 | O65: 0.206242062 | P65: 0.206242062 | Q65: 0.206242062 | R65: 0.206242062 | S65: 0.206242062 | T65: 0.206242062 | U65: 0.206242062 | V65: 0.206242062 | W65: 0.206242062 | X65: 0.206242062 | Y65: 0.206242062 | Z65: 0.206242062 | AA65: 0.206242062 | AB65: 0.206242062 | AC65: 0.206242062 | AD65: 0.206242062 | AE65: 0.206242062 | AF65: 0.206242062 | AG65: 0.206242062 | AH65: 0.206242062 | AI65: 0.206242062 | AJ65: 0.206242062 | AK65: 0.206242062 | AL65: 0.206242062 | AM65: 0.206242062 | AN65: 0.206242062 | AO65: 0.206242062 | AP65: 0.206242062 | AQ65: 0.206242062 | AR65: 0.206242062 | AS65: 0.206242062 | AT65: 0.206242062 | AU65: 0.206242062 | AV65: 0.206242062 | AW65: 0.206242062 | AX65: 0.206242062 | AY65: 0.206242062 | AZ65: 0.206242062 | BA65: 0.206242062 | BB65: 0.206242062 | BC65: 0.206242062 | BD65: 0.206242062 | BE65: 0.220752526 | BF65: 0.220752526 | BG65: 0.220752526 | BH65: 0.220752526 | BI65: 0.220752526
A66: =ROW() -> 66 | B66: Compressor stations | G66: 1.696979383 | H66: 1.696979383 | I66: 1.696979383 | J66: 1.696979383 | K66: 1.696979383 | L66: 1.696979383 | M66: 1.696979383 | N66: 1.696979383 | O66: 1.696979383 | P66: 1.696979383 | Q66: 1.696979383 | R66: 1.696979383 | S66: 1.696979383 | T66: 1.696979383 | U66: 1.696979383 | V66: 1.696979383 | W66: 1.696979383 | X66: 1.696979383 | Y66: 1.696979383 | Z66: 1.696979383 | AA66: 1.696979383 | AB66: 1.696979383 | AC66: 1.696979383 | AD66: 1.696979383 | AE66: 1.696979383 | AF66: 1.696979383 | AG66: 1.696979383 | AH66: 1.696979383 | AI66: 1.696979383 | AJ66: 1.696979383 | AK66: 1.696979383 | AL66: 1.696979383 | AM66: 1.696979383 | AN66: 1.696979383 | AO66: 1.696979383 | AP66: 1.696979383 | AQ66: 1.696979383 | AR66: 1.696979383 | AS66: 1.696979383 | AT66: 1.696979383 | AU66: 1.696979383 | AV66: 1.696979383 | AW66: 1.696979383 | AX66: 1.696979383 | AY66: 1.696979383 | AZ66: 1.696979383 | BA66: 1.696979383 | BB66: 1.696979383 | BC66: 1.696979383 | BD66: 1.696979383 | BE66: 1.816372867 | BF66: 1.816372867 | BG66: 1.816372867 | BH66: 1.816372867 | BI66: 0.9081864334
A67: =ROW() -> 67 | B67: Receipt and delivery point facilities | G67: 0.0626262847 | H67: 0.0626262847 | I67: 0.0626262847 | J67: 0.0626262847 | K67: 0.0626262847 | L67: 0.0626262847 | M67: 0.0626262847 | N67: 0.0626262847 | O67: 0.0626262847 | P67: 0.0626262847 | Q67: 0.0626262847 | R67: 0.0626262847 | S67: 0.0626262847 | T67: 0.0626262847 | U67: 0.0626262847 | V67: 0.0626262847 | W67: 0.0626262847 | X67: 0.0626262847 | Y67: 0.0626262847 | Z67: 0.0626262847 | AA67: 0.0626262847 | AB67: 0.0626262847 | AC67: 0.0626262847 | AD67: 0.0626262847 | AE67: 0.0626262847 | AF67: 0.0626262847 | AG67: 0.0626262847 | AH67: 0.0626262847 | AI67: 0.0626262847 | AJ67: 0.0626262847 | AK67: 0.0626262847 | AL67: 0.0626262847 | AM67: 0.0626262847 | AN67: 0.0626262847 | AO67: 0.0626262847 | AP67: 0.0626262847 | AQ67: 0.0626262847 | AR67: 0.0626262847 | AS67: 0.0626262847 | AT67: 0.0626262847 | AU67: 0.0626262847 | AV67: 0.0626262847 | AW67: 0.0626262847 | AX67: 0.0626262847 | AY67: 0.0626262847 | AZ67: 0.0626262847 | BA67: 0.0626262847 | BB67: 0.0626262847 | BC67: 0.0626262847 | BD67: 0.0626262847 | BE67: 0.06703244919 | BF67: 0.06703244919 | BG67: 0.06703244919 | BH67: 0.06703244919 | BI67: 0.0335162246
A68: =ROW() -> 68 | B68: SCADA and communications | G68: 1.066272432 | H68: 1.066272432 | I68: 1.066272432 | J68: 1.066272432 | K68: 1.066272432 | L68: 1.066272432 | M68: 1.066272432 | N68: 1.066272432 | O68: 1.066272432 | P68: 1.066272432 | Q68: 1.066272432 | R68: 1.066272432 | S68: 1.066272432 | T68: 1.066272432 | U68: 1.066272432 | V68: 1.066272432 | W68: 1.066272432 | X68: 1.066272432 | Y68: 1.066272432 | Z68: 1.066272432 | AA68: 1.066272432 | AB68: 1.066272432 | AC68: 1.066272432 | AD68: 1.066272432 | AE68: 1.066272432 | AF68: 1.066272432 | AG68: 1.066272432 | AH68: 1.066272432 | AI68: 1.066272432 | AJ68: 1.066272432 | AK68: 1.066272432 | AL68: 1.066272432 | AM68: 1.066272432 | AN68: 1.066272432 | AO68: 1.066272432 | AP68: 1.066272432 | AQ68: 1.066272432 | AR68: 1.066272432 | AS68: 0 | AT68: 0 | AU68: 0 | AV68: 0 | AW68: 0 | AX68: 0 | AY68: 0 | AZ68: 1.33226763e-15 | BA68: 0 | BB68: 0 | BC68: 0 | BD68: 0 | BE68: 0 | BF68: 0 | BG68: 0 | BH68: 0 | BI68: 0
A69: =ROW() -> 69 | B69: Cathodic protection | G69: 0.1925087388 | H69: 0.1925087388 | I69: 0.1925087388 | J69: 0.1925087388 | K69: 0.1925087388 | L69: 0.1925087388 | M69: 0.1925087388 | N69: 0.1925087388 | O69: 0.1925087388 | P69: 0.1925087388 | Q69: 0.1925087388 | R69: 0.1925087388 | S69: 0.1925087388 | T69: 0.1925087388 | U69: 0.1925087388 | V69: 0.1925087388 | W69: 0.1925087388 | X69: 0.1925087388 | Y69: 0.1925087388 | Z69: 0.1925087388 | AA69: 0.1925087388 | AB69: 0.1925087388 | AC69: 0.1925087388 | AD69: 0.1925087388 | AE69: 0.1925087388 | AF69: 0.1925087388 | AG69: 0.1925087388 | AH69: 0.1925087388 | AI69: 0.1925087388 | AJ69: 0.1925087388 | AK69: 0.1925087388 | AL69: 0.1925087388 | AM69: 0.1925087388 | AN69: 0.1925087388 | AO69: 0.1925087388 | AP69: 0.1925087388 | AQ69: 0.1925087388 | AR69: 0.1925087388 | AS69: 0 | AT69: 0 | AU69: 0 | AV69: 0 | AW69: 0 | AX69: 0 | AY69: 0 | AZ69: 0 | BA69: 0 | BB69: 0 | BC69: 0 | BD69: 0 | BE69: 0 | BF69: 0 | BG69: 0 | BH69: 0 | BI69: 0
A70: =ROW() -> 70 | B70: Maintenance bases and depots | G70: 0.1736548889 | H70: 0.1736548889 | I70: 0.1736548889 | J70: 0.1736548889 | K70: 0.1736548889 | L70: 0.1736548889 | M70: 0.1736548889 | N70: 0.1736548889 | O70: 0.1736548889 | P70: 0.1736548889 | Q70: 0.1736548889 | R70: 0.1736548889 | S70: 0.1736548889 | T70: 0.1736548889 | U70: 0.1736548889 | V70: 0.1736548889 | W70: 0.1736548889 | X70: 0.1736548889 | Y70: 0.1736548889 | Z70: 0.1736548889 | AA70: 0.1736548889 | AB70: 0.1736548889 | AC70: 0.1736548889 | AD70: 0.1736548889 | AE70: 0.1736548889 | AF70: 0.1736548889 | AG70: 0.1736548889 | AH70: 0.1736548889 | AI70: 0.1736548889 | AJ70: 0.1736548889 | AK70: 0.1736548889 | AL70: 0.1736548889 | AM70: 0.1736548889 | AN70: 0.1736548889 | AO70: 0.1736548889 | AP70: 0.1736548889 | AQ70: 0.1736548889 | AR70: 0.1736548889 | AS70: 0.1736548889 | AT70: 0.1736548889 | AU70: 0.1736548889 | AV70: 0.1736548889 | AW70: 0.1736548889 | AX70: 0.1736548889 | AY70: 0.1736548889 | AZ70: 0.1736548889 | BA70: 0.1736548889 | BB70: 0.1736548889 | BC70: 0.1736548889 | BD70: 0.1736548889 | BE70: 0.1858726344 | BF70: 0.1858726344 | BG70: 0.1858726344 | BH70: 0.1858726344 | BI70: 0.1858726344
A71: =ROW() -> 71 | B71: Other assets | G71: 0.09763449332 | H71: 0.09763449332 | I71: 0.09763449332 | J71: 0.09763449332 | K71: 0.09763449332 | L71: 0.09763449332 | M71: 0.09763449332 | N71: 0.09763449332 | O71: 0.09763449332 | P71: 0.09763449332 | Q71: 0.09763449332 | R71: 0.09763449332 | S71: 0.09763449332 | T71: 0.09763449332 | U71: 0.09763449332 | V71: 0.09763449332 | W71: 0.09763449332 | X71: 0.09763449332 | Y71: 0 | Z71: 0 | AA71: 0 | AB71: 0 | AC71: 0 | AD71: 0 | AE71: 0 | AF71: 0 | AG71: 0 | AH71: 0 | AI71: 0 | AJ71: 0 | AK71: 0 | AL71: 0 | AM71: 0 | AN71: 0 | AO71: 0 | AP71: 0 | AQ71: 0 | AR71: 0 | AS71: 0 | AT71: 0 | AU71: 0 | AV71: 0 | AW71: 0 | AX71: 0 | AY71: 0 | AZ71: 0 | BA71: 0 | BB71: 0 | BC71: 0 | BD71: 0 | BE71: 0 | BF71: 0 | BG71: 0 | BH71: 0 | BI71: 0
A72: =ROW() -> 72 | B72: Equity Raising Cost
A73: =ROW() -> 73 | B73: Non-depreciable assets
A74: =ROW() -> 74 | B74: Shared support assets - IOT & cyber security
A75: =ROW() -> 75 | B75: Shared support assets (net IOT & cyber security)
A76: =ROW() -> 76 | B76: Miscellaneous assets
A77: =ROW() -> 77 | B77: Total | G77: =SUM(G64:G76) -> 10.2967793 | H77: =SUM(H64:H76) -> 10.2967793 | I77: 10.2967793 | J77: 10.2967793 | K77: 10.2967793 | L77: 10.2967793 | M77: 10.2967793 | N77: 10.2967793 | O77: 10.2967793 | P77: 10.2967793 | Q77: 10.2967793 | R77: 10.2967793 | S77: 10.2967793 | T77: 10.2967793 | U77: 10.2967793 | V77: 10.2967793 | W77: 10.2967793 | X77: 10.2967793 | Y77: 10.19914481 | Z77: 10.19914481 | AA77: 10.19914481 | AB77: 10.19914481 | AC77: 10.19914481 | AD77: 10.19914481 | AE77: 10.19914481 | AF77: 10.19914481 | AG77: 10.19914481 | AH77: 10.19914481 | AI77: 10.19914481 | AJ77: 10.19914481 | AK77: 10.19914481 | AL77: 10.19914481 | AM77: 10.19914481 | AN77: 10.19914481 | AO77: 10.19914481 | AP77: 10.19914481 | AQ77: 10.19914481 | AR77: 10.19914481 | AS77: 8.940363639 | AT77: 8.940363639 | AU77: 8.940363639 | AV77: 8.940363639 | AW77: 8.940363639 | AX77: 8.940363639 | AY77: 8.940363639 | AZ77: 8.940363639 | BA77: 8.940363639 | BB77: 8.940363639 | BC77: 8.940363639 | BD77: 8.940363639 | BE77: 9.56937609 | BF77: 9.56937609 | BG77: 9.56937609 | BH77: 9.56937609 | BI77: 8.627673432
A78: =ROW() -> 78 | B78: ="ICB Depreciation (Real $ "&D19&" $m)" -> ICB Depreciation (Real $ 31/12/2023 $m)
A79: =ROW() -> 79 | B79: Date of Dollar Value | AZ79: =$D$15 -> 2023-12-31 | BA79: =$D$15 -> 2023-12-31 | BB79: 2023-12-31 | BC79: 2023-12-31 | BD79: 2023-12-31 | BE79: 2023-12-31 | BF79: 2023-12-31 | BG79: 2023-12-31 | BH79: 2023-12-31 | BI79: 2023-12-31
A80: =ROW() -> 80 | B80: Pipeline and laterals | AZ80: =AZ64/$AY$16*$D$16 -> 8.68290042 | BA80: =BA64/$AY$16*$D$16 -> 8.68290042 | BB80: 8.68290042 | BC80: 8.68290042 | BD80: 8.68290042 | BE80: =BE64/$BC$16*$D$16 -> 8.68290042 | BF80: =BF64/$BC$16*$D$16 -> 8.68290042 | BG80: 8.68290042 | BH80: 8.68290042 | BI80: 8.68290042
A81: =ROW() -> 81 | B81: Main line valve and scraper stations | AZ81: =AZ65/$AY$16*$D$16 -> 0.2633165538 | BA81: 0.2633165538 | BB81: 0.2633165538 | BC81: 0.2633165538 | BD81: 0.2633165538 | BE81: =BE65/$BC$16*$D$16 -> 0.2633165538 | BF81: 0.2633165538 | BG81: 0.2633165538 | BH81: 0.2633165538 | BI81: 0.2633165538
A82: =ROW() -> 82 | B82: Compressor stations | AZ82: =AZ66/$AY$16*$D$16 -> 2.166593753 | BA82: 2.166593753 | BB82: 2.166593753 | BC82: 2.166593753 | BD82: 2.166593753 | BE82: =BE66/$BC$16*$D$16 -> 2.166593753 | BF82: 2.166593753 | BG82: 2.166593753 | BH82: 2.166593753 | BI82: 1.083296876
A83: =ROW() -> 83 | B83: Receipt and delivery point facilities | AZ83: =AZ67/$AY$16*$D$16 -> 0.07995719838 | BA83: 0.07995719838 | BB83: 0.07995719838 | BC83: 0.07995719838 | BD83: 0.07995719838 | BE83: =BE67/$BC$16*$D$16 -> 0.07995719838 | BF83: 0.07995719838 | BG83: 0.07995719838 | BH83: 0.07995719838 | BI83: 0.03997859919
A84: =ROW() -> 84 | B84: SCADA and communications | AZ84: =AZ68/$AY$16*$D$16 -> 1.700953324e-15 | BA84: 0 | BB84: 0 | BC84: 0 | BD84: 0 | BE84: =BE68/$BC$16*$D$16 -> 0 | BF84: 0 | BG84: 0 | BH84: 0 | BI84: 0
A85: =ROW() -> 85 | B85: Cathodic protection | AZ85: =AZ69/$AY$16*$D$16 -> 0 | BA85: 0 | BB85: 0 | BC85: 0 | BD85: 0 | BE85: =BE69/$BC$16*$D$16 -> 0 | BF85: 0 | BG85: 0 | BH85: 0 | BI85: 0
A86: =ROW() -> 86 | B86: Maintenance bases and depots | AZ86: =AZ70/$AY$16*$D$16 -> 0.2217113545 | BA86: 0.2217113545 | BB86: 0.2217113545 | BC86: 0.2217113545 | BD86: 0.2217113545 | BE86: =BE70/$BC$16*$D$16 -> 0.2217113545 | BF86: 0.2217113545 | BG86: 0.2217113545 | BH86: 0.2217113545 | BI86: 0.2217113545
A87: =ROW() -> 87 | B87: Other assets | AZ87: =AZ71/$AY$16*$D$16 -> 0 | BA87: 0 | BB87: 0 | BC87: 0 | BD87: 0 | BE87: =BE71/$BC$16*$D$16 -> 0 | BF87: 0 | BG87: 0 | BH87: 0 | BI87: 0
A88: =ROW() -> 88 | B88: Equity Raising Cost | AZ88: =AZ72/$AY$16*$D$16 -> 0 | BA88: 0 | BB88: 0 | BC88: 0 | BD88: 0 | BE88: =BE72/$BC$16*$D$16 -> 0 | BF88: 0 | BG88: 0 | BH88: 0 | BI88: 0
A89: =ROW() -> 89 | B89: Non-depreciable assets | AZ89: =AZ73/$AY$16*$D$16 -> 0 | BA89: 0 | BB89: 0 | BC89: 0 | BD89: 0 | BE89: =BE73/$BC$16*$D$16 -> 0 | BF89: 0 | BG89: 0 | BH89: 0 | BI89: 0
A90: =ROW() -> 90 | B90: Shared support assets - IOT & cyber security
A91: =ROW() -> 91 | B91: Shared support assets (net IOT & cyber security)
A92: =ROW() -> 92 | B92: Miscellaneous assets
A93: =ROW() -> 93 | B93: Total | AZ93: =SUM(AZ80:AZ92) -> 11.41447928 | BA93: =SUM(BA80:BA92) -> 11.41447928 | BB93: 11.41447928 | BC93: 11.41447928 | BD93: 11.41447928 | BE93: =SUM(BE80:BE92) -> 11.41447928 | BF93: 11.41447928 | BG93: 11.41447928 | BH93: 11.41447928 | BI93: 10.2912038
A94: =ROW() -> 94 | B94: Capex (Input as annual actuals and forecasts)
A95: =ROW() -> 95 | B95: Date of Dollar Value | G95: 2000-03-31 | H95: 2000-06-30 | I95: 2000-09-30 | J95: 2000-12-31 | K95: 2001-03-31 | L95: 2001-06-30 | M95: 2001-09-30 | N95: 2001-12-31 | O95: 2002-03-31 | P95: 2002-06-30 | Q95: 2002-09-30 | R95: 2002-12-31 | S95: 2003-03-31 | T95: 2003-06-30 | U95: 2003-09-30 | V95: 2003-12-31 | W95: 2004-03-31 | X95: 2004-06-30 | Y95: 2004-09-30 | Z95: 2004-12-31 | AA95: 2005-03-31 | AB95: 2005-06-30 | AC95: 2005-09-30 | AD95: 2005-12-31 | AE95: 2006-03-31 | AF95: 2006-06-30 | AG95: 2006-09-30 | AH95: 2006-12-31 | AI95: 2007-03-31 | AJ95: 2007-06-30 | AK95: 2007-09-30 | AL95: 2007-12-31 | AM95: 2008-03-31 | AN95: 2008-06-30 | AO95: 2008-09-30 | AP95: 2008-12-31 | AQ95: 2009-03-31 | AR95: 2009-06-30 | AS95: 2009-09-30 | AT95: 2009-12-31 | AU95: 2013-12-31 | AV95: 2013-12-31 | AW95: 2013-12-31 | AX95: 2013-12-31 | AY95: 2013-12-31 | AZ95: 2018-12-31 | BA95: 2018-12-31 | BB95: 2018-12-31 | BC95: 2018-12-31 | BD95: 2019-12-31 | BE95: 2020-12-31 | BF95: 2021-12-31 | BG95: 2022-12-31 | BH95: 2023-12-31 | BI95: 2023-12-31 | BJ95: =VALUE($D$19) -> 2023-12-31 | BK95: 2023-12-31 | BL95: 2023-12-31 | BM95: 2023-12-31 | BN95: 2023-12-31
A96: =ROW() -> 96 | B96: Pipeline and laterals | G96: 0 | H96: 0 | I96: 0 | J96: 0 | K96: 0 | L96: 0 | M96: 0 | N96: 0 | O96: 0 | P96: 0 | Q96: 0 | R96: 0 | S96: 0 | T96: 0 | U96: 0 | V96: 0 | W96: 0 | X96: 0 | Y96: 0 | Z96: 0 | AA96: 0.30112484 | AB96: 0.00025486 | AC96: 0.00045632 | AD96: -0.00033 | AE96: 0 | AF96: 0 | AG96: 0 | AH96: 0 | AI96: 0 | AJ96: 0.28621376 | AK96: 0 | AL96: 0 | AM96: 0 | AN96: 0.00355109 | AO96: 0.01002201 | AP96: 0.06076867 | AQ96: 0.00144492 | AR96: 0.0014231 | AS96: 0.00856286 | AT96: 0.00071536 | AU96: -0.08969863364 | AV96: 0 | AW96: 0 | AX96: 0.025633 | AY96: 0 | AZ96: 1.858949047 | BA96: 0.5102709704 | BB96: 0.2809646297 | BC96: 0.000914249579 | BD96: 0.028 | BE96: 0.1178144196 | BF96: 0.006137387369 | BG96: -0.01137368047 | BH96: 0.00882002928 | BI96: 0.1135158573 | BJ96: 0 | BK96: 0 | BL96: 0.03759920284 | BM96: 0.03759920284 | BN96: 0
A97: =ROW() -> 97 | B97: Main line valve and scraper stations | G97: 0 | H97: 0 | I97: 0 | J97: 0 | K97: 0 | L97: 0 | M97: 0 | N97: 0 | O97: 0 | P97: 0 | Q97: 0 | R97: 0 | S97: 0 | T97: 0 | U97: 0 | V97: 0 | W97: 0 | X97: 0 | Y97: 0 | Z97: 0 | AA97: 0 | AB97: 0 | AC97: 0 | AD97: 0 | AE97: 0 | AF97: 0 | AG97: 0 | AH97: 0 | AI97: 0 | AJ97: 0 | AK97: 0 | AL97: 0 | AM97: 0 | AN97: 0 | AO97: 0 | AP97: 0 | AQ97: 0.02711449 | AR97: 0.00114492 | AS97: 0 | AT97: 0 | AU97: 0 | AV97: 0 | AW97: 0 | AX97: 0 | AY97: 0 | AZ97: 0.1153276481 | BA97: 0.001555810255 | BB97: 0 | BC97: 0 | BD97: 0 | BE97: 0 | BF97: 0 | BG97: 0.0008814448976 | BH97: 0.02723326268 | BI97: 1.275181303 | BJ97: 1.7829953 | BK97: 1.3025128 | BL97: 1.150292471 | BM97: 1.121347742 | BN97: 0.3328643823
A98: =ROW() -> 98 | B98: Compressor stations | G98: 0.7266078075 | H98: 0.7266078075 | I98: 0.7266078075 | J98: 0.7266078075 | K98: 2.016678142 | L98: 2.016678142 | M98: 2.016678142 | N98: 2.016678142 | O98: 0.1623632675 | P98: 0.1623632675 | Q98: 0.1623632675 | R98: 0.1623632675 | S98: 2.450314792 | T98: 2.450314792 | U98: 2.450314792 | V98: 2.450314792 | W98: 1.018218935 | X98: 1.018218935 | Y98: 1.018218935 | Z98: 1.018218935 | AA98: 0.23668579 | AB98: 0.36644481 | AC98: 0.06653221 | AD98: 0.03745882 | AE98: 0.03906246 | AF98: 0.33773978 | AG98: 0.3358245 | AH98: 0.20489235 | AI98: 0.09346673 | AJ98: 0.18295022 | AK98: 0.05837254 | AL98: 0.02024216 | AM98: 0 | AN98: 0.23202959 | AO98: 0.04096777 | AP98: 0.12877112 | AQ98: 0.28400227 | AR98: 0.0078502 | AS98: 0.00194744 | AT98: 0 | AU98: 0.3971751498 | AV98: 0.04966973948 | AW98: 0.1546897254 | AX98: 0.4783121846 | AY98: 0.6912304957 | AZ98: -0.01647923985 | BA98: 0 | BB98: 0.9827399411 | BC98: 0.3268918291 | BD98: 0.133 | BE98: 2.831367588 | BF98: 8.086560305 | BG98: 4.101048944 | BH98: 4.932944746 | BI98: 9.780433507 | BJ98: 11.38883928 | BK98: 4.2128785 | BL98: 4.273502167 | BM98: 2.404333333 | BN98: 0.3276666667
A99: =ROW() -> 99 | B99: Receipt and delivery point facilities | G99: 0.04005906 | H99: 0.04005906 | I99: 0.04005906 | J99: 0.04005906 | K99: 0.0242860925 | L99: 0.0242860925 | M99: 0.0242860925 | N99: 0.0242860925 | O99: 0.0147807275 | P99: 0.0147807275 | Q99: 0.0147807275 | R99: 0.0147807275 | S99: 0.0173773425 | T99: 0.0173773425 | U99: 0.0173773425 | V99: 0.0173773425 | W99: 0.00844475 | X99: 0.00844475 | Y99: 0.00844475 | Z99: 0.00844475 | AA99: 0 | AB99: 0 | AC99: 0 | AD99: 0.01755367 | AE99: 0.01368143 | AF99: 0.12254546 | AG99: 0.11840168 | AH99: 0.12576146 | AI99: 0.3960732 | AJ99: 0.08453083 | AK99: 0.00012867 | AL99: 0 | AM99: 0 | AN99: 0 | AO99: 0 | AP99: 0.00321914 | AQ99: 0 | AR99: 0 | AS99: 0 | AT99: 0 | AU99: 0 | AV99: 0 | AW99: 0 | AX99: 0.1356 | AY99: 0.1845652601 | AZ99: 0.4333042232 | BA99: -0.4100328718 | BB99: 0.001307925959 | BC99: 0.1875442241 | BD99: 0.351 | BE99: 0.7254852096 | BF99: 0.01173772938 | BG99: 0 | BH99: 0 | BI99: 0.1965268275 | BJ99: 0 | BK99: 0 | BL99: 0.006628342917 | BM99: 0.006628342917 | BN99: 0
A100: =ROW() -> 100 | B100: SCADA and communications | G100: 0.006985115 | H100: 0.006985115 | I100: 0.006985115 | J100: 0.006985115 | K100: 0.0012955875 | L100: 0.0012955875 | M100: 0.0012955875 | N100: 0.0012955875 | O100: 0.0139746075 | P100: 0.0139746075 | Q100: 0.0139746075 | R100: 0.0139746075 | S100: 0.0173468175 | T100: 0.0173468175 | U100: 0.0173468175 | V100: 0.0173468175 | W100: 0.109894455 | X100: 0.109894455 | Y100: 0.109894455 | Z100: 0.109894455 | AA100: 0.02500167 | AB100: 0.00555411 | AC100: 0.00094376 | AD100: 0 | AE100: 0.05128961 | AF100: 0.20082489 | AG100: 0.17556474 | AH100: 0.02213489 | AI100: 0.04928407 | AJ100: 0.07052838 | AK100: 0.01797736 | AL100: 0.05761879 | AM100: 0.00726825 | AN100: 0.05729485 | AO100: 0.30337709 | AP100: 0.33711321 | AQ100: 0.24756857 | AR100: 0.46381265 | AS100: 0.00427515 | AT100: 0 | AU100: 0.06491441783 | AV100: 0.2563657924 | AW100: 0.5006965282 | AX100: 0.36361653 | AY100: 1.146921286 | AZ100: 0.9384630268 | BA100: 1.026476793 | BB100: 0.06619123194 | BC100: 0.1099072675 | BD100: 0.397 | BE100: 1.824835683 | BF100: 0.1510887879 | BG100: 0.2727273368 | BH100: 0.5092691113 | BI100: 0.199724244 | BJ100: 0 | BK100: 0 | BL100: 0 | BM100: 0 | BN100: 0
A101: =ROW() -> 101 | B101: Cathodic protection | G101: 0 | H101: 0 | I101: 0 | J101: 0 | K101: 0 | L101: 0 | M101: 0 | N101: 0 | O101: 0 | P101: 0 | Q101: 0 | R101: 0 | S101: 0.00394725 | T101: 0.00394725 | U101: 0.00394725 | V101: 0.00394725 | W101: 0 | X101: 0 | Y101: 0 | Z101: 0 | AA101: 0.000297 | AB101: 0 | AC101: 0 | AD101: 0 | AE101: 0 | AF101: 0 | AG101: 0.00825 | AH101: 0 | AI101: 0 | AJ101: 0 | AK101: 0 | AL101: 0 | AM101: 0 | AN101: 0.06568597 | AO101: 0.0018755 | AP101: 0.04616319 | AQ101: 0.10849443 | AR101: 0.73988261 | AS101: 0.16139918 | AT101: 0.58868282 | AU101: 0 | AV101: 0 | AW101: 0 | AX101: 0 | AY101: 0 | AZ101: 0 | BA101: 0 | BB101: 0 | BC101: 0 | BD101: 0.001 | BE101: 0 | BF101: 0 | BG101: 0.00266343 | BH101: 0.21581303 | BI101: 0.1186760871 | BJ101: 0.2078807558 | BK101: 0.1758751311 | BL101: 0.06666666667 | BM101: 0 | BN101: 0.01447236445
A102: =ROW() -> 102 | B102: Maintenance bases and depots | G102: 0.00182295 | H102: 0.00182295 | I102: 0.00182295 | J102: 0.00182295 | K102: 0.001067045 | L102: 0.001067045 | M102: 0.001067045 | N102: 0.001067045 | O102: 0.00055 | P102: 0.00055 | Q102: 0.00055 | R102: 0.00055 | S102: 0 | T102: 0 | U102: 0 | V102: 0 | W102: 0 | X102: 0 | Y102: 0 | Z102: 0 | AA102: 0 | AB102: 0 | AC102: 0 | AD102: 0.002619 | AE102: 0 | AF102: 0.0348373 | AG102: 0 | AH102: 0 | AI102: 0 | AJ102: 0 | AK102: 0.01046586 | AL102: 0.001661 | AM102: 0 | AN102: 0.06127894 | AO102: 0.01224307 | AP102: 0.07122134 | AQ102: 0 | AR102: 0 | AS102: 0 | AT102: 0.01881 | AU102: 0.07383937618 | AV102: 0 | AW102: 0 | AX102: 1.056 | AY102: 0.01751230304 | AZ102: 0.02612537852 | BA102: 0 | BB102: 0 | BC102: 0.01907929041 | BD102: 0.05585121293 | BE102: 0.1410499272 | BF102: 0.7307494098 | BG102: 0.7388119418 | BH102: 0.1357547642 | BI102: 0 | BJ102: 0 | BK102: 0.1490074644 | BL102: 0.3856016784 | BM102: 0.236594214 | BN102: 0
A103: =ROW() -> 103 | B103: Other assets | G103: 0.1355580325 | H103: 0.1355580325 | I103: 0.1355580325 | J103: 0.1355580325 | K103: 0.0545215825 | L103: 0.0545215825 | M103: 0.0545215825 | N103: 0.0545215825 | O103: 0.0881759075 | P103: 0.0881759075 | Q103: 0.0881759075 | R103: 0.0881759075 | S103: 0.045699415 | T103: 0.045699415 | U103: 0.045699415 | V103: 0.045699415 | W103: 0.39829845 | X103: 0.39829845 | Y103: 0.39829845 | Z103: 0.39829845 | AA103: 0.08118179 | AB103: 0.1946215 | AC103: 0.07621263 | AD103: 0.08803465 | AE103: 0.15023145 | AF103: 0.0845521 | AG103: 0.05615649 | AH103: 0.05214001 | AI103: 0.08470009 | AJ103: 0.17527503 | AK103: 0.2000654 | AL103: 0.00599739 | AM103: 0.03913356 | AN103: 0.13693153 | AO103: 0.05626088 | AP103: 0.01692312 | AQ103: 0.25993214 | AR103: 0.1239055 | AS103: 0.09556458 | AT103: 0.12330345 | AU103: 0.04834102786 | AV103: 0.02437492585 | AW103: 0.02648871373 | AX103: 0.5341323141 | AY103: 0.0599116683 | AZ103: 0.07038476481 | BA103: 0.3331223155 | BB103: 0.1264230141 | BC103: 0.1219709292 | BD103: 0.337 | BE103: 0.7418826434 | BF103: 0.06506605146 | BG103: 0.3733642604 | BH103: 0.5595607882 | BI103: 0.629613273 | BJ103: 9.966246888 | BK103: 3.328039295 | BL103: 0.141250277 | BM103: 0.141250277 | BN103: 0.2985883261
A104: =ROW() -> 104 | B104: Equity Raising Cost | BE104: 0.01714471367 | BF104: 0 | BG104: 0 | BH104: 0 | BI104: 0 | BJ104: =Tax_CoRE!G90 -> 0.2749647056 | BK104: =Tax_CoRE!H90 -> 0 | BL104: =Tax_CoRE!I90 -> 0 | BM104: =Tax_CoRE!J90 -> 0 | BN104: =Tax_CoRE!K90 -> 0
A105: =ROW() -> 105 | B105: Non-depreciable assets | G105: =G$1872 -> 0.366693219 | H105: =H$1872 -> 0 | I105: -0.01981922987 | J105: 0 | K105: 0.7752762321 | L105: -0.0283387489 | M105: -0.02772268914 | N105: 0 | O105: -0.6273935395 | P105: -0.02082825464 | Q105: -0.0203754665 | R105: 0 | S105: 1.459328769 | T105: -0.03641204637 | U105: -0.03562048015 | V105: 0 | W105: -0.7080215592 | X105: 0 | Y105: -0.0275374145 | Z105: 0 | AA105: -0.06990471975 | AB105: -0.02676923077 | AC105: -0.02618729097 | AD105: 0 | AE105: 0.3860815217 | AF105: -0.03042994505 | AG105: -0.02976842451 | AH105: 0 | AI105: 0.06457336957 | AJ105: -0.03047802198 | AK105: -0.02981545628 | AL105: 0 | AM105: -0.1822037745 | AN105: 0 | AO105: -0.02751089943 | AP105: 0 | AQ105: 0.2547581522 | AR105: -0.03031043956 | AS105: -0.02965151696 | AT105: 0 | AU105: 0 | AV105: 0 | AW105: 0 | AX105: 0 | AY105: 0 | AZ105: 0 | BA105: 0 | BB105: 0 | BC105: 0 | BD105: 0 | BE105: 0 | BF105: 0 | BG105: 0 | BH105: 0 | BI105: 0 | BJ105: 0 | BK105: 0 | BL105: 0 | BM105: 0 | BN105: 0
A106: =ROW() -> 106 | B106: Shared support assets - IOT & cyber security | BE106: 1.998749423 | BF106: 2.070056041 | BG106: 4.398375874 | BH106: 4.301592187 | BI106: 5.133801407 | BJ106: 3.044279905 | BK106: 1.461816044 | BL106: 0.6638416061 | BM106: 0.5846135849 | BN106: 0.4212733147
A107: =ROW() -> 107 | B107: Shared support assets (net IOT & cyber security) | BE107: 0.7953136967 | BF107: 1.195881611 | BG107: 3.132392751 | BH107: 0.9895338308 | BI107: 1.333667957 | BJ107: 1.333667957 | BK107: 1.333667957 | BL107: 1.333667957 | BM107: 1.333667957 | BN107: 1.333667957
A108: =ROW() -> 108 | B108: Miscellaneous assets | BE108: 0 | BF108: 0 | BG108: 0 | BH108: 0 | BI108: 0 | BJ108: 0 | BK108: 0 | BL108: 0 | BM108: 0 | BN108: 0
A109: =ROW() -> 109 | B109: Total | G109: =SUM(G96:G108) -> 1.277726184 | H109: =SUM(H96:H108) -> 0.911032965 | I109: 0.8912137351 | J109: 0.911032965 | K109: 2.873124682 | L109: 2.069509701 | M109: 2.070125761 | N109: 2.09784845 | O109: -0.3475490295 | P109: 0.2590162554 | Q109: 0.2594690435 | R109: 0.27984451 | S109: 3.994014386 | T109: 2.498273571 | U109: 2.499065137 | V109: 2.534685618 | W109: 0.8268350308 | X109: 1.53485659 | Y109: 1.507319175 | Z109: 1.53485659 | AA109: 0.5743863703 | AB109: 0.5401060492 | AC109: 0.117957629 | AD109: 0.14533614 | AE109: 0.6403464717 | AF109: 0.7500695849 | AG109: 0.6644289855 | AH109: 0.40492871 | AI109: 0.6880974596 | AJ109: 0.769020198 | AK109: 0.2571943737 | AL109: 0.08551934 | AM109: -0.1358019645 | AN109: 0.55677197 | AO109: 0.3972354206 | AP109: 0.66417979 | AQ109: 1.183314972 | AR109: 1.30770854 | AS109: 0.242097693 | AT109: 0.73151163 | AU109: 0.494571338 | AV109: 0.3304104577 | AW109: 0.6818749673 | AX109: 2.593294029 | AY109: 2.100141013 | AZ109: 3.426074848 | BA109: 1.461393017 | BB109: 1.457626743 | BC109: 0.7663077899 | BD109: 1.302851213 | BE109: =SUM(BE96:BE108) -> 9.193643304 | BF109: 12.31727732 | BG109: 13.0088923 | BH109: 11.68052175 | BI109: 18.78114046 | BJ109: 27.99887479 | BK109: 11.96379719 | BL109: 8.059050369 | BM109: 5.866034654 | BN109: 2.728533011
A110: =ROW() -> 110 | B110: Capex (Model)
A111: =ROW() -> 111 | B111: Date of Dollar Value | G111: 2000-03-31 | H111: 2000-06-30 | I111: 2000-09-30 | J111: 2000-12-31 | K111: 2001-03-31 | L111: 2001-06-30 | M111: 2001-09-30 | N111: 2001-12-31 | O111: 2002-03-31 | P111: 2002-06-30 | Q111: 2002-09-30 | R111: 2002-12-31 | S111: 2003-03-31 | T111: 2003-06-30 | U111: 2003-09-30 | V111: 2003-12-31 | W111: 2004-03-31 | X111: 2004-06-30 | Y111: 2004-09-30 | Z111: 2004-12-31 | AA111: 2005-03-31 | AB111: 2005-06-30 | AC111: 2005-09-30 | AD111: 2005-12-31 | AE111: 2006-03-31 | AF111: 2006-06-30 | AG111: 2006-09-30 | AH111: 2006-12-31 | AI111: 2007-03-31 | AJ111: 2007-06-30 | AK111: 2007-09-30 | AL111: 2007-12-31 | AM111: 2008-03-31 | AN111: 2008-06-30 | AO111: 2008-09-30 | AP111: 2008-12-31 | AQ111: 2009-03-31 | AR111: 2009-06-30 | AS111: 2009-09-30 | AT111: 2009-12-31 | AU111: 2010-12-31 | AV111: 2011-12-31 | AW111: 2012-12-31 | AX111: 2013-12-31 | AY111: 2014-12-31 | AZ111: =VALUE($D$19) -> 2023-12-31 | BA111: =VALUE($D$19) -> 2023-12-31 | BB111: 2023-12-31 | BC111: 2023-12-31 | BD111: 2023-12-31 | BE111: 2023-12-31 | BF111: 2023-12-31 | BG111: 2023-12-31 | BH111: 2023-12-31 | BI111: 2023-12-31 | BJ111: 2023-12-31 | BK111: 2023-12-31 | BL111: 2023-12-31 | BM111: 2023-12-31 | BN111: 2023-12-31
A112: =ROW() -> 112 | B112: Pipeline and laterals | G112: =G96*HLOOKUP(G$111,InputCPI,9,FALSE)/HLOOKUP(G$95,InputCPI,9,FALSE) -> 0 | H112: 0 | I112: 0 | J112: 0 | K112: 0 | L112: 0 | M112: 0 | N112: 0 | O112: 0 | P112: 0 | Q112: 0 | R112: 0 | S112: 0 | T112: 0 | U112: 0 | V112: 0 | W112: 0 | X112: 0 | Y112: 0 | Z112: 0 | AA112: 0.30112484 | AB112: 0.00025486 | AC112: 0.00045632 | AD112: -0.00033 | AE112: 0 | AF112: 0 | AG112: 0 | AH112: 0 | AI112: 0 | AJ112: 0.28621376 | AK112: 0 | AL112: 0 | AM112: =AM96*HLOOKUP(AM$111,InputCPI,9,FALSE)/HLOOKUP(AM$95,InputCPI,9,FALSE) -> 0 | AN112: 0.00355109 | AO112: 0.01002201 | AP112: 0.06076867 | AQ112: 0.00144492 | AR112: 0.0014231 | AS112: 0.00856286 | AT112: 0.00071536 | AU112: -0.082937 | AV112: 0 | AW112: 0 | AX112: 0.025633 | AY112: 0 | AZ112: 2.217379187 | BA112: 0.6086580111 | BB112: 0.3351383532 | BC112: 0.001090529077 | BD112: 0.03279518072 | BE112: =BE96*HLOOKUP(BE$111,InputCPI,9,FALSE)/HLOOKUP(BE$95,InputCPI,9,FALSE) -> 0.1368135026 | BF112: 0.006886219463 | BG112: -0.01183454061 | BH112: 0.00882002928 | BI112: 0.1135158573 | BJ112: =BJ96*HLOOKUP(BJ$111,InputCPI,9,FALSE)/HLOOKUP(BJ$95,InputCPI,9,FALSE) -> 0 | BK112: =BK96*HLOOKUP(BK$111,InputCPI,9,FALSE)/HLOOKUP(BK$95,InputCPI,9,FALSE) -> 0 | BL112: 0.03759920284 | BM112: 0.03759920284 | BN112: 0
A113: =ROW() -> 113 | B113: Main line valve and scraper stations | G113: =G97*HLOOKUP(G$111,InputCPI,9,FALSE)/HLOOKUP(G$95,InputCPI,9,FALSE) -> 0 | H113: 0 | I113: 0 | J113: 0 | K113: 0 | L113: 0 | M113: 0 | N113: 0 | O113: 0 | P113: 0 | Q113: 0 | R113: 0 | S113: 0 | T113: 0 | U113: 0 | V113: 0 | W113: 0 | X113: 0 | Y113: 0 | Z113: 0 | AA113: 0 | AB113: 0 | AC113: 0 | AD113: 0 | AE113: 0 | AF113: 0 | AG113: 0 | AH113: 0 | AI113: 0 | AJ113: 0 | AK113: 0 | AL113: 0 | AM113: =AM97*HLOOKUP(AM$111,InputCPI,9,FALSE)/HLOOKUP(AM$95,InputCPI,9,FALSE) -> 0 | AN113: 0 | AO113: 0 | AP113: 0 | AQ113: 0.02711449 | AR113: 0.00114492 | AS113: 0 | AT113: 0 | AU113: 0 | AV113: 0 | AW113: 0 | AX113: 0 | AY113: 0 | AZ113: 0.137564355 | BA113: 0.001855791198 | BB113: 0 | BC113: 0 | BD113: 0 | BE113: 0 | BF113: 0 | BG113: 0.000917160937 | BH113: 0.02723326268 | BI113: 1.275181303 | BJ113: =BJ97*HLOOKUP(BJ$111,InputCPI,9,FALSE)/HLOOKUP(BJ$95,InputCPI,9,FALSE) -> 1.7829953 | BK113: 1.3025128 | BL113: 1.150292471 | BM113: 1.121347742 | BN113: 0.3328643823
A114: =ROW() -> 114 | B114: Compressor stations | G114: =G98*HLOOKUP(G$111,InputCPI,9,FALSE)/HLOOKUP(G$95,InputCPI,9,FALSE) -> 0.7266078075 | H114: 0.7266078075 | I114: 0.7266078075 | J114: 0.7266078075 | K114: 2.016678142 | L114: 2.016678142 | M114: 2.016678142 | N114: 2.016678142 | O114: 0.1623632675 | P114: 0.1623632675 | Q114: 0.1623632675 | R114: 0.1623632675 | S114: 2.450314792 | T114: 2.450314792 | U114: 2.450314792 | V114: 2.450314792 | W114: 1.018218935 | X114: 1.018218935 | Y114: 1.018218935 | Z114: 1.018218935 | AA114: 0.23668579 | AB114: 0.36644481 | AC114: 0.06653221 | AD114: 0.03745882 | AE114: 0.03906246 | AF114: 0.33773978 | AG114: 0.3358245 | AH114: 0.20489235 | AI114: 0.09346673 | AJ114: 0.18295022 | AK114: 0.05837254 | AL114: 0.02024216 | AM114: =AM98*HLOOKUP(AM$111,InputCPI,9,FALSE)/HLOOKUP(AM$95,InputCPI,9,FALSE) -> 0 | AN114: 0.23202959 | AO114: 0.04096777 | AP114: 0.12877112 | AQ114: 0.28400227 | AR114: 0.0078502 | AS114: 0.00194744 | AT114: 0 | AU114: 0.36723542 | AV114: 0.0473 | AW114: 0.1505567938 | AX114: 0.4783121846 | AY114: 0.7031027752 | AZ114: -0.01965665683 | BA114: 0 | BB114: 1.172225293 | BC114: 0.3899209285 | BD114: 0.1557771084 | BE114: 3.287961849 | BF114: 9.073213994 | BG114: 4.267222946 | BH114: 4.932944746 | BI114: 9.780433507 | BJ114: =BJ98*HLOOKUP(BJ$111,InputCPI,9,FALSE)/HLOOKUP(BJ$95,InputCPI,9,FALSE) -> 11.38883928 | BK114: 4.2128785 | BL114: 4.273502167 | BM114: 2.404333333 | BN114: 0.3276666667
A115: =ROW() -> 115 | B115: Receipt and delivery point facilities | G115: =G99*HLOOKUP(G$111,InputCPI,9,FALSE)/HLOOKUP(G$95,InputCPI,9,FALSE) -> 0.04005906 | H115: 0.04005906 | I115: 0.04005906 | J115: 0.04005906 | K115: 0.0242860925 | L115: 0.0242860925 | M115: 0.0242860925 | N115: 0.0242860925 | O115: 0.0147807275 | P115: 0.0147807275 | Q115: 0.0147807275 | R115: 0.0147807275 | S115: 0.0173773425 | T115: 0.0173773425 | U115: 0.0173773425 | V115: 0.0173773425 | W115: 0.00844475 | X115: 0.00844475 | Y115: 0.00844475 | Z115: 0.00844475 | AA115: 0 | AB115: 0 | AC115: 0 | AD115: 0.01755367 | AE115: 0.01368143 | AF115: 0.12254546 | AG115: 0.11840168 | AH115: 0.12576146 | AI115: 0.3960732 | AJ115: 0.08453083 | AK115: 0.00012867 | AL115: 0 | AM115: =AM99*HLOOKUP(AM$111,InputCPI,9,FALSE)/HLOOKUP(AM$95,InputCPI,9,FALSE) -> 0 | AN115: 0 | AO115: 0 | AP115: 0.00321914 | AQ115: 0 | AR115: 0 | AS115: 0 | AT115: 0 | AU115: 0 | AV115: 0 | AW115: 0 | AX115: 0.1356 | AY115: 0.1877352741 | AZ115: 0.5168510498 | BA115: -0.4890926718 | BB115: 0.001560111508 | BC115: 0.2237052489 | BD115: 0.4111110155 | BE115: 0.8424789849 | BF115: 0.01316986783 | BG115: 0 | BH115: 0 | BI115: 0.1965268275 | BJ115: =BJ99*HLOOKUP(BJ$111,InputCPI,9,FALSE)/HLOOKUP(BJ$95,InputCPI,9,FALSE) -> 0 | BK115: 0 | BL115: 0.006628342917 | BM115: 0.006628342917 | BN115: 0
A116: =ROW() -> 116 | B116: SCADA and communications | G116: =G100*HLOOKUP(G$111,InputCPI,9,FALSE)/HLOOKUP(G$95,InputCPI,9,FALSE) -> 0.006985115 | H116: 0.006985115 | I116: 0.006985115 | J116: 0.006985115 | K116: 0.0012955875 | L116: 0.0012955875 | M116: 0.0012955875 | N116: 0.0012955875 | O116: 0.0139746075 | P116: 0.0139746075 | Q116: 0.0139746075 | R116: 0.0139746075 | S116: 0.0173468175 | T116: 0.0173468175 | U116: 0.0173468175 | V116: 0.0173468175 | W116: 0.109894455 | X116: 0.109894455 | Y116: 0.109894455 | Z116: 0.109894455 | AA116: 0.02500167 | AB116: 0.00555411 | AC116: 0.00094376 | AD116: 0 | AE116: 0.05128961 | AF116: 0.20082489 | AG116: 0.17556474 | AH116: 0.02213489 | AI116: 0.04928407 | AJ116: 0.07052838 | AK116: 0.01797736 | AL116: 0.05761879 | AM116: =AM100*HLOOKUP(AM$111,InputCPI,9,FALSE)/HLOOKUP(AM$95,InputCPI,9,FALSE) -> 0.00726825 | AN116: 0.05729485 | AO116: 0.30337709 | AP116: 0.33711321 | AQ116: 0.24756857 | AR116: 0.46381265 | AS116: 0.00427515 | AT116: 0 | AU116: 0.06002106 | AV116: 0.2441346 | AW116: 0.48731914 | AX116: 0.36361653 | AY116: 1.166620315 | AZ116: 1.1194112 | BA116: 1.224395193 | BB116: 0.07895378323 | BC116: 0.1310988529 | BD116: 0.4649888124 | BE116: 2.119113793 | BF116: 0.1695233638 | BG116: 0.2837782152 | BH116: 0.5092691113 | BI116: 0.199724244 | BJ116: =BJ100*HLOOKUP(BJ$111,InputCPI,9,FALSE)/HLOOKUP(BJ$95,InputCPI,9,FALSE) -> 0 | BK116: 0 | BL116: 0 | BM116: 0 | BN116: 0
A117: =ROW() -> 117 | B117: Cathodic protection | G117: =G101*HLOOKUP(G$111,InputCPI,9,FALSE)/HLOOKUP(G$95,InputCPI,9,FALSE) -> 0 | H117: 0 | I117: 0 | J117: 0 | K117: 0 | L117: 0 | M117: 0 | N117: 0 | O117: 0 | P117: 0 | Q117: 0 | R117: 0 | S117: 0.00394725 | T117: 0.00394725 | U117: 0.00394725 | V117: 0.00394725 | W117: 0 | X117: 0 | Y117: 0 | Z117: 0 | AA117: 0.000297 | AB117: 0 | AC117: 0 | AD117: 0 | AE117: 0 | AF117: 0 | AG117: 0.00825 | AH117: 0 | AI117: 0 | AJ117: 0 | AK117: 0 | AL117: 0 | AM117: =AM101*HLOOKUP(AM$111,InputCPI,9,FALSE)/HLOOKUP(AM$95,InputCPI,9,FALSE) -> 0 | AN117: 0.06568597 | AO117: 0.0018755 | AP117: 0.04616319 | AQ117: 0.10849443 | AR117: 0.73988261 | AS117: 0.16139918 | AT117: 0.58868282 | AU117: 0 | AV117: 0 | AW117: 0 | AX117: 0 | AY117: 0 | AZ117: 0 | BA117: 0 | BB117: 0 | BC117: 0 | BD117: 0.001171256454 | BE117: 0 | BF117: 0 | BG117: 0.002771351858 | BH117: 0.21581303 | BI117: 0.1186760871 | BJ117: =BJ101*HLOOKUP(BJ$111,InputCPI,9,FALSE)/HLOOKUP(BJ$95,InputCPI,9,FALSE) -> 0.2078807558 | BK117: 0.1758751311 | BL117: 0.06666666667 | BM117: 0 | BN117: 0.01447236445
A118: =ROW() -> 118 | B118: Maintenance bases and depots | G118: =G102*HLOOKUP(G$111,InputCPI,9,FALSE)/HLOOKUP(G$95,InputCPI,9,FALSE) -> 0.00182295 | H118: 0.00182295 | I118: 0.00182295 | J118: 0.00182295 | K118: 0.001067045 | L118: 0.001067045 | M118: 0.001067045 | N118: 0.001067045 | O118: 0.00055 | P118: 0.00055 | Q118: 0.00055 | R118: 0.00055 | S118: 0 | T118: 0 | U118: 0 | V118: 0 | W118: 0 | X118: 0 | Y118: 0 | Z118: 0 | AA118: 0 | AB118: 0 | AC118: 0 | AD118: 0.002619 | AE118: 0 | AF118: 0.0348373 | AG118: 0 | AH118: 0 | AI118: 0 | AJ118: 0 | AK118: 0.01046586 | AL118: 0.001661 | AM118: =AM102*HLOOKUP(AM$111,InputCPI,9,FALSE)/HLOOKUP(AM$95,InputCPI,9,FALSE) -> 0 | AN118: 0.06127894 | AO118: 0.01224307 | AP118: 0.07122134 | AQ118: 0 | AR118: 0 | AS118: 0 | AT118: 0.01881 | AU118: 0.06827324 | AV118: 0 | AW118: 0 | AX118: 1.056 | AY118: 0.01781308687 | AZ118: 0.03116269954 | BA118: 0 | BB118: 0 | BC118: 0.02275803177 | BD118: 0.06541609363 | BE118: 0.1637960332 | BF118: 0.8199092719 | BG118: 0.7687485113 | BH118: 0.1357547642 | BI118: 0 | BJ118: =BJ102*HLOOKUP(BJ$111,InputCPI,9,FALSE)/HLOOKUP(BJ$95,InputCPI,9,FALSE) -> 0 | BK118: 0.1490074644 | BL118: 0.3856016784 | BM118: 0.236594214 | BN118: 0
A119: =ROW() -> 119 | B119: Other assets | G119: =G103*HLOOKUP(G$111,InputCPI,9,FALSE)/HLOOKUP(G$95,InputCPI,9,FALSE) -> 0.1355580325 | H119: 0.1355580325 | I119: 0.1355580325 | J119: 0.1355580325 | K119: 0.0545215825 | L119: 0.0545215825 | M119: 0.0545215825 | N119: 0.0545215825 | O119: 0.0881759075 | P119: 0.0881759075 | Q119: 0.0881759075 | R119: 0.0881759075 | S119: 0.045699415 | T119: 0.045699415 | U119: 0.045699415 | V119: 0.045699415 | W119: 0.39829845 | X119: 0.39829845 | Y119: 0.39829845 | Z119: 0.39829845 | AA119: 0.08118179 | AB119: 0.1946215 | AC119: 0.07621263 | AD119: 0.08803465 | AE119: 0.15023145 | AF119: 0.0845521 | AG119: 0.05615649 | AH119: 0.05214001 | AI119: 0.08470009 | AJ119: 0.17527503 | AK119: 0.2000654 | AL119: 0.00599739 | AM119: =AM103*HLOOKUP(AM$111,InputCPI,9,FALSE)/HLOOKUP(AM$95,InputCPI,9,FALSE) -> 0.03913356 | AN119: 0.13693153 | AO119: 0.05626088 | AP119: 0.01692312 | AQ119: 0.25993214 | AR119: 0.1239055 | AS119: 0.09556458 | AT119: 0.12330345 | AU119: 0.044697 | AV119: 0.023212 | AW119: 0.025781 | AX119: 0.5341323141 | AY119: 0.06094068551 | AZ119: 0.08395588511 | BA119: 0.3973527357 | BB119: 0.1507990554 | BC119: 0.1454885492 | BD119: 0.3947134251 | BE119: 0.8615207147 | BF119: 0.0730048607 | BG119: 0.3884929346 | BH119: 0.5595607882 | BI119: 0.629613273 | BJ119: =BJ103*HLOOKUP(BJ$111,InputCPI,9,FALSE)/HLOOKUP(BJ$95,InputCPI,9,FALSE) -> 9.966246888 | BK119: 3.328039295 | BL119: 0.141250277 | BM119: 0.141250277 | BN119: 0.2985883261
A120: =ROW() -> 120 | B120: Equity Raising Cost | BE120: =BE104*HLOOKUP(BE$111,InputCPI,9,FALSE)/HLOOKUP(BE$95,InputCPI,9,FALSE) -> 0.01990951818 | BF120: 0 | BG120: 0 | BH120: 0 | BI120: 0 | BJ120: =BJ104*HLOOKUP(BJ$111,InputCPI,9,FALSE)/HLOOKUP(BJ$95,InputCPI,9,FALSE) -> 0.2749647056 | BK120: 0 | BL120: 0 | BM120: 0 | BN120: 0
A121: =ROW() -> 121 | B121: Non-depreciable assets | G121: =G105*HLOOKUP(G$111,InputCPI,9,FALSE)/HLOOKUP(G$95,InputCPI,9,FALSE) -> 0.366693219 | H121: 0 | I121: -0.01981922987 | J121: 0 | K121: 0.7752762321 | L121: -0.0283387489 | M121: -0.02772268914 | N121: 0 | O121: -0.6273935395 | P121: -0.02082825464 | Q121: -0.0203754665 | R121: 0 | S121: 1.459328769 | T121: -0.03641204637 | U121: -0.03562048015 | V121: 0 | W121: -0.7080215592 | X121: 0 | Y121: -0.0275374145 | Z121: 0 | AA121: -0.06990471975 | AB121: -0.02676923077 | AC121: -0.02618729097 | AD121: 0 | AE121: 0.3860815217 | AF121: -0.03042994505 | AG121: -0.02976842451 | AH121: 0 | AI121: 0.06457336957 | AJ121: -0.03047802198 | AK121: -0.02981545628 | AL121: 0 | AM121: =AM105*HLOOKUP(AM$111,InputCPI,9,FALSE)/HLOOKUP(AM$95,InputCPI,9,FALSE) -> -0.1822037745 | AN121: 0 | AO121: -0.02751089943 | AP121: 0 | AQ121: 0.2547581522 | AR121: -0.03031043956 | AS121: -0.02965151696 | AT121: 0 | AU121: 0 | AV121: 0 | AW121: 0 | AX121: 0 | AY121: 0 | AZ121: 0 | BA121: 0 | BB121: 0 | BC121: 0 | BD121: 0 | BE121: 0 | BF121: 0 | BG121: 0 | BH121: 0 | BI121: 0 | BJ121: =BJ105*HLOOKUP(BJ$111,InputCPI,9,FALSE)/HLOOKUP(BJ$95,InputCPI,9,FALSE) -> 0 | BK121: 0 | BL121: 0 | BM121: 0 | BN121: 0
A122: =ROW() -> 122 | B122: Shared support assets - IOT & cyber security | BE122: =BE106*HLOOKUP(BE$111,InputCPI,9,FALSE)/HLOOKUP(BE$95,InputCPI,9,FALSE) -> 2.321073348 | BF122: 2.322626769 | BG122: 4.576597526 | BH122: 4.301592187 | BI122: 5.133801407 | BJ122: 3.044279905 | BK122: 1.461816044 | BL122: 0.6638416061 | BM122: 0.5846135849 | BN122: 0.4212733147
A123: =ROW() -> 123 | B123: Shared support assets (net IOT & cyber security) | BE123: =BE107*HLOOKUP(BE$111,InputCPI,9,FALSE)/HLOOKUP(BE$95,InputCPI,9,FALSE) -> 0.9235682093 | BF123: 1.34179297 | BG123: 3.259316922 | BH123: 0.9895338308 | BI123: 1.333667957 | BJ123: 1.333667957 | BK123: 1.333667957 | BL123: 1.333667957 | BM123: 1.333667957 | BN123: 1.333667957
A124: =ROW() -> 124 | B124: Miscellaneous assets | BE124: =BE108*HLOOKUP(BE$111,InputCPI,9,FALSE)/HLOOKUP(BE$95,InputCPI,9,FALSE) -> 0 | BF124: 0 | BG124: 0 | BH124: 0 | BI124: 0 | BJ124: 0 | BK124: 0 | BL124: 0 | BM124: 0 | BN124: 0
A125: =ROW() -> 125 | B125: Total | G125: =SUM(G112:G124) -> 1.277726184 | H125: =SUM(H112:H124) -> 0.911032965 | I125: 0.8912137351 | J125: 0.911032965 | K125: 2.873124682 | L125: 2.069509701 | M125: 2.070125761 | N125: 2.09784845 | O125: -0.3475490295 | P125: 0.2590162554 | Q125: 0.2594690435 | R125: 0.27984451 | S125: 3.994014386 | T125: 2.498273571 | U125: 2.499065137 | V125: 2.534685618 | W125: 0.8268350308 | X125: 1.53485659 | Y125: 1.507319175 | Z125: 1.53485659 | AA125: 0.5743863703 | AB125: 0.5401060492 | AC125: 0.117957629 | AD125: 0.14533614 | AE125: 0.6403464717 | AF125: 0.7500695849 | AG125: 0.6644289855 | AH125: 0.40492871 | AI125: 0.6880974596 | AJ125: 0.769020198 | AK125: 0.2571943737 | AL125: 0.08551934 | AM125: -0.1358019645 | AN125: 0.55677197 | AO125: 0.3972354206 | AP125: 0.66417979 | AQ125: 1.183314972 | AR125: 1.30770854 | AS125: 0.242097693 | AT125: 0.73151163 | AU125: 0.45728972 | AV125: 0.3146466 | AW125: 0.6636569338 | AX125: 2.593294029 | AY125: 2.136212137 | AZ125: 4.08666772 | BA125: =SUM(BA112:BA124) -> 1.743169059 | BB125: 1.738676597 | BC125: 0.9140621403 | BD125: 1.525972892 | BE125: 10.67623595 | BF125: 13.82012732 | BG125: 13.53601103 | BH125: 11.68052175 | BI125: 18.78114046 | BJ125: 27.99887479 | BK125: 11.96379719 | BL125: 8.059050369 | BM125: 5.866034654 | BN125: 2.728533011
A126: =ROW() -> 126 | B126: Capex (Model) [m$ nominal]
A127: =ROW() -> 127 | B127: Date of Dollar Value | G127: 2000-03-31 | H127: 2000-06-30 | I127: 2000-09-30 | J127: 2000-12-31 | K127: 2001-03-31 | L127: 2001-06-30 | M127: 2001-09-30 | N127: 2001-12-31 | O127: 2002-03-31 | P127: 2002-06-30 | Q127: 2002-09-30 | R127: 2002-12-31 | S127: 2003-03-31 | T127: 2003-06-30 | U127: 2003-09-30 | V127: 2003-12-31 | W127: 2004-03-31 | X127: 2004-06-30 | Y127: 2004-09-30 | Z127: 2004-12-31 | AA127: 2005-03-31 | AB127: 2005-06-30 | AC127: 2005-09-30 | AD127: 2005-12-31 | AE127: 2006-03-31 | AF127: 2006-06-30 | AG127: 2006-09-30 | AH127: 2006-12-31 | AI127: 2007-03-31 | AJ127: 2007-06-30 | AK127: 2007-09-30 | AL127: 2007-12-31 | AM127: 2008-03-31 | AN127: 2008-06-30 | AO127: 2008-09-30 | AP127: 2008-12-31 | AQ127: 2009-03-31 | AR127: 2009-06-30 | AS127: 2009-09-30 | AT127: 2009-12-31 | AU127: 2010-12-31 | AV127: 2011-12-31 | AW127: 2012-12-31 | AX127: 2013-12-31 | AY127: 2014-12-31 | AZ127: 2015-12-31 | BA127: 2016-12-31 | BB127: 2017-12-31 | BC127: 2018-12-31 | BD127: =BD8 -> 2019-12-31 | BE127: 2020-12-31 | BF127: 2021-12-31 | BG127: 2022-12-31 | BH127: 2023-12-31 | BI127: 2024-12-31 | BJ127: =BJ8 -> 2025-12-31 | BK127: 2026-12-31 | BL127: 2027-12-31 | BM127: 2028-12-31 | BN127: 2029-12-31
A128: =ROW() -> 128 | B128: Pipeline and laterals | G128: =G96*HLOOKUP(G$127,InputCPI,9,FALSE)/HLOOKUP(G$95,InputCPI,9,FALSE) -> 0 | H128: 0 | I128: 0 | J128: 0 | K128: 0 | L128: 0 | M128: 0 | N128: 0 | O128: 0 | P128: 0 | Q128: 0 | R128: 0 | S128: 0 | T128: 0 | U128: 0 | V128: 0 | W128: 0 | X128: 0 | Y128: 0 | Z128: 0 | AA128: 0.30112484 | AB128: 0.00025486 | AC128: 0.00045632 | AD128: -0.00033 | AE128: 0 | AF128: 0 | AG128: 0 | AH128: 0 | AI128: 0 | AJ128: 0.28621376 | AK128: 0 | AL128: 0 | AM128: =AM96*HLOOKUP(AM$127,InputCPI,9,FALSE)/HLOOKUP(AM$95,InputCPI,9,FALSE) -> 0 | AN128: 0.00355109 | AO128: 0.01002201 | AP128: 0.06076867 | AQ128: 0.00144492 | AR128: 0.0014231 | AS128: 0.00856286 | AT128: 0.00071536 | AU128: -0.082937 | AV128: 0 | AW128: 0 | AX128: 0.025633 | AY128: 0 | AZ128: 1.766083056 | BA128: 0.4919352037 | BB128: 0.2760397457 | BC128: 0.000914249579 | BD128: =BD112/BD$19 -> 0.028 | BE128: =BE112/BE$19 -> 0.1178144196 | BF128: 0.006137387369 | BG128: -0.01137368047 | BH128: 0.00882002928 | BI128: 0.116921333 | BJ128: =BJ112/BJ$19 -> 0 | BK128: 0 | BL128: 0.04171714343 | BM128: 0.04276424373 | BN128: 0
A129: =ROW() -> 129 | B129: Main line valve and scraper stations | G129: =G97*HLOOKUP(G$127,InputCPI,9,FALSE)/HLOOKUP(G$95,InputCPI,9,FALSE) -> 0 | H129: 0 | I129: 0 | J129: 0 | K129: 0 | L129: 0 | M129: 0 | N129: 0 | O129: 0 | P129: 0 | Q129: 0 | R129: 0 | S129: 0 | T129: 0 | U129: 0 | V129: 0 | W129: 0 | X129: 0 | Y129: 0 | Z129: 0 | AA129: 0 | AB129: 0 | AC129: 0 | AD129: 0 | AE129: 0 | AF129: 0 | AG129: 0 | AH129: 0 | AI129: 0 | AJ129: 0 | AK129: 0 | AL129: 0 | AM129: =AM97*HLOOKUP(AM$127,InputCPI,9,FALSE)/HLOOKUP(AM$95,InputCPI,9,FALSE) -> 0 | AN129: 0 | AO129: 0 | AP129: 0 | AQ129: 0.02711449 | AR129: 0.00114492 | AS129: 0 | AT129: 0 | AU129: 0 | AV129: 0 | AW129: 0 | AX129: 0 | AY129: 0 | AZ129: 0.1095663195 | BA129: 0.001499904716 | BB129: 0 | BC129: 0 | BD129: =BD113/BD$19 -> 0 | BE129: 0 | BF129: 0 | BG129: 0.0008814448976 | BH129: 0.02723326268 | BI129: 1.313436742 | BJ129: =BJ113/BJ$19 -> 1.882580937 | BK129: 1.409781125 | BL129: 1.276274824 | BM129: 1.275388427 | BN129: 0.388092919
A130: =ROW() -> 130 | B130: Compressor stations | G130: =G98*HLOOKUP(G$127,InputCPI,9,FALSE)/HLOOKUP(G$95,InputCPI,9,FALSE) -> 0.7266078075 | H130: 0.7266078075 | I130: 0.7266078075 | J130: 0.7266078075 | K130: 2.016678142 | L130: 2.016678142 | M130: 2.016678142 | N130: 2.016678142 | O130: 0.1623632675 | P130: 0.1623632675 | Q130: 0.1623632675 | R130: 0.1623632675 | S130: 2.450314792 | T130: 2.450314792 | U130: 2.450314792 | V130: 2.450314792 | W130: 1.018218935 | X130: 1.018218935 | Y130: 1.018218935 | Z130: 1.018218935 | AA130: 0.23668579 | AB130: 0.36644481 | AC130: 0.06653221 | AD130: 0.03745882 | AE130: 0.03906246 | AF130: 0.33773978 | AG130: 0.3358245 | AH130: 0.20489235 | AI130: 0.09346673 | AJ130: 0.18295022 | AK130: 0.05837254 | AL130: 0.02024216 | AM130: =AM98*HLOOKUP(AM$127,InputCPI,9,FALSE)/HLOOKUP(AM$95,InputCPI,9,FALSE) -> 0 | AN130: 0.23202959 | AO130: 0.04096777 | AP130: 0.12877112 | AQ130: 0.28400227 | AR130: 0.0078502 | AS130: 0.00194744 | AT130: 0 | AU130: 0.36723542 | AV130: 0.0473 | AW130: 0.1505567938 | AX130: 0.4783121846 | AY130: 0.7031027752 | AZ130: -0.015656 | BA130: 0 | BB130: 0.965514 | BC130: 0.3268918291 | BD130: =BD114/BD$19 -> 0.133 | BE130: 2.831367588 | BF130: 8.086560305 | BG130: 4.101048944 | BH130: 4.932944746 | BI130: 10.07384651 | BJ130: =BJ114/BJ$19 -> 12.02494012 | BK130: 4.559829731 | BL130: 4.74154475 | BM130: 2.734619059 | BN130: 0.3820328034
A131: =ROW() -> 131 | B131: Receipt and delivery point facilities | G131: =G99*HLOOKUP(G$127,InputCPI,9,FALSE)/HLOOKUP(G$95,InputCPI,9,FALSE) -> 0.04005906 | H131: 0.04005906 | I131: 0.04005906 | J131: 0.04005906 | K131: 0.0242860925 | L131: 0.0242860925 | M131: 0.0242860925 | N131: 0.0242860925 | O131: 0.0147807275 | P131: 0.0147807275 | Q131: 0.0147807275 | R131: 0.0147807275 | S131: 0.0173773425 | T131: 0.0173773425 | U131: 0.0173773425 | V131: 0.0173773425 | W131: 0.00844475 | X131: 0.00844475 | Y131: 0.00844475 | Z131: 0.00844475 | AA131: 0 | AB131: 0 | AC131: 0 | AD131: 0.01755367 | AE131: 0.01368143 | AF131: 0.12254546 | AG131: 0.11840168 | AH131: 0.12576146 | AI131: 0.3960732 | AJ131: 0.08453083 | AK131: 0.00012867 | AL131: 0 | AM131: =AM99*HLOOKUP(AM$127,InputCPI,9,FALSE)/HLOOKUP(AM$95,InputCPI,9,FALSE) -> 0 | AN131: 0 | AO131: 0 | AP131: 0.00321914 | AQ131: 0 | AR131: 0 | AS131: 0 | AT131: 0 | AU131: 0 | AV131: 0 | AW131: 0 | AX131: 0.1356 | AY131: 0.1877352741 | AZ131: 0.411658 | BA131: -0.395299 | BB131: 0.001285 | BC131: 0.1875442241 | BD131: =BD115/BD$19 -> 0.351 | BE131: 0.7254852096 | BF131: 0.01173772938 | BG131: 0 | BH131: 0 | BI131: 0.2024226324 | BJ131: =BJ115/BJ$19 -> 0 | BK131: 0 | BL131: 0.007354292413 | BM131: 0.007538885153 | BN131: 0
A132: =ROW() -> 132 | B132: SCADA and communications | G132: =G100*HLOOKUP(G$127,InputCPI,9,FALSE)/HLOOKUP(G$95,InputCPI,9,FALSE) -> 0.006985115 | H132: 0.006985115 | I132: 0.006985115 | J132: 0.006985115 | K132: 0.0012955875 | L132: 0.0012955875 | M132: 0.0012955875 | N132: 0.0012955875 | O132: 0.0139746075 | P132: 0.0139746075 | Q132: 0.0139746075 | R132: 0.0139746075 | S132: 0.0173468175 | T132: 0.0173468175 | U132: 0.0173468175 | V132: 0.0173468175 | W132: 0.109894455 | X132: 0.109894455 | Y132: 0.109894455 | Z132: 0.109894455 | AA132: 0.02500167 | AB132: 0.00555411 | AC132: 0.00094376 | AD132: 0 | AE132: 0.05128961 | AF132: 0.20082489 | AG132: 0.17556474 | AH132: 0.02213489 | AI132: 0.04928407 | AJ132: 0.07052838 | AK132: 0.01797736 | AL132: 0.05761879 | AM132: =AM100*HLOOKUP(AM$127,InputCPI,9,FALSE)/HLOOKUP(AM$95,InputCPI,9,FALSE) -> 0.00726825 | AN132: 0.05729485 | AO132: 0.30337709 | AP132: 0.33711321 | AQ132: 0.24756857 | AR132: 0.46381265 | AS132: 0.00427515 | AT132: 0 | AU132: 0.06002106 | AV132: 0.2441346 | AW132: 0.48731914 | AX132: 0.36361653 | AY132: 1.166620315 | AZ132: 0.891581 | BA132: 0.989592 | BB132: 0.065031 | BC132: 0.1099072675 | BD132: =BD116/BD$19 -> 0.397 | BE132: 1.824835683 | BF132: 0.1510887879 | BG132: 0.2727273368 | BH132: 0.5092691113 | BI132: 0.2057159713 | BJ132: =BJ116/BJ$19 -> 0 | BK132: 0 | BL132: 0 | BM132: 0 | BN132: 0
A133: =ROW() -> 133 | B133: Cathodic protection | G133: =G101*HLOOKUP(G$127,InputCPI,9,FALSE)/HLOOKUP(G$95,InputCPI,9,FALSE) -> 0 | H133: 0 | I133: 0 | J133: 0 | K133: 0 | L133: 0 | M133: 0 | N133: 0 | O133: 0 | P133: 0 | Q133: 0 | R133: 0 | S133: 0.00394725 | T133: 0.00394725 | U133: 0.00394725 | V133: 0.00394725 | W133: 0 | X133: 0 | Y133: 0 | Z133: 0 | AA133: 0.000297 | AB133: 0 | AC133: 0 | AD133: 0 | AE133: 0 | AF133: 0 | AG133: 0.00825 | AH133: 0 | AI133: 0 | AJ133: 0 | AK133: 0 | AL133: 0 | AM133: =AM101*HLOOKUP(AM$127,InputCPI,9,FALSE)/HLOOKUP(AM$95,InputCPI,9,FALSE) -> 0 | AN133: 0.06568597 | AO133: 0.0018755 | AP133: 0.04616319 | AQ133: 0.10849443 | AR133: 0.73988261 | AS133: 0.16139918 | AT133: 0.58868282 | AU133: 0 | AV133: 0 | AW133: 0 | AX133: 0 | AY133: 0 | AZ133: 0 | BA133: 0 | BB133: 0 | BC133: 0 | BD133: =BD117/BD$19 -> 0.001 | BE133: 0 | BF133: 0 | BG133: 0.00266343 | BH133: 0.21581303 | BI133: 0.1222363697 | BJ133: =BJ117/BJ$19 -> 0.2194915197 | BK133: 0.1903593118 | BL133: 0.07396813457 | BM133: 0 | BN133: 0.01687360518
A134: =ROW() -> 134 | B134: Maintenance bases and depots | G134: =G102*HLOOKUP(G$127,InputCPI,9,FALSE)/HLOOKUP(G$95,InputCPI,9,FALSE) -> 0.00182295 | H134: 0.00182295 | I134: 0.00182295 | J134: 0.00182295 | K134: 0.001067045 | L134: 0.001067045 | M134: 0.001067045 | N134: 0.001067045 | O134: 0.00055 | P134: 0.00055 | Q134: 0.00055 | R134: 0.00055 | S134: 0 | T134: 0 | U134: 0 | V134: 0 | W134: 0 | X134: 0 | Y134: 0 | Z134: 0 | AA134: 0 | AB134: 0 | AC134: 0 | AD134: 0.002619 | AE134: 0 | AF134: 0.0348373 | AG134: 0 | AH134: 0 | AI134: 0 | AJ134: 0 | AK134: 0.01046586 | AL134: 0.001661 | AM134: =AM102*HLOOKUP(AM$127,InputCPI,9,FALSE)/HLOOKUP(AM$95,InputCPI,9,FALSE) -> 0 | AN134: 0.06127894 | AO134: 0.01224307 | AP134: 0.07122134 | AQ134: 0 | AR134: 0 | AS134: 0 | AT134: 0.01881 | AU134: 0.06827324 | AV134: 0 | AW134: 0 | AX134: 1.056 | AY134: 0.01781308687 | AZ134: 0.02482025444 | BA134: 0 | BB134: 0 | BC134: 0.01907929041 | BD134: =BD118/BD$19 -> 0.05585121293 | BE134: 0.1410499272 | BF134: 0.7307494098 | BG134: 0.7388119418 | BH134: 0.1357547642 | BI134: 0 | BJ134: =BJ118/BJ$19 -> 0 | BK134: 0.1612789607 | BL134: 0.4278335525 | BM134: 0.2690954028 | BN134: 0
A135: =ROW() -> 135 | B135: Other assets | G135: =G103*HLOOKUP(G$127,InputCPI,9,FALSE)/HLOOKUP(G$95,InputCPI,9,FALSE) -> 0.1355580325 | H135: 0.1355580325 | I135: 0.1355580325 | J135: 0.1355580325 | K135: 0.0545215825 | L135: 0.0545215825 | M135: 0.0545215825 | N135: 0.0545215825 | O135: 0.0881759075 | P135: 0.0881759075 | Q135: 0.0881759075 | R135: 0.0881759075 | S135: 0.045699415 | T135: 0.045699415 | U135: 0.045699415 | V135: 0.045699415 | W135: 0.39829845 | X135: 0.39829845 | Y135: 0.39829845 | Z135: 0.39829845 | AA135: 0.08118179 | AB135: 0.1946215 | AC135: 0.07621263 | AD135: 0.08803465 | AE135: 0.15023145 | AF135: 0.0845521 | AG135: 0.05615649 | AH135: 0.05214001 | AI135: 0.08470009 | AJ135: 0.17527503 | AK135: 0.2000654 | AL135: 0.00599739 | AM135: =AM103*HLOOKUP(AM$127,InputCPI,9,FALSE)/HLOOKUP(AM$95,InputCPI,9,FALSE) -> 0.03913356 | AN135: 0.13693153 | AO135: 0.05626088 | AP135: 0.01692312 | AQ135: 0.25993214 | AR135: 0.1239055 | AS135: 0.09556458 | AT135: 0.12330345 | AU135: 0.044697 | AV135: 0.023212 | AW135: 0.025781 | AX135: 0.5341323141 | AY135: 0.06094068551 | AZ135: 0.06686861092 | BA135: 0.3211521008 | BB135: 0.1242070104 | BC135: 0.1219709292 | BD135: =BD119/BD$19 -> 0.337 | BE135: 0.7418826434 | BF135: 0.06506605146 | BG135: 0.3733642604 | BH135: 0.5595607882 | BI135: 0.6485016712 | BJ135: =BJ119/BJ$19 -> 10.52289168 | BK135: 3.602119672 | BL135: 0.1567202925 | BM135: 0.1606539718 | BN135: 0.3481298127
A136: =ROW() -> 136 | B136: Equity Raising Cost | BE136: =BE120/BE$19 -> 0.01714471367 | BF136: =BF120/BF$19 -> 0 | BG136: =BG120/BG$19 -> 0 | BH136: =BH120/BH$19 -> 0 | BI136: =BI120/BI$19 -> 0 | BJ136: =BJ120/BJ$19 -> 0.2903223093 | BK136: 0 | BL136: 0 | BM136: 0 | BN136: 0
A137: =ROW() -> 137 | B137: Non-depreciable assets | G137: =G$1866 -> 1.466772876 | H137: =H$1866 -> 0 | I137: -0.07927691947 | J137: 0 | K137: 3.101104928 | L137: -0.1133549956 | M137: -0.1108907566 | N137: 0 | O137: -2.509574158 | P137: -0.08331301857 | Q137: -0.08150186599 | R137: 0 | S137: 5.837315075 | T137: -0.1456481855 | U137: -0.1424819206 | V137: 0 | W137: -2.832086237 | X137: 0 | Y137: -0.110149658 | Z137: 0 | AA137: -0.279618879 | AB137: -0.1070769231 | AC137: -0.1047491639 | AD137: 0 | AE137: 1.544326087 | AF137: -0.1217197802 | AG137: -0.119073698 | AH137: 0 | AI137: 0.2582934783 | AJ137: -0.1219120879 | AK137: -0.1192618251 | AL137: 0 | AM137: -0.7288150979 | AN137: 0 | AO137: -0.1100435977 | AP137: 0 | AQ137: 1.019032609 | AR137: -0.1212417582 | AS137: -0.1186060678 | AT137: 0 | AU137: -11.46986413 | AV137: 0 | AW137: 0 | AX137: 0 | AY137: 0 | AZ137: 0 | BA137: 0 | BB137: 0 | BC137: 0 | BD137: 0 | BE137: =BE$1866 -> 0 | BF137: 0 | BG137: 0 | BH137: 0 | BI137: 0 | BJ137: 0 | BK137: 0 | BL137: 0 | BM137: 0 | BN137: 0
A138: =ROW() -> 138 | B138: Shared support assets - IOT & cyber security | BE138: =BE122/BE$19 -> 1.998749423 | BF138: 2.070056041 | BG138: 4.398375874 | BH138: 4.301592187 | BI138: 5.287815449 | BJ138: 3.214312071 | BK138: 1.582203773 | BL138: 0.7365468788 | BM138: 0.6649225501 | BN138: 0.4911705761
A139: =ROW() -> 139 | B139: Shared support assets (net IOT & cyber security) | BE139: =BE123/BE$19 -> 0.7953136967 | BF139: 1.195881611 | BG139: 3.132392751 | BH139: 0.9895338308 | BI139: 1.373677996 | BJ139: 1.408157313 | BK139: 1.443502062 | BL139: 1.479733964 | BM139: 1.516875286 | BN139: 1.554948856
A140: =ROW() -> 140 | B140: Miscellaneous assets | BE140: =BE124/BE$19 -> 0 | BF140: 0 | BG140: 0 | BH140: 0 | BI140: 0 | BJ140: 0 | BK140: 0 | BL140: 0 | BM140: 0 | BN140: 0
A141: =ROW() -> 141 | B141: Total | G141: =SUM(G128:G140) -> 2.377805841 | H141: =SUM(H128:H140) -> 0.911032965 | I141: 0.8317560455 | J141: 0.911032965 | K141: 5.198953378 | L141: 1.984493454 | M141: 1.986957693 | N141: 2.09784845 | O141: -2.229729648 | P141: 0.1965314914 | Q141: 0.198342644 | R141: 0.27984451 | S141: 8.372000692 | T141: 2.389037432 | U141: 2.392203697 | V141: 2.534685618 | W141: -1.297229647 | X141: 1.53485659 | Y141: 1.424706932 | Z141: 1.53485659 | AA141: 0.364672211 | AB141: 0.4597983569 | AC141: 0.03939575612 | AD141: 0.14533614 | AE141: 1.798591037 | AF141: 0.6587797498 | AG141: 0.575123712 | AH141: 0.40492871 | AI141: 0.8818175683 | AJ141: 0.6775861321 | AK141: 0.1677480049 | AL141: 0.08551934 | AM141: -0.6824132879 | AN141: 0.55677197 | AO141: 0.3147027223 | AP141: 0.66417979 | AQ141: 1.947589429 | AR141: 1.216777222 | AS141: 0.1531431422 | AT141: 0.73151163 | AU141: -11.01257441 | AV141: 0.3146466 | AW141: 0.6636569338 | AX141: 2.593294029 | AY141: 2.136212137 | AZ141: 3.254921241 | BA141: 1.408880209 | BB141: 1.432076756 | BC141: 0.7663077899 | BD141: 1.302851213 | BE141: 9.193643304 | BF141: 12.31727732 | BG141: 13.0088923 | BH141: 11.68052175 | BI141: 19.34457468 | BJ141: 29.56269594 | BK141: 12.94907464 | BL141: 8.941693833 | BM141: 6.671857825 | BN141: 3.181248572
A142: =ROW() -> 142 | B142: Capex Depreciation
A143: =ROW() -> 143 | B143: As per previous AA model $
A144: =ROW() -> 144 | B144: Date of Dollar Value | G144: 2000-03-31 | H144: 2000-06-30 | I144: 2000-09-30 | J144: 2000-12-31 | K144: 2001-03-31 | L144: 2001-06-30 | M144: 2001-09-30 | N144: 2001-12-31 | O144: 2002-03-31 | P144: 2002-06-30 | Q144: 2002-09-30 | R144: 2002-12-31 | S144: 2003-03-31 | T144: 2003-06-30 | U144: 2003-09-30 | V144: 2003-12-31 | W144: 2004-03-31 | X144: 2004-06-30 | Y144: 2004-09-30 | Z144: 2004-12-31 | AA144: 2005-03-31 | AB144: 2005-06-30 | AC144: 2005-09-30 | AD144: 2005-12-31 | AE144: 2006-03-31 | AF144: 2006-06-30 | AG144: 2006-09-30 | AH144: 2006-12-31 | AI144: 2007-03-31 | AJ144: 2007-06-30 | AK144: 2007-09-30 | AL144: 2007-12-31 | AM144: 2008-03-31 | AN144: 2008-06-30 | AO144: 2008-09-30 | AP144: 2008-12-31 | AQ144: 2009-03-31 | AR144: 2009-06-30 | AS144: 2009-09-30 | AT144: 2009-12-31 | AU144: 2010-12-31 | AV144: 2011-12-31 | AW144: 2012-12-31 | AX144: 2013-12-31 | AY144: 2014-12-31 | AZ144: 2014-12-31 | BA144: 2014-12-31 | BB144: 2014-12-31 | BC144: 2014-12-31 | BD144: 2014-12-31 | BE144: 2018-12-31 | BF144: 2018-12-31 | BG144: 2018-12-31 | BH144: 2018-12-31 | BI144: 2018-12-31
A145: =ROW() -> 145 | B145: 2000-03-31 | C145: Capex
A146: =ROW() -> 146 | B146: Pipeline and laterals | H146: 0 | I146: 0 | J146: 0 | K146: 0 | L146: 0 | M146: 0 | N146: 0 | O146: 0 | P146: 0 | Q146: 0 | R146: 0 | S146: 0 | T146: 0 | U146: 0 | V146: 0 | W146: 0 | X146: 0 | Y146: 0 | Z146: 0 | AA146: 0 | AB146: 0 | AC146: 0 | AD146: 0 | AE146: 0 | AF146: 0 | AG146: 0 | AH146: 0 | AI146: 0 | AJ146: 0 | AK146: 0 | AL146: 0 | AM146: 0 | AN146: 0 | AO146: 0 | AP146: 0 | AQ146: 0 | AR146: 0 | AS146: 0 | AT146: 0 | AU146: 0 | AV146: 0 | AW146: 0 | AX146: 0 | AY146: 0 | AZ146: 0 | BA146: 0 | BB146: 0 | BC146: 0 | BD146: 0 | BE146: 0 | BF146: 0 | BG146: 0 | BH146: 0 | BI146: 0
A147: =ROW() -> 147 | B147: Main line valve and scraper stations | H147: 0 | I147: 0 | J147: 0 | K147: 0 | L147: 0 | M147: 0 | N147: 0 | O147: 0 | P147: 0 | Q147: 0 | R147: 0 | S147: 0 | T147: 0 | U147: 0 | V147: 0 | W147: 0 | X147: 0 | Y147: 0 | Z147: 0 | AA147: 0 | AB147: 0 | AC147: 0 | AD147: 0 | AE147: 0 | AF147: 0 | AG147: 0 | AH147: 0 | AI147: 0 | AJ147: 0 | AK147: 0 | AL147: 0 | AM147: 0 | AN147: 0 | AO147: 0 | AP147: 0 | AQ147: 0 | AR147: 0 | AS147: 0 | AT147: 0 | AU147: 0 | AV147: 0 | AW147: 0 | AX147: 0 | AY147: 0 | AZ147: 0 | BA147: 0 | BB147: 0 | BC147: 0 | BD147: 0 | BE147: 0 | BF147: 0 | BG147: 0 | BH147: 0 | BI147: 0
A148: =ROW() -> 148 | B148: Compressor stations | H148: 0.02422026025 | I148: 0.02422026025 | J148: 0.02422026025 | K148: 0.02422026025 | L148: 0.02422026025 | M148: 0.02422026025 | N148: 0.02422026025 | O148: 0.02422026025 | P148: 0.02422026025 | Q148: 0.02422026025 | R148: 0.02422026025 | S148: 0.02422026025 | T148: 0.02422026025 | U148: 0.02422026025 | V148: 0.02422026025 | W148: 0.02422026025 | X148: 0.02422026025 | Y148: 0.02422026025 | Z148: 0.02422026025 | AA148: 0.02422026025 | AB148: 0.02422026025 | AC148: 0.02422026025 | AD148: 0.02422026025 | AE148: 0.02422026025 | AF148: 0.02422026025 | AG148: 0.02422026025 | AH148: 0.02422026025 | AI148: 0.02422026025 | AJ148: 0.02422026025 | AK148: 0.02422026025 | AL148: 0.02422026025 | AM148: 0.02422026025 | AN148: 0.02422026025 | AO148: 0.02422026025 | AP148: 0.02422026025 | AQ148: 0.02422026025 | AR148: 0.02422026025 | AS148: 0.02422026025 | AT148: 0.02422026025 | AU148: 0.02422026025 | AV148: 0.02422026025 | AW148: 0.02422026025 | AX148: 0.02422026025 | AY148: 0.02422026025 | AZ148: 0.02422026025 | BA148: 0.02422026025 | BB148: 0.02422026025 | BC148: 0.02422026025 | BD148: 0.02422026025 | BE148: 0.02592431233 | BF148: 0.02592431233 | BG148: 0.02592431233 | BH148: 0.02592431233 | BI148: 0.02592431233
A149: =ROW() -> 149 | B149: Receipt and delivery point facilities | H149: 0.001335302 | I149: 0.001335302 | J149: 0.001335302 | K149: 0.001335302 | L149: 0.001335302 | M149: 0.001335302 | N149: 0.001335302 | O149: 0.001335302 | P149: 0.001335302 | Q149: 0.001335302 | R149: 0.001335302 | S149: 0.001335302 | T149: 0.001335302 | U149: 0.001335302 | V149: 0.001335302 | W149: 0.001335302 | X149: 0.001335302 | Y149: 0.001335302 | Z149: 0.001335302 | AA149: 0.001335302 | AB149: 0.001335302 | AC149: 0.001335302 | AD149: 0.001335302 | AE149: 0.001335302 | AF149: 0.001335302 | AG149: 0.001335302 | AH149: 0.001335302 | AI149: 0.001335302 | AJ149: 0.001335302 | AK149: 0.001335302 | AL149: 0.001335302 | AM149: 0.001335302 | AN149: 0.001335302 | AO149: 0.001335302 | AP149: 0.001335302 | AQ149: 0.001335302 | AR149: 0.001335302 | AS149: 0.001335302 | AT149: 0.001335302 | AU149: 0.001335302 | AV149: 0.001335302 | AW149: 0.001335302 | AX149: 0.001335302 | AY149: 0.001335302 | AZ149: 0.001335302 | BA149: 0.001335302 | BB149: 0.001335302 | BC149: 0.001335302 | BD149: 0.001335302 | BE149: 0.001429249139 | BF149: 0.001429249139 | BG149: 0.001429249139 | BH149: 0.001429249139 | BI149: 0.001429249139
A150: =ROW() -> 150 | B150: SCADA and communications | H150: 0.0004656743333 | I150: 0.0004656743333 | J150: 0.0004656743333 | K150: 0.0004656743333 | L150: 0.0004656743333 | M150: 0.0004656743333 | N150: 0.0004656743333 | O150: 0.0004656743333 | P150: 0.0004656743333 | Q150: 0.0004656743333 | R150: 0.0004656743333 | S150: 0.0004656743333 | T150: 0.0004656743333 | U150: 0.0004656743333 | V150: 0.0004656743333 | W150: 0.0004656743333 | X150: 0.0004656743333 | Y150: 0.0004656743333 | Z150: 0.0004656743333 | AA150: 0.0004656743333 | AB150: 0.0004656743333 | AC150: 0.0004656743333 | AD150: 0.0004656743333 | AE150: 0.0004656743333 | AF150: 0.0004656743333 | AG150: 0.0004656743333 | AH150: 0.0004656743333 | AI150: 0.0004656743333 | AJ150: 0.0004656743333 | AK150: 0.0004656743333 | AL150: 0.0004656743333 | AM150: 0.0004656743333 | AN150: 0.0004656743333 | AO150: 0.0004656743333 | AP150: 0.0004656743333 | AQ150: 0.0004656743333 | AR150: 0.0004656743333 | AS150: 0.0004656743333 | AT150: 0.0004656743333 | AU150: 0.00244479025 | AV150: 0 | AW150: 0 | AX150: 0 | AY150: 0 | AZ150: 8.67361738e-19 | BA150: 0 | BB150: 0 | BC150: 0 | BD150: 0 | BE150: 0 | BF150: 0 | BG150: 0 | BH150: 0 | BI150: 0
A151: =ROW() -> 151 | B151: Cathodic protection | H151: 0 | I151: 0 | J151: 0 | K151: 0 | L151: 0 | M151: 0 | N151: 0 | O151: 0 | P151: 0 | Q151: 0 | R151: 0 | S151: 0 | T151: 0 | U151: 0 | V151: 0 | W151: 0 | X151: 0 | Y151: 0 | Z151: 0 | AA151: 0 | AB151: 0 | AC151: 0 | AD151: 0 | AE151: 0 | AF151: 0 | AG151: 0 | AH151: 0 | AI151: 0 | AJ151: 0 | AK151: 0 | AL151: 0 | AM151: 0 | AN151: 0 | AO151: 0 | AP151: 0 | AQ151: 0 | AR151: 0 | AS151: 0 | AT151: 0 | AU151: 0 | AV151: 0 | AW151: 0 | AX151: 0 | AY151: 0 | AZ151: 0 | BA151: 0 | BB151: 0 | BC151: 0 | BD151: 0 | BE151: 0 | BF151: 0 | BG151: 0 | BH151: 0 | BI151: 0
A152: =ROW() -> 152 | B152: Maintenance bases and depots | H152: 3.6459e-05 | I152: 3.6459e-05 | J152: 3.6459e-05 | K152: 3.6459e-05 | L152: 3.6459e-05 | M152: 3.6459e-05 | N152: 3.6459e-05 | O152: 3.6459e-05 | P152: 3.6459e-05 | Q152: 3.6459e-05 | R152: 3.6459e-05 | S152: 3.6459e-05 | T152: 3.6459e-05 | U152: 3.6459e-05 | V152: 3.6459e-05 | W152: 3.6459e-05 | X152: 3.6459e-05 | Y152: 3.6459e-05 | Z152: 3.6459e-05 | AA152: 3.6459e-05 | AB152: 3.6459e-05 | AC152: 3.6459e-05 | AD152: 3.6459e-05 | AE152: 3.6459e-05 | AF152: 3.6459e-05 | AG152: 3.6459e-05 | AH152: 3.6459e-05 | AI152: 3.6459e-05 | AJ152: 3.6459e-05 | AK152: 3.6459e-05 | AL152: 3.6459e-05 | AM152: 3.6459e-05 | AN152: 3.6459e-05 | AO152: 3.6459e-05 | AP152: 3.6459e-05 | AQ152: 3.6459e-05 | AR152: 3.6459e-05 | AS152: 3.6459e-05 | AT152: 3.6459e-05 | AU152: 3.6459e-05 | AV152: 3.6459e-05 | AW152: 3.6459e-05 | AX152: 3.6459e-05 | AY152: 3.6459e-05 | AZ152: 3.6459e-05 | BA152: 3.6459e-05 | BB152: 3.6459e-05 | BC152: 3.6459e-05 | BD152: 3.6459e-05 | BE152: 3.902412664e-05 | BF152: 3.902412664e-05 | BG152: 3.902412664e-05 | BH152: 3.902412664e-05 | BI152: 3.902412664e-05
A153: =ROW() -> 153 | B153: Other assets | H153: 0.01355580325 | I153: 0.01355580325 | J153: 0.01355580325 | K153: 0.01355580325 | L153: 0.01355580325 | M153: 0.01355580325 | N153: 0.01355580325 | O153: 0.01355580325 | P153: 0.01355580325 | Q153: 0.01355580325 | R153: 0.01355580325 | S153: 0.01355580325 | T153: 0.01355580325 | U153: 0.01355580325 | V153: 0.01355580325 | W153: 0.01355580325 | X153: 0.01355580325 | Y153: 0.01355580325 | Z153: 0.01355580325 | AA153: 0.01355580325 | AB153: 0.01355580325 | AC153: 0.01355580325 | AD153: 0.01355580325 | AE153: 0.01355580325 | AF153: 0.01355580325 | AG153: 0.01355580325 | AH153: 0.01355580325 | AI153: 0.01355580325 | AJ153: 0.01355580325 | AK153: 0.01355580325 | AL153: 0.01355580325 | AM153: 0.01355580325 | AN153: 0.01355580325 | AO153: 0.01355580325 | AP153: 0.01355580325 | AQ153: 0.01355580325 | AR153: 0.01355580325 | AS153: 0.01355580325 | AT153: 0.01355580325 | AU153: 0.003388950812 | AV153: 0 | AW153: 0 | AX153: 0 | AY153: 0 | AZ153: 2.775557562e-17 | BA153: 0 | BB153: 0 | BC153: 0 | BD153: 0 | BE153: 0 | BF153: 0 | BG153: 0 | BH153: 0 | BI153: 0
A154: =ROW() -> 154 | B154: Equity Raising Cost | BE154: 0 | BF154: 0 | BG154: 0 | BH154: 0 | BI154: 0
A155: =ROW() -> 155 | B155: Non-depreciable assets
A156: =ROW() -> 156 | B156: Shared support assets - IOT & cyber security
A157: =ROW() -> 157 | B157: Shared support assets (net IOT & cyber security)
A158: =ROW() -> 158 | B158: Miscellaneous assets
A159: =ROW() -> 159 | B159: Total | G159: 0 | H159: 0.03961349883 | I159: 0.03961349883 | J159: 0.03961349883 | K159: 0.03961349883 | L159: 0.03961349883 | M159: 0.03961349883 | N159: 0.03961349883 | O159: 0.03961349883 | P159: 0.03961349883 | Q159: 0.03961349883 | R159: 0.03961349883 | S159: 0.03961349883 | T159: 0.03961349883 | U159: 0.03961349883 | V159: 0.03961349883 | W159: 0.03961349883 | X159: 0.03961349883 | Y159: 0.03961349883 | Z159: 0.03961349883 | AA159: 0.03961349883 | AB159: 0.03961349883 | AC159: 0.03961349883 | AD159: 0.03961349883 | AE159: 0.03961349883 | AF159: 0.03961349883 | AG159: 0.03961349883 | AH159: 0.03961349883 | AI159: 0.03961349883 | AJ159: 0.03961349883 | AK159: 0.03961349883 | AL159: 0.03961349883 | AM159: 0.03961349883 | AN159: 0.03961349883 | AO159: 0.03961349883 | AP159: 0.03961349883 | AQ159: 0.03961349883 | AR159: 0.03961349883 | AS159: 0.03961349883 | AT159: 0.03961349883 | AU159: 0.03142576231 | AV159: 0.02559202125 | AW159: 0.02559202125 | AX159: 0.02559202125 | AY159: 0.02559202125 | AZ159: 0.02559202125 | BA159: 0.02559202125 | BB159: 0.02559202125 | BC159: 0.02559202125 | BD159: 0.02559202125 | BE159: 0.0273925856 | BF159: 0.0273925856 | BG159: 0.0273925856 | BH159: 0.0273925856 | BI159: 0.0273925856
A160: =ROW() -> 160 | B160: 2000-06-30 | C160: Capex
A161: =ROW() -> 161 | B161: Pipeline and laterals | I161: 0 | J161: 0 | K161: 0 | L161: 0 | M161: 0 | N161: 0 | O161: 0 | P161: 0 | Q161: 0 | R161: 0 | S161: 0 | T161: 0 | U161: 0 | V161: 0 | W161: 0 | X161: 0 | Y161: 0 | Z161: 0 | AA161: 0 | AB161: 0 | AC161: 0 | AD161: 0 | AE161: 0 | AF161: 0 | AG161: 0 | AH161: 0 | AI161: 0 | AJ161: 0 | AK161: 0 | AL161: 0 | AM161: 0 | AN161: 0 | AO161: 0 | AP161: 0 | AQ161: 0 | AR161: 0 | AS161: 0 | AT161: 0 | AU161: 0 | AV161: 0 | AW161: 0 | AX161: 0 | AY161: 0 | AZ161: 0 | BA161: 0 | BB161: 0 | BC161: 0 | BD161: 0 | BE161: 0 | BF161: 0 | BG161: 0 | BH161: 0 | BI161: 0
A162: =ROW() -> 162 | B162: Main line valve and scraper stations | I162: 0 | J162: 0 | K162: 0 | L162: 0 | M162: 0 | N162: 0 | O162: 0 | P162: 0 | Q162: 0 | R162: 0 | S162: 0 | T162: 0 | U162: 0 | V162: 0 | W162: 0 | X162: 0 | Y162: 0 | Z162: 0 | AA162: 0 | AB162: 0 | AC162: 0 | AD162: 0 | AE162: 0 | AF162: 0 | AG162: 0 | AH162: 0 | AI162: 0 | AJ162: 0 | AK162: 0 | AL162: 0 | AM162: 0 | AN162: 0 | AO162: 0 | AP162: 0 | AQ162: 0 | AR162: 0 | AS162: 0 | AT162: 0 | AU162: 0 | AV162: 0 | AW162: 0 | AX162: 0 | AY162: 0 | AZ162: 0 | BA162: 0 | BB162: 0 | BC162: 0 | BD162: 0 | BE162: 0 | BF162: 0 | BG162: 0 | BH162: 0 | BI162: 0
A163: =ROW() -> 163 | B163: Compressor stations | I163: 0.02422026025 | J163: 0.02422026025 | K163: 0.02422026025 | L163: 0.02422026025 | M163: 0.02422026025 | N163: 0.02422026025 | O163: 0.02422026025 | P163: 0.02422026025 | Q163: 0.02422026025 | R163: 0.02422026025 | S163: 0.02422026025 | T163: 0.02422026025 | U163: 0.02422026025 | V163: 0.02422026025 | W163: 0.02422026025 | X163: 0.02422026025 | Y163: 0.02422026025 | Z163: 0.02422026025 | AA163: 0.02422026025 | AB163: 0.02422026025 | AC163: 0.02422026025 | AD163: 0.02422026025 | AE163: 0.02422026025 | AF163: 0.02422026025 | AG163: 0.02422026025 | AH163: 0.02422026025 | AI163: 0.02422026025 | AJ163: 0.02422026025 | AK163: 0.02422026025 | AL163: 0.02422026025 | AM163: 0.02422026025 | AN163: 0.02422026025 | AO163: 0.02422026025 | AP163: 0.02422026025 | AQ163: 0.02422026025 | AR163: 0.02422026025 | AS163: 0.02422026025 | AT163: 0.02422026025 | AU163: 0.02422026025 | AV163: 0.02422026025 | AW163: 0.02422026025 | AX163: 0.02422026025 | AY163: 0.02422026025 | AZ163: 0.02422026025 | BA163: 0.02422026025 | BB163: 0.02422026025 | BC163: 0.02422026025 | BD163: 0.02422026025 | BE163: 0.02592431233 | BF163: 0.02592431233 | BG163: 0.02592431233 | BH163: 0.02592431233 | BI163: 0.02592431233
A164: =ROW() -> 164 | B164: Receipt and delivery point facilities | I164: 0.001335302 | J164: 0.001335302 | K164: 0.001335302 | L164: 0.001335302 | M164: 0.001335302 | N164: 0.001335302 | O164: 0.001335302 | P164: 0.001335302 | Q164: 0.001335302 | R164: 0.001335302 | S164: 0.001335302 | T164: 0.001335302 | U164: 0.001335302 | V164: 0.001335302 | W164: 0.001335302 | X164: 0.001335302 | Y164: 0.001335302 | Z164: 0.001335302 | AA164: 0.001335302 | AB164: 0.001335302 | AC164: 0.001335302 | AD164: 0.001335302 | AE164: 0.001335302 | AF164: 0.001335302 | AG164: 0.001335302 | AH164: 0.001335302 | AI164: 0.001335302 | AJ164: 0.001335302 | AK164: 0.001335302 | AL164: 0.001335302 | AM164: 0.001335302 | AN164: 0.001335302 | AO164: 0.001335302 | AP164: 0.001335302 | AQ164: 0.001335302 | AR164: 0.001335302 | AS164: 0.001335302 | AT164: 0.001335302 | AU164: 0.001335302 | AV164: 0.001335302 | AW164: 0.001335302 | AX164: 0.001335302 | AY164: 0.001335302 | AZ164: 0.001335302 | BA164: 0.001335302 | BB164: 0.001335302 | BC164: 0.001335302 | BD164: 0.001335302 | BE164: 0.001429249139 | BF164: 0.001429249139 | BG164: 0.001429249139 | BH164: 0.001429249139 | BI164: 0.001429249139
A165: =ROW() -> 165 | B165: SCADA and communications | I165: 0.0004656743333 | J165: 0.0004656743333 | K165: 0.0004656743333 | L165: 0.0004656743333 | M165: 0.0004656743333 | N165: 0.0004656743333 | O165: 0.0004656743333 | P165: 0.0004656743333 | Q165: 0.0004656743333 | R165: 0.0004656743333 | S165: 0.0004656743333 | T165: 0.0004656743333 | U165: 0.0004656743333 | V165: 0.0004656743333 | W165: 0.0004656743333 | X165: 0.0004656743333 | Y165: 0.0004656743333 | Z165: 0.0004656743333 | AA165: 0.0004656743333 | AB165: 0.0004656743333 | AC165: 0.0004656743333 | AD165: 0.0004656743333 | AE165: 0.0004656743333 | AF165: 0.0004656743333 | AG165: 0.0004656743333 | AH165: 0.0004656743333 | AI165: 0.0004656743333 | AJ165: 0.0004656743333 | AK165: 0.0004656743333 | AL165: 0.0004656743333 | AM165: 0.0004656743333 | AN165: 0.0004656743333 | AO165: 0.0004656743333 | AP165: 0.0004656743333 | AQ165: 0.0004656743333 | AR165: 0.0004656743333 | AS165: 0.0004656743333 | AT165: 0.0004656743333 | AU165: 0.002561208833 | AV165: 0 | AW165: 0 | AX165: 0 | AY165: 0 | AZ165: 1.734723476e-18 | BA165: 0 | BB165: 0 | BC165: 0 | BD165: 0 | BE165: 0 | BF165: 0 | BG165: 0 | BH165: 0 | BI165: 0
A166: =ROW() -> 166 | B166: Cathodic protection | I166: 0 | J166: 0 | K166: 0 | L166: 0 | M166: 0 | N166: 0 | O166: 0 | P166: 0 | Q166: 0 | R166: 0 | S166: 0 | T166: 0 | U166: 0 | V166: 0 | W166: 0 | X166: 0 | Y166: 0 | Z166: 0 | AA166: 0 | AB166: 0 | AC166: 0 | AD166: 0 | AE166: 0 | AF166: 0 | AG166: 0 | AH166: 0 | AI166: 0 | AJ166: 0 | AK166: 0 | AL166: 0 | AM166: 0 | AN166: 0 | AO166: 0 | AP166: 0 | AQ166: 0 | AR166: 0 | AS166: 0 | AT166: 0 | AU166: 0 | AV166: 0 | AW166: 0 | AX166: 0 | AY166: 0 | AZ166: 0 | BA166: 0 | BB166: 0 | BC166: 0 | BD166: 0 | BE166: 0 | BF166: 0 | BG166: 0 | BH166: 0 | BI166: 0
A167: =ROW() -> 167 | B167: Maintenance bases and depots | I167: 3.6459e-05 | J167: 3.6459e-05 | K167: 3.6459e-05 | L167: 3.6459e-05 | M167: 3.6459e-05 | N167: 3.6459e-05 | O167: 3.6459e-05 | P167: 3.6459e-05 | Q167: 3.6459e-05 | R167: 3.6459e-05 | S167: 3.6459e-05 | T167: 3.6459e-05 | U167: 3.6459e-05 | V167: 3.6459e-05 | W167: 3.6459e-05 | X167: 3.6459e-05 | Y167: 3.6459e-05 | Z167: 3.6459e-05 | AA167: 3.6459e-05 | AB167: 3.6459e-05 | AC167: 3.6459e-05 | AD167: 3.6459e-05 | AE167: 3.6459e-05 | AF167: 3.6459e-05 | AG167: 3.6459e-05 | AH167: 3.6459e-05 | AI167: 3.6459e-05 | AJ167: 3.6459e-05 | AK167: 3.6459e-05 | AL167: 3.6459e-05 | AM167: 3.6459e-05 | AN167: 3.6459e-05 | AO167: 3.6459e-05 | AP167: 3.6459e-05 | AQ167: 3.6459e-05 | AR167: 3.6459e-05 | AS167: 3.6459e-05 | AT167: 3.6459e-05 | AU167: 3.6459e-05 | AV167: 3.6459e-05 | AW167: 3.6459e-05 | AX167: 3.6459e-05 | AY167: 3.6459e-05 | AZ167: 3.6459e-05 | BA167: 3.6459e-05 | BB167: 3.6459e-05 | BC167: 3.6459e-05 | BD167: 3.6459e-05 | BE167: 3.902412664e-05 | BF167: 3.902412664e-05 | BG167: 3.902412664e-05 | BH167: 3.902412664e-05 | BI167: 3.902412664e-05
A168: =ROW() -> 168 | B168: Other assets | I168: 0.01355580325 | J168: 0.01355580325 | K168: 0.01355580325 | L168: 0.01355580325 | M168: 0.01355580325 | N168: 0.01355580325 | O168: 0.01355580325 | P168: 0.01355580325 | Q168: 0.01355580325 | R168: 0.01355580325 | S168: 0.01355580325 | T168: 0.01355580325 | U168: 0.01355580325 | V168: 0.01355580325 | W168: 0.01355580325 | X168: 0.01355580325 | Y168: 0.01355580325 | Z168: 0.01355580325 | AA168: 0.01355580325 | AB168: 0.01355580325 | AC168: 0.01355580325 | AD168: 0.01355580325 | AE168: 0.01355580325 | AF168: 0.01355580325 | AG168: 0.01355580325 | AH168: 0.01355580325 | AI168: 0.01355580325 | AJ168: 0.01355580325 | AK168: 0.01355580325 | AL168: 0.01355580325 | AM168: 0.01355580325 | AN168: 0.01355580325 | AO168: 0.01355580325 | AP168: 0.01355580325 | AQ168: 0.01355580325 | AR168: 0.01355580325 | AS168: 0.01355580325 | AT168: 0.01355580325 | AU168: 0.006777901625 | AV168: 0 | AW168: 0 | AX168: 0 | AY168: 0 | AZ168: 1.387778781e-17 | BA168: 0 | BB168: 0 | BC168: 0 | BD168: 0 | BE168: 0 | BF168: 0 | BG168: 0 | BH168: 0 | BI168: 0
A169: =ROW() -> 169 | B169: Equity Raising Cost | BE169: 0 | BF169: 0 | BG169: 0 | BH169: 0 | BI169: 0
A170: =ROW() -> 170 | B170: Non-depreciable assets
A171: =ROW() -> 171 | B171: Shared support assets - IOT & cyber security
A172: =ROW() -> 172 | B172: Shared support assets (net IOT & cyber security)
A173: =ROW() -> 173 | B173: Miscellaneous assets
A174: =ROW() -> 174 | B174: Total | G174: 0 | H174: 0 | I174: 0.03961349883 | J174: 0.03961349883 | K174: 0.03961349883 | L174: 0.03961349883 | M174: 0.03961349883 | N174: 0.03961349883 | O174: 0.03961349883 | P174: 0.03961349883 | Q174: 0.03961349883 | R174: 0.03961349883 | S174: 0.03961349883 | T174: 0.03961349883 | U174: 0.03961349883 | V174: 0.03961349883 | W174: 0.03961349883 | X174: 0.03961349883 | Y174: 0.03961349883 | Z174: 0.03961349883 | AA174: 0.03961349883 | AB174: 0.03961349883 | AC174: 0.03961349883 | AD174: 0.03961349883 | AE174: 0.03961349883 | AF174: 0.03961349883 | AG174: 0.03961349883 | AH174: 0.03961349883 | AI174: 0.03961349883 | AJ174: 0.03961349883 | AK174: 0.03961349883 | AL174: 0.03961349883 | AM174: 0.03961349883 | AN174: 0.03961349883 | AO174: 0.03961349883 | AP174: 0.03961349883 | AQ174: 0.03961349883 | AR174: 0.03961349883 | AS174: 0.03961349883 | AT174: 0.03961349883 | AU174: 0.03493113171 | AV174: 0.02559202125 | AW174: 0.02559202125 | AX174: 0.02559202125 | AY174: 0.02559202125 | AZ174: 0.02559202125 | BA174: 0.02559202125 | BB174: 0.02559202125 | BC174: 0.02559202125 | BD174: 0.02559202125 | BE174: 0.0273925856 | BF174: 0.0273925856 | BG174: 0.0273925856 | BH174: 0.0273925856 | BI174: 0.0273925856
A175: =ROW() -> 175 | B175: 2000-09-30 | C175: Capex
A176: =ROW() -> 176 | B176: Pipeline and laterals | J176: 0 | K176: 0 | L176: 0 | M176: 0 | N176: 0 | O176: 0 | P176: 0 | Q176: 0 | R176: 0 | S176: 0 | T176: 0 | U176: 0 | V176: 0 | W176: 0 | X176: 0 | Y176: 0 | Z176: 0 | AA176: 0 | AB176: 0 | AC176: 0 | AD176: 0 | AE176: 0 | AF176: 0 | AG176: 0 | AH176: 0 | AI176: 0 | AJ176: 0 | AK176: 0 | AL176: 0 | AM176: 0 | AN176: 0 | AO176: 0 | AP176: 0 | AQ176: 0 | AR176: 0 | AS176: 0 | AT176: 0 | AU176: 0 | AV176: 0 | AW176: 0 | AX176: 0 | AY176: 0 | AZ176: 0 | BA176: 0 | BB176: 0 | BC176: 0 | BD176: 0 | BE176: 0 | BF176: 0 | BG176: 0 | BH176: 0 | BI176: 0
A177: =ROW() -> 177 | B177: Main line valve and scraper stations | J177: 0 | K177: 0 | L177: 0 | M177: 0 | N177: 0 | O177: 0 | P177: 0 | Q177: 0 | R177: 0 | S177: 0 | T177: 0 | U177: 0 | V177: 0 | W177: 0 | X177: 0 | Y177: 0 | Z177: 0 | AA177: 0 | AB177: 0 | AC177: 0 | AD177: 0 | AE177: 0 | AF177: 0 | AG177: 0 | AH177: 0 | AI177: 0 | AJ177: 0 | AK177: 0 | AL177: 0 | AM177: 0 | AN177: 0 | AO177: 0 | AP177: 0 | AQ177: 0 | AR177: 0 | AS177: 0 | AT177: 0 | AU177: 0 | AV177: 0 | AW177: 0 | AX177: 0 | AY177: 0 | AZ177: 0 | BA177: 0 | BB177: 0 | BC177: 0 | BD177: 0 | BE177: 0 | BF177: 0 | BG177: 0 | BH177: 0 | BI177: 0
A178: =ROW() -> 178 | B178: Compressor stations | J178: 0.02422026025 | K178: 0.02422026025 | L178: 0.02422026025 | M178: 0.02422026025 | N178: 0.02422026025 | O178: 0.02422026025 | P178: 0.02422026025 | Q178: 0.02422026025 | R178: 0.02422026025 | S178: 0.02422026025 | T178: 0.02422026025 | U178: 0.02422026025 | V178: 0.02422026025 | W178: 0.02422026025 | X178: 0.02422026025 | Y178: 0.02422026025 | Z178: 0.02422026025 | AA178: 0.02422026025 | AB178: 0.02422026025 | AC178: 0.02422026025 | AD178: 0.02422026025 | AE178: 0.02422026025 | AF178: 0.02422026025 | AG178: 0.02422026025 | AH178: 0.02422026025 | AI178: 0.02422026025 | AJ178: 0.02422026025 | AK178: 0.02422026025 | AL178: 0.02422026025 | AM178: 0.02422026025 | AN178: 0.02422026025 | AO178: 0.02422026025 | AP178: 0.02422026025 | AQ178: 0.02422026025 | AR178: 0.02422026025 | AS178: 0.02422026025 | AT178: 0.02422026025 | AU178: 0.02422026025 | AV178: 0.02422026025 | AW178: 0.02422026025 | AX178: 0.02422026025 | AY178: 0.02422026025 | AZ178: 0.02422026025 | BA178: 0.02422026025 | BB178: 0.02422026025 | BC178: 0.02422026025 | BD178: 0.02422026025 | BE178: 0.02592431233 | BF178: 0.02592431233 | BG178: 0.02592431233 | BH178: 0.02592431233 | BI178: 0.02592431233
A179: =ROW() -> 179 | B179: Receipt and delivery point facilities | J179: 0.001335302 | K179: 0.001335302 | L179: 0.001335302 | M179: 0.001335302 | N179: 0.001335302 | O179: 0.001335302 | P179: 0.001335302 | Q179: 0.001335302 | R179: 0.001335302 | S179: 0.001335302 | T179: 0.001335302 | U179: 0.001335302 | V179: 0.001335302 | W179: 0.001335302 | X179: 0.001335302 | Y179: 0.001335302 | Z179: 0.001335302 | AA179: 0.001335302 | AB179: 0.001335302 | AC179: 0.001335302 | AD179: 0.001335302 | AE179: 0.001335302 | AF179: 0.001335302 | AG179: 0.001335302 | AH179: 0.001335302 | AI179: 0.001335302 | AJ179: 0.001335302 | AK179: 0.001335302 | AL179: 0.001335302 | AM179: 0.001335302 | AN179: 0.001335302 | AO179: 0.001335302 | AP179: 0.001335302 | AQ179: 0.001335302 | AR179: 0.001335302 | AS179: 0.001335302 | AT179: 0.001335302 | AU179: 0.001335302 | AV179: 0.001335302 | AW179: 0.001335302 | AX179: 0.001335302 | AY179: 0.001335302 | AZ179: 0.001335302 | BA179: 0.001335302 | BB179: 0.001335302 | BC179: 0.001335302 | BD179: 0.001335302 | BE179: 0.001429249139 | BF179: 0.001429249139 | BG179: 0.001429249139 | BH179: 0.001429249139 | BI179: 0.001429249139
A180: =ROW() -> 180 | B180: SCADA and communications | J180: 0.0004656743333 | K180: 0.0004656743333 | L180: 0.0004656743333 | M180: 0.0004656743333 | N180: 0.0004656743333 | O180: 0.0004656743333 | P180: 0.0004656743333 | Q180: 0.0004656743333 | R180: 0.0004656743333 | S180: 0.0004656743333 | T180: 0.0004656743333 | U180: 0.0004656743333 | V180: 0.0004656743333 | W180: 0.0004656743333 | X180: 0.0004656743333 | Y180: 0.0004656743333 | Z180: 0.0004656743333 | AA180: 0.0004656743333 | AB180: 0.0004656743333 | AC180: 0.0004656743333 | AD180: 0.0004656743333 | AE180: 0.0004656743333 | AF180: 0.0004656743333 | AG180: 0.0004656743333 | AH180: 0.0004656743333 | AI180: 0.0004656743333 | AJ180: 0.0004656743333 | AK180: 0.0004656743333 | AL180: 0.0004656743333 | AM180: 0.0004656743333 | AN180: 0.0004656743333 | AO180: 0.0004656743333 | AP180: 0.0004656743333 | AQ180: 0.0004656743333 | AR180: 0.0004656743333 | AS180: 0.0004656743333 | AT180: 0.0004656743333 | AU180: 0.002677627417 | AV180: 0 | AW180: 0 | AX180: 0 | AY180: 0 | AZ180: 1.734723476e-18 | BA180: 0 | BB180: 0 | BC180: 0 | BD180: 0 | BE180: 0 | BF180: 0 | BG180: 0 | BH180: 0 | BI180: 0
A181: =ROW() -> 181 | B181: Cathodic protection | J181: 0 | K181: 0 | L181: 0 | M181: 0 | N181: 0 | O181: 0 | P181: 0 | Q181: 0 | R181: 0 | S181: 0 | T181: 0 | U181: 0 | V181: 0 | W181: 0 | X181: 0 | Y181: 0 | Z181: 0 | AA181: 0 | AB181: 0 | AC181: 0 | AD181: 0 | AE181: 0 | AF181: 0 | AG181: 0 | AH181: 0 | AI181: 0 | AJ181: 0 | AK181: 0 | AL181: 0 | AM181: 0 | AN181: 0 | AO181: 0 | AP181: 0 | AQ181: 0 | AR181: 0 | AS181: 0 | AT181: 0 | AU181: 0 | AV181: 0 | AW181: 0 | AX181: 0 | AY181: 0 | AZ181: 0 | BA181: 0 | BB181: 0 | BC181: 0 | BD181: 0 | BE181: 0 | BF181: 0 | BG181: 0 | BH181: 0 | BI181: 0
A182: =ROW() -> 182 | B182: Maintenance bases and depots | J182: 3.6459e-05 | K182: 3.6459e-05 | L182: 3.6459e-05 | M182: 3.6459e-05 | N182: 3.6459e-05 | O182: 3.6459e-05 | P182: 3.6459e-05 | Q182: 3.6459e-05 | R182: 3.6459e-05 | S182: 3.6459e-05 | T182: 3.6459e-05 | U182: 3.6459e-05 | V182: 3.6459e-05 | W182: 3.6459e-05 | X182: 3.6459e-05 | Y182: 3.6459e-05 | Z182: 3.6459e-05 | AA182: 3.6459e-05 | AB182: 3.6459e-05 | AC182: 3.6459e-05 | AD182: 3.6459e-05 | AE182: 3.6459e-05 | AF182: 3.6459e-05 | AG182: 3.6459e-05 | AH182: 3.6459e-05 | AI182: 3.6459e-05 | AJ182: 3.6459e-05 | AK182: 3.6459e-05 | AL182: 3.6459e-05 | AM182: 3.6459e-05 | AN182: 3.6459e-05 | AO182: 3.6459e-05 | AP182: 3.6459e-05 | AQ182: 3.6459e-05 | AR182: 3.6459e-05 | AS182: 3.6459e-05 | AT182: 3.6459e-05 | AU182: 3.6459e-05 | AV182: 3.6459e-05 | AW182: 3.6459e-05 | AX182: 3.6459e-05 | AY182: 3.6459e-05 | AZ182: 3.6459e-05 | BA182: 3.6459e-05 | BB182: 3.6459e-05 | BC182: 3.6459e-05 | BD182: 3.6459e-05 | BE182: 3.902412664e-05 | BF182: 3.902412664e-05 | BG182: 3.902412664e-05 | BH182: 3.902412664e-05 | BI182: 3.902412664e-05
A183: =ROW() -> 183 | B183: Other assets | J183: 0.01355580325 | K183: 0.01355580325 | L183: 0.01355580325 | M183: 0.01355580325 | N183: 0.01355580325 | O183: 0.01355580325 | P183: 0.01355580325 | Q183: 0.01355580325 | R183: 0.01355580325 | S183: 0.01355580325 | T183: 0.01355580325 | U183: 0.01355580325 | V183: 0.01355580325 | W183: 0.01355580325 | X183: 0.01355580325 | Y183: 0.01355580325 | Z183: 0.01355580325 | AA183: 0.01355580325 | AB183: 0.01355580325 | AC183: 0.01355580325 | AD183: 0.01355580325 | AE183: 0.01355580325 | AF183: 0.01355580325 | AG183: 0.01355580325 | AH183: 0.01355580325 | AI183: 0.01355580325 | AJ183: 0.01355580325 | AK183: 0.01355580325 | AL183: 0.01355580325 | AM183: 0.01355580325 | AN183: 0.01355580325 | AO183: 0.01355580325 | AP183: 0.01355580325 | AQ183: 0.01355580325 | AR183: 0.01355580325 | AS183: 0.01355580325 | AT183: 0.01355580325 | AU183: 0.01016685244 | AV183: 0 | AW183: 0 | AX183: 0 | AY183: 0 | AZ183: 2.775557562e-17 | BA183: 0 | BB183: 0 | BC183: 0 | BD183: 0 | BE183: 0 | BF183: 0 | BG183: 0 | BH183: 0 | BI183: 0
A184: =ROW() -> 184 | B184: Equity Raising Cost | BE184: 0 | BF184: 0 | BG184: 0 | BH184: 0 | BI184: 0
A185: =ROW() -> 185 | B185: Non-depreciable assets
A186: =ROW() -> 186 | B186: Shared support assets - IOT & cyber security
A187: =ROW() -> 187 | B187: Shared support assets (net IOT & cyber security)
A188: =ROW() -> 188 | B188: Miscellaneous assets
A189: =ROW() -> 189 | B189: Total | G189: 0 | H189: 0 | I189: 0 | J189: 0.03961349883 | K189: 0.03961349883 | L189: 0.03961349883 | M189: 0.03961349883 | N189: 0.03961349883 | O189: 0.03961349883 | P189: 0.03961349883 | Q189: 0.03961349883 | R189: 0.03961349883 | S189: 0.03961349883 | T189: 0.03961349883 | U189: 0.03961349883 | V189: 0.03961349883 | W189: 0.03961349883 | X189: 0.03961349883 | Y189: 0.03961349883 | Z189: 0.03961349883 | AA189: 0.03961349883 | AB189: 0.03961349883 | AC189: 0.03961349883 | AD189: 0.03961349883 | AE189: 0.03961349883 | AF189: 0.03961349883 | AG189: 0.03961349883 | AH189: 0.03961349883 | AI189: 0.03961349883 | AJ189: 0.03961349883 | AK189: 0.03961349883 | AL189: 0.03961349883 | AM189: 0.03961349883 | AN189: 0.03961349883 | AO189: 0.03961349883 | AP189: 0.03961349883 | AQ189: 0.03961349883 | AR189: 0.03961349883 | AS189: 0.03961349883 | AT189: 0.03961349883 | AU189: 0.0384365011 | AV189: 0.02559202125 | AW189: 0.02559202125 | AX189: 0.02559202125 | AY189: 0.02559202125 | AZ189: 0.02559202125 | BA189: 0.02559202125 | BB189: 0.02559202125 | BC189: 0.02559202125 | BD189: 0.02559202125 | BE189: 0.0273925856 | BF189: 0.0273925856 | BG189: 0.0273925856 | BH189: 0.0273925856 | BI189: 0.0273925856
A190: =ROW() -> 190 | B190: 2000-12-31 | C190: Capex
A191: =ROW() -> 191 | B191: Pipeline and laterals | K191: 0 | L191: 0 | M191: 0 | N191: 0 | O191: 0 | P191: 0 | Q191: 0 | R191: 0 | S191: 0 | T191: 0 | U191: 0 | V191: 0 | W191: 0 | X191: 0 | Y191: 0 | Z191: 0 | AA191: 0 | AB191: 0 | AC191: 0 | AD191: 0 | AE191: 0 | AF191: 0 | AG191: 0 | AH191: 0 | AI191: 0 | AJ191: 0 | AK191: 0 | AL191: 0 | AM191: 0 | AN191: 0 | AO191: 0 | AP191: 0 | AQ191: 0 | AR191: 0 | AS191: 0 | AT191: 0 | AU191: 0 | AV191: 0 | AW191: 0 | AX191: 0 | AY191: 0 | AZ191: 0 | BA191: 0 | BB191: 0 | BC191: 0 | BD191: 0 | BE191: 0 | BF191: 0 | BG191: 0 | BH191: 0 | BI191: 0
A192: =ROW() -> 192 | B192: Main line valve and scraper stations | K192: 0 | L192: 0 | M192: 0 | N192: 0 | O192: 0 | P192: 0 | Q192: 0 | R192: 0 | S192: 0 | T192: 0 | U192: 0 | V192: 0 | W192: 0 | X192: 0 | Y192: 0 | Z192: 0 | AA192: 0 | AB192: 0 | AC192: 0 | AD192: 0 | AE192: 0 | AF192: 0 | AG192: 0 | AH192: 0 | AI192: 0 | AJ192: 0 | AK192: 0 | AL192: 0 | AM192: 0 | AN192: 0 | AO192: 0 | AP192: 0 | AQ192: 0 | AR192: 0 | AS192: 0 | AT192: 0 | AU192: 0 | AV192: 0 | AW192: 0 | AX192: 0 | AY192: 0 | AZ192: 0 | BA192: 0 | BB192: 0 | BC192: 0 | BD192: 0 | BE192: 0 | BF192: 0 | BG192: 0 | BH192: 0 | BI192: 0
A193: =ROW() -> 193 | B193: Compressor stations | K193: 0.02422026025 | L193: 0.02422026025 | M193: 0.02422026025 | N193: 0.02422026025 | O193: 0.02422026025 | P193: 0.02422026025 | Q193: 0.02422026025 | R193: 0.02422026025 | S193: 0.02422026025 | T193: 0.02422026025 | U193: 0.02422026025 | V193: 0.02422026025 | W193: 0.02422026025 | X193: 0.02422026025 | Y193: 0.02422026025 | Z193: 0.02422026025 | AA193: 0.02422026025 | AB193: 0.02422026025 | AC193: 0.02422026025 | AD193: 0.02422026025 | AE193: 0.02422026025 | AF193: 0.02422026025 | AG193: 0.02422026025 | AH193: 0.02422026025 | AI193: 0.02422026025 | AJ193: 0.02422026025 | AK193: 0.02422026025 | AL193: 0.02422026025 | AM193: 0.02422026025 | AN193: 0.02422026025 | AO193: 0.02422026025 | AP193: 0.02422026025 | AQ193: 0.02422026025 | AR193: 0.02422026025 | AS193: 0.02422026025 | AT193: 0.02422026025 | AU193: 0.02422026025 | AV193: 0.02422026025 | AW193: 0.02422026025 | AX193: 0.02422026025 | AY193: 0.02422026025 | AZ193: 0.02422026025 | BA193: 0.02422026025 | BB193: 0.02422026025 | BC193: 0.02422026025 | BD193: 0.02422026025 | BE193: 0.02592431233 | BF193: 0.02592431233 | BG193: 0.02592431233 | BH193: 0.02592431233 | BI193: 0.02592431233
A194: =ROW() -> 194 | B194: Receipt and delivery point facilities | K194: 0.001335302 | L194: 0.001335302 | M194: 0.001335302 | N194: 0.001335302 | O194: 0.001335302 | P194: 0.001335302 | Q194: 0.001335302 | R194: 0.001335302 | S194: 0.001335302 | T194: 0.001335302 | U194: 0.001335302 | V194: 0.001335302 | W194: 0.001335302 | X194: 0.001335302 | Y194: 0.001335302 | Z194: 0.001335302 | AA194: 0.001335302 | AB194: 0.001335302 | AC194: 0.001335302 | AD194: 0.001335302 | AE194: 0.001335302 | AF194: 0.001335302 | AG194: 0.001335302 | AH194: 0.001335302 | AI194: 0.001335302 | AJ194: 0.001335302 | AK194: 0.001335302 | AL194: 0.001335302 | AM194: 0.001335302 | AN194: 0.001335302 | AO194: 0.001335302 | AP194: 0.001335302 | AQ194: 0.001335302 | AR194: 0.001335302 | AS194: 0.001335302 | AT194: 0.001335302 | AU194: 0.001335302 | AV194: 0.001335302 | AW194: 0.001335302 | AX194: 0.001335302 | AY194: 0.001335302 | AZ194: 0.001335302 | BA194: 0.001335302 | BB194: 0.001335302 | BC194: 0.001335302 | BD194: 0.001335302 | BE194: 0.001429249139 | BF194: 0.001429249139 | BG194: 0.001429249139 | BH194: 0.001429249139 | BI194: 0.001429249139
A195: =ROW() -> 195 | B195: SCADA and communications | K195: 0.0004656743333 | L195: 0.0004656743333 | M195: 0.0004656743333 | N195: 0.0004656743333 | O195: 0.0004656743333 | P195: 0.0004656743333 | Q195: 0.0004656743333 | R195: 0.0004656743333 | S195: 0.0004656743333 | T195: 0.0004656743333 | U195: 0.0004656743333 | V195: 0.0004656743333 | W195: 0.0004656743333 | X195: 0.0004656743333 | Y195: 0.0004656743333 | Z195: 0.0004656743333 | AA195: 0.0004656743333 | AB195: 0.0004656743333 | AC195: 0.0004656743333 | AD195: 0.0004656743333 | AE195: 0.0004656743333 | AF195: 0.0004656743333 | AG195: 0.0004656743333 | AH195: 0.0004656743333 | AI195: 0.0004656743333 | AJ195: 0.0004656743333 | AK195: 0.0004656743333 | AL195: 0.0004656743333 | AM195: 0.0004656743333 | AN195: 0.0004656743333 | AO195: 0.0004656743333 | AP195: 0.0004656743333 | AQ195: 0.0004656743333 | AR195: 0.0004656743333 | AS195: 0.0004656743333 | AT195: 0.0004656743333 | AU195: 0.002794046 | AV195: 0 | AW195: 0 | AX195: 0 | AY195: 0 | AZ195: 2.168404345e-18 | BA195: 0 | BB195: 0 | BC195: 0 | BD195: 0 | BE195: 0 | BF195: 0 | BG195: 0 | BH195: 0 | BI195: 0
A196: =ROW() -> 196 | B196: Cathodic protection | K196: 0 | L196: 0 | M196: 0 | N196: 0 | O196: 0 | P196: 0 | Q196: 0 | R196: 0 | S196: 0 | T196: 0 | U196: 0 | V196: 0 | W196: 0 | X196: 0 | Y196: 0 | Z196: 0 | AA196: 0 | AB196: 0 | AC196: 0 | AD196: 0 | AE196: 0 | AF196: 0 | AG196: 0 | AH196: 0 | AI196: 0 | AJ196: 0 | AK196: 0 | AL196: 0 | AM196: 0 | AN196: 0 | AO196: 0 | AP196: 0 | AQ196: 0 | AR196: 0 | AS196: 0 | AT196: 0 | AU196: 0 | AV196: 0 | AW196: 0 | AX196: 0 | AY196: 0 | AZ196: 0 | BA196: 0 | BB196: 0 | BC196: 0 | BD196: 0 | BE196: 0 | BF196: 0 | BG196: 0 | BH196: 0 | BI196: 0
A197: =ROW() -> 197 | B197: Maintenance bases and depots | K197: 3.6459e-05 | L197: 3.6459e-05 | M197: 3.6459e-05 | N197: 3.6459e-05 | O197: 3.6459e-05 | P197: 3.6459e-05 | Q197: 3.6459e-05 | R197: 3.6459e-05 | S197: 3.6459e-05 | T197: 3.6459e-05 | U197: 3.6459e-05 | V197: 3.6459e-05 | W197: 3.6459e-05 | X197: 3.6459e-05 | Y197: 3.6459e-05 | Z197: 3.6459e-05 | AA197: 3.6459e-05 | AB197: 3.6459e-05 | AC197: 3.6459e-05 | AD197: 3.6459e-05 | AE197: 3.6459e-05 | AF197: 3.6459e-05 | AG197: 3.6459e-05 | AH197: 3.6459e-05 | AI197: 3.6459e-05 | AJ197: 3.6459e-05 | AK197: 3.6459e-05 | AL197: 3.6459e-05 | AM197: 3.6459e-05 | AN197: 3.6459e-05 | AO197: 3.6459e-05 | AP197: 3.6459e-05 | AQ197: 3.6459e-05 | AR197: 3.6459e-05 | AS197: 3.6459e-05 | AT197: 3.6459e-05 | AU197: 3.6459e-05 | AV197: 3.6459e-05 | AW197: 3.6459e-05 | AX197: 3.6459e-05 | AY197: 3.6459e-05 | AZ197: 3.6459e-05 | BA197: 3.6459e-05 | BB197: 3.6459e-05 | BC197: 3.6459e-05 | BD197: 3.6459e-05 | BE197: 3.902412664e-05 | BF197: 3.902412664e-05 | BG197: 3.902412664e-05 | BH197: 3.902412664e-05 | BI197: 3.902412664e-05
A198: =ROW() -> 198 | B198: Other assets | K198: 0.01355580325 | L198: 0.01355580325 | M198: 0.01355580325 | N198: 0.01355580325 | O198: 0.01355580325 | P198: 0.01355580325 | Q198: 0.01355580325 | R198: 0.01355580325 | S198: 0.01355580325 | T198: 0.01355580325 | U198: 0.01355580325 | V198: 0.01355580325 | W198: 0.01355580325 | X198: 0.01355580325 | Y198: 0.01355580325 | Z198: 0.01355580325 | AA198: 0.01355580325 | AB198: 0.01355580325 | AC198: 0.01355580325 | AD198: 0.01355580325 | AE198: 0.01355580325 | AF198: 0.01355580325 | AG198: 0.01355580325 | AH198: 0.01355580325 | AI198: 0.01355580325 | AJ198: 0.01355580325 | AK198: 0.01355580325 | AL198: 0.01355580325 | AM198: 0.01355580325 | AN198: 0.01355580325 | AO198: 0.01355580325 | AP198: 0.01355580325 | AQ198: 0.01355580325 | AR198: 0.01355580325 | AS198: 0.01355580325 | AT198: 0.01355580325 | AU198: 0.01355580325 | AV198: 0 | AW198: 0 | AX198: 0 | AY198: 0 | AZ198: 4.33680869e-17 | BA198: 0 | BB198: 0 | BC198: 0 | BD198: 0 | BE198: 0 | BF198: 0 | BG198: 0 | BH198: 0 | BI198: 0
A199: =ROW() -> 199 | B199: Equity Raising Cost | BE199: 0 | BF199: 0 | BG199: 0 | BH199: 0 | BI199: 0
A200: =ROW() -> 200 | B200: Non-depreciable assets
... 1672 more rows

Sheet 2019 Capex NGR 77(2)(a)
B1: =Main!B1 -> Goldfields Gas Pipeline Tariff Model, September 2024 [Revised Proposal]
B2: Rule 77 Adjustment
A3: Ref | B3: =COLUMN() -> 2 | C3: =COLUMN() -> 3 | D3: =COLUMN() -> 4 | E3: =COLUMN() -> 5 | F3: =COLUMN() -> 6 | G3: =COLUMN() -> 7 | H3: =COLUMN() -> 8 | I3: =COLUMN() -> 9 | J3: =COLUMN() -> 10 | K3: =COLUMN() -> 11 | L3: =COLUMN() -> 12 | M3: =COLUMN() -> 13 | N3: =COLUMN() -> 14
A4: =ROW() -> 4 | B4: Inputs
A5: =ROW() -> 5 | C5: Forecast capex | H5: AA3 forecast capex 2019 ($m) $2018 | I5: AA3 forecast capex 2019 ($m) $2019 | J5: Actual capex 2019 ($m ) $2019 | K5: Variance $ 2019 | L5: Benefit adjustment $ 2019 | M5: Benefit adjustment $ 2023
A6: =ROW() -> 6 | D6: Pipeline and laterals | H6: 0 | I6: =H6*(Inputs!$BD$16/Inputs!$BC$16) -> 0 | J6: =Inputs!BD128 -> 0.028 | K6: =J6-I6 -> 0.028 | L6: =K6/$K$22*$G$48 -> 0.004181425042 | M6: =K6/$K$22*$G$51 -> 0.004897521069
A7: =ROW() -> 7 | D7: Main line valve and scraper stations | H7: 0 | I7: =H7*(Inputs!$BD$16/Inputs!$BC$16) -> 0 | J7: =Inputs!BD129 -> 0 | K7: 0 | L7: 0 | M7: 0
A8: =ROW() -> 8 | D8: Compressor stations | H8: 0.9000233794 | I8: =H8*(Inputs!$BD$16/Inputs!$BC$16) -> 0.9165882269 | J8: =Inputs!BD130 -> 0.133 | K8: -0.7835882269 | L8: -0.1170184084 | M8: -0.1370585661
A9: =ROW() -> 9 | D9: Receipt and delivery point facilities | H9: 0.1230663449 | I9: =H9*(Inputs!$BD$16/Inputs!$BC$16) -> 0.1253313697 | J9: =Inputs!BD131 -> 0.351 | K9: 0.2256686303 | L9: 0.03370058793 | M9: 0.03947203113
A10: =ROW() -> 10 | D10: SCADA and communications | H10: 0 | I10: =H10*(Inputs!$BD$16/Inputs!$BC$16) -> 0 | J10: =Inputs!BD132 -> 0.397 | K10: 0.397 | L10: 0.05928663363 | M10: 0.0694398523
A11: =ROW() -> 11 | D11: Cathodic protection | H11: 0.07353988287 | I11: =H11*(Inputs!$BD$16/Inputs!$BC$16) -> 0.07489337765 | J11: =Inputs!BD133 -> 0.001 | K11: -0.07389337765 | L11: -0.01103498642 | M11: -0.01292479907
A12: =ROW() -> 12 | D12: Maintenance bases and depots | H12: 0.3059876245 | I12: =H12*(Inputs!$BD$16/Inputs!$BC$16) -> 0.3116192986 | J12: =Inputs!BD134 -> 0.05585121293 | K12: -0.2557680857 | L12: -0.03819553851 | M12: -0.04473677101
A13: =ROW() -> 13 | D13: Other assets | H13: 0.2190546234 | I13: =H13*(Inputs!$BD$16/Inputs!$BC$16) -> 0.2230863036 | J13: =Inputs!BD135 -> 0.337 | K13: =J13-I13 -> 0.1139136964 | L13: 0.0170114851 | M13: 0.01992481172
A14: =ROW() -> 14 | D14: Equity Raising Cost | J14: =Inputs!BD136 -> 0 | K14: 0 | L14: 0 | M14: 0
A15: =ROW() -> 15 | D15: Non-depreciable assets | H15: 0 | I15: =H15*(Inputs!$BD$16/Inputs!$BC$16) -> 0 | J15: =Inputs!BD137 -> 0 | K15: =J15-I15 -> 0 | L15: 0 | M15: 0
A16: =ROW() -> 16 | D16: Shared support assets - IOT & cyber security | J16: =Inputs!BD138 -> 0 | K16: 0 | L16: 0 | M16: 0
A17: =ROW() -> 17 | D17: Shared support assets (net IOT & cyber security) | J17: =Inputs!BD139 -> 0 | K17: 0 | L17: 0 | M17: 0
A18: =ROW() -> 18 | D18: Miscellaneous assets | J18: =Inputs!BD140 -> 0 | K18: 0 | L18: 0 | M18: 0
A19: =ROW() -> 19
A20: =ROW() -> 20
A21: =ROW() -> 21
A22: =ROW() -> 22 | H22: =SUM(H6:H21) -> 1.621671855 | I22: =SUM(I6:I21) -> 1.651518576 | J22: =SUM(J6:J21) -> 1.302851213 | K22: =SUM(K6:K21) -> -0.3486673635 | L22: =SUM(L6:L21) -> -0.05206880161 | M22: =SUM(M6:M21) -> -0.06098591996
A23: =ROW() -> 23 | H23: Source: AA4 model
A24: =ROW() -> 24
A25: =ROW() -> 25 | I25: 2019 | J25: 2020 | K25: 2021 | L25: 202 | M25: 2023 | N25: 2024
A26: =ROW() -> 26 | C26: Actual capex [$m 31/12/2019]
A27: =ROW() -> 27 | D27: 2019 Actual Capex | I27: =J22 -> 1.302851213
A28: =ROW() -> 28 | D28: Adjustments
A29: =ROW() -> 29 | D29: 2019 Actual modelled capex | I29: =I27-I28 -> 1.302851213
A30: =ROW() -> 30
A31: =ROW() -> 31 | C31: Actual Inflation | I31: 2019 | J31: 2020 | K31: 2021 | L31: 202 | M31: 2023 | N31: 2024
A32: =ROW() -> 32 | D32: CPI Dec Quarter | I32: =Inputs!BD16 -> 116.2 | J32: =Inputs!BE16 -> 117.2 | K32: =Inputs!BF16 -> 121.3 | L32: =Inputs!BG16 -> 130.8 | M32: =Inputs!BH16 -> 136.1 | N32: =Inputs!BI16 -> 140.183
A33: =ROW() -> 33 | D33: Inflation (Dec-Dec) | J33: =(J32-I32)/I32 -> 0.008605851979 | K33: =(K32-J32)/J32 -> 0.03498293515 | L33: 0.07831821929 | M33: 0.04051987768 | N33: 0.03
A34: =ROW() -> 34
A35: =ROW() -> 35 | C35: Actual WACC
A36: =ROW() -> 36 | D36: Nominal WACC | J36: =WACC!I34 -> 0.05632 | K36: =WACC!J34 -> 0.0408895 | L36: =WACC!K34 -> 0.040686 | M36: =WACC!L34 -> 0.039762 | N36: =WACC!M34 -> 0.0393
A37: =ROW() -> 37 | D37: Discounting Factor | J37: =1/(1+J36) -> 0.9466828234 | K37: =J37/(1+K36) -> 0.9094940658 | L37: =K37/(1+L36) -> 0.8739370625 | M37: 0.8405164475 | N37: 0.8087332315
A38: =ROW() -> 38
A39: =ROW() -> 39 | D39: Real WACC | J39: =WACC!J35 -> 0.02915710896 | K39: =WACC!K35 -> 0.02895590271 | L39: =WACC!L35 -> 0.02804231758 | M39: =WACC!M35 -> 0.02758552501 | N39: =WACC!N35 -> 0.02740063279
A40: =ROW() -> 40 | D40: Discounting Factor | J40: =1/(1+J39) -> 0.9716689428 | K40: =J40/(1+K39) -> 0.9443251554 | L40: =K40/(1+L39) -> 0.9185664241 | M40: 0.8939075159 | N40: 0.8700671261
A41: =ROW() -> 41
A42: =ROW() -> 42 | B42: Calculation of total adjustment to AA5 RAB | I42: 2019 | J42: 2020 | K42: 2021 | L42: 202 | M42: 2023 | N42: 2024
A43: =ROW() -> 43 | D43: Actual less forecast 2019 capex | E43: $ million real 2019 | I43: =K22 -> -0.3486673635
A44: =ROW() -> 44 | D44: Potential writedown of overhead included in capex | E44: $ million real 2019
A45: =ROW() -> 45 | D45: Total forecast capex reduction | E45: $ million real 2019 | I45: =I43+I44 -> -0.3486673635
A46: =ROW() -> 46 | D46: Real return on asset difference | E46: $ million real 2019 | J46: =$I$45*J39 -> -0.01016613231 | K46: =$I$45*K39 -> -0.01009597826 | L46: =$I$45*L39 -> -0.009777440937 | M46: =$I$45*M39 -> -0.009618172277 | N46: =$I$45*N39 -> -0.009553706392
A47: =ROW() -> 47 | D47: Return on return received (compounding) | E47: $ million real 2019 | J47: 0 | K47: =K39*J48 -> -0.000294369538 | L47: =L39*SUM($J$48:K48) -> -0.0005764513433 | M47: =M39*SUM($J$48:L48) -> -0.0008526788505 | N47: =N39*SUM($J$48:M48) -> -0.00113387171
A48: =ROW() -> 48 | D48: Total benefit asset base adjustment | E48: $ million real 2019 | G48: =SUM(J48:N48) -> -0.05206880161 | J48: =SUM(J43:J47) -> -0.01016613231 | K48: =SUM(K46:K47) -> -0.01039034779 | L48: -0.01035389228 | M48: -0.01047085113 | N48: -0.0106875781
A49: =ROW() -> 49 | D49: Total asset base adjustment | E49: $ million real 2019 | I49: =I45 -> -0.3486673635
A50: =ROW() -> 50 | D50: Inflator 2019 to 2023 | F50: =M32/I32 -> 1.171256454
A51: =ROW() -> 51 | D51: Benefit received to deduct from actual 2019 capex | E51: $ million real 2023 | G51: =SUM(I51:N51) -> -0.06098591996 | J51: =J48*$F$50 -> -0.01190714808 | K51: =K48*$F$50 -> -0.01216976192 | L51: =L48*$F$50 -> -0.01212706316 | M51: =M48*$F$50 -> -0.01226405197 | N51: =N48*$F$50 -> -0.01251789483
A52: =ROW() -> 52 | D52: Actual less forecast 2019 capex | E52: $ million real 2023 | G52: -0.4083788999 | I52: =I49*$F$50 -> -0.4083788999
A53: =ROW() -> 53
A54: =ROW() -> 54 | D54: Total adjustment to AA5 opening asset base | E54: $ million real 2023 | G54: =G51+G52 -> -0.4693648199
A55: =ROW() -> 55
A56: =ROW() -> 56 | B56: Nominal cross check of total adjustment to RAB
A57: =ROW() -> 57 | C57: 2019 Difference Account
A58: =ROW() -> 58 | D58: Opening Value (start period) | E58: $ Million nominal | J58: =I64 -> -0.4693648199 | K58: =J64 -> -0.473404104 | L58: -0.4899651691 | M58: -0.5283383687 | N58: -0.5497465747
A59: =ROW() -> 59 | D59: Inflation on Opening Value (start period) | E59: $ Million nominal | J59: =J58*J33 -> -0.004039284164 | K59: =K58*K33 -> -0.01656106507 | L59: =L58*L33 -> -0.03837319956 | M59: =M58*M33 -> -0.02140820607 | N59: =N58*N33 -> -0.01649239724
A60: =ROW() -> 60 | D60: Opening Value (end period) | E60: $ Million nominal | J60: =SUM(J58:J59) -> -0.473404104 | K60: -0.4899651691 | L60: -0.5283383687 | M60: -0.5497465747 | N60: -0.566238972
A61: =ROW() -> 61 | D61: Capex | E61: $ Million nominal
A62: =ROW() -> 62 | D62: Depreciation | E62: $ Million nominal
A63: =ROW() -> 63 | D63: Asset Adjustment, Redundant Assets & Asset Disposal | E63: $ Million nominal
A64: =ROW() -> 64 | D64: Closing Value | E64: $ Million nominal | I64: =G54 -> -0.4693648199 | J64: =SUM(J60:J63) -> -0.473404104 | K64: -0.4899651691 | L64: -0.5283383687 | M64: -0.5497465747 | N64: -0.566238972
A65: =ROW() -> 65
A66: =ROW() -> 66 | B66: Nominal cross check of cost of service
A67: =ROW() -> 67 | C67: Cost of Service | F67: PV
A68: =ROW() -> 68 | D68: Return on Asset | E68: $ Million nominal | F68: =SUMPRODUCT($J$37:$N$37,J68:N68) -> -0.09518231795 | J68: =J58*J36 -> -0.02643462666 | K68: =K58*K36 -> -0.01935725711 | L68: =L58*L36 -> -0.01993472287 | M68: =M58*M36 -> -0.02100779022 | N68: =N58*N36 -> -0.02160504039
A69: =ROW() -> 69 | D69: less Inflationary Gain in Return on Asset | E69: $ Million nominal | F69: =SUMPRODUCT($J$37:$N$37,J69:N69) -> 0.08375377167 | J69: =-J59 -> 0.004039284164 | K69: =-K59 -> 0.01656106507 | L69: 0.03837319956 | M69: 0.02140820607 | N69: 0.01649239724
A70: =ROW() -> 70 | D70: Net Cost of Service Adjustment | E70: $ Million nominal | F70: -0.01142854627 | J70: =SUM(J68:J69) -> -0.02239534249 | K70: =SUM(K68:K69) -> -0.002796192039 | L70: 0.01843847669 | M70: 0.0004004158549 | N70: -0.005112643145
A71: =ROW() -> 71
A72: =ROW() -> 72 | C72: Cost of Service | F72: PV | J72: PV | K72: PV | L72: PV | M72: PV | N72: PV
A73: =ROW() -> 73 | D73: Return on Asset difference | E73: $ Million nominal | F73: =SUM(J73:N73) -> -0.09518231795 | J73: =J68*J$37 -> -0.025025207 | K73: =K68*K$37 -> -0.01760531047 | L73: -0.01742169315 | M73: -0.0176573932 | N73: -0.01747271413
A74: =ROW() -> 74 | D74: less Inflationary Gain in Return on Asset | E74: $ Million nominal | F74: =SUM(J74:N74) -> 0.08375377167 | J74: =J69*J$37 -> 0.003823920937 | K74: 0.01506219041 | L74: 0.0335357613 | M74: 0.01799394931 | N74: 0.01333794972
A75: =ROW() -> 75 | D75: Net Cost of Service Adjustment | E75: $ Million nominal | F75: -0.01142854627 | J75: =SUM(J73:J74) -> -0.02120128606 | K75: =SUM(K73:K74) -> -0.002543120066 | L75: 0.01611406815 | M75: 0.0003365561119 | N75: -0.004134764412
A76: =ROW() -> 76
A77: =ROW() -> 77
A78: =ROW() -> 78 | B78: Credit Foncier Check ($ nominal)
A79: =ROW() -> 79 | C79: Net Cash Flow | F79: PV
A80: =ROW() -> 80 | D80: RAB Difference at start of period | F80: =SUMPRODUCT($J$37:$N$37,J80:N80)+I80 -> 0.4693648199 | I80: =-I64 -> 0.4693648199
A81: =ROW() -> 81 | D81: Additional revenue requirement over period | F81: =SUMPRODUCT($J$37:$N$37,J81:N81)+I81 -> -0.01142854627 | J81: =J70 -> -0.02239534249 | K81: =K70 -> -0.002796192039 | L81: 0.01843847669 | M81: 0.0004004158549 | N81: -0.005112643145
A82: =ROW() -> 82 | D82: RAB Difference at end of period | F82: -0.4579362736 | N82: =N64 -> -0.566238972
A83: =ROW() -> 83 | D83: Net Cash Flow (should be 0) | F83: =SUM(F80:F82) -> 0
A84: =ROW() -> 84 | E84: Check | F84: =IF(F83=0,"OK","Check") -> OK

Sheet Adjustments
B1: =Main!B1 -> Goldfields Gas Pipeline Tariff Model, September 2024 [Revised Proposal]
B2: Adjustments
A3: Ref | B3: =COLUMN() -> 2 | C3: =COLUMN() -> 3 | D3: =COLUMN() -> 4 | E3: =COLUMN() -> 5 | F3: =COLUMN() -> 6 | G3: =COLUMN() -> 7 | H3: =COLUMN() -> 8 | I3: =COLUMN() -> 9 | J3: =COLUMN() -> 10 | K3: =COLUMN() -> 11 | L3: =COLUMN() -> 12 | M3: =COLUMN() -> 13 | N3: =COLUMN() -> 14 | O3: =COLUMN() -> 15 | P3: =COLUMN() -> 16 | Q3: =COLUMN() -> 17 | R3: =COLUMN() -> 18 | S3: =COLUMN() -> 19 | T3: =COLUMN() -> 20 | U3: =COLUMN() -> 21 | V3: =COLUMN() -> 22 | W3: =COLUMN() -> 23 | X3: =COLUMN() -> 24 | Y3: =COLUMN() -> 25 | Z3: =COLUMN() -> 26 | AA3: =COLUMN() -> 27 | AB3: =COLUMN() -> 28 | AC3: =COLUMN() -> 29 | AD3: =COLUMN() -> 30 | AE3: =COLUMN() -> 31 | AF3: =COLUMN() -> 32 | AG3: =COLUMN() -> 33 | AH3: =COLUMN() -> 34 | AI3: =COLUMN() -> 35 | AJ3: =COLUMN() -> 36 | AK3: =COLUMN() -> 37 | AL3: =COLUMN() -> 38 | AM3: =COLUMN() -> 39 | AN3: =COLUMN() -> 40 | AO3: =COLUMN() -> 41 | AP3: =COLUMN() -> 42 | AQ3: =COLUMN() -> 43 | AR3: =COLUMN() -> 44 | AS3: =COLUMN() -> 45 | AT3: =COLUMN() -> 46 | AU3: =COLUMN() -> 47 | AV3: =COLUMN() -> 48 | AW3: =COLUMN() -> 49 | AX3: =COLUMN() -> 50 | AY3: =COLUMN() -> 51 | AZ3: =COLUMN() -> 52 | BA3: =COLUMN() -> 53 | BB3: =COLUMN() -> 54 | BC3: =COLUMN() -> 55 | BD3: =COLUMN() -> 56 | BE3: =COLUMN() -> 57 | BF3: =COLUMN() -> 58 | BG3: =COLUMN() -> 59 | BH3: =COLUMN() -> 60 | BI3: =COLUMN() -> 61 | BJ3: =COLUMN() -> 62 | BK3: =COLUMN() -> 63
A4: =ROW() -> 4 | B4: Actual or Forecast | C4: Historic | D4: Historic | E4: Historic | F4: Historic | G4: Historic | H4: Historic | I4: Historic | J4: Historic | K4: Historic | L4: Historic | M4: Historic | N4: Historic | O4: Historic | P4: Historic | Q4: Historic | R4: Historic | S4: Historic | T4: Historic | U4: Historic | V4: Historic | W4: Historic | X4: Historic | Y4: Historic | Z4: Historic | AA4: Historic | AB4: Historic | AC4: Historic | AD4: Historic | AE4: Historic | AF4: Historic | AG4: Historic | AH4: Historic | AI4: Historic | AJ4: Historic | AK4: Historic | AL4: Historic | AM4: Historic | AN4: Historic | AO4: Historic | AP4: Historic | AQ4: Historic | AR4: Historic | AS4: Historic | AT4: Historic | AU4: Historic | AV4: Historic | AW4: Historic | AX4: Historic | AY4: Historic | AZ4: Historic | BA4: Historic | BB4: Historic | BC4: Historic | BD4: Historic | BE4: Forecast | BF4: Forecast | BG4: Forecast | BH4: Forecast | BI4: Forecast | BJ4: Forecast | BK4: Forecast
A5: =ROW() -> 5 | B5: Year Type | C5: Calendar | D5: Calendar | E5: Calendar | F5: Calendar | G5: Calendar | H5: Calendar | I5: Calendar | J5: Calendar | K5: Calendar | L5: Calendar | M5: Calendar | N5: Calendar | O5: Calendar | P5: Calendar | Q5: Calendar | R5: Calendar | S5: Calendar | T5: Calendar | U5: Calendar | V5: Calendar | W5: Calendar | X5: Calendar | Y5: Calendar | Z5: Calendar | AA5: Calendar | AB5: Calendar | AC5: Calendar | AD5: Calendar | AE5: Calendar | AF5: Calendar | AG5: Calendar | AH5: Calendar | AI5: Calendar | AJ5: Calendar | AK5: Calendar | AL5: Calendar | AM5: Calendar | AN5: Calendar | AO5: Calendar | AP5: Calendar | AQ5: Calendar | AR5: Calendar | AS5: Calendar | AT5: Calendar | AU5: Calendar | AV5: Calendar | AW5: Calendar | AX5: Calendar | AY5: Calendar | AZ5: Calendar | BA5: Calendar | BB5: Calendar | BC5: Calendar | BD5: Calendar | BE5: Calendar | BF5: Calendar | BG5: Calendar | BH5: Calendar | BI5: Calendar | BJ5: Calendar | BK5: Calendar
A6: =ROW() -> 6 | B6: Regulatory Period | D6: =Inputs!G6 -> 1 | E6: =Inputs!H6 -> 1 | F6: =Inputs!I6 -> 1 | G6: =Inputs!J6 -> 1 | H6: =Inputs!K6 -> 1 | I6: =Inputs!L6 -> 1 | J6: =Inputs!M6 -> 1 | K6: =Inputs!N6 -> 1 | L6: =Inputs!O6 -> 1 | M6: =Inputs!P6 -> 1 | N6: =Inputs!Q6 -> 1 | O6: =Inputs!R6 -> 1 | P6: =Inputs!S6 -> 1 | Q6: =Inputs!T6 -> 1 | R6: =Inputs!U6 -> 1 | S6: =Inputs!V6 -> 1 | T6: =Inputs!W6 -> 1 | U6: =Inputs!X6 -> 1 | V6: =Inputs!Y6 -> 1 | W6: =Inputs!Z6 -> 1 | X6: =Inputs!AA6 -> 1 | Y6: =Inputs!AB6 -> 1 | Z6: =Inputs!AC6 -> 1 | AA6: =Inputs!AD6 -> 1 | AB6: =Inputs!AE6 -> 1 | AC6: =Inputs!AF6 -> 1 | AD6: =Inputs!AG6 -> 1 | AE6: =Inputs!AH6 -> 1 | AF6: =Inputs!AI6 -> 1 | AG6: =Inputs!AJ6 -> 1 | AH6: =Inputs!AK6 -> 1 | AI6: =Inputs!AL6 -> 1 | AJ6: =Inputs!AM6 -> 1 | AK6: =Inputs!AN6 -> 1 | AL6: =Inputs!AO6 -> 1 | AM6: =Inputs!AP6 -> 1 | AN6: =Inputs!AQ6 -> 1 | AO6: =Inputs!AR6 -> 1 | AP6: =Inputs!AS6 -> 1 | AQ6: =Inputs!AT6 -> 1 | AR6: =Inputs!AU6 -> 2 | AS6: =Inputs!AV6 -> 2 | AT6: =Inputs!AW6 -> 2 | AU6: =Inputs!AX6 -> 2 | AV6: =Inputs!AY6 -> 2 | AW6: =Inputs!AZ6 -> 3 | AX6: =Inputs!BA6 -> 3 | AY6: =Inputs!BB6 -> 3 | AZ6: =Inputs!BC6 -> 3 | BA6: =Inputs!BD6 -> 3 | BB6: =Inputs!BE6 -> 4 | BC6: =Inputs!BF6 -> 4 | BD6: =Inputs!BG6 -> 4 | BE6: =Inputs!BH6 -> 4 | BF6: =Inputs!BI6 -> 4 | BG6: =Inputs!BJ6 -> 5 | BH6: =Inputs!BK6 -> 5 | BI6: =Inputs!BL6 -> 5 | BJ6: =Inputs!BM6 -> 5 | BK6: =Inputs!BN6 -> 5
A7: =ROW() -> 7 | B7: Start Date | C7: 1999-01-01 | D7: =C8+1 -> 2000-01-01 | E7: 2000-04-01 | F7: 2000-07-01 | G7: 2000-10-01 | H7: 2001-01-01 | I7: 2001-04-01 | J7: 2001-07-01 | K7: 2001-10-01 | L7: 2002-01-01 | M7: 2002-04-01 | N7: 2002-07-01 | O7: 2002-10-01 | P7: 2003-01-01 | Q7: 2003-04-01 | R7: 2003-07-01 | S7: 2003-10-01 | T7: 2004-01-01 | U7: 2004-04-01 | V7: 2004-07-01 | W7: 2004-10-01 | X7: 2005-01-01 | Y7: 2005-04-01 | Z7: 2005-07-01 | AA7: 2005-10-01 | AB7: 2006-01-01 | AC7: 2006-04-01 | AD7: 2006-07-01 | AE7: 2006-10-01 | AF7: 2007-01-01 | AG7: 2007-04-01 | AH7: 2007-07-01 | AI7: 2007-10-01 | AJ7: 2008-01-01 | AK7: 2008-04-01 | AL7: 2008-07-01 | AM7: 2008-10-01 | AN7: 2009-01-01 | AO7: 2009-04-01 | AP7: 2009-07-01 | AQ7: 2009-10-01 | AR7: 2010-01-01 | AS7: 2011-01-01 | AT7: 2012-01-01 | AU7: 2013-01-01 | AV7: 2014-01-01 | AW7: 2015-01-01 | AX7: 2016-01-01 | AY7: 2017-01-01 | AZ7: 2018-01-01 | BA7: 2019-01-01 | BB7: =BA8+1 -> 2020-01-01 | BC7: =BB8+1 -> 2021-01-01 | BD7: =BC8+1 -> 2022-01-01 | BE7: =BD8+1 -> 2023-01-01 | BF7: =BE8+1 -> 2024-01-01 | BG7: 2025-01-01 | BH7: =BG8+1 -> 2026-01-01 | BI7: =BH8+1 -> 2027-01-01 | BJ7: =BI8+1 -> 2028-01-01 | BK7: =BJ8+1 -> 2029-01-01
A8: =ROW() -> 8 | B8: End Date | C8: =C7+C9-1 -> 1999-12-31 | D8: =D7+D9-1 -> 2000-03-31 | E8: 2000-06-30 | F8: 2000-09-30 | G8: 2000-12-31 | H8: 2001-03-31 | I8: 2001-06-30 | J8: 2001-09-30 | K8: 2001-12-31 | L8: 2002-03-31 | M8: 2002-06-30 | N8: =N7+N9-1 -> 2002-09-30 | O8: 2002-12-31 | P8: 2003-03-31 | Q8: 2003-06-30 | R8: 2003-09-30 | S8: 2003-12-31 | T8: 2004-03-31 | U8: 2004-06-30 | V8: 2004-09-30 | W8: 2004-12-31 | X8: 2005-03-31 | Y8: 2005-06-30 | Z8: 2005-09-30 | AA8: 2005-12-31 | AB8: 2006-03-31 | AC8: 2006-06-30 | AD8: 2006-09-30 | AE8: 2006-12-31 | AF8: 2007-03-31 | AG8: 2007-06-30 | AH8: 2007-09-30 | AI8: 2007-12-31 | AJ8: 2008-03-31 | AK8: 2008-06-30 | AL8: 2008-09-30 | AM8: 2008-12-31 | AN8: 2009-03-31 | AO8: 2009-06-30 | AP8: 2009-09-30 | AQ8: 2009-12-31 | AR8: 2010-12-31 | AS8: 2011-12-31 | AT8: 2012-12-31 | AU8: 2013-12-31 | AV8: 2014-12-31 | AW8: 2015-12-31 | AX8: 2016-12-31 | AY8: 2017-12-31 | AZ8: 2018-12-31 | BA8: 2019-12-31 | BB8: =BB7+BB9-1 -> 2020-12-31 | BC8: 2021-12-31 | BD8: 2022-12-31 | BE8: 2023-12-31 | BF8: 2024-12-31 | BG8: =BG7+BG9-1 -> 2025-12-31 | BH8: 2026-12-31 | BI8: 2027-12-31 | BJ8: 2028-12-31 | BK8: 2029-12-31
A9: =ROW() -> 9 | B9: Days | C9: 365 | D9: 91 | E9: 91 | F9: 92 | G9: 92 | H9: 90 | I9: 91 | J9: 92 | K9: 92 | L9: 90 | M9: 91 | N9: 92 | O9: 92 | P9: 90 | Q9: 91 | R9: 92 | S9: 92 | T9: 91 | U9: 91 | V9: 92 | W9: 92 | X9: 90 | Y9: 91 | Z9: 92 | AA9: 92 | AB9: 90 | AC9: 91 | AD9: 92 | AE9: 92 | AF9: 90 | AG9: 91 | AH9: 92 | AI9: 92 | AJ9: 91 | AK9: 91 | AL9: 92 | AM9: 92 | AN9: 90 | AO9: 91 | AP9: 92 | AQ9: 92 | AR9: 365 | AS9: 365 | AT9: 366 | AU9: 365 | AV9: 365 | AW9: 365 | AX9: 366 | AY9: 365 | AZ9: 365 | BA9: 365 | BB9: =Inputs!BE$11 -> 366 | BC9: =Inputs!BF$11 -> 365 | BD9: =Inputs!BG$11 -> 365 | BE9: =Inputs!BH$11 -> 365 | BF9: =Inputs!BI$11 -> 366 | BG9: =Inputs!BJ$11 -> 365 | BH9: =Inputs!BK$11 -> 365 | BI9: =Inputs!BL$11 -> 365 | BJ9: =Inputs!BM$11 -> 366 | BK9: =Inputs!BN$11 -> 365
A10: =ROW() -> 10 | B10: Years (nearest half) | C10: =ROUND(YEARFRAC(C7,C8),2) -> 1 | D10: =ROUND(YEARFRAC(D7,D8),2) -> 0.25 | E10: =ROUND(YEARFRAC(E7,E8),2) -> 0.25 | F10: =ROUND(YEARFRAC(F7,F8),2) -> 0.25 | G10: 0.25 | H10: 0.25 | I10: 0.25 | J10: 0.25 | K10: 0.25 | L10: 0.25 | M10: 0.25 | N10: 0.25 | O10: 0.25 | P10: 0.25 | Q10: 0.25 | R10: 0.25 | S10: 0.25 | T10: 0.25 | U10: 0.25 | V10: 0.25 | W10: 0.25 | X10: 0.25 | Y10: 0.25 | Z10: 0.25 | AA10: 0.25 | AB10: 0.25 | AC10: 0.25 | AD10: 0.25 | AE10: 0.25 | AF10: 0.25 | AG10: 0.25 | AH10: 0.25 | AI10: 0.25 | AJ10: 0.25 | AK10: 0.25 | AL10: 0.25 | AM10: 0.25 | AN10: 0.25 | AO10: 0.25 | AP10: 0.25 | AQ10: 0.25 | AR10: 1 | AS10: 1 | AT10: 1 | AU10: 1 | AV10: 1 | AW10: 1 | AX10: 1 | AY10: 1 | AZ10: 1 | BA10: 1 | BB10: =ROUND(YEARFRAC(BB7,BB8),2) -> 1 | BC10: 1 | BD10: 1 | BE10: 1 | BF10: 1 | BG10: =ROUND(YEARFRAC(BG7,BG8),2) -> 1 | BH10: 1 | BI10: 1 | BJ10: 1 | BK10: 1
A11: =ROW() -> 11 | B11: Period End CPI | D11: =Inputs!G16 -> 69.7 | E11: =Inputs!H16 -> 70.2 | F11: =Inputs!I16 -> 72.9 | G11: =Inputs!J16 -> 73.1 | H11: =Inputs!K16 -> 73.9 | I11: =Inputs!L16 -> 74.5 | J11: =Inputs!M16 -> 74.7 | K11: =Inputs!N16 -> 75.4 | L11: =Inputs!O16 -> 76.1 | M11: =Inputs!P16 -> 76.6 | N11: =Inputs!Q16 -> 77.1 | O11: =Inputs!R16 -> 77.6 | P11: =Inputs!S16 -> 78.6 | Q11: =Inputs!T16 -> 78.6 | R11: =Inputs!U16 -> 79.1 | S11: =Inputs!V16 -> 79.5 | T11: =Inputs!W16 -> 80.2 | U11: =Inputs!X16 -> 80.6 | V11: =Inputs!Y16 -> 80.9 | W11: =Inputs!Z16 -> 81.5 | X11: =Inputs!AA16 -> 82.1 | Y11: =Inputs!AB16 -> 82.6 | Z11: =Inputs!AC16 -> 83.4 | AA11: =Inputs!AD16 -> 83.8 | AB11: =Inputs!AE16 -> 84.5 | AC11: =Inputs!AF16 -> 85.9 | AD11: =Inputs!AG16 -> 86.7 | AE11: =Inputs!AH16 -> 86.6 | AF11: =Inputs!AI16 -> 86.6 | AG11: =Inputs!AJ16 -> 87.7 | AH11: =Inputs!AK16 -> 88.3 | AI11: =Inputs!AL16 -> 89.1 | AJ11: =Inputs!AM16 -> 90.3 | AK11: =Inputs!AN16 -> 91.6 | AL11: =Inputs!AO16 -> 92.7 | AM11: =Inputs!AP16 -> 92.4 | AN11: =Inputs!AQ16 -> 92.5 | AO11: =Inputs!AR16 -> 92.9 | AP11: =Inputs!AS16 -> 93.8 | AQ11: =Inputs!AT16 -> 94.3 | AR11: =Inputs!AU16 -> 96.9 | AS11: =Inputs!AV16 -> 99.8 | AT11: =Inputs!AW16 -> 102 | AU11: =Inputs!AX16 -> 104.8 | AV11: =Inputs!AY16 -> 106.6 | AW11: =Inputs!AZ16 -> 108.4 | AX11: =Inputs!BA16 -> 110 | AY11: =Inputs!BB16 -> 112.1 | AZ11: =Inputs!BC16 -> 114.1 | BA11: =Inputs!BD16 -> 116.2 | BB11: =Inputs!BE16 -> 117.2 | BC11: =Inputs!BF16 -> 121.3 | BD11: =Inputs!BG16 -> 130.8 | BE11: =Inputs!BH16 -> 136.1 | BF11: =Inputs!BI16 -> 140.183 | BG11: =Inputs!BJ16 -> 143.7015933 | BH11: =Inputs!BK16 -> 147.3085033 | BI11: =Inputs!BL16 -> 151.0059467 | BJ11: =Inputs!BM16 -> 154.796196 | BK11: =Inputs!BN16 -> 158.6815805
A12: =ROW() -> 12 | B12: Period End Inflation | D12: =Inputs!G17 -> 0 | E12: =Inputs!H17 -> 0.007173601148 | F12: =Inputs!I17 -> 0.03846153846 | G12: =Inputs!J17 -> 0.002743484225 | H12: =Inputs!K17 -> 0.01094391245 | I12: =Inputs!L17 -> 0.008119079838 | J12: =Inputs!M17 -> 0.002684563758 | K12: =Inputs!N17 -> 0.0093708166 | L12: =Inputs!O17 -> 0.009283819629 | M12: =Inputs!P17 -> 0.006570302234 | N12: =Inputs!Q17 -> 0.006527415144 | O12: =Inputs!R17 -> 0.006485084306 | P12: =Inputs!S17 -> 0.01288659794 | Q12: =Inputs!T17 -> 0 | R12: =Inputs!U17 -> 0.006361323155 | S12: =Inputs!V17 -> 0.005056890013 | T12: =Inputs!W17 -> 0.008805031447 | U12: =Inputs!X17 -> 0.004987531172 | V12: =Inputs!Y17 -> 0.003722084367 | W12: =Inputs!Z17 -> 0.007416563659 | X12: =Inputs!AA17 -> 0.00736196319 | Y12: =Inputs!AB17 -> 0.006090133983 | Z12: =Inputs!AC17 -> 0.009685230024 | AA12: =Inputs!AD17 -> 0.00479616307 | AB12: =Inputs!AE17 -> 0.008353221957 | AC12: =Inputs!AF17 -> 0.01656804734 | AD12: =Inputs!AG17 -> 0.009313154831 | AE12: =Inputs!AH17 -> -0.001153402537 | AF12: =Inputs!AI17 -> 0 | AG12: =Inputs!AJ17 -> 0.01270207852 | AH12: =Inputs!AK17 -> 0.006841505131 | AI12: =Inputs!AL17 -> 0.00906002265 | AJ12: =Inputs!AM17 -> 0.01346801347 | AK12: =Inputs!AN17 -> 0.01439645626 | AL12: =Inputs!AO17 -> 0.01200873362 | AM12: =Inputs!AP17 -> -0.003236245955 | AN12: =Inputs!AQ17 -> 0.001082251082 | AO12: =Inputs!AR17 -> 0.004324324324 | AP12: =Inputs!AS17 -> 0.009687836383 | AQ12: =Inputs!AT17 -> 0.005330490405 | AR12: =Inputs!AU17 -> 0.02757158006 | AS12: =Inputs!AV17 -> 0.02992776058 | AT12: =Inputs!AW17 -> 0.02204408818 | AU12: =Inputs!AX17 -> 0.02745098039 | AV12: =Inputs!AY17 -> 0.01717557252 | AW12: =Inputs!AZ17 -> 0.01688555347 | AX12: =Inputs!BA17 -> 0.0147601476 | AY12: =Inputs!BB17 -> 0.01909090909 | AZ12: =Inputs!BC17 -> 0.0178412132 | BA12: =Inputs!BD17 -> 0.01840490798 | BB12: =Inputs!BE17 -> 0.008605851979 | BC12: =Inputs!BF17 -> 0.03498293515 | BD12: =Inputs!BG17 -> 0.07831821929 | BE12: =Inputs!BH17 -> 0.04051987768 | BF12: =Inputs!BI17 -> 0.03 | BG12: =Inputs!BJ17 -> 0.0251 | BH12: =Inputs!BK17 -> 0.0251 | BI12: =Inputs!BL17 -> 0.0251 | BJ12: =Inputs!BM17 -> 0.0251 | BK12: =Inputs!BN17 -> 0.0251
A13: =ROW() -> 13
A14: =ROW() -> 14 | B14: ="Inflation Factor (convert to real $ "&C14&")" -> Inflation Factor (convert to real $ 31/12/2023) | C14: =Inputs!$D$19 -> 31/12/2023 | AW14: =Inputs!AZ19 -> 1.255535055 | AX14: =Inputs!BA19 -> 1.237272727 | AY14: =Inputs!BB19 -> 1.214094558 | AZ14: =Inputs!BC19 -> 1.192813322 | BA14: =Inputs!BD19 -> 1.171256454 | BB14: =Inputs!BE19 -> 1.161262799 | BC14: =Inputs!BF19 -> 1.122011542 | BD14: =Inputs!BG19 -> 1.040519878 | BE14: =Inputs!BH19 -> 1 | BF14: =Inputs!BI19 -> 0.9708737864 | BG14: =Inputs!BJ19 -> 0.9471015378 | BH14: =Inputs!BK19 -> 0.9239113626 | BI14: =Inputs!BL19 -> 0.9012890085 | BJ14: =Inputs!BM19 -> 0.8792205721 | BK14: =Inputs!BN19 -> 0.8576924906
A15: =ROW() -> 15
A16: =ROW() -> 16 | B16: ="Opex Cost Pass Through ($m)" -> Opex Cost Pass Through ($m) | D16: $OD | E16: $OD | F16: $OD | G16: $OD | H16: $OD | I16: $OD | J16: $OD | K16: $OD | L16: $OD | M16: $OD | N16: $OD | O16: $OD | P16: $OD | Q16: $OD | R16: $OD | S16: $OD | T16: $OD | U16: $OD | V16: $OD | W16: $OD | X16: $OD | Y16: $OD | Z16: $OD | AA16: $OD | AB16: $OD | AC16: $OD | AD16: $OD | AE16: $OD | AF16: $OD | AG16: $OD | AH16: $OD | AI16: $OD | AJ16: $OD | AK16: $OD | AL16: $OD | AM16: $OD | AN16: $OD | AO16: $OD | AP16: $OD | AQ16: $OD | AR16: $OD | AS16: $OD | AT16: $OD | AU16: $OD | AV16: $OD | AW16: $OD | AX16: $OD | AY16: $OD | AZ16: $OD | BA16: $OD | BB16: $OD | BC16: $OD | BD16: $OD | BE16: $OD | BF16: $OD | BG16: $OD | BH16: $OD | BI16: $OD | BJ16: $OD | BK16: $OD
A17: =ROW() -> 17 | B17: Cost Pass Through
A18: =ROW() -> 18 | B18: Totals | D18: =D17 -> 0 | E18: 0 | F18: 0 | G18: 0 | H18: 0 | I18: 0 | J18: 0 | K18: 0 | L18: 0 | M18: 0 | N18: 0 | O18: 0 | P18: 0 | Q18: 0 | R18: 0 | S18: 0 | T18: 0 | U18: 0 | V18: 0 | W18: 0 | X18: 0 | Y18: 0 | Z18: 0 | AA18: 0 | AB18: 0 | AC18: 0 | AD18: 0 | AE18: 0 | AF18: 0 | AG18: 0 | AH18: 0 | AI18: 0 | AJ18: 0 | AK18: 0 | AL18: 0 | AM18: 0 | AN18: 0 | AO18: 0 | AP18: 0 | AQ18: 0 | AR18: 0 | AS18: 0 | AT18: 0 | AU18: 0 | AV18: 0 | AW18: 0 | AX18: 0 | AY18: 0 | AZ18: 0 | BA18: =BA17 -> 0 | BB18: =BB17 -> 0 | BC18: 0 | BD18: 0 | BE18: 0 | BF18: 0 | BG18: =BG17 -> 0 | BH18: 0 | BI18: 0 | BJ18: 0 | BK18: 0
A19: =ROW() -> 19 | B19: ="ICB Adjustment ($m)" -> ICB Adjustment ($m) | D19: $OD | E19: $OD | F19: $OD | G19: $OD | H19: $OD | I19: $OD | J19: $OD | K19: $OD | L19: $OD | M19: $OD | N19: $OD | O19: $OD | P19: $OD | Q19: $OD | R19: $OD | S19: $OD | T19: $OD | U19: $OD | V19: $OD | W19: $OD | X19: $OD | Y19: $OD | Z19: $OD | AA19: $OD | AB19: $OD | AC19: $OD | AD19: $OD | AE19: $OD | AF19: $OD | AG19: $OD | AH19: $OD | AI19: $OD | AJ19: $OD | AK19: $OD | AL19: $OD | AM19: $OD | AN19: $OD | AO19: $OD | AP19: $OD | AQ19: $OD | AR19: $OD | AS19: $OD | AT19: $OD | AU19: $OD | AV19: $OD | AW19: ="$ "&$C$14 -> $ 31/12/2023 | AX19: $ 31/12/2023 | AY19: $ 31/12/2023 | AZ19: $ 31/12/2023 | BA19: $ 31/12/2023 | BB19: $ 31/12/2023 | BC19: $ 31/12/2023 | BD19: $ 31/12/2023 | BE19: $ 31/12/2023 | BF19: ="$ "&$C$14 -> $ 31/12/2023 | BG19: ="$ "&$C$14 -> $ 31/12/2023 | BH19: ="$ "&$C$14 -> $ 31/12/2023 | BI19: $ 31/12/2023 | BJ19: $ 31/12/2023 | BK19: $ 31/12/2023
A20: =ROW() -> 20 | B20: Pipeline and laterals | D20: =(-D51-D66)*D$10 -> 0 | E20: 0 | F20: 0 | G20: 0 | H20: 0 | I20: 0 | J20: 0 | K20: 0 | L20: 0 | M20: 0 | N20: 0 | O20: 0 | P20: 0 | Q20: 0 | R20: 0 | S20: 0 | T20: 0 | U20: 0 | V20: 0 | W20: 0 | X20: 0 | Y20: 0 | Z20: 0 | AA20: 0 | AB20: 0 | AC20: 0 | AD20: 0 | AE20: 0 | AF20: 0 | AG20: 0 | AH20: 0 | AI20: 0 | AJ20: 0 | AK20: 0 | AL20: 0 | AM20: 0 | AN20: 0 | AO20: 0 | AP20: 0 | AQ20: 0 | AR20: 0 | AS20: 0 | AT20: 0 | AU20: 0 | AV20: 0 | AW20: =(-AW51-AW66)*AW$10*AW$14 -> 0 | AX20: =(-AX51-AX66)*AX$10*AX$14 -> 0 | AY20: 0 | AZ20: 0 | BA20: 0 | BB20: 0 | BC20: 0 | BD20: 0 | BE20: 0 | BF20: 0 | BG20: =(-BG51-BG66)*BG$10*BG$14 -> 0 | BH20: 0 | BI20: 0 | BJ20: 0 | BK20: 0
A21: =ROW() -> 21 | B21: Main line valve and scraper stations | D21: =(-D52-D67)*D$10 -> 0 | E21: 0 | F21: 0 | G21: 0 | H21: 0 | I21: 0 | J21: 0 | K21: 0 | L21: 0 | M21: 0 | N21: 0 | O21: 0 | P21: 0 | Q21: 0 | R21: 0 | S21: 0 | T21: 0 | U21: 0 | V21: 0 | W21: 0 | X21: 0 | Y21: 0 | Z21: 0 | AA21: 0 | AB21: 0 | AC21: 0 | AD21: 0 | AE21: 0 | AF21: 0 | AG21: 0 | AH21: 0 | AI21: 0 | AJ21: 0 | AK21: 0 | AL21: 0 | AM21: 0 | AN21: 0 | AO21: 0 | AP21: 0 | AQ21: 0 | AR21: 0 | AS21: 0 | AT21: 0 | AU21: 0 | AV21: 0 | AW21: =(-AW52-AW67)*AW$10*AW$14 -> 0 | AX21: 0 | AY21: 0 | AZ21: 0 | BA21: 0 | BB21: 0 | BC21: 0 | BD21: 0 | BE21: 0 | BF21: 0 | BG21: =(-BG52-BG67)*BG$10*BG$14 -> 0 | BH21: 0 | BI21: 0 | BJ21: 0 | BK21: 0
A22: =ROW() -> 22 | B22: Compressor stations | D22: =(-D53-D68)*D$10 -> 0 | E22: 0 | F22: 0 | G22: 0 | H22: 0 | I22: 0 | J22: 0 | K22: 0 | L22: 0 | M22: 0 | N22: 0 | O22: 0 | P22: 0 | Q22: 0 | R22: 0 | S22: 0 | T22: 0 | U22: 0 | V22: 0 | W22: 0 | X22: 0 | Y22: 0 | Z22: 0 | AA22: 0 | AB22: 0 | AC22: 0 | AD22: 0 | AE22: 0 | AF22: 0 | AG22: 0 | AH22: 0 | AI22: 0 | AJ22: 0 | AK22: 0 | AL22: 0 | AM22: 0 | AN22: 0 | AO22: 0 | AP22: 0 | AQ22: 0 | AR22: 0 | AS22: 0 | AT22: 0 | AU22: 0 | AV22: 0 | AW22: =(-AW53-AW68)*AW$10*AW$14 -> 0 | AX22: 0 | AY22: 0 | AZ22: 0 | BA22: 0 | BB22: 0 | BC22: 0 | BD22: 0 | BE22: 0 | BF22: 0 | BG22: =(-BG53-BG68)*BG$10*BG$14 -> 0 | BH22: 0 | BI22: 0 | BJ22: 0 | BK22: 0
A23: =ROW() -> 23 | B23: Receipt and delivery point facilities | D23: =(-D54-D69)*D$10 -> 0 | E23: 0 | F23: 0 | G23: 0 | H23: 0 | I23: 0 | J23: 0 | K23: 0 | L23: 0 | M23: 0 | N23: 0 | O23: 0 | P23: 0 | Q23: 0 | R23: 0 | S23: 0 | T23: 0 | U23: 0 | V23: 0 | W23: 0 | X23: 0 | Y23: 0 | Z23: 0 | AA23: 0 | AB23: 0 | AC23: 0 | AD23: 0 | AE23: 0 | AF23: 0 | AG23: 0 | AH23: 0 | AI23: 0 | AJ23: 0 | AK23: 0 | AL23: 0 | AM23: 0 | AN23: 0 | AO23: 0 | AP23: 0 | AQ23: 0 | AR23: 0 | AS23: 0 | AT23: 0 | AU23: 0 | AV23: 0 | AW23: =(-AW54-AW69)*AW$10*AW$14 -> 0 | AX23: 0 | AY23: 0 | AZ23: 0 | BA23: 0 | BB23: 0 | BC23: 0 | BD23: 0 | BE23: 0 | BF23: 0 | BG23: =(-BG54-BG69)*BG$10*BG$14 -> 0 | BH23: 0 | BI23: 0 | BJ23: 0 | BK23: 0
A24: =ROW() -> 24 | B24: SCADA and communications | D24: =(-D55-D70)*D$10 -> 0 | E24: 0 | F24: 0 | G24: 0 | H24: 0 | I24: 0 | J24: 0 | K24: 0 | L24: 0 | M24: 0 | N24: 0 | O24: 0 | P24: 0 | Q24: 0 | R24: 0 | S24: 0 | T24: 0 | U24: 0 | V24: 0 | W24: 0 | X24: 0 | Y24: 0 | Z24: 0 | AA24: 0 | AB24: 0 | AC24: 0 | AD24: 0 | AE24: 0 | AF24: 0 | AG24: 0 | AH24: 0 | AI24: 0 | AJ24: 0 | AK24: 0 | AL24: 0 | AM24: 0 | AN24: 0 | AO24: 0 | AP24: 0 | AQ24: 0 | AR24: 0 | AS24: 0 | AT24: 0 | AU24: 0 | AV24: 0 | AW24: =(-AW55-AW70)*AW$10*AW$14 -> 0 | AX24: 0 | AY24: 0 | AZ24: 0 | BA24: 0 | BB24: 0 | BC24: 0 | BD24: 0 | BE24: 0 | BF24: 0 | BG24: =(-BG55-BG70)*BG$10*BG$14 -> 0 | BH24: 0 | BI24: 0 | BJ24: 0 | BK24: 0
A25: =ROW() -> 25 | B25: Cathodic protection | D25: =(-D56-D71)*D$10 -> 0 | E25: 0 | F25: 0 | G25: 0 | H25: 0 | I25: 0 | J25: 0 | K25: 0 | L25: 0 | M25: 0 | N25: 0 | O25: 0 | P25: 0 | Q25: 0 | R25: 0 | S25: 0 | T25: 0 | U25: 0 | V25: 0 | W25: 0 | X25: 0 | Y25: 0 | Z25: 0 | AA25: 0 | AB25: 0 | AC25: 0 | AD25: 0 | AE25: 0 | AF25: 0 | AG25: 0 | AH25: 0 | AI25: 0 | AJ25: 0 | AK25: 0 | AL25: 0 | AM25: 0 | AN25: 0 | AO25: 0 | AP25: 0 | AQ25: 0 | AR25: 0 | AS25: 0 | AT25: 0 | AU25: 0 | AV25: 0 | AW25: =(-AW56-AW71)*AW$10*AW$14 -> 0 | AX25: 0 | AY25: 0 | AZ25: 0 | BA25: 0 | BB25: 0 | BC25: 0 | BD25: 0 | BE25: 0 | BF25: 0 | BG25: =(-BG56-BG71)*BG$10*BG$14 -> 0 | BH25: 0 | BI25: 0 | BJ25: 0 | BK25: 0
A26: =ROW() -> 26 | B26: Maintenance bases and depots | D26: =(-D57-D72)*D$10 -> 0 | E26: 0 | F26: 0 | G26: 0 | H26: 0 | I26: 0 | J26: 0 | K26: 0 | L26: 0 | M26: 0 | N26: 0 | O26: 0 | P26: 0 | Q26: 0 | R26: 0 | S26: 0 | T26: 0 | U26: 0 | V26: 0 | W26: 0 | X26: 0 | Y26: 0 | Z26: 0 | AA26: 0 | AB26: 0 | AC26: 0 | AD26: 0 | AE26: 0 | AF26: 0 | AG26: 0 | AH26: 0 | AI26: 0 | AJ26: 0 | AK26: 0 | AL26: 0 | AM26: 0 | AN26: 0 | AO26: 0 | AP26: 0 | AQ26: 0 | AR26: 0 | AS26: 0 | AT26: 0 | AU26: 0 | AV26: 0 | AW26: =(-AW57-AW72)*AW$10*AW$14 -> 0 | AX26: 0 | AY26: 0 | AZ26: 0 | BA26: 0 | BB26: 0 | BC26: 0 | BD26: 0 | BE26: 0 | BF26: 0 | BG26: =(-BG57-BG72)*BG$10*BG$14 -> 0 | BH26: 0 | BI26: 0 | BJ26: 0 | BK26: 0
A27: =ROW() -> 27 | B27: Other assets | D27: =(-D58-D73)*D$10 -> 0 | E27: 0 | F27: 0 | G27: 0 | H27: 0 | I27: 0 | J27: 0 | K27: 0 | L27: 0 | M27: 0 | N27: 0 | O27: 0 | P27: 0 | Q27: 0 | R27: 0 | S27: 0 | T27: 0 | U27: 0 | V27: 0 | W27: 0 | X27: 0 | Y27: 0 | Z27: 0 | AA27: 0 | AB27: 0 | AC27: 0 | AD27: 0 | AE27: 0 | AF27: 0 | AG27: 0 | AH27: 0 | AI27: 0 | AJ27: 0 | AK27: 0 | AL27: 0 | AM27: 0 | AN27: 0 | AO27: 0 | AP27: 0 | AQ27: 0 | AR27: 0 | AS27: 0 | AT27: 0 | AU27: 0 | AV27: 0 | AW27: =(-AW58-AW73)*AW$10*AW$14 -> 0 | AX27: 0 | AY27: 0 | AZ27: 0 | BA27: 0 | BB27: 0 | BC27: 0 | BD27: 0 | BE27: 0 | BF27: 0 | BG27: =(-BG58-BG73)*BG$10*BG$14 -> 0 | BH27: 0 | BI27: 0 | BJ27: 0 | BK27: 0
A28: =ROW() -> 28 | B28: Equity Raising Cost | D28: =(-D59-D74)*D$10 -> 0 | E28: 0 | F28: 0 | G28: 0 | H28: 0 | I28: 0 | J28: 0 | K28: 0 | L28: 0 | M28: 0 | N28: 0 | O28: 0 | P28: 0 | Q28: 0 | R28: 0 | S28: 0 | T28: 0 | U28: 0 | V28: 0 | W28: 0 | X28: 0 | Y28: 0 | Z28: 0 | AA28: 0 | AB28: 0 | AC28: 0 | AD28: 0 | AE28: 0 | AF28: 0 | AG28: 0 | AH28: 0 | AI28: 0 | AJ28: 0 | AK28: 0 | AL28: 0 | AM28: 0 | AN28: 0 | AO28: 0 | AP28: 0 | AQ28: 0 | AR28: 0 | AS28: 0 | AT28: 0 | AU28: 0 | AV28: 0 | AW28: =(-AW59-AW74)*AW$10*AW$14 -> 0 | AX28: 0 | AY28: 0 | AZ28: 0 | BA28: 0 | BB28: 0 | BC28: 0 | BD28: 0 | BE28: 0 | BF28: 0 | BG28: =(-BG59-BG74)*BG$10*BG$14 -> 0 | BH28: 0 | BI28: 0 | BJ28: 0 | BK28: 0
A29: =ROW() -> 29 | B29: Non-depreciable assets | D29: =(-D60-D75)*D$10 -> 0 | E29: 0 | F29: 0 | G29: 0 | H29: 0 | I29: 0 | J29: 0 | K29: 0 | L29: 0 | M29: 0 | N29: 0 | O29: 0 | P29: 0 | Q29: 0 | R29: 0 | S29: 0 | T29: 0 | U29: 0 | V29: 0 | W29: 0 | X29: 0 | Y29: 0 | Z29: 0 | AA29: 0 | AB29: 0 | AC29: 0 | AD29: 0 | AE29: 0 | AF29: 0 | AG29: 0 | AH29: 0 | AI29: 0 | AJ29: 0 | AK29: 0 | AL29: 0 | AM29: 0 | AN29: 0 | AO29: 0 | AP29: 0 | AQ29: 0 | AR29: 0 | AS29: 0 | AT29: 0 | AU29: 0 | AV29: 0 | AW29: =(-AW60-AW75)*AW$10*AW$14 -> 0 | AX29: 0 | AY29: 0 | AZ29: 0 | BA29: 0 | BB29: 0 | BC29: 0 | BD29: 0 | BE29: 0 | BF29: 0 | BG29: =(-BG60-BG75)*BG$10*BG$14 -> 0 | BH29: 0 | BI29: 0 | BJ29: 0 | BK29: 0
A30: =ROW() -> 30 | B30: Shared support assets - IOT & cyber security | D30: =(-D61-D76)*D$10 -> 0 | E30: 0 | F30: 0 | G30: 0 | H30: 0 | I30: 0 | J30: 0 | K30: 0 | L30: 0 | M30: 0 | N30: 0 | O30: 0 | P30: 0 | Q30: 0 | R30: 0 | S30: 0 | T30: 0 | U30: 0 | V30: 0 | W30: 0 | X30: 0 | Y30: 0 | Z30: 0 | AA30: 0 | AB30: 0 | AC30: 0 | AD30: 0 | AE30: 0 | AF30: 0 | AG30: 0 | AH30: 0 | AI30: 0 | AJ30: 0 | AK30: 0 | AL30: 0 | AM30: 0 | AN30: 0 | AO30: 0 | AP30: 0 | AQ30: 0 | AR30: 0 | AS30: 0 | AT30: 0 | AU30: 0 | AV30: 0 | AW30: =(-AW61-AW76)*AW$10*AW$14 -> 0 | AX30: 0 | AY30: 0 | AZ30: 0 | BA30: 0 | BB30: 0 | BC30: 0 | BD30: 0 | BE30: 0 | BF30: 0 | BG30: 0 | BH30: 0 | BI30: 0 | BJ30: 0 | BK30: 0
A31: =ROW() -> 31 | B31: Shared support assets (net IOT & cyber security) | D31: =(-D62-D77)*D$10 -> 0 | E31: 0 | F31: 0 | G31: 0 | H31: 0 | I31: 0 | J31: 0 | K31: 0 | L31: 0 | M31: 0 | N31: 0 | O31: 0 | P31: 0 | Q31: 0 | R31: 0 | S31: 0 | T31: 0 | U31: 0 | V31: 0 | W31: 0 | X31: 0 | Y31: 0 | Z31: 0 | AA31: 0 | AB31: 0 | AC31: 0 | AD31: 0 | AE31: 0 | AF31: 0 | AG31: 0 | AH31: 0 | AI31: 0 | AJ31: 0 | AK31: 0 | AL31: 0 | AM31: 0 | AN31: 0 | AO31: 0 | AP31: 0 | AQ31: 0 | AR31: 0 | AS31: 0 | AT31: 0 | AU31: 0 | AV31: 0 | AW31: =(-AW62-AW77)*AW$10*AW$14 -> 0 | AX31: 0 | AY31: 0 | AZ31: 0 | BA31: 0 | BB31: 0 | BC31: 0 | BD31: 0 | BE31: 0 | BF31: 0 | BG31: 0 | BH31: 0 | BI31: 0 | BJ31: 0 | BK31: 0
A32: =ROW() -> 32 | B32: Miscellaneous assets | D32: =(-D63-D78)*D$10 -> 0 | E32: 0 | F32: 0 | G32: 0 | H32: 0 | I32: 0 | J32: 0 | K32: 0 | L32: 0 | M32: 0 | N32: 0 | O32: 0 | P32: 0 | Q32: 0 | R32: 0 | S32: 0 | T32: 0 | U32: 0 | V32: 0 | W32: 0 | X32: 0 | Y32: 0 | Z32: 0 | AA32: 0 | AB32: 0 | AC32: 0 | AD32: 0 | AE32: 0 | AF32: 0 | AG32: 0 | AH32: 0 | AI32: 0 | AJ32: 0 | AK32: 0 | AL32: 0 | AM32: 0 | AN32: 0 | AO32: 0 | AP32: 0 | AQ32: 0 | AR32: 0 | AS32: 0 | AT32: 0 | AU32: 0 | AV32: 0 | AW32: =(-AW63-AW78)*AW$10*AW$14 -> 0 | AX32: 0 | AY32: 0 | AZ32: 0 | BA32: 0 | BB32: 0 | BC32: 0 | BD32: 0 | BE32: 0 | BF32: 0 | BG32: 0 | BH32: 0 | BI32: 0 | BJ32: 0 | BK32: 0
A33: =ROW() -> 33 | B33: Totals | D33: =SUM(D20:D32) -> 0 | E33: =SUM(E20:E32) -> 0 | F33: 0 | G33: 0 | H33: 0 | I33: 0 | J33: 0 | K33: 0 | L33: 0 | M33: 0 | N33: 0 | O33: 0 | P33: 0 | Q33: 0 | R33: 0 | S33: 0 | T33: 0 | U33: 0 | V33: 0 | W33: 0 | X33: 0 | Y33: 0 | Z33: 0 | AA33: 0 | AB33: 0 | AC33: 0 | AD33: 0 | AE33: 0 | AF33: 0 | AG33: 0 | AH33: 0 | AI33: 0 | AJ33: 0 | AK33: 0 | AL33: 0 | AM33: 0 | AN33: 0 | AO33: 0 | AP33: 0 | AQ33: 0 | AR33: 0 | AS33: 0 | AT33: 0 | AU33: 0 | AV33: 0 | AW33: 0 | AX33: 0 | AY33: 0 | AZ33: 0 | BA33: 0 | BB33: 0 | BC33: 0 | BD33: 0 | BE33: 0 | BF33: 0 | BG33: 0 | BH33: 0 | BI33: 0 | BJ33: 0 | BK33: 0
A34: =ROW() -> 34 | B34: ="Capex Asset Adjustment ($m) " -> Capex Asset Adjustment ($m) | D34: $OD | E34: $OD | F34: $OD | G34: $OD | H34: $OD | I34: $OD | J34: $OD | K34: $OD | L34: $OD | M34: $OD | N34: $OD | O34: $OD | P34: $OD | Q34: $OD | R34: $OD | S34: $OD | T34: $OD | U34: $OD | V34: $OD | W34: $OD | X34: $OD | Y34: $OD | Z34: $OD | AA34: $OD | AB34: $OD | AC34: $OD | AD34: $OD | AE34: $OD | AF34: $OD | AG34: $OD | AH34: $OD | AI34: $OD | AJ34: $OD | AK34: $OD | AL34: $OD | AM34: $OD | AN34: $OD | AO34: $OD | AP34: $OD | AQ34: $OD | AR34: $OD | AS34: $OD | AT34: $OD | AU34: $OD | AV34: $OD | AW34: ="$ "&$C$14 -> $ 31/12/2023 | AX34: $ 31/12/2023 | AY34: $ 31/12/2023 | AZ34: $ 31/12/2023 | BA34: $ 31/12/2023 | BB34: $ 31/12/2023 | BC34: $ 31/12/2023 | BD34: $ 31/12/2023 | BE34: $ 31/12/2023 | BF34: ="$ "&$C$14 -> $ 31/12/2023 | BG34: ="$ "&$C$14 -> $ 31/12/2023 | BH34: ="$ "&$C$14 -> $ 31/12/2023 | BI34: $ 31/12/2023 | BJ34: $ 31/12/2023 | BK34: $ 31/12/2023
A35: =ROW() -> 35 | B35: Pipeline and laterals | D35: =(-D82-D97+D112+D127)*D$10 -> 0 | E35: =(-E82-E97+E112+E127)*E$10 -> 0 | F35: 0 | G35: 0 | H35: 0 | I35: 0 | J35: 0 | K35: 0 | L35: 0 | M35: 0 | N35: 0 | O35: 0 | P35: 0 | Q35: 0 | R35: 0 | S35: 0 | T35: 0 | U35: 0 | V35: 0 | W35: 0 | X35: 0 | Y35: 0 | Z35: 0 | AA35: 0 | AB35: 0 | AC35: 0 | AD35: 0 | AE35: 0 | AF35: 0 | AG35: 0 | AH35: 0 | AI35: 0 | AJ35: 0 | AK35: 0 | AL35: 0 | AM35: 0 | AN35: 0 | AO35: 0 | AP35: 0 | AQ35: 0 | AR35: 0 | AS35: 0 | AT35: 0 | AU35: 0 | AV35: 0 | AW35: =(-AW82-AW97+AW112+AW127)*AW$10*AW$14 -> 0 | AX35: 0 | AY35: 0 | AZ35: 0 | BA35: =(-BA82-BA97+BA112+BA127)*BA$10*BA$14 -> 0.004897521069 | BB35: =(-BB82-BB97+BB112+BB127)*BB$10*BB$14 -> 0 | BC35: 0 | BD35: 0 | BE35: 0 | BF35: 0 | BG35: 0 | BH35: 0 | BI35: 0 | BJ35: 0 | BK35: 0
A36: =ROW() -> 36 | B36: Main line valve and scraper stations | D36: =(-D83-D98+D113+D128)*D$10 -> 0 | E36: 0 | F36: 0 | G36: 0 | H36: 0 | I36: 0 | J36: 0 | K36: 0 | L36: 0 | M36: 0 | N36: 0 | O36: 0 | P36: 0 | Q36: 0 | R36: 0 | S36: 0 | T36: 0 | U36: 0 | V36: 0 | W36: 0 | X36: 0 | Y36: 0 | Z36: 0 | AA36: 0 | AB36: 0 | AC36: 0 | AD36: 0 | AE36: 0 | AF36: 0 | AG36: 0 | AH36: 0 | AI36: 0 | AJ36: 0 | AK36: 0 | AL36: 0 | AM36: 0 | AN36: 0 | AO36: 0 | AP36: 0 | AQ36: 0 | AR36: 0 | AS36: 0 | AT36: 0 | AU36: 0 | AV36: 0 | AW36: =(-AW83-AW98+AW113+AW128)*AW$10*AW$14 -> 0 | AX36: 0 | AY36: 0 | AZ36: 0 | BA36: 0 | BB36: 0 | BC36: 0 | BD36: 0 | BE36: 0 | BF36: 0 | BG36: 0 | BH36: 0 | BI36: 0 | BJ36: 0 | BK36: 0
A37: =ROW() -> 37 | B37: Compressor stations | D37: =(-D84-D99+D114+D129)*D$10 -> 0 | E37: 0 | F37: 0 | G37: 0 | H37: 0 | I37: 0 | J37: 0 | K37: 0 | L37: 0 | M37: 0 | N37: 0 | O37: 0 | P37: 0 | Q37: 0 | R37: 0 | S37: 0 | T37: 0 | U37: 0 | V37: 0 | W37: 0 | X37: 0 | Y37: 0 | Z37: 0 | AA37: 0 | AB37: 0 | AC37: 0 | AD37: 0 | AE37: 0 | AF37: 0 | AG37: 0 | AH37: 0 | AI37: 0 | AJ37: 0 | AK37: 0 | AL37: 0 | AM37: 0 | AN37: 0 | AO37: 0 | AP37: 0 | AQ37: 0 | AR37: 0 | AS37: 0 | AT37: 0 | AU37: 0 | AV37: 0 | AW37: =(-AW84-AW99+AW114+AW129)*AW$10*AW$14 -> 0 | AX37: 0 | AY37: 0 | AZ37: 0 | BA37: -0.1370585661 | BB37: 0 | BC37: 0 | BD37: 0 | BE37: 0 | BF37: 0 | BG37: 0 | BH37: 0 | BI37: 0 | BJ37: 0 | BK37: 0
A38: =ROW() -> 38 | B38: Receipt and delivery point facilities | D38: =(-D85-D100+D115+D130)*D$10 -> 0 | E38: 0 | F38: 0 | G38: 0 | H38: 0 | I38: 0 | J38: 0 | K38: 0 | L38: 0 | M38: 0 | N38: 0 | O38: 0 | P38: 0 | Q38: 0 | R38: 0 | S38: 0 | T38: 0 | U38: 0 | V38: 0 | W38: 0 | X38: 0 | Y38: 0 | Z38: 0 | AA38: 0 | AB38: 0 | AC38: 0 | AD38: 0 | AE38: 0 | AF38: 0 | AG38: 0 | AH38: 0 | AI38: 0 | AJ38: 0 | AK38: 0 | AL38: 0 | AM38: 0 | AN38: 0 | AO38: 0 | AP38: 0 | AQ38: 0 | AR38: 0 | AS38: 0 | AT38: 0 | AU38: 0 | AV38: 0 | AW38: =(-AW85-AW100+AW115+AW130)*AW$10*AW$14 -> 0 | AX38: 0 | AY38: 0 | AZ38: 0 | BA38: 0.03947203113 | BB38: 0 | BC38: 0 | BD38: 0 | BE38: 0 | BF38: 0 | BG38: 0 | BH38: 0 | BI38: 0 | BJ38: 0 | BK38: 0
A39: =ROW() -> 39 | B39: SCADA and communications | D39: =(-D86-D101+D116+D131)*D$10 -> 0 | E39: 0 | F39: 0 | G39: 0 | H39: 0 | I39: 0 | J39: 0 | K39: 0 | L39: 0 | M39: 0 | N39: 0 | O39: 0 | P39: 0 | Q39: 0 | R39: 0 | S39: 0 | T39: 0 | U39: 0 | V39: 0 | W39: 0 | X39: 0 | Y39: 0 | Z39: 0 | AA39: 0 | AB39: 0 | AC39: 0 | AD39: 0 | AE39: 0 | AF39: 0 | AG39: 0 | AH39: 0 | AI39: 0 | AJ39: 0 | AK39: 0 | AL39: 0 | AM39: 0 | AN39: 0 | AO39: 0 | AP39: 0 | AQ39: 0 | AR39: 0 | AS39: 0 | AT39: 0 | AU39: 0 | AV39: 0 | AW39: =(-AW86-AW101+AW116+AW131)*AW$10*AW$14 -> 0 | AX39: 0 | AY39: 0 | AZ39: 0 | BA39: 0.0694398523 | BB39: 0 | BC39: 0 | BD39: 0 | BE39: 0 | BF39: 0 | BG39: 0 | BH39: 0 | BI39: 0 | BJ39: 0 | BK39: 0
A40: =ROW() -> 40 | B40: Cathodic protection | D40: =(-D87-D102+D117+D132)*D$10 -> 0 | E40: 0 | F40: 0 | G40: 0 | H40: 0 | I40: 0 | J40: 0 | K40: 0 | L40: 0 | M40: 0 | N40: 0 | O40: 0 | P40: 0 | Q40: 0 | R40: 0 | S40: 0 | T40: 0 | U40: 0 | V40: 0 | W40: 0 | X40: 0 | Y40: 0 | Z40: 0 | AA40: 0 | AB40: 0 | AC40: 0 | AD40: 0 | AE40: 0 | AF40: 0 | AG40: 0 | AH40: 0 | AI40: 0 | AJ40: 0 | AK40: 0 | AL40: 0 | AM40: 0 | AN40: 0 | AO40: 0 | AP40: 0 | AQ40: 0 | AR40: 0 | AS40: 0 | AT40: 0 | AU40: 0 | AV40: 0 | AW40: =(-AW87-AW102+AW117+AW132)*AW$10*AW$14 -> 0 | AX40: 0 | AY40: 0 | AZ40: 0 | BA40: -0.01292479907 | BB40: 0 | BC40: 0 | BD40: 0 | BE40: 0 | BF40: 0 | BG40: 0 | BH40: 0 | BI40: 0 | BJ40: 0 | BK40: 0
A41: =ROW() -> 41 | B41: Maintenance bases and depots | D41: =(-D88-D103+D118+D133)*D$10 -> 0 | E41: 0 | F41: 0 | G41: 0 | H41: 0 | I41: 0 | J41: 0 | K41: 0 | L41: 0 | M41: 0 | N41: 0 | O41: 0 | P41: 0 | Q41: 0 | R41: 0 | S41: 0 | T41: 0 | U41: 0 | V41: 0 | W41: 0 | X41: 0 | Y41: 0 | Z41: 0 | AA41: 0 | AB41: 0 | AC41: 0 | AD41: 0 | AE41: 0 | AF41: 0 | AG41: 0 | AH41: 0 | AI41: 0 | AJ41: 0 | AK41: 0 | AL41: 0 | AM41: 0 | AN41: 0 | AO41: 0 | AP41: 0 | AQ41: 0 | AR41: 0 | AS41: 0 | AT41: 0 | AU41: 0 | AV41: 0 | AW41: =(-AW88-AW103+AW118+AW133)*AW$10*AW$14 -> 0 | AX41: 0 | AY41: 0 | AZ41: 0 | BA41: -0.04473677101 | BB41: 0 | BC41: 0 | BD41: 0 | BE41: 0 | BF41: 0 | BG41: 0 | BH41: 0 | BI41: 0 | BJ41: 0 | BK41: 0
A42: =ROW() -> 42 | B42: Other assets | D42: =(-D89-D104+D119+D134)*D$10 -> 0 | E42: 0 | F42: 0 | G42: 0 | H42: 0 | I42: 0 | J42: 0 | K42: 0 | L42: 0 | M42: 0 | N42: 0 | O42: 0 | P42: 0 | Q42: 0 | R42: 0 | S42: 0 | T42: 0 | U42: 0 | V42: 0 | W42: 0 | X42: 0 | Y42: 0 | Z42: 0 | AA42: 0 | AB42: 0 | AC42: 0 | AD42: 0 | AE42: 0 | AF42: 0 | AG42: 0 | AH42: 0 | AI42: 0 | AJ42: 0 | AK42: 0 | AL42: 0 | AM42: 0 | AN42: 0 | AO42: 0 | AP42: 0 | AQ42: 0 | AR42: 0 | AS42: 0 | AT42: 0 | AU42: 0 | AV42: 0 | AW42: =(-AW89-AW104+AW119+AW134)*AW$10*AW$14 -> 0 | AX42: 0 | AY42: 0 | AZ42: 0 | BA42: 0.01992481172 | BB42: 0 | BC42: 0 | BD42: 0 | BE42: 0 | BF42: 0 | BG42: 0 | BH42: 0 | BI42: 0 | BJ42: 0 | BK42: 0
A43: =ROW() -> 43 | B43: Equity Raising Cost | D43: =(-D90-D105+D120+D135)*D$10 -> 0 | E43: 0 | F43: 0 | G43: 0 | H43: 0 | I43: 0 | J43: 0 | K43: 0 | L43: 0 | M43: 0 | N43: 0 | O43: 0 | P43: 0 | Q43: 0 | R43: 0 | S43: 0 | T43: 0 | U43: 0 | V43: 0 | W43: 0 | X43: 0 | Y43: 0 | Z43: 0 | AA43: 0 | AB43: 0 | AC43: 0 | AD43: 0 | AE43: 0 | AF43: 0 | AG43: 0 | AH43: 0 | AI43: 0 | AJ43: 0 | AK43: 0 | AL43: 0 | AM43: 0 | AN43: 0 | AO43: 0 | AP43: 0 | AQ43: 0 | AR43: 0 | AS43: 0 | AT43: 0 | AU43: 0 | AV43: 0 | AW43: =(-AW90-AW105+AW120+AW135)*AW$10*AW$14 -> 0 | AX43: 0 | AY43: 0 | AZ43: 0 | BA43: 0 | BB43: 0 | BC43: 0 | BD43: 0 | BE43: 0 | BF43: 0 | BG43: 0 | BH43: 0 | BI43: 0 | BJ43: 0 | BK43: 0
A44: =ROW() -> 44 | B44: Non-depreciable assets | D44: =(-D91-D106+D121+D136)*D$10 -> 0 | E44: 0 | F44: 0 | G44: 0 | H44: 0 | I44: 0 | J44: 0 | K44: 0 | L44: 0 | M44: 0 | N44: 0 | O44: 0 | P44: 0 | Q44: 0 | R44: 0 | S44: 0 | T44: 0 | U44: 0 | V44: 0 | W44: 0 | X44: 0 | Y44: 0 | Z44: 0 | AA44: 0 | AB44: 0 | AC44: 0 | AD44: 0 | AE44: 0 | AF44: 0 | AG44: 0 | AH44: 0 | AI44: 0 | AJ44: 0 | AK44: 0 | AL44: 0 | AM44: 0 | AN44: 0 | AO44: 0 | AP44: 0 | AQ44: 0 | AR44: 0 | AS44: 0 | AT44: 0 | AU44: 0 | AV44: 0 | AW44: =(-AW91-AW106+AW121+AW136)*AW$10*AW$14 -> 0 | AX44: 0 | AY44: 0 | AZ44: 0 | BA44: 0 | BB44: 0 | BC44: 0 | BD44: 0 | BE44: 0 | BF44: 0 | BG44: 0 | BH44: 0 | BI44: 0 | BJ44: 0 | BK44: 0
A45: =ROW() -> 45 | B45: Shared support assets - IOT & cyber security | D45: =(-D92-D107+D122+D137)*D$10 -> 0 | E45: 0 | F45: 0 | G45: 0 | H45: 0 | I45: 0 | J45: 0 | K45: 0 | L45: 0 | M45: 0 | N45: 0 | O45: 0 | P45: 0 | Q45: 0 | R45: 0 | S45: 0 | T45: 0 | U45: 0 | V45: 0 | W45: 0 | X45: 0 | Y45: 0 | Z45: 0 | AA45: 0 | AB45: 0 | AC45: 0 | AD45: 0 | AE45: 0 | AF45: 0 | AG45: 0 | AH45: 0 | AI45: 0 | AJ45: 0 | AK45: 0 | AL45: 0 | AM45: 0 | AN45: 0 | AO45: 0 | AP45: 0 | AQ45: 0 | AR45: 0 | AS45: 0 | AT45: 0 | AU45: 0 | AV45: 0 | AW45: =(-AW92-AW107+AW122+AW137)*AW$10*AW$14 -> 0 | AX45: 0 | AY45: 0 | AZ45: 0 | BA45: 0 | BB45: 0 | BC45: 0 | BD45: 0 | BE45: 0 | BF45: 0 | BG45: 0 | BH45: 0 | BI45: 0 | BJ45: 0 | BK45: 0
A46: =ROW() -> 46 | B46: Shared support assets (net IOT & cyber security) | D46: =(-D93-D108+D123+D138)*D$10 -> 0 | E46: 0 | F46: 0 | G46: 0 | H46: 0 | I46: 0 | J46: 0 | K46: 0 | L46: 0 | M46: 0 | N46: 0 | O46: 0 | P46: 0 | Q46: 0 | R46: 0 | S46: 0 | T46: 0 | U46: 0 | V46: 0 | W46: 0 | X46: 0 | Y46: 0 | Z46: 0 | AA46: 0 | AB46: 0 | AC46: 0 | AD46: 0 | AE46: 0 | AF46: 0 | AG46: 0 | AH46: 0 | AI46: 0 | AJ46: 0 | AK46: 0 | AL46: 0 | AM46: 0 | AN46: 0 | AO46: 0 | AP46: 0 | AQ46: 0 | AR46: 0 | AS46: 0 | AT46: 0 | AU46: 0 | AV46: 0 | AW46: =(-AW93-AW108+AW123+AW138)*AW$10*AW$14 -> 0 | AX46: 0 | AY46: 0 | AZ46: 0 | BA46: 0 | BB46: 0 | BC46: 0 | BD46: 0 | BE46: 0 | BF46: 0 | BG46: 0 | BH46: 0 | BI46: 0 | BJ46: 0 | BK46: 0
A47: =ROW() -> 47 | B47: Miscellaneous assets | D47: =(-D94-D109+D124+D139)*D$10 -> 0 | E47: 0 | F47: 0 | G47: 0 | H47: 0 | I47: 0 | J47: 0 | K47: 0 | L47: 0 | M47: 0 | N47: 0 | O47: 0 | P47: 0 | Q47: 0 | R47: 0 | S47: 0 | T47: 0 | U47: 0 | V47: 0 | W47: 0 | X47: 0 | Y47: 0 | Z47: 0 | AA47: 0 | AB47: 0 | AC47: 0 | AD47: 0 | AE47: 0 | AF47: 0 | AG47: 0 | AH47: 0 | AI47: 0 | AJ47: 0 | AK47: 0 | AL47: 0 | AM47: 0 | AN47: 0 | AO47: 0 | AP47: 0 | AQ47: 0 | AR47: 0 | AS47: 0 | AT47: 0 | AU47: 0 | AV47: 0 | AW47: =(-AW94-AW109+AW124+AW139)*AW$10*AW$14 -> 0 | AX47: 0 | AY47: 0 | AZ47: 0 | BA47: 0 | BB47: 0 | BC47: 0 | BD47: 0 | BE47: 0 | BF47: 0 | BG47: 0 | BH47: 0 | BI47: 0 | BJ47: 0 | BK47: 0
A48: =ROW() -> 48 | B48: Totals | D48: =SUM(D35:D47) -> 0 | E48: =SUM(E35:E47) -> 0 | F48: =SUM(F35:F47) -> 0 | G48: =SUM(G35:G47) -> 0 | H48: =SUM(H35:H47) -> 0 | I48: =SUM(I35:I47) -> 0 | J48: =SUM(J35:J47) -> 0 | K48: =SUM(K35:K47) -> 0 | L48: =SUM(L35:L47) -> 0 | M48: =SUM(M35:M47) -> 0 | N48: =SUM(N35:N47) -> 0 | O48: =SUM(O35:O47) -> 0 | P48: =SUM(P35:P47) -> 0 | Q48: =SUM(Q35:Q47) -> 0 | R48: =SUM(R35:R47) -> 0 | S48: =SUM(S35:S47) -> 0 | T48: =SUM(T35:T47) -> 0 | U48: =SUM(U35:U47) -> 0 | V48: =SUM(V35:V47) -> 0 | W48: =SUM(W35:W47) -> 0 | X48: =SUM(X35:X47) -> 0 | Y48: =SUM(Y35:Y47) -> 0 | Z48: =SUM(Z35:Z47) -> 0 | AA48: =SUM(AA35:AA47) -> 0 | AB48: =SUM(AB35:AB47) -> 0 | AC48: =SUM(AC35:AC47) -> 0 | AD48: =SUM(AD35:AD47) -> 0 | AE48: =SUM(AE35:AE47) -> 0 | AF48: =SUM(AF35:AF47) -> 0 | AG48: =SUM(AG35:AG47) -> 0 | AH48: =SUM(AH35:AH47) -> 0 | AI48: =SUM(AI35:AI47) -> 0 | AJ48: =SUM(AJ35:AJ47) -> 0 | AK48: =SUM(AK35:AK47) -> 0 | AL48: =SUM(AL35:AL47) -> 0 | AM48: =SUM(AM35:AM47) -> 0 | AN48: =SUM(AN35:AN47) -> 0 | AO48: =SUM(AO35:AO47) -> 0 | AP48: =SUM(AP35:AP47) -> 0 | AQ48: =SUM(AQ35:AQ47) -> 0 | AR48: =SUM(AR35:AR47) -> 0 | AS48: =SUM(AS35:AS47) -> 0 | AT48: =SUM(AT35:AT47) -> 0 | AU48: =SUM(AU35:AU47) -> 0 | AV48: =SUM(AV35:AV47) -> 0 | AW48: =SUM(AW35:AW47) -> 0 | AX48: =SUM(AX35:AX47) -> 0 | AY48: =SUM(AY35:AY47) -> 0 | AZ48: =SUM(AZ35:AZ47) -> 0 | BA48: =SUM(BA35:BA47) -> -0.06098591996 | BB48: =SUM(BB35:BB47) -> 0 | BC48: =SUM(BC35:BC47) -> 0 | BD48: =SUM(BD35:BD47) -> 0 | BE48: =SUM(BE35:BE47) -> 0 | BF48: =SUM(BF35:BF47) -> 0 | BG48: =SUM(BG35:BG47) -> 0 | BH48: =SUM(BH35:BH47) -> 0 | BI48: =SUM(BI35:BI47) -> 0 | BJ48: =SUM(BJ35:BJ47) -> 0 | BK48: =SUM(BK35:BK47) -> 0
A49: =ROW() -> 49 | B49: ICB Adjustment (for AA1 enter aggregated annual amount into each quarter)
A50: =ROW() -> 50 | B50: Asset Disposal | D50: $OD | E50: $OD | F50: $OD | G50: $OD | H50: $OD | I50: $OD | J50: $OD | K50: $OD | L50: $OD | M50: $OD | N50: $OD | O50: $OD | P50: $OD | Q50: $OD | R50: $OD | S50: $OD | T50: $OD | U50: $OD | V50: $OD | W50: $OD | X50: $OD | Y50: $OD | Z50: $OD | AA50: $OD | AB50: $OD | AC50: $OD | AD50: $OD | AE50: $OD | AF50: $OD | AG50: $OD | AH50: $OD | AI50: $OD | AJ50: $OD | AK50: $OD | AL50: $OD | AM50: $OD | AN50: $OD | AO50: $OD | AP50: $OD | AQ50: $OD | AR50: $OD | AS50: $OD | AT50: $OD | AU50: $OD | AV50: $OD | AW50: $OD | AX50: $OD | AY50: $OD | AZ50: $OD | BA50: $OD | BB50: $OD | BC50: $OD | BD50: $OD | BE50: $OD | BF50: $OD | BG50: $OD | BH50: $OD | BI50: $OD | BJ50: $OD | BK50: $OD
A51: =ROW() -> 51 | B51: Pipeline and laterals
A52: =ROW() -> 52 | B52: Main line valve and scraper stations
A53: =ROW() -> 53 | B53: Compressor stations
A54: =ROW() -> 54 | B54: Receipt and delivery point facilities
A55: =ROW() -> 55 | B55: SCADA and communications
A56: =ROW() -> 56 | B56: Cathodic protection
A57: =ROW() -> 57 | B57: Maintenance bases and depots
A58: =ROW() -> 58 | B58: Other assets
A59: =ROW() -> 59 | B59: Equity Raising Cost
A60: =ROW() -> 60 | B60: Non-depreciable assets
A61: =ROW() -> 61 | B61: Shared support assets - IOT & cyber security
A62: =ROW() -> 62 | B62: Shared support assets (net IOT & cyber security)
A63: =ROW() -> 63 | B63: Miscellaneous assets
A64: =ROW() -> 64 | B64: Totals | D64: =SUM(D51:D63) -> 0 | E64: =SUM(E51:E63) -> 0 | F64: 0 | G64: 0 | H64: 0 | I64: 0 | J64: 0 | K64: 0 | L64: 0 | M64: 0 | N64: 0 | O64: 0 | P64: 0 | Q64: 0 | R64: 0 | S64: 0 | T64: 0 | U64: 0 | V64: 0 | W64: 0 | X64: 0 | Y64: 0 | Z64: 0 | AA64: 0 | AB64: 0 | AC64: 0 | AD64: 0 | AE64: 0 | AF64: 0 | AG64: 0 | AH64: 0 | AI64: 0 | AJ64: 0 | AK64: 0 | AL64: 0 | AM64: 0 | AN64: 0 | AO64: 0 | AP64: 0 | AQ64: 0 | AR64: 0 | AS64: 0 | AT64: 0 | AU64: 0 | AV64: 0 | AW64: 0 | AX64: 0 | AY64: 0 | AZ64: 0 | BA64: 0 | BB64: 0 | BC64: 0 | BD64: 0 | BE64: 0 | BF64: 0 | BG64: 0 | BH64: 0 | BI64: 0 | BJ64: 0 | BK64: 0
A65: =ROW() -> 65 | B65: Redundant Assets | D65: $OD | E65: $OD | F65: $OD | G65: $OD | H65: $OD | I65: $OD | J65: $OD | K65: $OD | L65: $OD | M65: $OD | N65: $OD | O65: $OD | P65: $OD | Q65: $OD | R65: $OD | S65: $OD | T65: $OD | U65: $OD | V65: $OD | W65: $OD | X65: $OD | Y65: $OD | Z65: $OD | AA65: $OD | AB65: $OD | AC65: $OD | AD65: $OD | AE65: $OD | AF65: $OD | AG65: $OD | AH65: $OD | AI65: $OD | AJ65: $OD | AK65: $OD | AL65: $OD | AM65: $OD | AN65: $OD | AO65: $OD | AP65: $OD | AQ65: $OD | AR65: $OD | AS65: $OD | AT65: $OD | AU65: $OD | AV65: $OD | AW65: $OD | AX65: $OD | AY65: $OD | AZ65: $OD | BA65: $OD | BB65: $OD | BC65: $OD | BD65: $OD | BE65: $OD | BF65: $OD | BG65: $OD | BH65: $OD | BI65: $OD | BJ65: $OD | BK65: $OD
A66: =ROW() -> 66 | B66: Pipeline and laterals
A67: =ROW() -> 67 | B67: Main line valve and scraper stations
A68: =ROW() -> 68 | B68: Compressor stations
A69: =ROW() -> 69 | B69: Receipt and delivery point facilities
A70: =ROW() -> 70 | B70: SCADA and communications
A71: =ROW() -> 71 | B71: Cathodic protection
A72: =ROW() -> 72 | B72: Maintenance bases and depots
A73: =ROW() -> 73 | B73: Other assets
A74: =ROW() -> 74 | B74: Equity Raising Cost
A75: =ROW() -> 75 | B75: Non-depreciable assets
A76: =ROW() -> 76 | B76: Shared support assets - IOT & cyber security
A77: =ROW() -> 77 | B77: Shared support assets (net IOT & cyber security)
A78: =ROW() -> 78 | B78: Miscellaneous assets
A79: =ROW() -> 79 | B79: Totals | D79: =SUM(D66:D78) -> 0 | E79: =SUM(E66:E78) -> 0 | F79: =SUM(F66:F78) -> 0 | G79: =SUM(G66:G78) -> 0 | H79: =SUM(H66:H78) -> 0 | I79: =SUM(I66:I78) -> 0 | J79: =SUM(J66:J78) -> 0 | K79: =SUM(K66:K78) -> 0 | L79: =SUM(L66:L78) -> 0 | M79: =SUM(M66:M78) -> 0 | N79: =SUM(N66:N78) -> 0 | O79: =SUM(O66:O78) -> 0 | P79: =SUM(P66:P78) -> 0 | Q79: =SUM(Q66:Q78) -> 0 | R79: =SUM(R66:R78) -> 0 | S79: =SUM(S66:S78) -> 0 | T79: =SUM(T66:T78) -> 0 | U79: =SUM(U66:U78) -> 0 | V79: =SUM(V66:V78) -> 0 | W79: =SUM(W66:W78) -> 0 | X79: =SUM(X66:X78) -> 0 | Y79: =SUM(Y66:Y78) -> 0 | Z79: =SUM(Z66:Z78) -> 0 | AA79: =SUM(AA66:AA78) -> 0 | AB79: =SUM(AB66:AB78) -> 0 | AC79: =SUM(AC66:AC78) -> 0 | AD79: =SUM(AD66:AD78) -> 0 | AE79: =SUM(AE66:AE78) -> 0 | AF79: =SUM(AF66:AF78) -> 0 | AG79: =SUM(AG66:AG78) -> 0 | AH79: =SUM(AH66:AH78) -> 0 | AI79: =SUM(AI66:AI78) -> 0 | AJ79: =SUM(AJ66:AJ78) -> 0 | AK79: =SUM(AK66:AK78) -> 0 | AL79: =SUM(AL66:AL78) -> 0 | AM79: =SUM(AM66:AM78) -> 0 | AN79: =SUM(AN66:AN78) -> 0 | AO79: =SUM(AO66:AO78) -> 0 | AP79: =SUM(AP66:AP78) -> 0 | AQ79: =SUM(AQ66:AQ78) -> 0 | AR79: =SUM(AR66:AR78) -> 0 | AS79: =SUM(AS66:AS78) -> 0 | AT79: =SUM(AT66:AT78) -> 0 | AU79: =SUM(AU66:AU78) -> 0 | AV79: =SUM(AV66:AV78) -> 0 | AW79: =SUM(AW66:AW78) -> 0 | AX79: =SUM(AX66:AX78) -> 0 | AY79: =SUM(AY66:AY78) -> 0 | AZ79: =SUM(AZ66:AZ78) -> 0 | BA79: =SUM(BA66:BA78) -> 0 | BB79: =SUM(BB66:BB78) -> 0 | BC79: =SUM(BC66:BC78) -> 0 | BD79: =SUM(BD66:BD78) -> 0 | BE79: =SUM(BE66:BE78) -> 0 | BF79: =SUM(BF66:BF78) -> 0 | BG79: =SUM(BG66:BG78) -> 0 | BH79: =SUM(BH66:BH78) -> 0 | BI79: =SUM(BI66:BI78) -> 0 | BJ79: =SUM(BJ66:BJ78) -> 0 | BK79: =SUM(BK66:BK78) -> 0
A80: =ROW() -> 80 | B80: Capex Adjustment (for AA1 enter aggregated annual amount into each quarter)
A81: =ROW() -> 81 | B81: Asset Disposal (New Facility Investment) | D81: $OD | E81: $OD | F81: $OD | G81: $OD | H81: $OD | I81: $OD | J81: $OD | K81: $OD | L81: $OD | M81: $OD | N81: $OD | O81: $OD | P81: $OD | Q81: $OD | R81: $OD | S81: $OD | T81: $OD | U81: $OD | V81: $OD | W81: $OD | X81: $OD | Y81: $OD | Z81: $OD | AA81: $OD | AB81: $OD | AC81: $OD | AD81: $OD | AE81: $OD | AF81: $OD | AG81: $OD | AH81: $OD | AI81: $OD | AJ81: $OD | AK81: $OD | AL81: $OD | AM81: $OD | AN81: $OD | AO81: $OD | AP81: $OD | AQ81: $OD | AR81: $OD | AS81: $OD | AT81: $OD | AU81: $OD | AV81: $OD | AW81: $OD | AX81: $OD | AY81: $OD | AZ81: $OD | BA81: $OD | BB81: $OD | BC81: $OD | BD81: $OD | BE81: $OD | BF81: $OD | BG81: $OD | BH81: $OD | BI81: $OD | BJ81: $OD | BK81: $OD
A82: =ROW() -> 82 | B82: Pipeline and laterals
A83: =ROW() -> 83 | B83: Main line valve and scraper stations
A84: =ROW() -> 84 | B84: Compressor stations
A85: =ROW() -> 85 | B85: Receipt and delivery point facilities
A86: =ROW() -> 86 | B86: SCADA and communications
A87: =ROW() -> 87 | B87: Cathodic protection
A88: =ROW() -> 88 | B88: Maintenance bases and depots
A89: =ROW() -> 89 | B89: Other assets
A90: =ROW() -> 90 | B90: Equity Raising Cost
A91: =ROW() -> 91 | B91: Non-depreciable assets
A92: =ROW() -> 92 | B92: Shared support assets - IOT & cyber security
A93: =ROW() -> 93 | B93: Shared support assets (net IOT & cyber security)
A94: =ROW() -> 94 | B94: Miscellaneous assets
A95: =ROW() -> 95 | B95: Totals | D95: =SUM(D82:D94) -> 0 | E95: =SUM(E82:E94) -> 0 | F95: =SUM(F82:F94) -> 0 | G95: =SUM(G82:G94) -> 0 | H95: =SUM(H82:H94) -> 0 | I95: =SUM(I82:I94) -> 0 | J95: =SUM(J82:J94) -> 0 | K95: =SUM(K82:K94) -> 0 | L95: =SUM(L82:L94) -> 0 | M95: =SUM(M82:M94) -> 0 | N95: =SUM(N82:N94) -> 0 | O95: =SUM(O82:O94) -> 0 | P95: =SUM(P82:P94) -> 0 | Q95: =SUM(Q82:Q94) -> 0 | R95: =SUM(R82:R94) -> 0 | S95: =SUM(S82:S94) -> 0 | T95: =SUM(T82:T94) -> 0 | U95: =SUM(U82:U94) -> 0 | V95: =SUM(V82:V94) -> 0 | W95: =SUM(W82:W94) -> 0 | X95: =SUM(X82:X94) -> 0 | Y95: =SUM(Y82:Y94) -> 0 | Z95: =SUM(Z82:Z94) -> 0 | AA95: =SUM(AA82:AA94) -> 0 | AB95: =SUM(AB82:AB94) -> 0 | AC95: =SUM(AC82:AC94) -> 0 | AD95: =SUM(AD82:AD94) -> 0 | AE95: =SUM(AE82:AE94) -> 0 | AF95: =SUM(AF82:AF94) -> 0 | AG95: =SUM(AG82:AG94) -> 0 | AH95: =SUM(AH82:AH94) -> 0 | AI95: =SUM(AI82:AI94) -> 0 | AJ95: =SUM(AJ82:AJ94) -> 0 | AK95: =SUM(AK82:AK94) -> 0 | AL95: =SUM(AL82:AL94) -> 0 | AM95: =SUM(AM82:AM94) -> 0 | AN95: =SUM(AN82:AN94) -> 0 | AO95: =SUM(AO82:AO94) -> 0 | AP95: =SUM(AP82:AP94) -> 0 | AQ95: =SUM(AQ82:AQ94) -> 0 | AR95: =SUM(AR82:AR94) -> 0 | AS95: =SUM(AS82:AS94) -> 0 | AT95: =SUM(AT82:AT94) -> 0 | AU95: =SUM(AU82:AU94) -> 0 | AV95: =SUM(AV82:AV94) -> 0 | AW95: =SUM(AW82:AW94) -> 0 | AX95: =SUM(AX82:AX94) -> 0 | AY95: =SUM(AY82:AY94) -> 0 | AZ95: =SUM(AZ82:AZ94) -> 0 | BA95: =SUM(BA82:BA94) -> 0 | BB95: =SUM(BB82:BB94) -> 0 | BC95: =SUM(BC82:BC94) -> 0 | BD95: =SUM(BD82:BD94) -> 0 | BE95: =SUM(BE82:BE94) -> 0 | BF95: =SUM(BF82:BF94) -> 0 | BG95: =SUM(BG82:BG94) -> 0 | BH95: =SUM(BH82:BH94) -> 0 | BI95: =SUM(BI82:BI94) -> 0 | BJ95: =SUM(BJ82:BJ94) -> 0 | BK95: =SUM(BK82:BK94) -> 0
A96: =ROW() -> 96 | B96: Redundant Assets (New Facility Investment) | D96: $OD | E96: $OD | F96: $OD | G96: $OD | H96: $OD | I96: $OD | J96: $OD | K96: $OD | L96: $OD | M96: $OD | N96: $OD | O96: $OD | P96: $OD | Q96: $OD | R96: $OD | S96: $OD | T96: $OD | U96: $OD | V96: $OD | W96: $OD | X96: $OD | Y96: $OD | Z96: $OD | AA96: $OD | AB96: $OD | AC96: $OD | AD96: $OD | AE96: $OD | AF96: $OD | AG96: $OD | AH96: $OD | AI96: $OD | AJ96: $OD | AK96: $OD | AL96: $OD | AM96: $OD | AN96: $OD | AO96: $OD | AP96: $OD | AQ96: $OD | AR96: $OD | AS96: $OD | AT96: $OD | AU96: $OD | AV96: $OD | AW96: $OD | AX96: $OD | AY96: $OD | AZ96: $OD | BA96: $OD | BB96: $OD | BC96: $OD | BD96: $OD | BE96: $OD | BF96: $OD | BG96: $OD | BH96: $OD | BI96: $OD | BJ96: $OD | BK96: $OD
A97: =ROW() -> 97 | B97: Pipeline and laterals
A98: =ROW() -> 98 | B98: Main line valve and scraper stations
A99: =ROW() -> 99 | B99: Compressor stations
A100: =ROW() -> 100 | B100: Receipt and delivery point facilities
A101: =ROW() -> 101 | B101: SCADA and communications
A102: =ROW() -> 102 | B102: Cathodic protection
A103: =ROW() -> 103 | B103: Maintenance bases and depots
A104: =ROW() -> 104 | B104: Other assets
A105: =ROW() -> 105 | B105: Equity Raising Cost
A106: =ROW() -> 106 | B106: Non-depreciable assets
A107: =ROW() -> 107 | B107: Shared support assets - IOT & cyber security
A108: =ROW() -> 108 | B108: Shared support assets (net IOT & cyber security)
A109: =ROW() -> 109 | B109: Miscellaneous assets
A110: =ROW() -> 110 | B110: Totals | D110: =SUM(D97:D109) -> 0 | E110: =SUM(E97:E109) -> 0 | F110: =SUM(F97:F109) -> 0 | G110: =SUM(G97:G109) -> 0 | H110: =SUM(H97:H109) -> 0 | I110: =SUM(I97:I109) -> 0 | J110: =SUM(J97:J109) -> 0 | K110: =SUM(K97:K109) -> 0 | L110: =SUM(L97:L109) -> 0 | M110: =SUM(M97:M109) -> 0 | N110: =SUM(N97:N109) -> 0 | O110: =SUM(O97:O109) -> 0 | P110: =SUM(P97:P109) -> 0 | Q110: =SUM(Q97:Q109) -> 0 | R110: =SUM(R97:R109) -> 0 | S110: =SUM(S97:S109) -> 0 | T110: =SUM(T97:T109) -> 0 | U110: =SUM(U97:U109) -> 0 | V110: =SUM(V97:V109) -> 0 | W110: =SUM(W97:W109) -> 0 | X110: =SUM(X97:X109) -> 0 | Y110: =SUM(Y97:Y109) -> 0 | Z110: =SUM(Z97:Z109) -> 0 | AA110: =SUM(AA97:AA109) -> 0 | AB110: =SUM(AB97:AB109) -> 0 | AC110: =SUM(AC97:AC109) -> 0 | AD110: =SUM(AD97:AD109) -> 0 | AE110: =SUM(AE97:AE109) -> 0 | AF110: =SUM(AF97:AF109) -> 0 | AG110: =SUM(AG97:AG109) -> 0 | AH110: =SUM(AH97:AH109) -> 0 | AI110: =SUM(AI97:AI109) -> 0 | AJ110: =SUM(AJ97:AJ109) -> 0 | AK110: =SUM(AK97:AK109) -> 0 | AL110: =SUM(AL97:AL109) -> 0 | AM110: =SUM(AM97:AM109) -> 0 | AN110: =SUM(AN97:AN109) -> 0 | AO110: =SUM(AO97:AO109) -> 0 | AP110: =SUM(AP97:AP109) -> 0 | AQ110: =SUM(AQ97:AQ109) -> 0 | AR110: =SUM(AR97:AR109) -> 0 | AS110: =SUM(AS97:AS109) -> 0 | AT110: =SUM(AT97:AT109) -> 0 | AU110: =SUM(AU97:AU109) -> 0 | AV110: =SUM(AV97:AV109) -> 0 | AW110: =SUM(AW97:AW109) -> 0 | AX110: =SUM(AX97:AX109) -> 0 | AY110: =SUM(AY97:AY109) -> 0 | AZ110: =SUM(AZ97:AZ109) -> 0 | BA110: =SUM(BA97:BA109) -> 0 | BB110: =SUM(BB97:BB109) -> 0 | BC110: =SUM(BC97:BC109) -> 0 | BD110: =SUM(BD97:BD109) -> 0 | BE110: =SUM(BE97:BE109) -> 0 | BF110: =SUM(BF97:BF109) -> 0 | BG110: =SUM(BG97:BG109) -> 0 | BH110: =SUM(BH97:BH109) -> 0 | BI110: =SUM(BI97:BI109) -> 0 | BJ110: =SUM(BJ97:BJ109) -> 0 | BK110: =SUM(BK97:BK109) -> 0
A111: =ROW() -> 111 | B111: Addition to Capital Base (NGR 82, 84 & 86) | D111: $OD | E111: $OD | F111: $OD | G111: $OD | H111: $OD | I111: $OD | J111: $OD | K111: $OD | L111: $OD | M111: $OD | N111: $OD | O111: $OD | P111: $OD | Q111: $OD | R111: $OD | S111: $OD | T111: $OD | U111: $OD | V111: $OD | W111: $OD | X111: $OD | Y111: $OD | Z111: $OD | AA111: $OD | AB111: $OD | AC111: $OD | AD111: $OD | AE111: $OD | AF111: $OD | AG111: $OD | AH111: $OD | AI111: $OD | AJ111: $OD | AK111: $OD | AL111: $OD | AM111: $OD | AN111: $OD | AO111: $OD | AP111: $OD | AQ111: $OD | AR111: $OD | AS111: $OD | AT111: $OD | AU111: $OD | AV111: $OD | AW111: $OD | AX111: $OD | AY111: $OD | AZ111: $OD | BA111: $OD | BB111: $OD | BC111: $OD | BD111: $OD | BE111: $OD | BF111: $OD | BG111: $OD | BH111: $OD | BI111: $OD | BJ111: $OD | BK111: $OD
A112: =ROW() -> 112 | B112: Pipeline and laterals
A113: =ROW() -> 113 | B113: Main line valve and scraper stations
A114: =ROW() -> 114 | B114: Compressor stations
A115: =ROW() -> 115 | B115: Receipt and delivery point facilities
A116: =ROW() -> 116 | B116: SCADA and communications
A117: =ROW() -> 117 | B117: Cathodic protection
A118: =ROW() -> 118 | B118: Maintenance bases and depots
A119: =ROW() -> 119 | B119: Other assets
A120: =ROW() -> 120 | B120: Equity Raising Cost
A121: =ROW() -> 121 | B121: Non-depreciable assets
A122: =ROW() -> 122 | B122: Shared support assets - IOT & cyber security
A123: =ROW() -> 123 | B123: Shared support assets (net IOT & cyber security)
A124: =ROW() -> 124 | B124: Miscellaneous assets
A125: =ROW() -> 125 | B125: Totals | D125: =SUM(D112:D124) -> 0 | E125: =SUM(E112:E124) -> 0 | F125: =SUM(F112:F124) -> 0 | G125: =SUM(G112:G124) -> 0 | H125: =SUM(H112:H124) -> 0 | I125: =SUM(I112:I124) -> 0 | J125: =SUM(J112:J124) -> 0 | K125: =SUM(K112:K124) -> 0 | L125: =SUM(L112:L124) -> 0 | M125: =SUM(M112:M124) -> 0 | N125: =SUM(N112:N124) -> 0 | O125: =SUM(O112:O124) -> 0 | P125: =SUM(P112:P124) -> 0 | Q125: =SUM(Q112:Q124) -> 0 | R125: =SUM(R112:R124) -> 0 | S125: =SUM(S112:S124) -> 0 | T125: =SUM(T112:T124) -> 0 | U125: =SUM(U112:U124) -> 0 | V125: =SUM(V112:V124) -> 0 | W125: =SUM(W112:W124) -> 0 | X125: =SUM(X112:X124) -> 0 | Y125: =SUM(Y112:Y124) -> 0 | Z125: =SUM(Z112:Z124) -> 0 | AA125: =SUM(AA112:AA124) -> 0 | AB125: =SUM(AB112:AB124) -> 0 | AC125: =SUM(AC112:AC124) -> 0 | AD125: =SUM(AD112:AD124) -> 0 | AE125: =SUM(AE112:AE124) -> 0 | AF125: =SUM(AF112:AF124) -> 0 | AG125: =SUM(AG112:AG124) -> 0 | AH125: =SUM(AH112:AH124) -> 0 | AI125: =SUM(AI112:AI124) -> 0 | AJ125: =SUM(AJ112:AJ124) -> 0 | AK125: =SUM(AK112:AK124) -> 0 | AL125: =SUM(AL112:AL124) -> 0 | AM125: =SUM(AM112:AM124) -> 0 | AN125: =SUM(AN112:AN124) -> 0 | AO125: =SUM(AO112:AO124) -> 0 | AP125: =SUM(AP112:AP124) -> 0 | AQ125: =SUM(AQ112:AQ124) -> 0 | AR125: =SUM(AR112:AR124) -> 0 | AS125: =SUM(AS112:AS124) -> 0 | AT125: =SUM(AT112:AT124) -> 0 | AU125: =SUM(AU112:AU124) -> 0 | AV125: =SUM(AV112:AV124) -> 0 | AW125: =SUM(AW112:AW124) -> 0 | AX125: =SUM(AX112:AX124) -> 0 | AY125: =SUM(AY112:AY124) -> 0 | AZ125: =SUM(AZ112:AZ124) -> 0 | BA125: =SUM(BA112:BA124) -> 0 | BB125: =SUM(BB112:BB124) -> 0 | BC125: =SUM(BC112:BC124) -> 0 | BD125: =SUM(BD112:BD124) -> 0 | BE125: =SUM(BE112:BE124) -> 0 | BF125: =SUM(BF112:BF124) -> 0 | BG125: =SUM(BG112:BG124) -> 0 | BH125: =SUM(BH112:BH124) -> 0 | BI125: =SUM(BI112:BI124) -> 0 | BJ125: =SUM(BJ112:BJ124) -> 0 | BK125: =SUM(BK112:BK124) -> 0
A126: =ROW() -> 126 | B126: Capex Cost Pass Through (NGR 97) | D126: $OD | E126: $OD | F126: $OD | G126: $OD | H126: $OD | I126: $OD | J126: $OD | K126: $OD | L126: $OD | M126: $OD | N126: $OD | O126: $OD | P126: $OD | Q126: $OD | R126: $OD | S126: $OD | T126: $OD | U126: $OD | V126: $OD | W126: $OD | X126: $OD | Y126: $OD | Z126: $OD | AA126: $OD | AB126: $OD | AC126: $OD | AD126: $OD | AE126: $OD | AF126: $OD | AG126: $OD | AH126: $OD | AI126: $OD | AJ126: $OD | AK126: $OD | AL126: $OD | AM126: $OD | AN126: $OD | AO126: $OD | AP126: $OD | AQ126: $OD | AR126: $OD | AS126: $OD | AT126: $OD | AU126: $OD | AV126: $OD | AW126: $OD | AX126: $OD | AY126: $OD | AZ126: $OD | BA126: $OD | BB126: $OD | BC126: $OD | BD126: $OD | BE126: $OD | BF126: $OD | BG126: $OD | BH126: $OD | BI126: $OD | BJ126: $OD | BK126: $OD
A127: =ROW() -> 127 | B127: Pipeline and laterals | BA127: ='2019 Capex NGR 77(2)(a)'!L6 -> 0.004181425042
A128: =ROW() -> 128 | B128: Main line valve and scraper stations | BA128: ='2019 Capex NGR 77(2)(a)'!L7 -> 0
A129: =ROW() -> 129 | B129: Compressor stations | BA129: ='2019 Capex NGR 77(2)(a)'!L8 -> -0.1170184084
A130: =ROW() -> 130 | B130: Receipt and delivery point facilities | BA130: ='2019 Capex NGR 77(2)(a)'!L9 -> 0.03370058793
A131: =ROW() -> 131 | B131: SCADA and communications | BA131: ='2019 Capex NGR 77(2)(a)'!L10 -> 0.05928663363
A132: =ROW() -> 132 | B132: Cathodic protection | BA132: ='2019 Capex NGR 77(2)(a)'!L11 -> -0.01103498642
A133: =ROW() -> 133 | B133: Maintenance bases and depots | BA133: ='2019 Capex NGR 77(2)(a)'!L12 -> -0.03819553851
A134: =ROW() -> 134 | B134: Other assets | BA134: ='2019 Capex NGR 77(2)(a)'!L13 -> 0.0170114851
A135: =ROW() -> 135 | B135: Equity Raising Cost | BA135: ='2019 Capex NGR 77(2)(a)'!L14 -> 0
A136: =ROW() -> 136 | B136: Non-depreciable assets | BA136: ='2019 Capex NGR 77(2)(a)'!L15 -> 0
A137: =ROW() -> 137 | B137: Shared support assets - IOT & cyber security | BA137: ='2019 Capex NGR 77(2)(a)'!L16 -> 0
A138: =ROW() -> 138 | B138: Shared support assets (net IOT & cyber security) | BA138: ='2019 Capex NGR 77(2)(a)'!L17 -> 0
A139: =ROW() -> 139 | B139: Miscellaneous assets | BA139: ='2019 Capex NGR 77(2)(a)'!L18 -> 0
A140: =ROW() -> 140 | B140: Totals | D140: =SUM(D127:D139) -> 0 | E140: =SUM(E127:E139) -> 0 | F140: =SUM(F127:F139) -> 0 | G140: =SUM(G127:G139) -> 0 | H140: =SUM(H127:H139) -> 0 | I140: =SUM(I127:I139) -> 0 | J140: =SUM(J127:J139) -> 0 | K140: =SUM(K127:K139) -> 0 | L140: =SUM(L127:L139) -> 0 | M140: =SUM(M127:M139) -> 0 | N140: =SUM(N127:N139) -> 0 | O140: =SUM(O127:O139) -> 0 | P140: =SUM(P127:P139) -> 0 | Q140: =SUM(Q127:Q139) -> 0 | R140: =SUM(R127:R139) -> 0 | S140: =SUM(S127:S139) -> 0 | T140: =SUM(T127:T139) -> 0 | U140: =SUM(U127:U139) -> 0 | V140: =SUM(V127:V139) -> 0 | W140: =SUM(W127:W139) -> 0 | X140: =SUM(X127:X139) -> 0 | Y140: =SUM(Y127:Y139) -> 0 | Z140: =SUM(Z127:Z139) -> 0 | AA140: =SUM(AA127:AA139) -> 0 | AB140: =SUM(AB127:AB139) -> 0 | AC140: =SUM(AC127:AC139) -> 0 | AD140: =SUM(AD127:AD139) -> 0 | AE140: =SUM(AE127:AE139) -> 0 | AF140: =SUM(AF127:AF139) -> 0 | AG140: =SUM(AG127:AG139) -> 0 | AH140: =SUM(AH127:AH139) -> 0 | AI140: =SUM(AI127:AI139) -> 0 | AJ140: =SUM(AJ127:AJ139) -> 0 | AK140: =SUM(AK127:AK139) -> 0 | AL140: =SUM(AL127:AL139) -> 0 | AM140: =SUM(AM127:AM139) -> 0 | AN140: =SUM(AN127:AN139) -> 0 | AO140: =SUM(AO127:AO139) -> 0 | AP140: =SUM(AP127:AP139) -> 0 | AQ140: =SUM(AQ127:AQ139) -> 0 | AR140: =SUM(AR127:AR139) -> 0 | AS140: =SUM(AS127:AS139) -> 0 | AT140: =SUM(AT127:AT139) -> 0 | AU140: =SUM(AU127:AU139) -> 0 | AV140: =SUM(AV127:AV139) -> 0 | AW140: =SUM(AW127:AW139) -> 0 | AX140: =SUM(AX127:AX139) -> 0 | AY140: =SUM(AY127:AY139) -> 0 | AZ140: =SUM(AZ127:AZ139) -> 0 | BA140: =SUM(BA127:BA139) -> -0.05206880161 | BB140: =SUM(BB127:BB139) -> 0 | BC140: =SUM(BC127:BC139) -> 0 | BD140: =SUM(BD127:BD139) -> 0 | BE140: =SUM(BE127:BE139) -> 0 | BF140: =SUM(BF127:BF139) -> 0 | BG140: =SUM(BG127:BG139) -> 0 | BH140: =SUM(BH127:BH139) -> 0 | BI140: =SUM(BI127:BI139) -> 0 | BJ140: =SUM(BJ127:BJ139) -> 0 | BK140: =SUM(BK127:BK139) -> 0

Sheet Load_Yarraloola
B1: =Main!B1 -> Goldfields Gas Pipeline Tariff Model, September 2024 [Revised Proposal]
B2: Load
A3: Ref | B3: =COLUMN() -> 2 | C3: =COLUMN() -> 3 | D3: =COLUMN() -> 4 | E3: =COLUMN() -> 5 | F3: =COLUMN() -> 6 | G3: =COLUMN() -> 7 | H3: =COLUMN() -> 8 | I3: =COLUMN() -> 9 | J3: =COLUMN() -> 10 | K3: =COLUMN() -> 11 | L3: =COLUMN() -> 12 | M3: =COLUMN() -> 13 | N3: =COLUMN() -> 14 | O3: =COLUMN() -> 15 | P3: =COLUMN() -> 16 | Q3: =COLUMN() -> 17 | R3: =COLUMN() -> 18 | S3: =COLUMN() -> 19 | T3: =COLUMN() -> 20 | U3: =COLUMN() -> 21 | V3: =COLUMN() -> 22 | W3: =COLUMN() -> 23 | X3: =COLUMN() -> 24 | Y3: =COLUMN() -> 25 | Z3: =COLUMN() -> 26 | AA3: =COLUMN() -> 27 | AB3: =COLUMN() -> 28 | AC3: =COLUMN() -> 29 | AD3: =COLUMN() -> 30 | AE3: =COLUMN() -> 31 | AF3: =COLUMN() -> 32 | AG3: =COLUMN() -> 33 | AH3: =COLUMN() -> 34 | AI3: =COLUMN() -> 35 | AJ3: =COLUMN() -> 36 | AK3: =COLUMN() -> 37 | AL3: =COLUMN() -> 38 | AM3: =COLUMN() -> 39 | AN3: =COLUMN() -> 40 | AO3: =COLUMN() -> 41 | AP3: =COLUMN() -> 42 | AQ3: =COLUMN() -> 43 | AR3: =COLUMN() -> 44 | AS3: =COLUMN() -> 45 | AT3: =COLUMN() -> 46 | AU3: =COLUMN() -> 47 | AV3: =COLUMN() -> 48 | AW3: =COLUMN() -> 49 | AX3: =COLUMN() -> 50 | AY3: =COLUMN() -> 51 | AZ3: =COLUMN() -> 52 | BA3: =COLUMN() -> 53 | BB3: =COLUMN() -> 54 | BC3: =COLUMN() -> 55 | BD3: =COLUMN() -> 56 | BE3: =COLUMN() -> 57 | BF3: =COLUMN() -> 58 | BG3: =COLUMN() -> 59 | BH3: =COLUMN() -> 60 | BI3: =COLUMN() -> 61 | BJ3: =COLUMN() -> 62 | BK3: =COLUMN() -> 63 | BL3: =COLUMN() -> 64 | BM3: =COLUMN() -> 65 | BN3: =COLUMN() -> 66 | BO3: =COLUMN() -> 67 | BP3: =COLUMN() -> 68 | BQ3: =COLUMN() -> 69 | BR3: =COLUMN() -> 70 | BS3: =COLUMN() -> 71 | BT3: =COLUMN() -> 72 | BU3: =COLUMN() -> 73 | BV3: =COLUMN() -> 74 | BW3: =COLUMN() -> 75 | BX3: =COLUMN() -> 76 | BY3: =COLUMN() -> 77 | BZ3: =COLUMN() -> 78 | CA3: =COLUMN() -> 79 | CB3: =COLUMN() -> 80 | CC3: =COLUMN() -> 81 | CD3: =COLUMN() -> 82 | CE3: =COLUMN() -> 83 | CF3: =COLUMN() -> 84 | CG3: =COLUMN() -> 85 | CH3: =COLUMN() -> 86 | CI3: =COLUMN() -> 87 | CJ3: =COLUMN() -> 88 | CK3: =COLUMN() -> 89 | CL3: =COLUMN() -> 90 | CM3: =COLUMN() -> 91 | CN3: =COLUMN() -> 92 | CO3: =COLUMN() -> 93
A4: =ROW() -> 4 | B4: Actual or Forecast | C4: Actual | D4: Actual | E4: Actual | F4: Actual | G4: Actual | H4: Actual | I4: Actual | J4: Actual | K4: Actual | L4: Actual | M4: Actual | N4: Actual | O4: Actual | P4: Actual | Q4: Actual | R4: Actual | S4: Actual | T4: Actual | U4: Actual | V4: Actual | W4: Actual | X4: Actual | Y4: Actual | Z4: Actual | AA4: Actual | AB4: Actual | AC4: Actual | AD4: Actual | AE4: Actual | AF4: Actual | AG4: Actual | AH4: Actual | AI4: Actual | AJ4: Actual | AK4: Actual | AL4: Actual | AM4: Actual | AN4: Actual | AO4: Actual | AP4: Actual | AQ4: Actual | AR4: Forecast | AS4: Forecast | AT4: Forecast | AU4: Forecast | AV4: Forecast | AW4: Forecast | AX4: Forecast | AY4: Forecast | AZ4: Forecast | BA4: Forecast | BB4: Forecast | BC4: Forecast | BD4: Forecast | BE4: Forecast | BF4: Forecast | BG4: Forecast | BH4: Forecast | BI4: Forecast | BJ4: Forecast | BK4: Forecast | BL4: Forecast | BM4: Forecast | BN4: Forecast | BO4: Forecast | BP4: Forecast | BQ4: Forecast | BR4: Forecast | BS4: Forecast | BT4: Forecast | BU4: Forecast | BV4: Forecast | BW4: Forecast | BX4: Forecast | BY4: Forecast | BZ4: Forecast | CA4: Forecast | CB4: Forecast | CC4: Forecast | CD4: Forecast | CE4: Forecast | CF4: Forecast | CG4: Forecast | CH4: Forecast | CI4: Forecast | CJ4: Forecast | CK4: Forecast | CL4: Forecast | CM4: Forecast | CN4: Forecast | CO4: Forecast
A5: =ROW() -> 5 | B5: Year Type | C5: Calendar | D5: Calendar | E5: Calendar | F5: Calendar | G5: Calendar | H5: Calendar | I5: Calendar | J5: Calendar | K5: Calendar | L5: Calendar | M5: Calendar | N5: Calendar | O5: Calendar | P5: Calendar | Q5: Calendar | R5: Calendar | S5: Calendar | T5: Calendar | U5: Calendar | V5: Calendar | W5: Calendar | X5: Calendar | Y5: Calendar | Z5: Calendar | AA5: Calendar | AB5: Calendar | AC5: Calendar | AD5: Calendar | AE5: Calendar | AF5: Calendar | AG5: Calendar | AH5: Calendar | AI5: Calendar | AJ5: Calendar | AK5: Calendar | AL5: Calendar | AM5: Calendar | AN5: Calendar | AO5: Calendar | AP5: Calendar | AQ5: Calendar | AR5: Calendar | AS5: Calendar | AT5: Calendar | AU5: Calendar | AV5: Calendar | AW5: Calendar | AX5: Calendar | AY5: Calendar | AZ5: Calendar | BA5: Calendar | BB5: Calendar | BC5: Calendar | BD5: Calendar | BE5: Calendar | BF5: Calendar | BG5: Calendar | BH5: Calendar | BI5: Calendar | BJ5: Calendar | BK5: Calendar | BL5: Calendar | BM5: Calendar | BN5: Calendar | BO5: Calendar | BP5: Calendar | BQ5: Calendar | BR5: Calendar | BS5: Calendar | BT5: Calendar | BU5: Calendar | BV5: Calendar | BW5: Calendar | BX5: Calendar | BY5: Calendar | BZ5: Calendar | CA5: Calendar | CB5: Calendar | CC5: Calendar | CD5: Calendar | CE5: Calendar | CF5: Calendar | CG5: Calendar | CH5: Calendar | CI5: Calendar | CJ5: Calendar | CK5: Calendar | CL5: Calendar | CM5: Calendar | CN5: Calendar | CO5: Calendar
A6: =ROW() -> 6 | B6: Regulatory Period | D6: 1 | E6: 1 | F6: 1 | G6: 1 | H6: 1 | I6: 1 | J6: 1 | K6: 1 | L6: 1 | M6: 1 | N6: 1 | O6: 1 | P6: 1 | Q6: 1 | R6: 1 | S6: 1 | T6: 1 | U6: 1 | V6: 1 | W6: 1 | X6: 1 | Y6: 1 | Z6: 1 | AA6: 1 | AB6: 1 | AC6: 1 | AD6: 1 | AE6: 1 | AF6: 1 | AG6: 1 | AH6: 1 | AI6: 1 | AJ6: 1 | AK6: 1 | AL6: 1 | AM6: 1 | AN6: 1 | AO6: 1 | AP6: 1 | AQ6: 1 | AR6: 2 | AS6: 2 | AT6: 2 | AU6: 2 | AV6: 2 | AW6: 2 | AX6: 2 | AY6: 2 | AZ6: 2 | BA6: 2 | BB6: 2 | BC6: 2 | BD6: 2 | BE6: 2 | BF6: 2 | BG6: 2 | BH6: 2 | BI6: 2 | BJ6: 2 | BK6: 2 | BL6: 3 | BM6: 3 | BN6: 3 | BO6: 3 | BP6: 3 | BQ6: 3 | BR6: 3 | BS6: 3 | BT6: 3 | BU6: 3 | BV6: 3 | BW6: 3 | BX6: 3 | BY6: 3 | BZ6: 3 | CA6: 3 | CB6: 3 | CC6: 3 | CD6: 3 | CE6: 3 | CF6: =Inputs!BE6 -> 4 | CG6: =Inputs!BF6 -> 4 | CH6: =Inputs!BG6 -> 4 | CI6: =Inputs!BH6 -> 4 | CJ6: =Inputs!BI6 -> 4 | CK6: =Inputs!BJ6 -> 5 | CL6: =Inputs!BK6 -> 5 | CM6: =Inputs!BL6 -> 5 | CN6: =Inputs!BM6 -> 5 | CO6: =Inputs!BN6 -> 5
A7: =ROW() -> 7 | B7: Start Date | C7: 1999-10-01 | D7: =C8+1 -> 2000-01-01 | E7: 2000-04-01 | F7: 2000-07-01 | G7: 2000-10-01 | H7: 2001-01-01 | I7: 2001-04-01 | J7: 2001-07-01 | K7: 2001-10-01 | L7: 2002-01-01 | M7: 2002-04-01 | N7: 2002-07-01 | O7: 2002-10-01 | P7: 2003-01-01 | Q7: 2003-04-01 | R7: 2003-07-01 | S7: 2003-10-01 | T7: 2004-01-01 | U7: 2004-04-01 | V7: 2004-07-01 | W7: 2004-10-01 | X7: 2005-01-01 | Y7: 2005-04-01 | Z7: 2005-07-01 | AA7: 2005-10-01 | AB7: 2006-01-01 | AC7: 2006-04-01 | AD7: 2006-07-01 | AE7: 2006-10-01 | AF7: 2007-01-01 | AG7: 2007-04-01 | AH7: 2007-07-01 | AI7: 2007-10-01 | AJ7: 2008-01-01 | AK7: 2008-04-01 | AL7: 2008-07-01 | AM7: 2008-10-01 | AN7: 2009-01-01 | AO7: 2009-04-01 | AP7: 2009-07-01 | AQ7: 2009-10-01 | AR7: 2010-01-01 | AS7: 2010-04-01 | AT7: 2010-07-01 | AU7: 2010-10-01 | AV7: 2011-01-01 | AW7: 2011-04-01 | AX7: 2011-07-01 | AY7: 2011-10-01 | AZ7: 2012-01-01 | BA7: 2012-04-01 | BB7: 2012-07-01 | BC7: 2012-10-01 | BD7: 2013-01-01 | BE7: 2013-04-01 | BF7: 2013-07-01 | BG7: 2013-10-01 | BH7: 2014-01-01 | BI7: 2014-04-01 | BJ7: 2014-07-01 | BK7: 2014-10-01 | BL7: 2015-01-01 | BM7: 2015-04-01 | BN7: 2015-07-01 | BO7: 2015-10-01 | BP7: =BO8+1 -> 2016-01-01 | BQ7: 2016-04-01 | BR7: 2016-07-01 | BS7: 2016-10-01 | BT7: 2017-01-01 | BU7: 2017-04-01 | BV7: 2017-07-01 | BW7: 2017-10-01 | BX7: 2018-01-01 | BY7: 2018-04-01 | BZ7: 2018-07-01 | CA7: 2018-10-01 | CB7: 2019-01-01 | CC7: 2019-04-01 | CD7: 2019-07-01 | CE7: 2019-10-01 | CF7: 2020-01-01 | CG7: 2021-01-01 | CH7: 2022-01-01 | CI7: 2023-01-01 | CJ7: 2024-01-01 | CK7: 2025-01-01 | CL7: =CK8+1 -> 2026-01-01 | CM7: =CL8+1 -> 2027-01-01 | CN7: =CM8+1 -> 2028-01-01 | CO7: =CN8+1 -> 2029-01-01
A8: =ROW() -> 8 | B8: End Date | C8: =C7+C11-1 -> 1999-12-31 | D8: 2000-03-31 | E8: 2000-06-30 | F8: 2000-09-30 | G8: 2000-12-31 | H8: 2001-03-31 | I8: 2001-06-30 | J8: 2001-09-30 | K8: 2001-12-31 | L8: 2002-03-31 | M8: 2002-06-30 | N8: 2002-09-30 | O8: 2002-12-31 | P8: 2003-03-31 | Q8: 2003-06-30 | R8: 2003-09-30 | S8: 2003-12-31 | T8: 2004-03-31 | U8: 2004-06-30 | V8: 2004-09-30 | W8: 2004-12-31 | X8: 2005-03-31 | Y8: 2005-06-30 | Z8: 2005-09-30 | AA8: 2005-12-31 | AB8: 2006-03-31 | AC8: 2006-06-30 | AD8: 2006-09-30 | AE8: 2006-12-31 | AF8: 2007-03-31 | AG8: 2007-06-30 | AH8: 2007-09-30 | AI8: 2007-12-31 | AJ8: 2008-03-31 | AK8: 2008-06-30 | AL8: 2008-09-30 | AM8: 2008-12-31 | AN8: 2009-03-31 | AO8: 2009-06-30 | AP8: 2009-09-30 | AQ8: 2009-12-31 | AR8: 2010-03-31 | AS8: 2010-06-30 | AT8: 2010-09-30 | AU8: 2010-12-31 | AV8: 2011-03-31 | AW8: 2011-06-30 | AX8: 2011-09-30 | AY8: 2011-12-31 | AZ8: 2012-03-31 | BA8: 2012-06-30 | BB8: 2012-09-30 | BC8: 2012-12-31 | BD8: 2013-03-31 | BE8: 2013-06-30 | BF8: 2013-09-30 | BG8: 2013-12-31 | BH8: 2014-03-31 | BI8: 2014-06-30 | BJ8: 2014-09-30 | BK8: 2014-12-31 | BL8: 2015-03-31 | BM8: 2015-06-30 | BN8: 2015-09-30 | BO8: =BO7+BO11-1 -> 2015-12-31 | BP8: 2016-03-31 | BQ8: 2016-06-30 | BR8: 2016-09-30 | BS8: 2016-12-31 | BT8: 2017-03-31 | BU8: 2017-06-30 | BV8: 2017-09-30 | BW8: 2017-12-31 | BX8: 2018-03-31 | BY8: 2018-06-30 | BZ8: 2018-09-30 | CA8: 2018-12-31 | CB8: 2019-03-31 | CC8: 2019-06-30 | CD8: 2019-09-30 | CE8: 2019-12-31 | CF8: =CF7+CF11-1 -> 2020-12-31 | CG8: 2021-12-31 | CH8: =CH7+CH11-1 -> 2022-12-31 | CI8: 2023-12-31 | CJ8: 2024-12-31 | CK8: =CK7+CK11-1 -> 2025-12-31 | CL8: 2026-12-31 | CM8: 2027-12-31 | CN8: 2028-12-31 | CO8: 2029-12-31
A9: =ROW() -> 9 | B9: Year | C9: =C8 -> 1999-12-31 | D9: =D8 -> 2000-03-31 | E9: 2000-06-30 | F9: 2000-09-30 | G9: 2000-12-31 | H9: 2001-03-31 | I9: 2001-06-30 | J9: 2001-09-30 | K9: 2001-12-31 | L9: 2002-03-31 | M9: 2002-06-30 | N9: 2002-09-30 | O9: 2002-12-31 | P9: 2003-03-31 | Q9: 2003-06-30 | R9: 2003-09-30 | S9: 2003-12-31 | T9: 2004-03-31 | U9: 2004-06-30 | V9: 2004-09-30 | W9: 2004-12-31 | X9: 2005-03-31 | Y9: 2005-06-30 | Z9: 2005-09-30 | AA9: 2005-12-31 | AB9: 2006-03-31 | AC9: 2006-06-30 | AD9: 2006-09-30 | AE9: 2006-12-31 | AF9: 2007-03-31 | AG9: 2007-06-30 | AH9: 2007-09-30 | AI9: 2007-12-31 | AJ9: 2008-03-31 | AK9: 2008-06-30 | AL9: 2008-09-30 | AM9: 2008-12-31 | AN9: 2009-03-31 | AO9: 2009-06-30 | AP9: 2009-09-30 | AQ9: 2009-12-31 | AR9: 2010-03-31 | AS9: 2010-06-30 | AT9: 2010-09-30 | AU9: 2010-12-31 | AV9: 2011-03-31 | AW9: 2011-06-30 | AX9: 2011-09-30 | AY9: 2011-12-31 | AZ9: 2012-03-31 | BA9: 2012-06-30 | BB9: 2012-09-30 | BC9: 2012-12-31 | BD9: 2013-03-31 | BE9: 2013-06-30 | BF9: 2013-09-30 | BG9: 2013-12-31 | BH9: 2014-03-31 | BI9: 2014-06-30 | BJ9: 2014-09-30 | BK9: 2014-12-31 | BL9: 2015-03-31 | BM9: 2015-06-30 | BN9: 2015-09-30 | BO9: 2015-12-31 | BP9: =BP8 -> 2016-03-31 | BQ9: 2016-06-30 | BR9: 2016-09-30 | BS9: 2016-12-31 | BT9: 2017-03-31 | BU9: 2017-06-30 | BV9: 2017-09-30 | BW9: 2017-12-31 | BX9: 2018-03-31 | BY9: 2018-06-30 | BZ9: 2018-09-30 | CA9: 2018-12-31 | CB9: 2019-03-31 | CC9: 2019-06-30 | CD9: 2019-09-30 | CE9: 2019-12-31 | CF9: =CF8 -> 2020-12-31 | CG9: 2021-12-31 | CH9: =CH8 -> 2022-12-31 | CI9: 2023-12-31 | CJ9: 2024-12-31 | CK9: =CK8 -> 2025-12-31 | CL9: 2026-12-31 | CM9: 2027-12-31 | CN9: 2028-12-31 | CO9: 2029-12-31
A10: =ROW() -> 10 | B10: Quarter | D10: Q1 | E10: Q2 | F10: Q3 | G10: Q4 | H10: Q1 | I10: Q2 | J10: Q3 | K10: Q4 | L10: Q1 | M10: Q2 | N10: Q3 | O10: Q4 | P10: Q1 | Q10: Q2 | R10: Q3 | S10: Q4 | T10: Q1 | U10: Q2 | V10: Q3 | W10: Q4 | X10: Q1 | Y10: Q2 | Z10: Q3 | AA10: Q4 | AB10: Q1 | AC10: Q2 | AD10: Q3 | AE10: Q4 | AF10: Q1 | AG10: Q2 | AH10: Q3 | AI10: Q4 | AJ10: Q1 | AK10: Q2 | AL10: Q3 | AM10: Q4 | AN10: Q1 | AO10: Q2 | AP10: Q3 | AQ10: Q4 | AR10: Q1 | AS10: Q2 | AT10: Q3 | AU10: Q4 | AV10: Q1 | AW10: Q2 | AX10: Q3 | AY10: Q4 | AZ10: Q1 | BA10: Q2 | BB10: Q3 | BC10: Q4 | BD10: Q1 | BE10: Q2 | BF10: Q3 | BG10: Q4 | BH10: Q1 | BI10: Q2 | BJ10: Q3 | BK10: Q4 | BL10: Q1 | BM10: Q2 | BN10: Q3 | BO10: Q4 | BP10: Q1 | BQ10: Q2 | BR10: Q3 | BS10: Q4 | BT10: Q1 | BU10: Q2 | BV10: Q3 | BW10: Q4 | BX10: Q1 | BY10: Q2 | BZ10: Q3 | CA10: Q4 | CB10: Q1 | CC10: Q2 | CD10: Q3 | CE10: Q4
A11: =ROW() -> 11 | B11: Days | C11: 92 | D11: 91 | E11: 91 | F11: 92 | G11: 92 | H11: 90 | I11: 91 | J11: 92 | K11: 92 | L11: 90 | M11: 91 | N11: 92 | O11: 92 | P11: 90 | Q11: 91 | R11: 92 | S11: 92 | T11: 91 | U11: 91 | V11: 92 | W11: 92 | X11: 90 | Y11: 91 | Z11: 92 | AA11: 92 | AB11: 90 | AC11: 91 | AD11: 92 | AE11: 92 | AF11: 90 | AG11: 91 | AH11: 92 | AI11: 92 | AJ11: 91 | AK11: 91 | AL11: 92 | AM11: 92 | AN11: 90 | AO11: 91 | AP11: 92 | AQ11: 92 | AR11: 90 | AS11: 91 | AT11: 92 | AU11: 92 | AV11: 90 | AW11: 91 | AX11: 92 | AY11: 92 | AZ11: 91 | BA11: 91 | BB11: 92 | BC11: 92 | BD11: 90 | BE11: 91 | BF11: 92 | BG11: 92 | BH11: 90 | BI11: 91 | BJ11: 92 | BK11: 92 | BL11: 90 | BM11: 91 | BN11: 92 | BO11: 92 | BP11: 91 | BQ11: 91 | BR11: 92 | BS11: 92 | BT11: 90 | BU11: 91 | BV11: 92 | BW11: 92 | BX11: 90 | BY11: 91 | BZ11: 92 | CA11: 92 | CB11: 90 | CC11: 91 | CD11: 92 | CE11: 92 | CF11: =Inputs!BE$11 -> 366 | CG11: =Inputs!BF$11 -> 365 | CH11: =Inputs!BG$11 -> 365 | CI11: =Inputs!BH$11 -> 365 | CJ11: =Inputs!BI$11 -> 366 | CK11: =Inputs!BJ$11 -> 365 | CL11: =Inputs!BK$11 -> 365 | CM11: =Inputs!BL$11 -> 365 | CN11: =Inputs!BM$11 -> 366 | CO11: =Inputs!BN$11 -> 365
A12: =ROW() -> 12 | B12: Years (nearest half) | C12: =ROUND(YEARFRAC(C7,C8),2) -> 0.25 | D12: 0.25 | E12: 0.25 | F12: 0.25 | G12: 0.25 | H12: 0.25 | I12: 0.25 | J12: 0.25 | K12: 0.25 | L12: 0.25 | M12: 0.25 | N12: 0.25 | O12: 0.25 | P12: 0.25 | Q12: 0.25 | R12: 0.25 | S12: 0.25 | T12: 0.25 | U12: 0.25 | V12: 0.25 | W12: 0.25 | X12: 0.25 | Y12: 0.25 | Z12: 0.25 | AA12: 0.25 | AB12: 0.25 | AC12: 0.25 | AD12: 0.25 | AE12: 0.25 | AF12: 0.25 | AG12: 0.25 | AH12: 0.25 | AI12: 0.25 | AJ12: 0.25 | AK12: 0.25 | AL12: 0.25 | AM12: 0.25 | AN12: 0.25 | AO12: 0.25 | AP12: 0.25 | AQ12: 0.25 | AR12: 0.25 | AS12: 0.25 | AT12: 0.25 | AU12: 0.25 | AV12: 0.25 | AW12: 0.25 | AX12: 0.25 | AY12: 0.25 | AZ12: 0.25 | BA12: 0.25 | BB12: 0.25 | BC12: 0.25 | BD12: 0.25 | BE12: 0.25 | BF12: 0.25 | BG12: 0.25 | BH12: 0.25 | BI12: 0.25 | BJ12: 0.25 | BK12: 0.25 | BL12: 0.25 | BM12: 0.25 | BN12: 0.25 | BO12: =ROUND(YEARFRAC(BO7,BO8),2) -> 0.25 | BP12: 0.25 | BQ12: 0.25 | BR12: 0.25 | BS12: 0.25 | BT12: 0.25 | BU12: 0.25 | BV12: 0.25 | BW12: 0.25 | BX12: 0.25 | BY12: 0.25 | BZ12: 0.25 | CA12: 0.25 | CB12: 0.25 | CC12: 0.25 | CD12: 0.25 | CE12: 0.25 | CF12: =ROUND(YEARFRAC(CF7,CF8),2) -> 1 | CG12: 1 | CH12: =ROUND(YEARFRAC(CH7,CH8),2) -> 1 | CI12: 1 | CJ12: 1 | CK12: =ROUND(YEARFRAC(CK7,CK8),2) -> 1 | CL12: 1 | CM12: 1 | CN12: 1 | CO12: 1
A13: =ROW() -> 13
A14: =ROW() -> 14 | B14: Historical Tariffs
A15: =ROW() -> 15 | B15: Toll charge | D15: 0.2118597987 | E15: 0.2130615966 | F15: 0.2149501361 | G15: 0.2166669902 | H15: 0.2187778624 | I15: 0.2194463967 | J15: 0.2217862669 | K15: 0.2236247363 | L15: 0.2242932707 | M15: 0.2262988737 | N15: 0.2283044767 | O15: 0.2299758125 | P15: 0.2314800148 | Q15: 0.2331513506 | R15: 0.2361597552 | S15: 0.2361597552 | T15: 0.2374968238 | U15: 0.2386667589 | V15: 0.2408394955 | W15: 0.2420094306 | X15: 0.2430122321 | Y15: 0.24485 | Z15: 0.246521 | AA15: 0.248025 | AB15: 0.250365 | AC15: 0.251702 | AD15: 0.253875 | AE15: 0.257886 | AF15: 0.260226 | AG15: 0.259892 | AH15: 0.260059 | AI15: 0.263235 | AJ15: 0.265073 | AK15: 0.26758 | AL15: 0.27109 | AM15: 0.275101 | AN15: 0.278277 | AO15: 0.277441 | AP15: 0.277775 | AQ15: 0.279112 | AR15: 0.281786 | AS15: 0.28329 | AT15: 0.285797 | AU15: 0.243755 | AV15: 0.245517 | AW15: 0.244992 | AX15: 0.247262 | AY15: 0.247965 | AZ15: 0.2342570423 | BA15: 0.2342570423 | BB15: 0.2342570423 | BC15: 0.2342570423 | BD15: 0.2342570423 | BE15: 0.2342570423 | BF15: 0.2342570423 | BG15: 0.2342570423 | BH15: 0.2342570423 | BI15: 0.2342570423 | BJ15: 0.2342570423 | BK15: 0.2342570423
A16: =ROW() -> 16 | B16: Reservation charge | D16: 0.00120951226 | E16: 0.001216373351 | F16: 0.001227155064 | G16: 0.001236956622 | H16: 0.001249007638 | I16: 0.001252824315 | J16: 0.001266182686 | K16: 0.001276678548 | L16: 0.001280495225 | M16: 0.001291945257 | N16: 0.001303395289 | O16: 0.001312936982 | P16: 0.001321524506 | Q16: 0.001331066199 | R16: 0.001348241247 | S16: 0.001348241247 | T16: 0.001355874602 | U16: 0.001362553787 | V16: 0.001374957988 | W16: 0.001381637173 | X16: 0.001387362189 | Y16: 0.001399 | Z16: 0.001409 | AA16: 0.001418 | AB16: 0.001431 | AC16: 0.001439 | AD16: 0.001451 | AE16: 0.001474 | AF16: 0.001487 | AG16: 0.001485 | AH16: 0.001486 | AI16: 0.001504 | AJ16: 0.001515 | AK16: 0.001529 | AL16: 0.001549 | AM16: 0.001572 | AN16: 0.00159 | AO16: 0.001585 | AP16: 0.001587 | AQ16: 0.001595 | AR16: 0.00161 | AS16: 0.001619 | AT16: 0.001633 | AU16: 0.001442 | AV16: 0.001461 | AW16: 0.001458 | AX16: 0.001472 | AY16: 0.001476 | AZ16: 0.00139906766 | BA16: 0.00139906766 | BB16: 0.00139906766 | BC16: 0.00139906766 | BD16: 0.00139906766 | BE16: 0.00139906766 | BF16: 0.00139906766 | BG16: 0.00139906766 | BH16: 0.00139906766 | BI16: 0.00139906766 | BJ16: 0.00139906766 | BK16: 0.00139906766
A17: =ROW() -> 17 | B17: Throughput charge | D17: 0.0003152967538 | E17: 0.0003170853092 | F17: 0.0003198958961 | G17: 0.0003224509752 | H17: 0.0003255924449 | I17: 0.0003265873797 | J17: 0.0003300696519 | K17: 0.0003328057229 | L17: 0.0003338006577 | M17: 0.0003367854624 | N17: 0.0003397702671 | O17: 0.0003422576044 | P17: 0.0003444962079 | Q17: 0.0003469835451 | R17: 0.0003514607522 | S17: 0.0003514607522 | T17: 0.000353450622 | U17: 0.000355191758 | V17: 0.0003584252964 | W17: 0.0003601664325 | X17: 0.0003616588348 | Y17: 0.000364 | Z17: 0.000366 | AA17: 0.000368 | AB17: 0.000371 | AC17: 0.000373 | AD17: 0.000376 | AE17: 0.000382 | AF17: 0.000385 | AG17: 0.000385 | AH17: 0.000385 | AI17: 0.00039 | AJ17: 0.000393 | AK17: 0.000397 | AL17: 0.000402 | AM17: 0.000408 | AN17: 0.000413 | AO17: 0.000412 | AP17: 0.000412 | AQ17: 0.000414 | AR17: 0.000418 | AS17: 0.00042 | AT17: 0.000424 | AU17: 0.000402 | AV17: 0.000402 | AW17: 0.000401 | AX17: 0.000405 | AY17: 0.000406 | AZ17: 0.0003967029882 | BA17: 0.0003967029882 | BB17: 0.0003967029882 | BC17: 0.0003967029882 | BD17: 0.0003967029882 | BE17: 0.0003967029882 | BF17: 0.0003967029882 | BG17: 0.0003967029882 | BH17: 0.0003967029882 | BI17: 0.0003967029882 | BJ17: 0.0003967029882 | BK17: 0.0003967029882
A18: =ROW() -> 18 | B18: Reserved Capacity [TJ/day]
A19: =ROW() -> 19 | B19: Total | D19: =SUM(#REF!) ->  | E19: =SUM(#REF!) ->  | F19: =SUM(#REF!) ->  | G19: =SUM(#REF!) ->  | H19: =SUM(#REF!) ->  | I19: =SUM(#REF!) ->  | J19: =SUM(#REF!) ->  | K19: =SUM(#REF!) ->  | L19: =SUM(#REF!) ->  | M19: =SUM(#REF!) ->  | N19: =SUM(#REF!) ->  | O19: =SUM(#REF!) ->  | P19: =SUM(#REF!) ->  | Q19: =SUM(#REF!) ->  | R19: =SUM(#REF!) ->  | S19: =SUM(#REF!) ->  | T19: =SUM(#REF!) ->  | U19: =SUM(#REF!) ->  | V19: =SUM(#REF!) ->  | W19: =SUM(#REF!) ->  | X19: =SUM(#REF!) ->  | Y19: =SUM(#REF!) ->  | Z19: =SUM(#REF!) ->  | AA19: =SUM(#REF!) ->  | AB19: =SUM(#REF!) ->  | AC19: =SUM(#REF!) ->  | AD19: =SUM(#REF!) ->  | AE19: =SUM(#REF!) ->  | AF19: =SUM(#REF!) ->  | AG19: =SUM(#REF!) ->  | AH19: =SUM(#REF!) ->  | AI19: =SUM(#REF!) ->  | AJ19: =SUM(#REF!) ->  | AK19: =SUM(#REF!) ->  | AL19: =SUM(#REF!) ->  | AM19: =SUM(#REF!) ->  | AN19: =SUM(#REF!) ->  | AO19: =SUM(#REF!) ->  | AP19: =SUM(#REF!) ->  | AQ19: =SUM(#REF!) ->  | AR19: =SUM(#REF!) ->  | AS19: =SUM(#REF!) ->  | AT19: =SUM(#REF!) ->  | AU19: =SUM(#REF!) ->  | AV19: =SUM(#REF!) ->  | AW19: =SUM(#REF!) ->  | AX19: =SUM(#REF!) ->  | AY19: =SUM(#REF!) ->  | AZ19: =SUM(#REF!) ->  | BA19: =SUM(#REF!) ->  | BB19: =SUM(#REF!) ->  | BC19: =SUM(#REF!) ->  | BD19: =SUM(#REF!) ->  | BE19: =SUM(#REF!) ->  | BF19: =SUM(#REF!) ->  | BG19: =SUM(#REF!) ->  | BH19: =SUM(#REF!) ->  | BI19: =SUM(#REF!) ->  | BJ19: =SUM(#REF!) ->  | BK19: =SUM(#REF!) ->  | BL19: =SUM(#REF!) ->  | BM19: =SUM(#REF!) ->  | BN19: =SUM(#REF!) ->  | BO19: =SUM(#REF!) ->  | BP19: =SUM(#REF!) ->  | BQ19: =SUM(#REF!) ->  | BR19: =SUM(#REF!) ->  | BS19: =SUM(#REF!) ->  | BT19: =SUM(#REF!) ->  | BU19: =SUM(#REF!) ->  | BV19: =SUM(#REF!) ->  | BW19: =SUM(#REF!) ->  | BX19: =SUM(#REF!) ->  | BY19: =SUM(#REF!) ->  | BZ19: =SUM(#REF!) ->  | CA19: =SUM(#REF!) ->  | CB19: =SUM(#REF!) ->  | CC19: =SUM(#REF!) ->  | CD19: =SUM(#REF!) ->  | CE19: =SUM(#REF!) ->  | CF19: =SUM(#REF!) ->  | CG19: =SUM(#REF!) ->  | CH19: =SUM(#REF!) ->  | CI19: =SUM(#REF!) ->  | CJ19: =SUM(#REF!) ->  | CK19: 110.3630015 | CL19: 110.3630015 | CM19: 110.3630015 | CN19: 110.3630015 | CO19: 110.3630015
A20: =ROW() -> 20 | B20: Throughput [TJ/day]
A21: =ROW() -> 21 | B21: Total | D21: =SUM(#REF!) ->  | E21: =SUM(#REF!) ->  | F21: =SUM(#REF!) ->  | G21: =SUM(#REF!) ->  | H21: =SUM(#REF!) ->  | I21: =SUM(#REF!) ->  | J21: =SUM(#REF!) ->  | K21: =SUM(#REF!) ->  | L21: =SUM(#REF!) ->  | M21: =SUM(#REF!) ->  | N21: =SUM(#REF!) ->  | O21: =SUM(#REF!) ->  | P21: =SUM(#REF!) ->  | Q21: =SUM(#REF!) ->  | R21: =SUM(#REF!) ->  | S21: =SUM(#REF!) ->  | T21: =SUM(#REF!) ->  | U21: =SUM(#REF!) ->  | V21: =SUM(#REF!) ->  | W21: =SUM(#REF!) ->  | X21: =SUM(#REF!) ->  | Y21: =SUM(#REF!) ->  | Z21: =SUM(#REF!) ->  | AA21: =SUM(#REF!) ->  | AB21: =SUM(#REF!) ->  | AC21: =SUM(#REF!) ->  | AD21: =SUM(#REF!) ->  | AE21: =SUM(#REF!) ->  | AF21: =SUM(#REF!) ->  | AG21: =SUM(#REF!) ->  | AH21: =SUM(#REF!) ->  | AI21: =SUM(#REF!) ->  | AJ21: =SUM(#REF!) ->  | AK21: =SUM(#REF!) ->  | AL21: =SUM(#REF!) ->  | AM21: =SUM(#REF!) ->  | AN21: =SUM(#REF!) ->  | AO21: =SUM(#REF!) ->  | AP21: =SUM(#REF!) ->  | AQ21: =SUM(#REF!) ->  | AR21: =SUM(#REF!) ->  | AS21: =SUM(#REF!) ->  | AT21: =SUM(#REF!) ->  | AU21: =SUM(#REF!) ->  | AV21: =SUM(#REF!) ->  | AW21: =SUM(#REF!) ->  | AX21: =SUM(#REF!) ->  | AY21: =SUM(#REF!) ->  | AZ21: =SUM(#REF!) ->  | BA21: =SUM(#REF!) ->  | BB21: =SUM(#REF!) ->  | BC21: =SUM(#REF!) ->  | BD21: =SUM(#REF!) ->  | BE21: =SUM(#REF!) ->  | BF21: =SUM(#REF!) ->  | BG21: =SUM(#REF!) ->  | BH21: =SUM(#REF!) ->  | BI21: =SUM(#REF!) ->  | BJ21: =SUM(#REF!) ->  | BK21: =SUM(#REF!) ->  | BL21: =SUM(#REF!) ->  | BM21: =SUM(#REF!) ->  | BN21: =SUM(#REF!) ->  | BO21: =SUM(#REF!) ->  | BP21: =SUM(#REF!) ->  | BQ21: =SUM(#REF!) ->  | BR21: =SUM(#REF!) ->  | BS21: =SUM(#REF!) ->  | BT21: =SUM(#REF!) ->  | BU21: =SUM(#REF!) ->  | BV21: =SUM(#REF!) ->  | BW21: =SUM(#REF!) ->  | BX21: =SUM(#REF!) ->  | BY21: =SUM(#REF!) ->  | BZ21: =SUM(#REF!) ->  | CA21: =SUM(#REF!) ->  | CB21: =SUM(#REF!) ->  | CC21: =SUM(#REF!) ->  | CD21: =SUM(#REF!) ->  | CE21: =SUM(#REF!) ->  | CF21: =SUM(#REF!) ->  | CG21: =SUM(#REF!) ->  | CH21: =SUM(#REF!) ->  | CI21: =SUM(#REF!) ->  | CJ21: =SUM(#REF!) ->  | CK21: 94.23969573 | CL21: 94.23969573 | CM21: 94.23969573 | CN21: 94.23969573 | CO21: 94.23969573
A22: =ROW() -> 22 | B22: km from Receipt
A23: =ROW() -> 23 | B23: Calculated Load
A24: =ROW() -> 24 | B24: Reserved Capacity [TJ/day] | D24: =Load_Yarraloola!D19 ->  | E24: =Load_Yarraloola!E19 ->  | F24: =Load_Yarraloola!F19 ->  | G24: =Load_Yarraloola!G19 ->  | H24: =Load_Yarraloola!H19 ->  | I24: =Load_Yarraloola!I19 ->  | J24: =Load_Yarraloola!J19 ->  | K24: =Load_Yarraloola!K19 ->  | L24: =Load_Yarraloola!L19 ->  | M24: =Load_Yarraloola!M19 ->  | N24: =Load_Yarraloola!N19 ->  | O24: =Load_Yarraloola!O19 ->  | P24: =Load_Yarraloola!P19 ->  | Q24: =Load_Yarraloola!Q19 ->  | R24: =Load_Yarraloola!R19 ->  | S24: =Load_Yarraloola!S19 ->  | T24: =Load_Yarraloola!T19 ->  | U24: =Load_Yarraloola!U19 ->  | V24: =Load_Yarraloola!V19 ->  | W24: =Load_Yarraloola!W19 ->  | X24: =Load_Yarraloola!X19 ->  | Y24: =Load_Yarraloola!Y19 ->  | Z24: =Load_Yarraloola!Z19 ->  | AA24: =Load_Yarraloola!AA19 ->  | AB24: =Load_Yarraloola!AB19 ->  | AC24: =Load_Yarraloola!AC19 ->  | AD24: =Load_Yarraloola!AD19 ->  | AE24: =Load_Yarraloola!AE19 ->  | AF24: =Load_Yarraloola!AF19 ->  | AG24: =Load_Yarraloola!AG19 ->  | AH24: =Load_Yarraloola!AH19 ->  | AI24: =Load_Yarraloola!AI19 ->  | AJ24: =Load_Yarraloola!AJ19 ->  | AK24: =Load_Yarraloola!AK19 ->  | AL24: =Load_Yarraloola!AL19 ->  | AM24: =Load_Yarraloola!AM19 ->  | AN24: =Load_Yarraloola!AN19 ->  | AO24: =Load_Yarraloola!AO19 ->  | AP24: =Load_Yarraloola!AP19 ->  | AQ24: =Load_Yarraloola!AQ19 ->  | AR24: =Load_Yarraloola!AR19 ->  | AS24: =Load_Yarraloola!AS19 ->  | AT24: =Load_Yarraloola!AT19 ->  | AU24: =Load_Yarraloola!AU19 ->  | AV24: =Load_Yarraloola!AV19 ->  | AW24: =Load_Yarraloola!AW19 ->  | AX24: =Load_Yarraloola!AX19 ->  | AY24: =Load_Yarraloola!AY19 ->  | AZ24: =Load_Yarraloola!AZ19 ->  | BA24: =Load_Yarraloola!BA19 ->  | BB24: =Load_Yarraloola!BB19 ->  | BC24: =Load_Yarraloola!BC19 ->  | BD24: =Load_Yarraloola!BD19 ->  | BE24: =Load_Yarraloola!BE19 ->  | BF24: =Load_Yarraloola!BF19 ->  | BG24: =Load_Yarraloola!BG19 ->  | BH24: =Load_Yarraloola!BH19 ->  | BI24: =Load_Yarraloola!BI19 ->  | BJ24: =Load_Yarraloola!BJ19 ->  | BK24: =Load_Yarraloola!BK19 ->  | BL24: =Load_Yarraloola!BL19 ->  | BM24: =Load_Yarraloola!BM19 ->  | BN24: =Load_Yarraloola!BN19 ->  | BO24: =Load_Yarraloola!BO19 ->  | BP24: =Load_Yarraloola!BP19 ->  | BQ24: =Load_Yarraloola!BQ19 ->  | BR24: =Load_Yarraloola!BR19 ->  | BS24: =Load_Yarraloola!BS19 ->  | BT24: =Load_Yarraloola!BT19 ->  | BU24: =Load_Yarraloola!BU19 ->  | BV24: =Load_Yarraloola!BV19 ->  | BW24: =Load_Yarraloola!BW19 ->  | BX24: =Load_Yarraloola!BX19 ->  | BY24: =Load_Yarraloola!BY19 ->  | BZ24: =Load_Yarraloola!BZ19 ->  | CA24: =Load_Yarraloola!CA19 ->  | CB24: =Load_Yarraloola!CB19 ->  | CC24: =Load_Yarraloola!CC19 ->  | CD24: =Load_Yarraloola!CD19 ->  | CE24: =Load_Yarraloola!CE19 ->  | CF24: =Load_Yarraloola!CF19 ->  | CG24: =Load_Yarraloola!CG19 ->  | CH24: =Load_Yarraloola!CH19 ->  | CI24: =Load_Yarraloola!CI19 ->  | CJ24: =Load_Yarraloola!CJ19 ->  | CK24: =Load_Yarraloola!CK19 -> 110.3630015 | CL24: =Load_Yarraloola!CL19 -> 110.3630015 | CM24: =Load_Yarraloola!CM19 -> 110.3630015 | CN24: =Load_Yarraloola!CN19 -> 110.3630015 | CO24: =Load_Yarraloola!CO19 -> 110.3630015
A25: =ROW() -> 25 | B25: Reserved Capacity x Distance (PJkms per day) | D25: =SUMPRODUCT(#REF!,#REF!)/1000 ->  | E25: =SUMPRODUCT(#REF!,#REF!)/1000 ->  | F25: =SUMPRODUCT(#REF!,#REF!)/1000 ->  | G25: =SUMPRODUCT(#REF!,#REF!)/1000 ->  | H25: =SUMPRODUCT(#REF!,#REF!)/1000 ->  | I25: =SUMPRODUCT(#REF!,#REF!)/1000 ->  | J25: =SUMPRODUCT(#REF!,#REF!)/1000 ->  | K25: =SUMPRODUCT(#REF!,#REF!)/1000 ->  | L25: =SUMPRODUCT(#REF!,#REF!)/1000 ->  | M25: =SUMPRODUCT(#REF!,#REF!)/1000 ->  | N25: =SUMPRODUCT(#REF!,#REF!)/1000 ->  | O25: =SUMPRODUCT(#REF!,#REF!)/1000 ->  | P25: =SUMPRODUCT(#REF!,#REF!)/1000 ->  | Q25: =SUMPRODUCT(#REF!,#REF!)/1000 ->  | R25: =SUMPRODUCT(#REF!,#REF!)/1000 ->  | S25: =SUMPRODUCT(#REF!,#REF!)/1000 ->  | T25: =SUMPRODUCT(#REF!,#REF!)/1000 ->  | U25: =SUMPRODUCT(#REF!,#REF!)/1000 ->  | V25: =SUMPRODUCT(#REF!,#REF!)/1000 ->  | W25: =SUMPRODUCT(#REF!,#REF!)/1000 ->  | X25: =SUMPRODUCT(#REF!,#REF!)/1000 ->  | Y25: =SUMPRODUCT(#REF!,#REF!)/1000 ->  | Z25: =SUMPRODUCT(#REF!,#REF!)/1000 ->  | AA25: =SUMPRODUCT(#REF!,#REF!)/1000 ->  | AB25: =SUMPRODUCT(#REF!,#REF!)/1000 ->  | AC25: =SUMPRODUCT(#REF!,#REF!)/1000 ->  | AD25: =SUMPRODUCT(#REF!,#REF!)/1000 ->  | AE25: =SUMPRODUCT(#REF!,#REF!)/1000 ->  | AF25: =SUMPRODUCT(#REF!,#REF!)/1000 ->  | AG25: =SUMPRODUCT(#REF!,#REF!)/1000 ->  | AH25: =SUMPRODUCT(#REF!,#REF!)/1000 ->  | AI25: =SUMPRODUCT(#REF!,#REF!)/1000 ->  | AJ25: =SUMPRODUCT(#REF!,#REF!)/1000 ->  | AK25: =SUMPRODUCT(#REF!,#REF!)/1000 ->  | AL25: =SUMPRODUCT(#REF!,#REF!)/1000 ->  | AM25: =SUMPRODUCT(#REF!,#REF!)/1000 ->  | AN25: =SUMPRODUCT(#REF!,#REF!)/1000 ->  | AO25: =SUMPRODUCT(#REF!,#REF!)/1000 ->  | AP25: =SUMPRODUCT(#REF!,#REF!)/1000 ->  | AQ25: =SUMPRODUCT(#REF!,#REF!)/1000 ->  | AR25: =SUMPRODUCT(#REF!,#REF!)/1000 ->  | AS25: =SUMPRODUCT(#REF!,#REF!)/1000 ->  | AT25: =SUMPRODUCT(#REF!,#REF!)/1000 ->  | AU25: =SUMPRODUCT(#REF!,#REF!)/1000 ->  | AV25: =SUMPRODUCT(#REF!,#REF!)/1000 ->  | AW25: =SUMPRODUCT(#REF!,#REF!)/1000 ->  | AX25: =SUMPRODUCT(#REF!,#REF!)/1000 ->  | AY25: =SUMPRODUCT(#REF!,#REF!)/1000 ->  | AZ25: =SUMPRODUCT(#REF!,#REF!)/1000 ->  | BA25: =SUMPRODUCT(#REF!,#REF!)/1000 ->  | BB25: =SUMPRODUCT(#REF!,#REF!)/1000 ->  | BC25: =SUMPRODUCT(#REF!,#REF!)/1000 ->  | BD25: =SUMPRODUCT(#REF!,#REF!)/1000 ->  | BE25: =SUMPRODUCT(#REF!,#REF!)/1000 ->  | BF25: =SUMPRODUCT(#REF!,#REF!)/1000 ->  | BG25: =SUMPRODUCT(#REF!,#REF!)/1000 ->  | BH25: =SUMPRODUCT(#REF!,#REF!)/1000 ->  | BI25: =SUMPRODUCT(#REF!,#REF!)/1000 ->  | BJ25: =SUMPRODUCT(#REF!,#REF!)/1000 ->  | BK25: =SUMPRODUCT(#REF!,#REF!)/1000 ->  | BL25: =SUMPRODUCT(#REF!,#REF!)/1000 ->  | BM25: =SUMPRODUCT(#REF!,#REF!)/1000 ->  | BN25: =SUMPRODUCT(#REF!,#REF!)/1000 ->  | BO25: =SUMPRODUCT(#REF!,#REF!)/1000 ->  | BP25: =SUMPRODUCT(#REF!,#REF!)/1000 ->  | BQ25: =SUMPRODUCT(#REF!,#REF!)/1000 ->  | BR25: =SUMPRODUCT(#REF!,#REF!)/1000 ->  | BS25: =SUMPRODUCT(#REF!,#REF!)/1000 ->  | BT25: =SUMPRODUCT(#REF!,#REF!)/1000 ->  | BU25: =SUMPRODUCT(#REF!,#REF!)/1000 ->  | BV25: =SUMPRODUCT(#REF!,#REF!)/1000 ->  | BW25: =SUMPRODUCT(#REF!,#REF!)/1000 ->  | BX25: =SUMPRODUCT(#REF!,#REF!)/1000 ->  | BY25: =SUMPRODUCT(#REF!,#REF!)/1000 ->  | BZ25: =SUMPRODUCT(#REF!,#REF!)/1000 ->  | CA25: =SUMPRODUCT(#REF!,#REF!)/1000 ->  | CB25: =SUMPRODUCT(#REF!,#REF!)/1000 ->  | CC25: =SUMPRODUCT(#REF!,#REF!)/1000 ->  | CD25: =SUMPRODUCT(#REF!,#REF!)/1000 ->  | CE25: =SUMPRODUCT(#REF!,#REF!)/1000 ->  | CF25: =SUMPRODUCT(#REF!,#REF!)/1000 ->  | CG25: =SUMPRODUCT(#REF!,#REF!)/1000 ->  | CH25: =SUMPRODUCT(#REF!,#REF!)/1000 ->  | CI25: =SUMPRODUCT(#REF!,#REF!)/1000 ->  | CJ25: =SUMPRODUCT(#REF!,#REF!)/1000 ->  | CK25: 112.1905501 | CL25: 112.1905501 | CM25: 112.1905501 | CN25: 112.1905501 | CO25: 112.1905501
A26: =ROW() -> 26 | B26: Throughput x Distance (PJkms per day) | D26: =SUMPRODUCT(#REF!,#REF!)/1000 ->  | E26: =SUMPRODUCT(#REF!,#REF!)/1000 ->  | F26: =SUMPRODUCT(#REF!,#REF!)/1000 ->  | G26: =SUMPRODUCT(#REF!,#REF!)/1000 ->  | H26: =SUMPRODUCT(#REF!,#REF!)/1000 ->  | I26: =SUMPRODUCT(#REF!,#REF!)/1000 ->  | J26: =SUMPRODUCT(#REF!,#REF!)/1000 ->  | K26: =SUMPRODUCT(#REF!,#REF!)/1000 ->  | L26: =SUMPRODUCT(#REF!,#REF!)/1000 ->  | M26: =SUMPRODUCT(#REF!,#REF!)/1000 ->  | N26: =SUMPRODUCT(#REF!,#REF!)/1000 ->  | O26: =SUMPRODUCT(#REF!,#REF!)/1000 ->  | P26: =SUMPRODUCT(#REF!,#REF!)/1000 ->  | Q26: =SUMPRODUCT(#REF!,#REF!)/1000 ->  | R26: =SUMPRODUCT(#REF!,#REF!)/1000 ->  | S26: =SUMPRODUCT(#REF!,#REF!)/1000 ->  | T26: =SUMPRODUCT(#REF!,#REF!)/1000 ->  | U26: =SUMPRODUCT(#REF!,#REF!)/1000 ->  | V26: =SUMPRODUCT(#REF!,#REF!)/1000 ->  | W26: =SUMPRODUCT(#REF!,#REF!)/1000 ->  | X26: =SUMPRODUCT(#REF!,#REF!)/1000 ->  | Y26: =SUMPRODUCT(#REF!,#REF!)/1000 ->  | Z26: =SUMPRODUCT(#REF!,#REF!)/1000 ->  | AA26: =SUMPRODUCT(#REF!,#REF!)/1000 ->  | AB26: =SUMPRODUCT(#REF!,#REF!)/1000 ->  | AC26: =SUMPRODUCT(#REF!,#REF!)/1000 ->  | AD26: =SUMPRODUCT(#REF!,#REF!)/1000 ->  | AE26: =SUMPRODUCT(#REF!,#REF!)/1000 ->  | AF26: =SUMPRODUCT(#REF!,#REF!)/1000 ->  | AG26: =SUMPRODUCT(#REF!,#REF!)/1000 ->  | AH26: =SUMPRODUCT(#REF!,#REF!)/1000 ->  | AI26: =SUMPRODUCT(#REF!,#REF!)/1000 ->  | AJ26: =SUMPRODUCT(#REF!,#REF!)/1000 ->  | AK26: =SUMPRODUCT(#REF!,#REF!)/1000 ->  | AL26: =SUMPRODUCT(#REF!,#REF!)/1000 ->  | AM26: =SUMPRODUCT(#REF!,#REF!)/1000 ->  | AN26: =SUMPRODUCT(#REF!,#REF!)/1000 ->  | AO26: =SUMPRODUCT(#REF!,#REF!)/1000 ->  | AP26: =SUMPRODUCT(#REF!,#REF!)/1000 ->  | AQ26: =SUMPRODUCT(#REF!,#REF!)/1000 ->  | AR26: =SUMPRODUCT(#REF!,#REF!)/1000 ->  | AS26: =SUMPRODUCT(#REF!,#REF!)/1000 ->  | AT26: =SUMPRODUCT(#REF!,#REF!)/1000 ->  | AU26: =SUMPRODUCT(#REF!,#REF!)/1000 ->  | AV26: =SUMPRODUCT(#REF!,#REF!)/1000 ->  | AW26: =SUMPRODUCT(#REF!,#REF!)/1000 ->  | AX26: =SUMPRODUCT(#REF!,#REF!)/1000 ->  | AY26: =SUMPRODUCT(#REF!,#REF!)/1000 ->  | AZ26: =SUMPRODUCT(#REF!,#REF!)/1000 ->  | BA26: =SUMPRODUCT(#REF!,#REF!)/1000 ->  | BB26: =SUMPRODUCT(#REF!,#REF!)/1000 ->  | BC26: =SUMPRODUCT(#REF!,#REF!)/1000 ->  | BD26: =SUMPRODUCT(#REF!,#REF!)/1000 ->  | BE26: =SUMPRODUCT(#REF!,#REF!)/1000 ->  | BF26: =SUMPRODUCT(#REF!,#REF!)/1000 ->  | BG26: =SUMPRODUCT(#REF!,#REF!)/1000 ->  | BH26: =SUMPRODUCT(#REF!,#REF!)/1000 ->  | BI26: =SUMPRODUCT(#REF!,#REF!)/1000 ->  | BJ26: =SUMPRODUCT(#REF!,#REF!)/1000 ->  | BK26: =SUMPRODUCT(#REF!,#REF!)/1000 ->  | BL26: =SUMPRODUCT(#REF!,#REF!)/1000 ->  | BM26: =SUMPRODUCT(#REF!,#REF!)/1000 ->  | BN26: =SUMPRODUCT(#REF!,#REF!)/1000 ->  | BO26: =SUMPRODUCT(#REF!,#REF!)/1000 ->  | BP26: =SUMPRODUCT(#REF!,#REF!)/1000 ->  | BQ26: =SUMPRODUCT(#REF!,#REF!)/1000 ->  | BR26: =SUMPRODUCT(#REF!,#REF!)/1000 ->  | BS26: =SUMPRODUCT(#REF!,#REF!)/1000 ->  | BT26: =SUMPRODUCT(#REF!,#REF!)/1000 ->  | BU26: =SUMPRODUCT(#REF!,#REF!)/1000 ->  | BV26: =SUMPRODUCT(#REF!,#REF!)/1000 ->  | BW26: =SUMPRODUCT(#REF!,#REF!)/1000 ->  | BX26: =SUMPRODUCT(#REF!,#REF!)/1000 ->  | BY26: =SUMPRODUCT(#REF!,#REF!)/1000 ->  | BZ26: =SUMPRODUCT(#REF!,#REF!)/1000 ->  | CA26: =SUMPRODUCT(#REF!,#REF!)/1000 ->  | CB26: =SUMPRODUCT(#REF!,#REF!)/1000 ->  | CC26: =SUMPRODUCT(#REF!,#REF!)/1000 ->  | CD26: =SUMPRODUCT(#REF!,#REF!)/1000 ->  | CE26: =SUMPRODUCT(#REF!,#REF!)/1000 ->  | CF26: =SUMPRODUCT(#REF!,#REF!)/1000 ->  | CG26: =SUMPRODUCT(#REF!,#REF!)/1000 ->  | CH26: =SUMPRODUCT(#REF!,#REF!)/1000 ->  | CI26: =SUMPRODUCT(#REF!,#REF!)/1000 ->  | CJ26: =SUMPRODUCT(#REF!,#REF!)/1000 ->  | CK26: 96.75468008 | CL26: 96.75468008 | CM26: 96.75468008 | CN26: 96.75468008 | CO26: 96.75468008
A27: =ROW() -> 27 | B27: Tariff Allocation
A28: =ROW() -> 28 | B28: Toll Charge Allocation | BL28: 0.113 | CF28: 0.113
A29: =ROW() -> 29 | B29: Reservation Charge Allocation | BL29: 0.722 | CF29: 0.722
A30: =ROW() -> 30 | B30: Throughput Charge Allocation | BL30: 0.165 | CF30: 0.165

Sheet Load_NGI
B1: =Main!B1 -> Goldfields Gas Pipeline Tariff Model, September 2024 [Revised Proposal]
B2: Load
A3: Ref | B3: =COLUMN() -> 2 | C3: =COLUMN() -> 3 | D3: =COLUMN() -> 4 | E3: =COLUMN() -> 5 | F3: =COLUMN() -> 6 | G3: =COLUMN() -> 7 | H3: =COLUMN() -> 8 | I3: =COLUMN() -> 9 | J3: =COLUMN() -> 10 | K3: =COLUMN() -> 11 | L3: =COLUMN() -> 12 | M3: =COLUMN() -> 13 | N3: =COLUMN() -> 14 | O3: =COLUMN() -> 15 | P3: =COLUMN() -> 16 | Q3: =COLUMN() -> 17 | R3: =COLUMN() -> 18 | S3: =COLUMN() -> 19 | T3: =COLUMN() -> 20 | U3: =COLUMN() -> 21 | V3: =COLUMN() -> 22 | W3: =COLUMN() -> 23 | X3: =COLUMN() -> 24 | Y3: =COLUMN() -> 25 | Z3: =COLUMN() -> 26 | AA3: =COLUMN() -> 27 | AB3: =COLUMN() -> 28 | AC3: =COLUMN() -> 29 | AD3: =COLUMN() -> 30 | AE3: =COLUMN() -> 31 | AF3: =COLUMN() -> 32 | AG3: =COLUMN() -> 33 | AH3: =COLUMN() -> 34 | AI3: =COLUMN() -> 35 | AJ3: =COLUMN() -> 36 | AK3: =COLUMN() -> 37 | AL3: =COLUMN() -> 38 | AM3: =COLUMN() -> 39 | AN3: =COLUMN() -> 40 | AO3: =COLUMN() -> 41 | AP3: =COLUMN() -> 42 | AQ3: =COLUMN() -> 43 | AR3: =COLUMN() -> 44 | AS3: =COLUMN() -> 45 | AT3: =COLUMN() -> 46 | AU3: =COLUMN() -> 47 | AV3: =COLUMN() -> 48 | AW3: =COLUMN() -> 49 | AX3: =COLUMN() -> 50 | AY3: =COLUMN() -> 51 | AZ3: =COLUMN() -> 52 | BA3: =COLUMN() -> 53 | BB3: =COLUMN() -> 54 | BC3: =COLUMN() -> 55 | BD3: =COLUMN() -> 56 | BE3: =COLUMN() -> 57 | BF3: =COLUMN() -> 58 | BG3: =COLUMN() -> 59 | BH3: =COLUMN() -> 60 | BI3: =COLUMN() -> 61 | BJ3: =COLUMN() -> 62 | BK3: =COLUMN() -> 63 | BL3: =COLUMN() -> 64 | BM3: =COLUMN() -> 65 | BN3: =COLUMN() -> 66 | BO3: =COLUMN() -> 67 | BP3: =COLUMN() -> 68 | BQ3: =COLUMN() -> 69 | BR3: =COLUMN() -> 70 | BS3: =COLUMN() -> 71 | BT3: =COLUMN() -> 72 | BU3: =COLUMN() -> 73 | BV3: =COLUMN() -> 74 | BW3: =COLUMN() -> 75 | BX3: =COLUMN() -> 76 | BY3: =COLUMN() -> 77 | BZ3: =COLUMN() -> 78 | CA3: =COLUMN() -> 79 | CB3: =COLUMN() -> 80 | CC3: =COLUMN() -> 81 | CD3: =COLUMN() -> 82 | CE3: =COLUMN() -> 83 | CF3: =COLUMN() -> 84 | CG3: =COLUMN() -> 85 | CH3: =COLUMN() -> 86 | CI3: =COLUMN() -> 87 | CJ3: =COLUMN() -> 88 | CK3: =COLUMN() -> 89 | CL3: =COLUMN() -> 90 | CM3: =COLUMN() -> 91 | CN3: =COLUMN() -> 92 | CO3: =COLUMN() -> 93
A4: =ROW() -> 4 | B4: Actual or Forecast | C4: Actual | D4: Actual | E4: Actual | F4: Actual | G4: Actual | H4: Actual | I4: Actual | J4: Actual | K4: Actual | L4: Actual | M4: Actual | N4: Actual | O4: Actual | P4: Actual | Q4: Actual | R4: Actual | S4: Actual | T4: Actual | U4: Actual | V4: Actual | W4: Actual | X4: Actual | Y4: Actual | Z4: Actual | AA4: Actual | AB4: Actual | AC4: Actual | AD4: Actual | AE4: Actual | AF4: Actual | AG4: Actual | AH4: Actual | AI4: Actual | AJ4: Actual | AK4: Actual | AL4: Actual | AM4: Actual | AN4: Actual | AO4: Actual | AP4: Actual | AQ4: Actual | AR4: Forecast | AS4: Forecast | AT4: Forecast | AU4: Forecast | AV4: Forecast | AW4: Forecast | AX4: Forecast | AY4: Forecast | AZ4: Forecast | BA4: Forecast | BB4: Forecast | BC4: Forecast | BD4: Forecast | BE4: Forecast | BF4: Forecast | BG4: Forecast | BH4: Forecast | BI4: Forecast | BJ4: Forecast | BK4: Forecast | BL4: Forecast | BM4: Forecast | BN4: Forecast | BO4: Forecast | BP4: Forecast | BQ4: Forecast | BR4: Forecast | BS4: Forecast | BT4: Forecast | BU4: Forecast | BV4: Forecast | BW4: Forecast | BX4: Forecast | BY4: Forecast | BZ4: Forecast | CA4: Forecast | CB4: Forecast | CC4: Forecast | CD4: Forecast | CE4: Forecast | CF4: Forecast | CG4: Forecast | CH4: Forecast | CI4: Forecast | CJ4: Forecast | CK4: Forecast | CL4: Forecast | CM4: Forecast | CN4: Forecast | CO4: Forecast
A5: =ROW() -> 5 | B5: Year Type | C5: Calendar | D5: Calendar | E5: Calendar | F5: Calendar | G5: Calendar | H5: Calendar | I5: Calendar | J5: Calendar | K5: Calendar | L5: Calendar | M5: Calendar | N5: Calendar | O5: Calendar | P5: Calendar | Q5: Calendar | R5: Calendar | S5: Calendar | T5: Calendar | U5: Calendar | V5: Calendar | W5: Calendar | X5: Calendar | Y5: Calendar | Z5: Calendar | AA5: Calendar | AB5: Calendar | AC5: Calendar | AD5: Calendar | AE5: Calendar | AF5: Calendar | AG5: Calendar | AH5: Calendar | AI5: Calendar | AJ5: Calendar | AK5: Calendar | AL5: Calendar | AM5: Calendar | AN5: Calendar | AO5: Calendar | AP5: Calendar | AQ5: Calendar | AR5: Calendar | AS5: Calendar | AT5: Calendar | AU5: Calendar | AV5: Calendar | AW5: Calendar | AX5: Calendar | AY5: Calendar | AZ5: Calendar | BA5: Calendar | BB5: Calendar | BC5: Calendar | BD5: Calendar | BE5: Calendar | BF5: Calendar | BG5: Calendar | BH5: Calendar | BI5: Calendar | BJ5: Calendar | BK5: Calendar | BL5: Calendar | BM5: Calendar | BN5: Calendar | BO5: Calendar | BP5: Calendar | BQ5: Calendar | BR5: Calendar | BS5: Calendar | BT5: Calendar | BU5: Calendar | BV5: Calendar | BW5: Calendar | BX5: Calendar | BY5: Calendar | BZ5: Calendar | CA5: Calendar | CB5: Calendar | CC5: Calendar | CD5: Calendar | CE5: Calendar | CF5: Calendar | CG5: Calendar | CH5: Calendar | CI5: Calendar | CJ5: Calendar | CK5: Calendar | CL5: Calendar | CM5: Calendar | CN5: Calendar | CO5: Calendar
A6: =ROW() -> 6 | B6: Regulatory Period | D6: 1 | E6: 1 | F6: 1 | G6: 1 | H6: 1 | I6: 1 | J6: 1 | K6: 1 | L6: 1 | M6: 1 | N6: 1 | O6: 1 | P6: 1 | Q6: 1 | R6: 1 | S6: 1 | T6: 1 | U6: 1 | V6: 1 | W6: 1 | X6: 1 | Y6: 1 | Z6: 1 | AA6: 1 | AB6: 1 | AC6: 1 | AD6: 1 | AE6: 1 | AF6: 1 | AG6: 1 | AH6: 1 | AI6: 1 | AJ6: 1 | AK6: 1 | AL6: 1 | AM6: 1 | AN6: 1 | AO6: 1 | AP6: 1 | AQ6: 1 | AR6: 2 | AS6: 2 | AT6: 2 | AU6: 2 | AV6: 2 | AW6: 2 | AX6: 2 | AY6: 2 | AZ6: 2 | BA6: 2 | BB6: 2 | BC6: 2 | BD6: 2 | BE6: 2 | BF6: 2 | BG6: 2 | BH6: 2 | BI6: 2 | BJ6: 2 | BK6: 2 | BL6: 3 | BM6: 3 | BN6: 3 | BO6: 3 | BP6: 3 | BQ6: 3 | BR6: 3 | BS6: 3 | BT6: 3 | BU6: 3 | BV6: 3 | BW6: 3 | BX6: 3 | BY6: 3 | BZ6: 3 | CA6: 3 | CB6: 3 | CC6: 3 | CD6: 3 | CE6: 3 | CF6: =Inputs!BE6 -> 4 | CG6: =Inputs!BF6 -> 4 | CH6: =Inputs!BG6 -> 4 | CI6: =Inputs!BH6 -> 4 | CJ6: =Inputs!BI6 -> 4 | CK6: =Inputs!BJ6 -> 5 | CL6: =Inputs!BK6 -> 5 | CM6: =Inputs!BL6 -> 5 | CN6: =Inputs!BM6 -> 5 | CO6: =Inputs!BN6 -> 5
A7: =ROW() -> 7 | B7: Start Date | C7: 1999-10-01 | D7: =C8+1 -> 2000-01-01 | E7: 2000-04-01 | F7: 2000-07-01 | G7: 2000-10-01 | H7: 2001-01-01 | I7: 2001-04-01 | J7: 2001-07-01 | K7: 2001-10-01 | L7: 2002-01-01 | M7: 2002-04-01 | N7: 2002-07-01 | O7: 2002-10-01 | P7: 2003-01-01 | Q7: 2003-04-01 | R7: 2003-07-01 | S7: 2003-10-01 | T7: 2004-01-01 | U7: 2004-04-01 | V7: 2004-07-01 | W7: 2004-10-01 | X7: 2005-01-01 | Y7: 2005-04-01 | Z7: 2005-07-01 | AA7: 2005-10-01 | AB7: 2006-01-01 | AC7: 2006-04-01 | AD7: 2006-07-01 | AE7: 2006-10-01 | AF7: 2007-01-01 | AG7: 2007-04-01 | AH7: 2007-07-01 | AI7: 2007-10-01 | AJ7: 2008-01-01 | AK7: 2008-04-01 | AL7: 2008-07-01 | AM7: 2008-10-01 | AN7: 2009-01-01 | AO7: 2009-04-01 | AP7: 2009-07-01 | AQ7: 2009-10-01 | AR7: 2010-01-01 | AS7: 2010-04-01 | AT7: 2010-07-01 | AU7: 2010-10-01 | AV7: 2011-01-01 | AW7: 2011-04-01 | AX7: 2011-07-01 | AY7: 2011-10-01 | AZ7: 2012-01-01 | BA7: 2012-04-01 | BB7: 2012-07-01 | BC7: 2012-10-01 | BD7: 2013-01-01 | BE7: 2013-04-01 | BF7: 2013-07-01 | BG7: 2013-10-01 | BH7: 2014-01-01 | BI7: 2014-04-01 | BJ7: 2014-07-01 | BK7: 2014-10-01 | BL7: 2015-01-01 | BM7: 2015-04-01 | BN7: 2015-07-01 | BO7: 2015-10-01 | BP7: =BO8+1 -> 2016-01-01 | BQ7: 2016-04-01 | BR7: 2016-07-01 | BS7: 2016-10-01 | BT7: 2017-01-01 | BU7: 2017-04-01 | BV7: 2017-07-01 | BW7: 2017-10-01 | BX7: 2018-01-01 | BY7: 2018-04-01 | BZ7: 2018-07-01 | CA7: 2018-10-01 | CB7: 2019-01-01 | CC7: 2019-04-01 | CD7: 2019-07-01 | CE7: 2019-10-01 | CF7: 2020-01-01 | CG7: 2021-01-01 | CH7: 2022-01-01 | CI7: 2023-01-01 | CJ7: 2024-01-01 | CK7: 2025-01-01 | CL7: 2026-01-01 | CM7: 2027-01-01 | CN7: 2028-01-01 | CO7: 2029-01-01
A8: =ROW() -> 8 | B8: End Date | C8: =C7+C11-1 -> 1999-12-31 | D8: 2000-03-31 | E8: 2000-06-30 | F8: 2000-09-30 | G8: 2000-12-31 | H8: 2001-03-31 | I8: 2001-06-30 | J8: 2001-09-30 | K8: 2001-12-31 | L8: 2002-03-31 | M8: 2002-06-30 | N8: 2002-09-30 | O8: 2002-12-31 | P8: 2003-03-31 | Q8: 2003-06-30 | R8: 2003-09-30 | S8: 2003-12-31 | T8: 2004-03-31 | U8: 2004-06-30 | V8: 2004-09-30 | W8: 2004-12-31 | X8: 2005-03-31 | Y8: 2005-06-30 | Z8: 2005-09-30 | AA8: 2005-12-31 | AB8: 2006-03-31 | AC8: 2006-06-30 | AD8: 2006-09-30 | AE8: 2006-12-31 | AF8: 2007-03-31 | AG8: 2007-06-30 | AH8: 2007-09-30 | AI8: 2007-12-31 | AJ8: 2008-03-31 | AK8: 2008-06-30 | AL8: 2008-09-30 | AM8: 2008-12-31 | AN8: 2009-03-31 | AO8: 2009-06-30 | AP8: 2009-09-30 | AQ8: 2009-12-31 | AR8: 2010-03-31 | AS8: 2010-06-30 | AT8: 2010-09-30 | AU8: 2010-12-31 | AV8: 2011-03-31 | AW8: 2011-06-30 | AX8: 2011-09-30 | AY8: 2011-12-31 | AZ8: 2012-03-31 | BA8: 2012-06-30 | BB8: 2012-09-30 | BC8: 2012-12-31 | BD8: 2013-03-31 | BE8: 2013-06-30 | BF8: 2013-09-30 | BG8: 2013-12-31 | BH8: 2014-03-31 | BI8: 2014-06-30 | BJ8: 2014-09-30 | BK8: 2014-12-31 | BL8: 2015-03-31 | BM8: 2015-06-30 | BN8: 2015-09-30 | BO8: =BO7+BO11-1 -> 2015-12-31 | BP8: 2016-03-31 | BQ8: 2016-06-30 | BR8: 2016-09-30 | BS8: 2016-12-31 | BT8: 2017-03-31 | BU8: 2017-06-30 | BV8: 2017-09-30 | BW8: 2017-12-31 | BX8: 2018-03-31 | BY8: 2018-06-30 | BZ8: 2018-09-30 | CA8: 2018-12-31 | CB8: 2019-03-31 | CC8: 2019-06-30 | CD8: 2019-09-30 | CE8: 2019-12-31 | CF8: 2020-12-31 | CG8: 2021-12-31 | CH8: 2022-12-31 | CI8: 2023-12-31 | CJ8: 2024-12-31 | CK8: 2025-12-31 | CL8: 2026-12-31 | CM8: 2027-12-31 | CN8: 2028-12-31 | CO8: 2029-12-31
A9: =ROW() -> 9 | B9: Year | C9: =C8 -> 1999-12-31 | D9: =D8 -> 2000-03-31 | E9: 2000-06-30 | F9: 2000-09-30 | G9: 2000-12-31 | H9: 2001-03-31 | I9: 2001-06-30 | J9: 2001-09-30 | K9: 2001-12-31 | L9: 2002-03-31 | M9: 2002-06-30 | N9: 2002-09-30 | O9: 2002-12-31 | P9: 2003-03-31 | Q9: 2003-06-30 | R9: 2003-09-30 | S9: 2003-12-31 | T9: 2004-03-31 | U9: 2004-06-30 | V9: 2004-09-30 | W9: 2004-12-31 | X9: 2005-03-31 | Y9: 2005-06-30 | Z9: 2005-09-30 | AA9: 2005-12-31 | AB9: 2006-03-31 | AC9: 2006-06-30 | AD9: 2006-09-30 | AE9: 2006-12-31 | AF9: 2007-03-31 | AG9: 2007-06-30 | AH9: 2007-09-30 | AI9: 2007-12-31 | AJ9: 2008-03-31 | AK9: 2008-06-30 | AL9: 2008-09-30 | AM9: 2008-12-31 | AN9: 2009-03-31 | AO9: 2009-06-30 | AP9: 2009-09-30 | AQ9: 2009-12-31 | AR9: 2010-03-31 | AS9: 2010-06-30 | AT9: 2010-09-30 | AU9: 2010-12-31 | AV9: 2011-03-31 | AW9: 2011-06-30 | AX9: 2011-09-30 | AY9: 2011-12-31 | AZ9: 2012-03-31 | BA9: 2012-06-30 | BB9: 2012-09-30 | BC9: 2012-12-31 | BD9: 2013-03-31 | BE9: 2013-06-30 | BF9: 2013-09-30 | BG9: 2013-12-31 | BH9: 2014-03-31 | BI9: 2014-06-30 | BJ9: 2014-09-30 | BK9: 2014-12-31 | BL9: 2015-03-31 | BM9: 2015-06-30 | BN9: 2015-09-30 | BO9: 2015-12-31 | BP9: =BP8 -> 2016-03-31 | BQ9: 2016-06-30 | BR9: 2016-09-30 | BS9: 2016-12-31 | BT9: 2017-03-31 | BU9: 2017-06-30 | BV9: 2017-09-30 | BW9: 2017-12-31 | BX9: 2018-03-31 | BY9: 2018-06-30 | BZ9: 2018-09-30 | CA9: 2018-12-31 | CB9: 2019-03-31 | CC9: 2019-06-30 | CD9: 2019-09-30 | CE9: 2019-12-31 | CF9: 2020-12-31 | CG9: 2021-12-31 | CH9: 2022-12-31 | CI9: 2023-12-31 | CJ9: 2024-12-31 | CK9: 2025-12-31 | CL9: 2026-12-31 | CM9: 2027-12-31 | CN9: 2028-12-31 | CO9: 2029-12-31
A10: =ROW() -> 10 | B10: Quarter | D10: Q1 | E10: Q2 | F10: Q3 | G10: Q4 | H10: Q1 | I10: Q2 | J10: Q3 | K10: Q4 | L10: Q1 | M10: Q2 | N10: Q3 | O10: Q4 | P10: Q1 | Q10: Q2 | R10: Q3 | S10: Q4 | T10: Q1 | U10: Q2 | V10: Q3 | W10: Q4 | X10: Q1 | Y10: Q2 | Z10: Q3 | AA10: Q4 | AB10: Q1 | AC10: Q2 | AD10: Q3 | AE10: Q4 | AF10: Q1 | AG10: Q2 | AH10: Q3 | AI10: Q4 | AJ10: Q1 | AK10: Q2 | AL10: Q3 | AM10: Q4 | AN10: Q1 | AO10: Q2 | AP10: Q3 | AQ10: Q4 | AR10: Q1 | AS10: Q2 | AT10: Q3 | AU10: Q4 | AV10: Q1 | AW10: Q2 | AX10: Q3 | AY10: Q4 | AZ10: Q1 | BA10: Q2 | BB10: Q3 | BC10: Q4 | BD10: Q1 | BE10: Q2 | BF10: Q3 | BG10: Q4 | BH10: Q1 | BI10: Q2 | BJ10: Q3 | BK10: Q4 | BL10: Q1 | BM10: Q2 | BN10: Q3 | BO10: Q4 | BP10: Q1 | BQ10: Q2 | BR10: Q3 | BS10: Q4 | BT10: Q1 | BU10: Q2 | BV10: Q3 | BW10: Q4 | BX10: Q1 | BY10: Q2 | BZ10: Q3 | CA10: Q4 | CB10: Q1 | CC10: Q2 | CD10: Q3 | CE10: Q4
A11: =ROW() -> 11 | B11: Days | C11: 92 | D11: 91 | E11: 91 | F11: 92 | G11: 92 | H11: 90 | I11: 91 | J11: 92 | K11: 92 | L11: 90 | M11: 91 | N11: 92 | O11: 92 | P11: 90 | Q11: 91 | R11: 92 | S11: 92 | T11: 91 | U11: 91 | V11: 92 | W11: 92 | X11: 90 | Y11: 91 | Z11: 92 | AA11: 92 | AB11: 90 | AC11: 91 | AD11: 92 | AE11: 92 | AF11: 90 | AG11: 91 | AH11: 92 | AI11: 92 | AJ11: 91 | AK11: 91 | AL11: 92 | AM11: 92 | AN11: 90 | AO11: 91 | AP11: 92 | AQ11: 92 | AR11: 90 | AS11: 91 | AT11: 92 | AU11: 92 | AV11: 90 | AW11: 91 | AX11: 92 | AY11: 92 | AZ11: 91 | BA11: 91 | BB11: 92 | BC11: 92 | BD11: 90 | BE11: 91 | BF11: 92 | BG11: 92 | BH11: 90 | BI11: 91 | BJ11: 92 | BK11: 92 | BL11: 90 | BM11: 91 | BN11: 92 | BO11: 92 | BP11: 91 | BQ11: 91 | BR11: 92 | BS11: 92 | BT11: 90 | BU11: 91 | BV11: 92 | BW11: 92 | BX11: 90 | BY11: 91 | BZ11: 92 | CA11: 92 | CB11: 90 | CC11: 91 | CD11: 92 | CE11: 92 | CF11: =Inputs!BE$11 -> 366 | CG11: =Inputs!BF$11 -> 365 | CH11: =Inputs!BG$11 -> 365 | CI11: =Inputs!BH$11 -> 365 | CJ11: =Inputs!BI$11 -> 366 | CK11: =Inputs!BJ$11 -> 365 | CL11: =Inputs!BK$11 -> 365 | CM11: =Inputs!BL$11 -> 365 | CN11: =Inputs!BM$11 -> 366 | CO11: =Inputs!BN$11 -> 365
A12: =ROW() -> 12 | B12: Years (nearest half) | C12: =ROUND(YEARFRAC(C7,C8),2) -> 0.25 | D12: 0.25 | E12: 0.25 | F12: 0.25 | G12: 0.25 | H12: 0.25 | I12: 0.25 | J12: 0.25 | K12: 0.25 | L12: 0.25 | M12: 0.25 | N12: 0.25 | O12: 0.25 | P12: 0.25 | Q12: 0.25 | R12: 0.25 | S12: 0.25 | T12: 0.25 | U12: 0.25 | V12: 0.25 | W12: 0.25 | X12: 0.25 | Y12: 0.25 | Z12: 0.25 | AA12: 0.25 | AB12: 0.25 | AC12: 0.25 | AD12: 0.25 | AE12: 0.25 | AF12: 0.25 | AG12: 0.25 | AH12: 0.25 | AI12: 0.25 | AJ12: 0.25 | AK12: 0.25 | AL12: 0.25 | AM12: 0.25 | AN12: 0.25 | AO12: 0.25 | AP12: 0.25 | AQ12: 0.25 | AR12: 0.25 | AS12: 0.25 | AT12: 0.25 | AU12: 0.25 | AV12: 0.25 | AW12: 0.25 | AX12: 0.25 | AY12: 0.25 | AZ12: 0.25 | BA12: 0.25 | BB12: 0.25 | BC12: 0.25 | BD12: 0.25 | BE12: 0.25 | BF12: 0.25 | BG12: 0.25 | BH12: 0.25 | BI12: 0.25 | BJ12: 0.25 | BK12: 0.25 | BL12: 0.25 | BM12: 0.25 | BN12: 0.25 | BO12: =ROUND(YEARFRAC(BO7,BO8),2) -> 0.25 | BP12: 0.25 | BQ12: 0.25 | BR12: 0.25 | BS12: 0.25 | BT12: 0.25 | BU12: 0.25 | BV12: 0.25 | BW12: 0.25 | BX12: 0.25 | BY12: 0.25 | BZ12: 0.25 | CA12: 0.25 | CB12: 0.25 | CC12: 0.25 | CD12: 0.25 | CE12: 0.25 | CF12: 1 | CG12: 1 | CH12: 1 | CI12: 1 | CJ12: 1 | CK12: 1 | CL12: 1 | CM12: 1 | CN12: 1 | CO12: 1
A13: =ROW() -> 13
A14: =ROW() -> 14 | B14: Historical Tariffs
A15: =ROW() -> 15 | B15: Toll charge
A16: =ROW() -> 16 | B16: Reservation charge
A17: =ROW() -> 17 | B17: Throughput charge
A18: =ROW() -> 18 | B18: Reserved Capacity [TJ/day]
A19: =ROW() -> 19 | B19: Total | D19: =SUM(#REF!) ->  | E19: =SUM(#REF!) ->  | F19: =SUM(#REF!) ->  | G19: =SUM(#REF!) ->  | H19: =SUM(#REF!) ->  | I19: =SUM(#REF!) ->  | J19: =SUM(#REF!) ->  | K19: =SUM(#REF!) ->  | L19: =SUM(#REF!) ->  | M19: =SUM(#REF!) ->  | N19: =SUM(#REF!) ->  | O19: =SUM(#REF!) ->  | P19: =SUM(#REF!) ->  | Q19: =SUM(#REF!) ->  | R19: =SUM(#REF!) ->  | S19: =SUM(#REF!) ->  | T19: =SUM(#REF!) ->  | U19: =SUM(#REF!) ->  | V19: =SUM(#REF!) ->  | W19: =SUM(#REF!) ->  | X19: =SUM(#REF!) ->  | Y19: =SUM(#REF!) ->  | Z19: =SUM(#REF!) ->  | AA19: =SUM(#REF!) ->  | AB19: =SUM(#REF!) ->  | AC19: =SUM(#REF!) ->  | AD19: =SUM(#REF!) ->  | AE19: =SUM(#REF!) ->  | AF19: =SUM(#REF!) ->  | AG19: =SUM(#REF!) ->  | AH19: =SUM(#REF!) ->  | AI19: =SUM(#REF!) ->  | AJ19: =SUM(#REF!) ->  | AK19: =SUM(#REF!) ->  | AL19: =SUM(#REF!) ->  | AM19: =SUM(#REF!) ->  | AN19: =SUM(#REF!) ->  | AO19: =SUM(#REF!) ->  | AP19: =SUM(#REF!) ->  | AQ19: =SUM(#REF!) ->  | AR19: =SUM(#REF!) ->  | AS19: =SUM(#REF!) ->  | AT19: =SUM(#REF!) ->  | AU19: =SUM(#REF!) ->  | AV19: =SUM(#REF!) ->  | AW19: =SUM(#REF!) ->  | AX19: =SUM(#REF!) ->  | AY19: =SUM(#REF!) ->  | AZ19: =SUM(#REF!) ->  | BA19: =SUM(#REF!) ->  | BB19: =SUM(#REF!) ->  | BC19: =SUM(#REF!) ->  | BD19: =SUM(#REF!) ->  | BE19: =SUM(#REF!) ->  | BF19: =SUM(#REF!) ->  | BG19: =SUM(#REF!) ->  | BH19: =SUM(#REF!) ->  | BI19: =SUM(#REF!) ->  | BJ19: =SUM(#REF!) ->  | BK19: =SUM(#REF!) ->  | BL19: =SUM(#REF!) ->  | BM19: =SUM(#REF!) ->  | BN19: =SUM(#REF!) ->  | BO19: =SUM(#REF!) ->  | BP19: =SUM(#REF!) ->  | BQ19: =SUM(#REF!) ->  | BR19: =SUM(#REF!) ->  | BS19: =SUM(#REF!) ->  | BT19: =SUM(#REF!) ->  | BU19: =SUM(#REF!) ->  | BV19: =SUM(#REF!) ->  | BW19: =SUM(#REF!) ->  | BX19: =SUM(#REF!) ->  | BY19: =SUM(#REF!) ->  | BZ19: =SUM(#REF!) ->  | CA19: =SUM(#REF!) ->  | CB19: =SUM(#REF!) ->  | CC19: =SUM(#REF!) ->  | CD19: =SUM(#REF!) ->  | CE19: =SUM(#REF!) ->  | CF19: =SUM(#REF!) ->  | CG19: =SUM(#REF!) ->  | CH19: =SUM(#REF!) ->  | CI19: =SUM(#REF!) ->  | CJ19: =SUM(#REF!) ->  | CK19: 12.9 | CL19: 14.3 | CM19: 14.3 | CN19: 14.3 | CO19: 14.3
A20: =ROW() -> 20 | B20: Throughput [TJ/day]
A21: =ROW() -> 21 | B21: Total | D21: =SUM(#REF!) ->  | E21: =SUM(#REF!) ->  | F21: =SUM(#REF!) ->  | G21: =SUM(#REF!) ->  | H21: =SUM(#REF!) ->  | I21: =SUM(#REF!) ->  | J21: =SUM(#REF!) ->  | K21: =SUM(#REF!) ->  | L21: =SUM(#REF!) ->  | M21: =SUM(#REF!) ->  | N21: =SUM(#REF!) ->  | O21: =SUM(#REF!) ->  | P21: =SUM(#REF!) ->  | Q21: =SUM(#REF!) ->  | R21: =SUM(#REF!) ->  | S21: =SUM(#REF!) ->  | T21: =SUM(#REF!) ->  | U21: =SUM(#REF!) ->  | V21: =SUM(#REF!) ->  | W21: =SUM(#REF!) ->  | X21: =SUM(#REF!) ->  | Y21: =SUM(#REF!) ->  | Z21: =SUM(#REF!) ->  | AA21: =SUM(#REF!) ->  | AB21: =SUM(#REF!) ->  | AC21: =SUM(#REF!) ->  | AD21: =SUM(#REF!) ->  | AE21: =SUM(#REF!) ->  | AF21: =SUM(#REF!) ->  | AG21: =SUM(#REF!) ->  | AH21: =SUM(#REF!) ->  | AI21: =SUM(#REF!) ->  | AJ21: =SUM(#REF!) ->  | AK21: =SUM(#REF!) ->  | AL21: =SUM(#REF!) ->  | AM21: =SUM(#REF!) ->  | AN21: =SUM(#REF!) ->  | AO21: =SUM(#REF!) ->  | AP21: =SUM(#REF!) ->  | AQ21: =SUM(#REF!) ->  | AR21: =SUM(#REF!) ->  | AS21: =SUM(#REF!) ->  | AT21: =SUM(#REF!) ->  | AU21: =SUM(#REF!) ->  | AV21: =SUM(#REF!) ->  | AW21: =SUM(#REF!) ->  | AX21: =SUM(#REF!) ->  | AY21: =SUM(#REF!) ->  | AZ21: =SUM(#REF!) ->  | BA21: =SUM(#REF!) ->  | BB21: =SUM(#REF!) ->  | BC21: =SUM(#REF!) ->  | BD21: =SUM(#REF!) ->  | BE21: =SUM(#REF!) ->  | BF21: =SUM(#REF!) ->  | BG21: =SUM(#REF!) ->  | BH21: =SUM(#REF!) ->  | BI21: =SUM(#REF!) ->  | BJ21: =SUM(#REF!) ->  | BK21: =SUM(#REF!) ->  | BL21: =SUM(#REF!) ->  | BM21: =SUM(#REF!) ->  | BN21: =SUM(#REF!) ->  | BO21: =SUM(#REF!) ->  | BP21: =SUM(#REF!) ->  | BQ21: =SUM(#REF!) ->  | BR21: =SUM(#REF!) ->  | BS21: =SUM(#REF!) ->  | BT21: =SUM(#REF!) ->  | BU21: =SUM(#REF!) ->  | BV21: =SUM(#REF!) ->  | BW21: =SUM(#REF!) ->  | BX21: =SUM(#REF!) ->  | BY21: =SUM(#REF!) ->  | BZ21: =SUM(#REF!) ->  | CA21: =SUM(#REF!) ->  | CB21: =SUM(#REF!) ->  | CC21: =SUM(#REF!) ->  | CD21: =SUM(#REF!) ->  | CE21: =SUM(#REF!) ->  | CF21: =SUM(#REF!) ->  | CG21: =SUM(#REF!) ->  | CH21: =SUM(#REF!) ->  | CI21: =SUM(#REF!) ->  | CJ21: =SUM(#REF!) ->  | CK21: 11.40022409 | CL21: 12.63745771 | CM21: 12.63745771 | CN21: 12.63745771 | CO21: 12.63745771
A22: =ROW() -> 22 | B22: km from Receipt
A23: =ROW() -> 23 | B23: GGP customers from NGI
A24: =ROW() -> 24 | B24: Calculated Load
A25: =ROW() -> 25 | B25: Reserved Capacity [TJ/day] | D25: =Load_NGI!D19 ->  | E25: =Load_NGI!E19 ->  | F25: =Load_NGI!F19 ->  | G25: =Load_NGI!G19 ->  | H25: =Load_NGI!H19 ->  | I25: =Load_NGI!I19 ->  | J25: =Load_NGI!J19 ->  | K25: =Load_NGI!K19 ->  | L25: =Load_NGI!L19 ->  | M25: =Load_NGI!M19 ->  | N25: =Load_NGI!N19 ->  | O25: =Load_NGI!O19 ->  | P25: =Load_NGI!P19 ->  | Q25: =Load_NGI!Q19 ->  | R25: =Load_NGI!R19 ->  | S25: =Load_NGI!S19 ->  | T25: =Load_NGI!T19 ->  | U25: =Load_NGI!U19 ->  | V25: =Load_NGI!V19 ->  | W25: =Load_NGI!W19 ->  | X25: =Load_NGI!X19 ->  | Y25: =Load_NGI!Y19 ->  | Z25: =Load_NGI!Z19 ->  | AA25: =Load_NGI!AA19 ->  | AB25: =Load_NGI!AB19 ->  | AC25: =Load_NGI!AC19 ->  | AD25: =Load_NGI!AD19 ->  | AE25: =Load_NGI!AE19 ->  | AF25: =Load_NGI!AF19 ->  | AG25: =Load_NGI!AG19 ->  | AH25: =Load_NGI!AH19 ->  | AI25: =Load_NGI!AI19 ->  | AJ25: =Load_NGI!AJ19 ->  | AK25: =Load_NGI!AK19 ->  | AL25: =Load_NGI!AL19 ->  | AM25: =Load_NGI!AM19 ->  | AN25: =Load_NGI!AN19 ->  | AO25: =Load_NGI!AO19 ->  | AP25: =Load_NGI!AP19 ->  | AQ25: =Load_NGI!AQ19 ->  | AR25: =Load_NGI!AR19 ->  | AS25: =Load_NGI!AS19 ->  | AT25: =Load_NGI!AT19 ->  | AU25: =Load_NGI!AU19 ->  | AV25: =Load_NGI!AV19 ->  | AW25: =Load_NGI!AW19 ->  | AX25: =Load_NGI!AX19 ->  | AY25: =Load_NGI!AY19 ->  | AZ25: =Load_NGI!AZ19 ->  | BA25: =Load_NGI!BA19 ->  | BB25: =Load_NGI!BB19 ->  | BC25: =Load_NGI!BC19 ->  | BD25: =Load_NGI!BD19 ->  | BE25: =Load_NGI!BE19 ->  | BF25: =Load_NGI!BF19 ->  | BG25: =Load_NGI!BG19 ->  | BH25: =Load_NGI!BH19 ->  | BI25: =Load_NGI!BI19 ->  | BJ25: =Load_NGI!BJ19 ->  | BK25: =Load_NGI!BK19 ->  | BL25: =Load_NGI!BL19 ->  | BM25: =Load_NGI!BM19 ->  | BN25: =Load_NGI!BN19 ->  | BO25: =Load_NGI!BO19 ->  | BP25: =Load_NGI!BP19 ->  | BQ25: =Load_NGI!BQ19 ->  | BR25: =Load_NGI!BR19 ->  | BS25: =Load_NGI!BS19 ->  | BT25: =Load_NGI!BT19 ->  | BU25: =Load_NGI!BU19 ->  | BV25: =Load_NGI!BV19 ->  | BW25: =Load_NGI!BW19 ->  | BX25: =Load_NGI!BX19 ->  | BY25: =Load_NGI!BY19 ->  | BZ25: =Load_NGI!BZ19 ->  | CA25: =Load_NGI!CA19 ->  | CB25: =Load_NGI!CB19 ->  | CC25: =Load_NGI!CC19 ->  | CD25: =Load_NGI!CD19 ->  | CE25: =Load_NGI!CE19 ->  | CF25: =Load_NGI!CF19 ->  | CG25: =Load_NGI!CG19 ->  | CH25: =Load_NGI!CH19 ->  | CI25: =Load_NGI!CI19 ->  | CJ25: =Load_NGI!CJ19 ->  | CK25: =Load_NGI!CK19 -> 12.9 | CL25: =Load_NGI!CL19 -> 14.3 | CM25: =Load_NGI!CM19 -> 14.3 | CN25: =Load_NGI!CN19 -> 14.3 | CO25: =Load_NGI!CO19 -> 14.3
A26: =ROW() -> 26 | B26: Reserved Capacity x Distance (PJkms per day) | D26: =SUMPRODUCT(#REF!,#REF!)/1000 ->  | E26: =SUMPRODUCT(#REF!,#REF!)/1000 ->  | F26: =SUMPRODUCT(#REF!,#REF!)/1000 ->  | G26: =SUMPRODUCT(#REF!,#REF!)/1000 ->  | H26: =SUMPRODUCT(#REF!,#REF!)/1000 ->  | I26: =SUMPRODUCT(#REF!,#REF!)/1000 ->  | J26: =SUMPRODUCT(#REF!,#REF!)/1000 ->  | K26: =SUMPRODUCT(#REF!,#REF!)/1000 ->  | L26: =SUMPRODUCT(#REF!,#REF!)/1000 ->  | M26: =SUMPRODUCT(#REF!,#REF!)/1000 ->  | N26: =SUMPRODUCT(#REF!,#REF!)/1000 ->  | O26: =SUMPRODUCT(#REF!,#REF!)/1000 ->  | P26: =SUMPRODUCT(#REF!,#REF!)/1000 ->  | Q26: =SUMPRODUCT(#REF!,#REF!)/1000 ->  | R26: =SUMPRODUCT(#REF!,#REF!)/1000 ->  | S26: =SUMPRODUCT(#REF!,#REF!)/1000 ->  | T26: =SUMPRODUCT(#REF!,#REF!)/1000 ->  | U26: =SUMPRODUCT(#REF!,#REF!)/1000 ->  | V26: =SUMPRODUCT(#REF!,#REF!)/1000 ->  | W26: =SUMPRODUCT(#REF!,#REF!)/1000 ->  | X26: =SUMPRODUCT(#REF!,#REF!)/1000 ->  | Y26: =SUMPRODUCT(#REF!,#REF!)/1000 ->  | Z26: =SUMPRODUCT(#REF!,#REF!)/1000 ->  | AA26: =SUMPRODUCT(#REF!,#REF!)/1000 ->  | AB26: =SUMPRODUCT(#REF!,#REF!)/1000 ->  | AC26: =SUMPRODUCT(#REF!,#REF!)/1000 ->  | AD26: =SUMPRODUCT(#REF!,#REF!)/1000 ->  | AE26: =SUMPRODUCT(#REF!,#REF!)/1000 ->  | AF26: =SUMPRODUCT(#REF!,#REF!)/1000 ->  | AG26: =SUMPRODUCT(#REF!,#REF!)/1000 ->  | AH26: =SUMPRODUCT(#REF!,#REF!)/1000 ->  | AI26: =SUMPRODUCT(#REF!,#REF!)/1000 ->  | AJ26: =SUMPRODUCT(#REF!,#REF!)/1000 ->  | AK26: =SUMPRODUCT(#REF!,#REF!)/1000 ->  | AL26: =SUMPRODUCT(#REF!,#REF!)/1000 ->  | AM26: =SUMPRODUCT(#REF!,#REF!)/1000 ->  | AN26: =SUMPRODUCT(#REF!,#REF!)/1000 ->  | AO26: =SUMPRODUCT(#REF!,#REF!)/1000 ->  | AP26: =SUMPRODUCT(#REF!,#REF!)/1000 ->  | AQ26: =SUMPRODUCT(#REF!,#REF!)/1000 ->  | AR26: =SUMPRODUCT(#REF!,#REF!)/1000 ->  | AS26: =SUMPRODUCT(#REF!,#REF!)/1000 ->  | AT26: =SUMPRODUCT(#REF!,#REF!)/1000 ->  | AU26: =SUMPRODUCT(#REF!,#REF!)/1000 ->  | AV26: =SUMPRODUCT(#REF!,#REF!)/1000 ->  | AW26: =SUMPRODUCT(#REF!,#REF!)/1000 ->  | AX26: =SUMPRODUCT(#REF!,#REF!)/1000 ->  | AY26: =SUMPRODUCT(#REF!,#REF!)/1000 ->  | AZ26: =SUMPRODUCT(#REF!,#REF!)/1000 ->  | BA26: =SUMPRODUCT(#REF!,#REF!)/1000 ->  | BB26: =SUMPRODUCT(#REF!,#REF!)/1000 ->  | BC26: =SUMPRODUCT(#REF!,#REF!)/1000 ->  | BD26: =SUMPRODUCT(#REF!,#REF!)/1000 ->  | BE26: =SUMPRODUCT(#REF!,#REF!)/1000 ->  | BF26: =SUMPRODUCT(#REF!,#REF!)/1000 ->  | BG26: =SUMPRODUCT(#REF!,#REF!)/1000 ->  | BH26: =SUMPRODUCT(#REF!,#REF!)/1000 ->  | BI26: =SUMPRODUCT(#REF!,#REF!)/1000 ->  | BJ26: =SUMPRODUCT(#REF!,#REF!)/1000 ->  | BK26: =SUMPRODUCT(#REF!,#REF!)/1000 ->  | BL26: =SUMPRODUCT(#REF!,#REF!)/1000 ->  | BM26: =SUMPRODUCT(#REF!,#REF!)/1000 ->  | BN26: =SUMPRODUCT(#REF!,#REF!)/1000 ->  | BO26: =SUMPRODUCT(#REF!,#REF!)/1000 ->  | BP26: =SUMPRODUCT(#REF!,#REF!)/1000 ->  | BQ26: =SUMPRODUCT(#REF!,#REF!)/1000 ->  | BR26: =SUMPRODUCT(#REF!,#REF!)/1000 ->  | BS26: =SUMPRODUCT(#REF!,#REF!)/1000 ->  | BT26: =SUMPRODUCT(#REF!,#REF!)/1000 ->  | BU26: =SUMPRODUCT(#REF!,#REF!)/1000 ->  | BV26: =SUMPRODUCT(#REF!,#REF!)/1000 ->  | BW26: =SUMPRODUCT(#REF!,#REF!)/1000 ->  | BX26: =SUMPRODUCT(#REF!,#REF!)/1000 ->  | BY26: =SUMPRODUCT(#REF!,#REF!)/1000 ->  | BZ26: =SUMPRODUCT(#REF!,#REF!)/1000 ->  | CA26: =SUMPRODUCT(#REF!,#REF!)/1000 ->  | CB26: =SUMPRODUCT(#REF!,#REF!)/1000 ->  | CC26: =SUMPRODUCT(#REF!,#REF!)/1000 ->  | CD26: =SUMPRODUCT(#REF!,#REF!)/1000 ->  | CE26: =SUMPRODUCT(#REF!,#REF!)/1000 ->  | CF26: =SUMPRODUCT(#REF!,#REF!)/1000 ->  | CG26: =SUMPRODUCT(#REF!,#REF!)/1000 ->  | CH26: =SUMPRODUCT(#REF!,#REF!)/1000 ->  | CI26: =SUMPRODUCT(#REF!,#REF!)/1000 ->  | CJ26: =SUMPRODUCT(#REF!,#REF!)/1000 ->  | CK26: 0.67491 | CL26: 1.114804 | CM26: 1.114804 | CN26: 1.114804 | CO26: 1.114804
A27: =ROW() -> 27 | B27: Throughput x Distance (PJkms per day) | D27: =SUMPRODUCT(#REF!,#REF!)/1000 ->  | E27: =SUMPRODUCT(#REF!,#REF!)/1000 ->  | F27: =SUMPRODUCT(#REF!,#REF!)/1000 ->  | G27: =SUMPRODUCT(#REF!,#REF!)/1000 ->  | H27: =SUMPRODUCT(#REF!,#REF!)/1000 ->  | I27: =SUMPRODUCT(#REF!,#REF!)/1000 ->  | J27: =SUMPRODUCT(#REF!,#REF!)/1000 ->  | K27: =SUMPRODUCT(#REF!,#REF!)/1000 ->  | L27: =SUMPRODUCT(#REF!,#REF!)/1000 ->  | M27: =SUMPRODUCT(#REF!,#REF!)/1000 ->  | N27: =SUMPRODUCT(#REF!,#REF!)/1000 ->  | O27: =SUMPRODUCT(#REF!,#REF!)/1000 ->  | P27: =SUMPRODUCT(#REF!,#REF!)/1000 ->  | Q27: =SUMPRODUCT(#REF!,#REF!)/1000 ->  | R27: =SUMPRODUCT(#REF!,#REF!)/1000 ->  | S27: =SUMPRODUCT(#REF!,#REF!)/1000 ->  | T27: =SUMPRODUCT(#REF!,#REF!)/1000 ->  | U27: =SUMPRODUCT(#REF!,#REF!)/1000 ->  | V27: =SUMPRODUCT(#REF!,#REF!)/1000 ->  | W27: =SUMPRODUCT(#REF!,#REF!)/1000 ->  | X27: =SUMPRODUCT(#REF!,#REF!)/1000 ->  | Y27: =SUMPRODUCT(#REF!,#REF!)/1000 ->  | Z27: =SUMPRODUCT(#REF!,#REF!)/1000 ->  | AA27: =SUMPRODUCT(#REF!,#REF!)/1000 ->  | AB27: =SUMPRODUCT(#REF!,#REF!)/1000 ->  | AC27: =SUMPRODUCT(#REF!,#REF!)/1000 ->  | AD27: =SUMPRODUCT(#REF!,#REF!)/1000 ->  | AE27: =SUMPRODUCT(#REF!,#REF!)/1000 ->  | AF27: =SUMPRODUCT(#REF!,#REF!)/1000 ->  | AG27: =SUMPRODUCT(#REF!,#REF!)/1000 ->  | AH27: =SUMPRODUCT(#REF!,#REF!)/1000 ->  | AI27: =SUMPRODUCT(#REF!,#REF!)/1000 ->  | AJ27: =SUMPRODUCT(#REF!,#REF!)/1000 ->  | AK27: =SUMPRODUCT(#REF!,#REF!)/1000 ->  | AL27: =SUMPRODUCT(#REF!,#REF!)/1000 ->  | AM27: =SUMPRODUCT(#REF!,#REF!)/1000 ->  | AN27: =SUMPRODUCT(#REF!,#REF!)/1000 ->  | AO27: =SUMPRODUCT(#REF!,#REF!)/1000 ->  | AP27: =SUMPRODUCT(#REF!,#REF!)/1000 ->  | AQ27: =SUMPRODUCT(#REF!,#REF!)/1000 ->  | AR27: =SUMPRODUCT(#REF!,#REF!)/1000 ->  | AS27: =SUMPRODUCT(#REF!,#REF!)/1000 ->  | AT27: =SUMPRODUCT(#REF!,#REF!)/1000 ->  | AU27: =SUMPRODUCT(#REF!,#REF!)/1000 ->  | AV27: =SUMPRODUCT(#REF!,#REF!)/1000 ->  | AW27: =SUMPRODUCT(#REF!,#REF!)/1000 ->  | AX27: =SUMPRODUCT(#REF!,#REF!)/1000 ->  | AY27: =SUMPRODUCT(#REF!,#REF!)/1000 ->  | AZ27: =SUMPRODUCT(#REF!,#REF!)/1000 ->  | BA27: =SUMPRODUCT(#REF!,#REF!)/1000 ->  | BB27: =SUMPRODUCT(#REF!,#REF!)/1000 ->  | BC27: =SUMPRODUCT(#REF!,#REF!)/1000 ->  | BD27: =SUMPRODUCT(#REF!,#REF!)/1000 ->  | BE27: =SUMPRODUCT(#REF!,#REF!)/1000 ->  | BF27: =SUMPRODUCT(#REF!,#REF!)/1000 ->  | BG27: =SUMPRODUCT(#REF!,#REF!)/1000 ->  | BH27: =SUMPRODUCT(#REF!,#REF!)/1000 ->  | BI27: =SUMPRODUCT(#REF!,#REF!)/1000 ->  | BJ27: =SUMPRODUCT(#REF!,#REF!)/1000 ->  | BK27: =SUMPRODUCT(#REF!,#REF!)/1000 ->  | BL27: =SUMPRODUCT(#REF!,#REF!)/1000 ->  | BM27: =SUMPRODUCT(#REF!,#REF!)/1000 ->  | BN27: =SUMPRODUCT(#REF!,#REF!)/1000 ->  | BO27: =SUMPRODUCT(#REF!,#REF!)/1000 ->  | BP27: =SUMPRODUCT(#REF!,#REF!)/1000 ->  | BQ27: =SUMPRODUCT(#REF!,#REF!)/1000 ->  | BR27: =SUMPRODUCT(#REF!,#REF!)/1000 ->  | BS27: =SUMPRODUCT(#REF!,#REF!)/1000 ->  | BT27: =SUMPRODUCT(#REF!,#REF!)/1000 ->  | BU27: =SUMPRODUCT(#REF!,#REF!)/1000 ->  | BV27: =SUMPRODUCT(#REF!,#REF!)/1000 ->  | BW27: =SUMPRODUCT(#REF!,#REF!)/1000 ->  | BX27: =SUMPRODUCT(#REF!,#REF!)/1000 ->  | BY27: =SUMPRODUCT(#REF!,#REF!)/1000 ->  | BZ27: =SUMPRODUCT(#REF!,#REF!)/1000 ->  | CA27: =SUMPRODUCT(#REF!,#REF!)/1000 ->  | CB27: =SUMPRODUCT(#REF!,#REF!)/1000 ->  | CC27: =SUMPRODUCT(#REF!,#REF!)/1000 ->  | CD27: =SUMPRODUCT(#REF!,#REF!)/1000 ->  | CE27: =SUMPRODUCT(#REF!,#REF!)/1000 ->  | CF27: =SUMPRODUCT(#REF!,#REF!)/1000 ->  | CG27: =SUMPRODUCT(#REF!,#REF!)/1000 ->  | CH27: =SUMPRODUCT(#REF!,#REF!)/1000 ->  | CI27: =SUMPRODUCT(#REF!,#REF!)/1000 ->  | CJ27: =SUMPRODUCT(#REF!,#REF!)/1000 ->  | CK27: 0.5964438171 | CL27: 0.9851949935 | CM27: 0.9851949935 | CN27: 0.9851949935 | CO27: 0.9851949935
A28: =ROW() -> 28 | B28: Tariff Allocation
A29: =ROW() -> 29 | B29: Toll Charge Allocation
A30: =ROW() -> 30 | B30: Reservation Charge Allocation
A31: =ROW() -> 31 | B31: Throughput Charge Allocation

Sheet Load_Total
B1: =Main!B1 -> Goldfields Gas Pipeline Tariff Model, September 2024 [Revised Proposal]
B2: Load
A3: Ref | B3: =COLUMN() -> 2 | C3: =COLUMN() -> 3 | D3: =COLUMN() -> 4 | E3: =COLUMN() -> 5 | F3: =COLUMN() -> 6 | G3: =COLUMN() -> 7 | H3: =COLUMN() -> 8 | I3: =COLUMN() -> 9 | J3: =COLUMN() -> 10 | K3: =COLUMN() -> 11 | L3: =COLUMN() -> 12 | M3: =COLUMN() -> 13 | N3: =COLUMN() -> 14 | O3: =COLUMN() -> 15 | P3: =COLUMN() -> 16 | Q3: =COLUMN() -> 17 | R3: =COLUMN() -> 18 | S3: =COLUMN() -> 19 | T3: =COLUMN() -> 20 | U3: =COLUMN() -> 21 | V3: =COLUMN() -> 22 | W3: =COLUMN() -> 23 | X3: =COLUMN() -> 24 | Y3: =COLUMN() -> 25 | Z3: =COLUMN() -> 26 | AA3: =COLUMN() -> 27 | AB3: =COLUMN() -> 28 | AC3: =COLUMN() -> 29 | AD3: =COLUMN() -> 30 | AE3: =COLUMN() -> 31 | AF3: =COLUMN() -> 32 | AG3: =COLUMN() -> 33 | AH3: =COLUMN() -> 34 | AI3: =COLUMN() -> 35 | AJ3: =COLUMN() -> 36 | AK3: =COLUMN() -> 37 | AL3: =COLUMN() -> 38 | AM3: =COLUMN() -> 39 | AN3: =COLUMN() -> 40 | AO3: =COLUMN() -> 41 | AP3: =COLUMN() -> 42 | AQ3: =COLUMN() -> 43 | AR3: =COLUMN() -> 44 | AS3: =COLUMN() -> 45 | AT3: =COLUMN() -> 46 | AU3: =COLUMN() -> 47 | AV3: =COLUMN() -> 48 | AW3: =COLUMN() -> 49 | AX3: =COLUMN() -> 50 | AY3: =COLUMN() -> 51 | AZ3: =COLUMN() -> 52 | BA3: =COLUMN() -> 53 | BB3: =COLUMN() -> 54 | BC3: =COLUMN() -> 55 | BD3: =COLUMN() -> 56 | BE3: =COLUMN() -> 57 | BF3: =COLUMN() -> 58 | BG3: =COLUMN() -> 59 | BH3: =COLUMN() -> 60 | BI3: =COLUMN() -> 61 | BJ3: =COLUMN() -> 62 | BK3: =COLUMN() -> 63 | BL3: =COLUMN() -> 64 | BM3: =COLUMN() -> 65 | BN3: =COLUMN() -> 66 | BO3: =COLUMN() -> 67 | BP3: =COLUMN() -> 68 | BQ3: =COLUMN() -> 69 | BR3: =COLUMN() -> 70 | BS3: =COLUMN() -> 71 | BT3: =COLUMN() -> 72 | BU3: =COLUMN() -> 73 | BV3: =COLUMN() -> 74 | BW3: =COLUMN() -> 75 | BX3: =COLUMN() -> 76 | BY3: =COLUMN() -> 77 | BZ3: =COLUMN() -> 78 | CA3: =COLUMN() -> 79 | CB3: =COLUMN() -> 80 | CC3: =COLUMN() -> 81 | CD3: =COLUMN() -> 82 | CE3: =COLUMN() -> 83 | CF3: =COLUMN() -> 84 | CG3: =COLUMN() -> 85 | CH3: =COLUMN() -> 86 | CI3: =COLUMN() -> 87 | CJ3: =COLUMN() -> 88 | CK3: =COLUMN() -> 89 | CL3: =COLUMN() -> 90 | CM3: =COLUMN() -> 91 | CN3: =COLUMN() -> 92 | CO3: =COLUMN() -> 93
A4: =ROW() -> 4 | B4: Actual or Forecast | C4: Actual | D4: Actual | E4: Actual | F4: Actual | G4: Actual | H4: Actual | I4: Actual | J4: Actual | K4: Actual | L4: Actual | M4: Actual | N4: Actual | O4: Actual | P4: Actual | Q4: Actual | R4: Actual | S4: Actual | T4: Actual | U4: Actual | V4: Actual | W4: Actual | X4: Actual | Y4: Actual | Z4: Actual | AA4: Actual | AB4: Actual | AC4: Actual | AD4: Actual | AE4: Actual | AF4: Actual | AG4: Actual | AH4: Actual | AI4: Actual | AJ4: Actual | AK4: Actual | AL4: Actual | AM4: Actual | AN4: Actual | AO4: Actual | AP4: Actual | AQ4: Actual | AR4: Forecast | AS4: Forecast | AT4: Forecast | AU4: Forecast | AV4: Forecast | AW4: Forecast | AX4: Forecast | AY4: Forecast | AZ4: Forecast | BA4: Forecast | BB4: Forecast | BC4: Forecast | BD4: Forecast | BE4: Forecast | BF4: Forecast | BG4: Forecast | BH4: Forecast | BI4: Forecast | BJ4: Forecast | BK4: Forecast | BL4: Forecast | BM4: Forecast | BN4: Forecast | BO4: Forecast | BP4: Forecast | BQ4: Forecast | BR4: Forecast | BS4: Forecast | BT4: Forecast | BU4: Forecast | BV4: Forecast | BW4: Forecast | BX4: Forecast | BY4: Forecast | BZ4: Forecast | CA4: Forecast | CB4: Forecast | CC4: Forecast | CD4: Forecast | CE4: Forecast | CF4: Forecast | CG4: Forecast | CH4: Forecast | CI4: Forecast | CJ4: Forecast | CK4: Forecast | CL4: Forecast | CM4: Forecast | CN4: Forecast | CO4: Forecast
A5: =ROW() -> 5 | B5: Year Type | C5: Calendar | D5: Calendar | E5: Calendar | F5: Calendar | G5: Calendar | H5: Calendar | I5: Calendar | J5: Calendar | K5: Calendar | L5: Calendar | M5: Calendar | N5: Calendar | O5: Calendar | P5: Calendar | Q5: Calendar | R5: Calendar | S5: Calendar | T5: Calendar | U5: Calendar | V5: Calendar | W5: Calendar | X5: Calendar | Y5: Calendar | Z5: Calendar | AA5: Calendar | AB5: Calendar | AC5: Calendar | AD5: Calendar | AE5: Calendar | AF5: Calendar | AG5: Calendar | AH5: Calendar | AI5: Calendar | AJ5: Calendar | AK5: Calendar | AL5: Calendar | AM5: Calendar | AN5: Calendar | AO5: Calendar | AP5: Calendar | AQ5: Calendar | AR5: Calendar | AS5: Calendar | AT5: Calendar | AU5: Calendar | AV5: Calendar | AW5: Calendar | AX5: Calendar | AY5: Calendar | AZ5: Calendar | BA5: Calendar | BB5: Calendar | BC5: Calendar | BD5: Calendar | BE5: Calendar | BF5: Calendar | BG5: Calendar | BH5: Calendar | BI5: Calendar | BJ5: Calendar | BK5: Calendar | BL5: Calendar | BM5: Calendar | BN5: Calendar | BO5: Calendar | BP5: Calendar | BQ5: Calendar | BR5: Calendar | BS5: Calendar | BT5: Calendar | BU5: Calendar | BV5: Calendar | BW5: Calendar | BX5: Calendar | BY5: Calendar | BZ5: Calendar | CA5: Calendar | CB5: Calendar | CC5: Calendar | CD5: Calendar | CE5: Calendar | CF5: Calendar | CG5: Calendar | CH5: Calendar | CI5: Calendar | CJ5: Calendar | CK5: Calendar | CL5: Calendar | CM5: Calendar | CN5: Calendar | CO5: Calendar
A6: =ROW() -> 6 | B6: Regulatory Period | D6: 1 | E6: 1 | F6: 1 | G6: 1 | H6: 1 | I6: 1 | J6: 1 | K6: 1 | L6: 1 | M6: 1 | N6: 1 | O6: 1 | P6: 1 | Q6: 1 | R6: 1 | S6: 1 | T6: 1 | U6: 1 | V6: 1 | W6: 1 | X6: 1 | Y6: 1 | Z6: 1 | AA6: 1 | AB6: 1 | AC6: 1 | AD6: 1 | AE6: 1 | AF6: 1 | AG6: 1 | AH6: 1 | AI6: 1 | AJ6: 1 | AK6: 1 | AL6: 1 | AM6: 1 | AN6: 1 | AO6: 1 | AP6: 1 | AQ6: 1 | AR6: 2 | AS6: 2 | AT6: 2 | AU6: 2 | AV6: 2 | AW6: 2 | AX6: 2 | AY6: 2 | AZ6: 2 | BA6: 2 | BB6: 2 | BC6: 2 | BD6: 2 | BE6: 2 | BF6: 2 | BG6: 2 | BH6: 2 | BI6: 2 | BJ6: 2 | BK6: 2 | BL6: 3 | BM6: 3 | BN6: 3 | BO6: 3 | BP6: 3 | BQ6: 3 | BR6: 3 | BS6: 3 | BT6: 3 | BU6: 3 | BV6: 3 | BW6: 3 | BX6: 3 | BY6: 3 | BZ6: 3 | CA6: 3 | CB6: 3 | CC6: 3 | CD6: 3 | CE6: 3 | CF6: =Inputs!BE6 -> 4 | CG6: =Inputs!BF6 -> 4 | CH6: =Inputs!BG6 -> 4 | CI6: =Inputs!BH6 -> 4 | CJ6: =Inputs!BI6 -> 4 | CK6: =Inputs!BJ6 -> 5 | CL6: =Inputs!BK6 -> 5 | CM6: =Inputs!BL6 -> 5 | CN6: =Inputs!BM6 -> 5 | CO6: =Inputs!BN6 -> 5
A7: =ROW() -> 7 | B7: Start Date | C7: 1999-10-01 | D7: =C8+1 -> 2000-01-01 | E7: 2000-04-01 | F7: 2000-07-01 | G7: 2000-10-01 | H7: 2001-01-01 | I7: 2001-04-01 | J7: 2001-07-01 | K7: 2001-10-01 | L7: 2002-01-01 | M7: 2002-04-01 | N7: 2002-07-01 | O7: 2002-10-01 | P7: 2003-01-01 | Q7: 2003-04-01 | R7: 2003-07-01 | S7: 2003-10-01 | T7: 2004-01-01 | U7: 2004-04-01 | V7: 2004-07-01 | W7: 2004-10-01 | X7: 2005-01-01 | Y7: 2005-04-01 | Z7: 2005-07-01 | AA7: 2005-10-01 | AB7: 2006-01-01 | AC7: 2006-04-01 | AD7: 2006-07-01 | AE7: 2006-10-01 | AF7: 2007-01-01 | AG7: 2007-04-01 | AH7: 2007-07-01 | AI7: 2007-10-01 | AJ7: 2008-01-01 | AK7: 2008-04-01 | AL7: 2008-07-01 | AM7: 2008-10-01 | AN7: 2009-01-01 | AO7: 2009-04-01 | AP7: 2009-07-01 | AQ7: 2009-10-01 | AR7: 2010-01-01 | AS7: 2010-04-01 | AT7: 2010-07-01 | AU7: 2010-10-01 | AV7: 2011-01-01 | AW7: 2011-04-01 | AX7: 2011-07-01 | AY7: 2011-10-01 | AZ7: 2012-01-01 | BA7: 2012-04-01 | BB7: 2012-07-01 | BC7: 2012-10-01 | BD7: 2013-01-01 | BE7: 2013-04-01 | BF7: 2013-07-01 | BG7: 2013-10-01 | BH7: 2014-01-01 | BI7: 2014-04-01 | BJ7: 2014-07-01 | BK7: 2014-10-01 | BL7: 2015-01-01 | BM7: 2015-04-01 | BN7: 2015-07-01 | BO7: 2015-10-01 | BP7: =BO8+1 -> 2016-01-01 | BQ7: 2016-04-01 | BR7: 2016-07-01 | BS7: 2016-10-01 | BT7: 2017-01-01 | BU7: 2017-04-01 | BV7: 2017-07-01 | BW7: 2017-10-01 | BX7: 2018-01-01 | BY7: 2018-04-01 | BZ7: 2018-07-01 | CA7: 2018-10-01 | CB7: 2019-01-01 | CC7: 2019-04-01 | CD7: 2019-07-01 | CE7: 2019-10-01 | CF7: 2020-01-01 | CG7: 2021-01-01 | CH7: 2022-01-01 | CI7: 2023-01-01 | CJ7: 2024-01-01 | CK7: 2025-01-01 | CL7: 2026-01-01 | CM7: 2027-01-01 | CN7: 2028-01-01 | CO7: 2029-01-01
A8: =ROW() -> 8 | B8: End Date | C8: =C7+C11-1 -> 1999-12-31 | D8: 2000-03-31 | E8: 2000-06-30 | F8: 2000-09-30 | G8: 2000-12-31 | H8: 2001-03-31 | I8: 2001-06-30 | J8: 2001-09-30 | K8: 2001-12-31 | L8: 2002-03-31 | M8: 2002-06-30 | N8: 2002-09-30 | O8: 2002-12-31 | P8: 2003-03-31 | Q8: 2003-06-30 | R8: 2003-09-30 | S8: 2003-12-31 | T8: 2004-03-31 | U8: 2004-06-30 | V8: 2004-09-30 | W8: 2004-12-31 | X8: 2005-03-31 | Y8: 2005-06-30 | Z8: 2005-09-30 | AA8: 2005-12-31 | AB8: 2006-03-31 | AC8: 2006-06-30 | AD8: 2006-09-30 | AE8: 2006-12-31 | AF8: 2007-03-31 | AG8: 2007-06-30 | AH8: 2007-09-30 | AI8: 2007-12-31 | AJ8: 2008-03-31 | AK8: 2008-06-30 | AL8: 2008-09-30 | AM8: 2008-12-31 | AN8: 2009-03-31 | AO8: 2009-06-30 | AP8: 2009-09-30 | AQ8: 2009-12-31 | AR8: 2010-03-31 | AS8: 2010-06-30 | AT8: 2010-09-30 | AU8: 2010-12-31 | AV8: 2011-03-31 | AW8: 2011-06-30 | AX8: 2011-09-30 | AY8: 2011-12-31 | AZ8: 2012-03-31 | BA8: 2012-06-30 | BB8: 2012-09-30 | BC8: 2012-12-31 | BD8: 2013-03-31 | BE8: 2013-06-30 | BF8: 2013-09-30 | BG8: 2013-12-31 | BH8: 2014-03-31 | BI8: 2014-06-30 | BJ8: 2014-09-30 | BK8: 2014-12-31 | BL8: 2015-03-31 | BM8: 2015-06-30 | BN8: 2015-09-30 | BO8: =BO7+BO11-1 -> 2015-12-31 | BP8: 2016-03-31 | BQ8: 2016-06-30 | BR8: 2016-09-30 | BS8: 2016-12-31 | BT8: 2017-03-31 | BU8: 2017-06-30 | BV8: 2017-09-30 | BW8: 2017-12-31 | BX8: 2018-03-31 | BY8: 2018-06-30 | BZ8: 2018-09-30 | CA8: 2018-12-31 | CB8: 2019-03-31 | CC8: 2019-06-30 | CD8: 2019-09-30 | CE8: 2019-12-31 | CF8: 2020-12-31 | CG8: 2021-12-31 | CH8: 2022-12-31 | CI8: 2023-12-31 | CJ8: 2024-12-31 | CK8: 2025-12-31 | CL8: 2026-12-31 | CM8: 2027-12-31 | CN8: 2028-12-31 | CO8: 2029-12-31
A9: =ROW() -> 9 | B9: Year | C9: =C8 -> 1999-12-31 | D9: =D8 -> 2000-03-31 | E9: 2000-06-30 | F9: 2000-09-30 | G9: 2000-12-31 | H9: 2001-03-31 | I9: 2001-06-30 | J9: 2001-09-30 | K9: 2001-12-31 | L9: 2002-03-31 | M9: 2002-06-30 | N9: 2002-09-30 | O9: 2002-12-31 | P9: 2003-03-31 | Q9: 2003-06-30 | R9: 2003-09-30 | S9: 2003-12-31 | T9: 2004-03-31 | U9: 2004-06-30 | V9: 2004-09-30 | W9: 2004-12-31 | X9: 2005-03-31 | Y9: 2005-06-30 | Z9: 2005-09-30 | AA9: 2005-12-31 | AB9: 2006-03-31 | AC9: 2006-06-30 | AD9: 2006-09-30 | AE9: 2006-12-31 | AF9: 2007-03-31 | AG9: 2007-06-30 | AH9: 2007-09-30 | AI9: 2007-12-31 | AJ9: 2008-03-31 | AK9: 2008-06-30 | AL9: 2008-09-30 | AM9: 2008-12-31 | AN9: 2009-03-31 | AO9: 2009-06-30 | AP9: 2009-09-30 | AQ9: 2009-12-31 | AR9: 2010-03-31 | AS9: 2010-06-30 | AT9: 2010-09-30 | AU9: 2010-12-31 | AV9: 2011-03-31 | AW9: 2011-06-30 | AX9: 2011-09-30 | AY9: 2011-12-31 | AZ9: 2012-03-31 | BA9: 2012-06-30 | BB9: 2012-09-30 | BC9: 2012-12-31 | BD9: 2013-03-31 | BE9: 2013-06-30 | BF9: 2013-09-30 | BG9: 2013-12-31 | BH9: 2014-03-31 | BI9: 2014-06-30 | BJ9: 2014-09-30 | BK9: 2014-12-31 | BL9: 2015-03-31 | BM9: 2015-06-30 | BN9: 2015-09-30 | BO9: 2015-12-31 | BP9: =BP8 -> 2016-03-31 | BQ9: 2016-06-30 | BR9: 2016-09-30 | BS9: 2016-12-31 | BT9: 2017-03-31 | BU9: 2017-06-30 | BV9: 2017-09-30 | BW9: 2017-12-31 | BX9: 2018-03-31 | BY9: 2018-06-30 | BZ9: 2018-09-30 | CA9: 2018-12-31 | CB9: 2019-03-31 | CC9: 2019-06-30 | CD9: 2019-09-30 | CE9: 2019-12-31 | CF9: 2020-12-31 | CG9: 2021-12-31 | CH9: 2022-12-31 | CI9: 2023-12-31 | CJ9: 2024-12-31 | CK9: 2025-12-31 | CL9: 2026-12-31 | CM9: 2027-12-31 | CN9: 2028-12-31 | CO9: 2029-12-31
A10: =ROW() -> 10 | B10: Quarter | D10: Q1 | E10: Q2 | F10: Q3 | G10: Q4 | H10: Q1 | I10: Q2 | J10: Q3 | K10: Q4 | L10: Q1 | M10: Q2 | N10: Q3 | O10: Q4 | P10: Q1 | Q10: Q2 | R10: Q3 | S10: Q4 | T10: Q1 | U10: Q2 | V10: Q3 | W10: Q4 | X10: Q1 | Y10: Q2 | Z10: Q3 | AA10: Q4 | AB10: Q1 | AC10: Q2 | AD10: Q3 | AE10: Q4 | AF10: Q1 | AG10: Q2 | AH10: Q3 | AI10: Q4 | AJ10: Q1 | AK10: Q2 | AL10: Q3 | AM10: Q4 | AN10: Q1 | AO10: Q2 | AP10: Q3 | AQ10: Q4 | AR10: Q1 | AS10: Q2 | AT10: Q3 | AU10: Q4 | AV10: Q1 | AW10: Q2 | AX10: Q3 | AY10: Q4 | AZ10: Q1 | BA10: Q2 | BB10: Q3 | BC10: Q4 | BD10: Q1 | BE10: Q2 | BF10: Q3 | BG10: Q4 | BH10: Q1 | BI10: Q2 | BJ10: Q3 | BK10: Q4 | BL10: Q1 | BM10: Q2 | BN10: Q3 | BO10: Q4 | BP10: Q1 | BQ10: Q2 | BR10: Q3 | BS10: Q4 | BT10: Q1 | BU10: Q2 | BV10: Q3 | BW10: Q4 | BX10: Q1 | BY10: Q2 | BZ10: Q3 | CA10: Q4 | CB10: Q1 | CC10: Q2 | CD10: Q3 | CE10: Q4
A11: =ROW() -> 11 | B11: Days | C11: 92 | D11: 91 | E11: 91 | F11: 92 | G11: 92 | H11: 90 | I11: 91 | J11: 92 | K11: 92 | L11: 90 | M11: 91 | N11: 92 | O11: 92 | P11: 90 | Q11: 91 | R11: 92 | S11: 92 | T11: 91 | U11: 91 | V11: 92 | W11: 92 | X11: 90 | Y11: 91 | Z11: 92 | AA11: 92 | AB11: 90 | AC11: 91 | AD11: 92 | AE11: 92 | AF11: 90 | AG11: 91 | AH11: 92 | AI11: 92 | AJ11: 91 | AK11: 91 | AL11: 92 | AM11: 92 | AN11: 90 | AO11: 91 | AP11: 92 | AQ11: 92 | AR11: 90 | AS11: 91 | AT11: 92 | AU11: 92 | AV11: 90 | AW11: 91 | AX11: 92 | AY11: 92 | AZ11: 91 | BA11: 91 | BB11: 92 | BC11: 92 | BD11: 90 | BE11: 91 | BF11: 92 | BG11: 92 | BH11: 90 | BI11: 91 | BJ11: 92 | BK11: 92 | BL11: 90 | BM11: 91 | BN11: 92 | BO11: 92 | BP11: 91 | BQ11: 91 | BR11: 92 | BS11: 92 | BT11: 90 | BU11: 91 | BV11: 92 | BW11: 92 | BX11: 90 | BY11: 91 | BZ11: 92 | CA11: 92 | CB11: 90 | CC11: 91 | CD11: 92 | CE11: 92 | CF11: =Inputs!BE$11 -> 366 | CG11: =Inputs!BF$11 -> 365 | CH11: =Inputs!BG$11 -> 365 | CI11: =Inputs!BH$11 -> 365 | CJ11: =Inputs!BI$11 -> 366 | CK11: =Inputs!BJ$11 -> 365 | CL11: =Inputs!BK$11 -> 365 | CM11: =Inputs!BL$11 -> 365 | CN11: =Inputs!BM$11 -> 366 | CO11: =Inputs!BN$11 -> 365
A12: =ROW() -> 12 | B12: Years (nearest half) | C12: =ROUND(YEARFRAC(C7,C8),2) -> 0.25 | D12: 0.25 | E12: 0.25 | F12: 0.25 | G12: 0.25 | H12: 0.25 | I12: 0.25 | J12: 0.25 | K12: 0.25 | L12: 0.25 | M12: 0.25 | N12: 0.25 | O12: 0.25 | P12: 0.25 | Q12: 0.25 | R12: 0.25 | S12: 0.25 | T12: 0.25 | U12: 0.25 | V12: 0.25 | W12: 0.25 | X12: 0.25 | Y12: 0.25 | Z12: 0.25 | AA12: 0.25 | AB12: 0.25 | AC12: 0.25 | AD12: 0.25 | AE12: 0.25 | AF12: 0.25 | AG12: 0.25 | AH12: 0.25 | AI12: 0.25 | AJ12: 0.25 | AK12: 0.25 | AL12: 0.25 | AM12: 0.25 | AN12: 0.25 | AO12: 0.25 | AP12: 0.25 | AQ12: 0.25 | AR12: 0.25 | AS12: 0.25 | AT12: 0.25 | AU12: 0.25 | AV12: 0.25 | AW12: 0.25 | AX12: 0.25 | AY12: 0.25 | AZ12: 0.25 | BA12: 0.25 | BB12: 0.25 | BC12: 0.25 | BD12: 0.25 | BE12: 0.25 | BF12: 0.25 | BG12: 0.25 | BH12: 0.25 | BI12: 0.25 | BJ12: 0.25 | BK12: 0.25 | BL12: 0.25 | BM12: 0.25 | BN12: 0.25 | BO12: =ROUND(YEARFRAC(BO7,BO8),2) -> 0.25 | BP12: 0.25 | BQ12: 0.25 | BR12: 0.25 | BS12: 0.25 | BT12: 0.25 | BU12: 0.25 | BV12: 0.25 | BW12: 0.25 | BX12: 0.25 | BY12: 0.25 | BZ12: 0.25 | CA12: 0.25 | CB12: 0.25 | CC12: 0.25 | CD12: 0.25 | CE12: 0.25 | CF12: 1 | CG12: 1 | CH12: 1 | CI12: 1 | CJ12: 1 | CK12: 1 | CL12: 1 | CM12: 1 | CN12: 1 | CO12: 1
A13: =ROW() -> 13 | B13: Calculated Load (Yarraloola)
A14: =ROW() -> 14 | B14: Reserved Capacity [TJ/day] | CK14: =Load_Yarraloola!CK24 -> 110.3630015 | CL14: =Load_Yarraloola!CL24 -> 110.3630015 | CM14: =Load_Yarraloola!CM24 -> 110.3630015 | CN14: =Load_Yarraloola!CN24 -> 110.3630015 | CO14: =Load_Yarraloola!CO24 -> 110.3630015
A15: =ROW() -> 15 | B15: Reserved Capacity x Distance (PJkms per day) | CK15: =Load_Yarraloola!CK25 -> 112.1905501 | CL15: =Load_Yarraloola!CL25 -> 112.1905501 | CM15: =Load_Yarraloola!CM25 -> 112.1905501 | CN15: =Load_Yarraloola!CN25 -> 112.1905501 | CO15: =Load_Yarraloola!CO25 -> 112.1905501
A16: =ROW() -> 16 | B16: Throughput x Distance (PJkms per day) | CK16: =Load_Yarraloola!CK26 -> 96.75468008 | CL16: =Load_Yarraloola!CL26 -> 96.75468008 | CM16: =Load_Yarraloola!CM26 -> 96.75468008 | CN16: =Load_Yarraloola!CN26 -> 96.75468008 | CO16: =Load_Yarraloola!CO26 -> 96.75468008
A17: =ROW() -> 17 | B17: Calculated Load (NGI)
A18: =ROW() -> 18 | B18: Reserved Capacity [TJ/day] | CK18: =Load_NGI!CK25 -> 12.9 | CL18: =Load_NGI!CL25 -> 14.3 | CM18: =Load_NGI!CM25 -> 14.3 | CN18: =Load_NGI!CN25 -> 14.3 | CO18: =Load_NGI!CO25 -> 14.3
A19: =ROW() -> 19 | B19: Reserved Capacity x Distance (PJkms per day) | CK19: =Load_NGI!CK26 -> 0.67491 | CL19: =Load_NGI!CL26 -> 1.114804 | CM19: =Load_NGI!CM26 -> 1.114804 | CN19: =Load_NGI!CN26 -> 1.114804 | CO19: =Load_NGI!CO26 -> 1.114804
A20: =ROW() -> 20 | B20: Throughput x Distance (PJkms per day) | CK20: =Load_NGI!CK27 -> 0.5964438171 | CL20: =Load_NGI!CL27 -> 0.9851949935 | CM20: =Load_NGI!CM27 -> 0.9851949935 | CN20: =Load_NGI!CN27 -> 0.9851949935 | CO20: =Load_NGI!CO27 -> 0.9851949935
A21: =ROW() -> 21 | B21: Calculated Load (Total)
A22: =ROW() -> 22 | B22: Reserved Capacity [TJ/day] | CK22: =CK14+CK18 -> 123.2630015 | CL22: =CL14+CL18 -> 124.6630015 | CM22: 124.6630015 | CN22: 124.6630015 | CO22: 124.6630015
A23: =ROW() -> 23 | B23: Reserved Capacity x Distance (PJkms per day) | CK23: =CK15+CK19 -> 112.8654601 | CL23: 113.3053541 | CM23: 113.3053541 | CN23: 113.3053541 | CO23: 113.3053541
A24: =ROW() -> 24 | B24: Throughput x Distance (PJkms per day) | CK24: 97.3511239 | CL24: 97.73987507 | CM24: 97.73987507 | CN24: 97.73987507 | CO24: 97.73987507
A25: =ROW() -> 25 | B25: Tariff Allocation
A26: =ROW() -> 26 | B26: Toll Charge Allocation | BL26: 0.113 | CF26: 0.113 | CK26: 0.113
A27: =ROW() -> 27 | B27: Reservation Charge Allocation | BL27: 0.722 | CF27: 0.722 | CK27: 0.722
A28: =ROW() -> 28 | B28: Throughput Charge Allocation | BL28: 0.165 | CF28: 0.165 | CK28: 0.165

Sheet CoS
B1: =Main!B1 -> Goldfields Gas Pipeline Tariff Model, September 2024 [Revised Proposal]
B2: Cost of Service
A3: Ref | B3: =COLUMN() -> 2 | C3: =COLUMN() -> 3 | D3: =COLUMN() -> 4 | E3: =COLUMN() -> 5 | F3: =COLUMN() -> 6 | G3: =COLUMN() -> 7 | H3: =COLUMN() -> 8 | I3: =COLUMN() -> 9 | J3: =COLUMN() -> 10 | K3: =COLUMN() -> 11
A4: =ROW() -> 4 | B4: Actual or Forecast | E4: Forecast | F4: Forecast | G4: Forecast | H4: Forecast | I4: Forecast | J4: Forecast | K4: Forecast
A5: =ROW() -> 5 | B5: Year Type | E5: Calendar | F5: Calendar | G5: Calendar | H5: Calendar | I5: Calendar | J5: Calendar | K5: Calendar
A6: =ROW() -> 6 | B6: Regulatory Period | E6: =Inputs!BH6 -> 4 | F6: =Inputs!BI6 -> 4 | G6: =Inputs!BJ6 -> 5 | H6: =Inputs!BK6 -> 5 | I6: =Inputs!BL6 -> 5 | J6: =Inputs!BM6 -> 5 | K6: =Inputs!BN6 -> 5
A7: =ROW() -> 7 | B7: Start Date | E7: =Inputs!BH7 -> 2023-01-01 | F7: =Inputs!BI7 -> 2024-01-01 | G7: =Inputs!BJ7 -> 2025-01-01 | H7: =Inputs!BK7 -> 2026-01-01 | I7: =Inputs!BL7 -> 2027-01-01 | J7: =Inputs!BM7 -> 2028-01-01 | K7: =Inputs!BN7 -> 2029-01-01
A8: =ROW() -> 8 | B8: End Date | E8: =Inputs!BH8 -> 2023-12-31 | F8: =Inputs!BI8 -> 2024-12-31 | G8: =Inputs!BJ8 -> 2025-12-31 | H8: =Inputs!BK8 -> 2026-12-31 | I8: =Inputs!BL8 -> 2027-12-31 | J8: =Inputs!BM8 -> 2028-12-31 | K8: =Inputs!BN8 -> 2029-12-31
A9: =ROW() -> 9 | B9: Year Type | E9: =Inputs!BH9 -> 2023 | F9: =Inputs!BI9 -> 2024 | G9: =Inputs!BJ9 -> 2025 | H9: =Inputs!BK9 -> 2026 | I9: =Inputs!BL9 -> 2027 | J9: =Inputs!BM9 -> 2028 | K9: =Inputs!BN9 -> 2029
A10: =ROW() -> 10 | B10: Quarter | E10: =Inputs!BH10 -> - | F10: =Inputs!BI10 -> - | G10: =Inputs!BJ10 -> - | H10: =Inputs!BK10 -> - | I10: =Inputs!BL10 -> - | J10: =Inputs!BM10 -> - | K10: =Inputs!BN10 -> -
A11: =ROW() -> 11 | B11: Days | E11: =Inputs!BH11 -> 365 | F11: =Inputs!BI11 -> 366 | G11: =Inputs!BJ11 -> 365 | H11: =Inputs!BK11 -> 365 | I11: =Inputs!BL11 -> 365 | J11: =Inputs!BM11 -> 366 | K11: =Inputs!BN11 -> 365
A12: =ROW() -> 12 | B12: Years (nearest half) | E12: =ROUND(YEARFRAC(E7,E8),2) -> 1 | F12: 1 | G12: =ROUND(YEARFRAC(G7,G8),2) -> 1 | H12: 1 | I12: 1 | J12: 1 | K12: 1
A13: =ROW() -> 13 | B13: Financial Parameters
A14: =ROW() -> 14 | B14: Period End CPI | E14: =Inputs!BH16 -> 136.1 | F14: =Inputs!BI16 -> 140.183 | G14: =Inputs!BJ16 -> 143.7015933 | H14: =Inputs!BK16 -> 147.3085033 | I14: =Inputs!BL16 -> 151.0059467 | J14: =Inputs!BM16 -> 154.796196 | K14: =Inputs!BN16 -> 158.6815805
A15: =ROW() -> 15 | B15: Inflation over period | F15: =Inputs!BI17 -> 0.03 | G15: =Inputs!BJ17 -> 0.0251 | H15: =Inputs!BK17 -> 0.0251 | I15: =Inputs!BL17 -> 0.0251 | J15: =Inputs!BM17 -> 0.0251 | K15: =Inputs!BN17 -> 0.0251
A16: =ROW() -> 16 | B16: ="Inflation Factor (convert Real "&Inputs!D19&" $ to nominal $)" -> Inflation Factor (convert Real 31/12/2023 $ to nominal $) | E16: =1/Inputs!BH19 -> 1 | F16: =1/Inputs!BI19 -> 1.03 | G16: =1/Inputs!BJ19 -> 1.055853 | H16: =1/Inputs!BK19 -> 1.08235491 | I16: =1/Inputs!BL19 -> 1.109522019 | J16: =1/Inputs!BM19 -> 1.137371021 | K16: =1/Inputs!BN19 -> 1.165919034
A17: =ROW() -> 17 | B17: ="Deflation Factor (convert nominal $ to Real "&Inputs!D19&" $)" -> Deflation Factor (convert nominal $ to Real 31/12/2023 $) | E17: =Inputs!BH19 -> 1 | F17: =Inputs!BI19 -> 0.9708737864 | G17: =Inputs!BJ19 -> 0.9471015378 | H17: =Inputs!BK19 -> 0.9239113626 | I17: =Inputs!BL19 -> 0.9012890085 | J17: =Inputs!BM19 -> 0.8792205721 | K17: =Inputs!BN19 -> 0.8576924906
A18: =ROW() -> 18 | B18: Post-Tax WACC (%, Nominal) | F18: =G18 -> 0.07458 | G18: =WACC!O$34 -> 0.07458 | H18: =WACC!P$34 -> 0.07458 | I18: =WACC!Q$34 -> 0.07458 | J18: =WACC!R$34 -> 0.07458 | K18: =WACC!S$34 -> 0.07458
A19: =ROW() -> 19 | B19: Discount Factor (Nominal) | E19: 1 | F19: =E19/(1+F18) -> 0.9305961399 | G19: =F19/(1+G18) -> 0.8660091756 | H19: =G19/(1+H18) -> 0.8059047959 | I19: 0.7499718922 | J19: 0.6979209479 | K19: =J19/(1+K18) -> 0.64948254
A20: =ROW() -> 20 | B20: Post-Tax WACC (%, Real) | F20: =(1+F18)/(1+F15)-1 -> 0.0432815534 | G20: =WACC!O$35 -> 0.04826846161 | H20: =WACC!P$35 -> 0.04826846161 | I20: =WACC!Q$35 -> 0.04826846161 | J20: =WACC!R$35 -> 0.04826846161 | K20: =WACC!S$35 -> 0.04826846161
A21: =ROW() -> 21 | B21: Discount Factor (Real) | E21: 1 | F21: =E21/(1+F20) -> 0.9585140241 | G21: =F21/(1+G20) -> 0.9143783861 | H21: =G21/(1+H20) -> 0.8722750131 | I21: 0.8321103277 | J21: 0.7937950612 | K21: =J21/(1+K20) -> 0.7572440556
A22: =ROW() -> 22
A23: =ROW() -> 23 | B23: ="Asset Base Real [$m "&Inputs!D19&"]" -> Asset Base Real [$m 31/12/2023]
A24: =ROW() -> 24 | B24: Opening Capital Base | G24: =Assets!BG19 -> 445.271556 | H24: =Assets!BH19 -> 452.5757513 | I24: =Assets!BI19 -> 444.0431352 | J24: =Assets!BJ19 -> 432.1056285 | K24: =Assets!BK19 -> 419.1232398
A25: =ROW() -> 25 | B25: Capex | G25: =Assets!BG20 -> 27.99887479 | H25: =Assets!BH20 -> 11.96379719 | I25: =Assets!BI20 -> 8.059050369 | J25: =Assets!BJ20 -> 5.866034654 | K25: =Assets!BK20 -> 2.728533011
A26: =ROW() -> 26 | B26: Depreciation | G26: =Assets!BG21 -> 20.69467947 | H26: =Assets!BH21 -> 20.49641331 | I26: =Assets!BI21 -> 19.99655712 | J26: =Assets!BJ21 -> 18.84842327 | K26: =Assets!BK21 -> 18.05875392
A27: =ROW() -> 27 | B27: Asset Adjustment | G27: =Assets!BG23 -> 0 | H27: =Assets!BH23 -> 0 | I27: =Assets!BI23 -> 0 | J27: =Assets!BJ23 -> 0 | K27: =Assets!BK23 -> 0
A28: =ROW() -> 28 | B28: Closing Capital Base | F28: =Assets!BF24 -> 445.271556 | G28: =Assets!BG24 -> 452.5757513 | H28: =Assets!BH24 -> 444.0431352 | I28: =Assets!BI24 -> 432.1056285 | J28: =Assets!BJ24 -> 419.1232398 | K28: =Assets!BK24 -> 403.7930189
A29: =ROW() -> 29
A30: =ROW() -> 30 | B30: Asset Base [m$ nominal]
A31: =ROW() -> 31 | B31: Opening Capital Base (start year) | G31: =F37 -> 458.6297027 | H31: 477.8534648 | I31: 480.6122678 | J31: 479.4307091 | K31: =J37 -> 476.6986273
A32: =ROW() -> 32 | B32: Inflationary Gain | G32: =G31*G15 -> 11.51160554 | H32: =H31*H15 -> 11.99412197 | I32: =I31*I15 -> 12.06336792 | J32: =J31*J15 -> 12.0337108 | K32: =K31*K15 -> 11.96513555
A33: =ROW() -> 33 | B33: Opening Capital Base (inflated over one year) | G33: =G31+G32 -> 470.1413082 | H33: =H31+H32 -> 489.8475867 | I33: 492.6756357 | J33: 491.4644199 | K33: =K31+K32 -> 488.6637629
A34: =ROW() -> 34 | B34: Capex | G34: =G25*G$16 -> 29.56269594 | H34: =H25*H$16 -> 12.94907464 | I34: 8.941693833 | J34: 6.671857825 | K34: 3.181248572
A35: =ROW() -> 35 | B35: Depreciation | G35: =G26*G$16 -> 21.85053941 | H35: 22.18439359 | I35: 22.18662042 | J35: 21.43765042 | K35: 21.05504492
A36: =ROW() -> 36 | B36: Asset Adjustment | G36: =G27*G$16 -> 0 | H36: 0 | I36: 0 | J36: 0 | K36: 0
A37: =ROW() -> 37 | B37: Closing Capital Base | F37: =F28*F16 -> 458.6297027 | G37: 477.8534648 | H37: 480.6122678 | I37: 479.4307091 | J37: 476.6986273 | K37: 470.7899665
A38: =ROW() -> 38
A39: =ROW() -> 39 | B39: Cost of Service Building Blocks [m$ nominal] | C39: PV | D39: Sum
A40: =ROW() -> 40 | B40: Return on Asset | C40: =SUMPRODUCT(E$19:K$19,E40:K40) -> 133.2699697 | D40: =SUM(G40:K40) -> 176.9951035 | G40: =G31*G18 -> 34.20460323 | H40: =H31*H18 -> 35.6383114 | I40: =I31*I18 -> 35.84406293 | J40: =J31*J18 -> 35.75594229 | K40: =K31*K18 -> 35.55218362
A41: =ROW() -> 41 | B41: Depreciation | C41: =SUMPRODUCT(E$19:K$19,E41:K41) -> 82.07728786 | D41: =SUM(G41:K41) -> 108.7142488 | G41: =G35 -> 21.85053941 | H41: =H35 -> 22.18439359 | I41: =I35 -> 22.18662042 | J41: =J35 -> 21.43765042 | K41: =K35 -> 21.05504492
A42: =ROW() -> 42 | B42: Inflationary Gain | C42: -44.85218877 | D42: -59.56794177 | G42: =-G32 -> -11.51160554 | H42: =-H32 -> -11.99412197 | I42: =-I32 -> -12.06336792 | J42: =-J32 -> -12.0337108 | K42: =-K32 -> -11.96513555
A43: =ROW() -> 43 | B43: Opex | C43: 112.4037847 | D43: 149.7280327 | G43: =Inputs!BJ1858+Adjustments!BG18 -> 28.14596398 | H43: =Inputs!BK1858+Adjustments!BH18 -> 29.10943952 | I43: =Inputs!BL1858+Adjustments!BI18 -> 29.8510358 | J43: =Inputs!BM1858+Adjustments!BJ18 -> 31.18631441 | K43: =Inputs!BN1858+Adjustments!BK18 -> 31.43527897
A44: =ROW() -> 44 | B44: Tax (net) | C44: 12.58751624 | D44: =SUM(G44:K44) -> 16.74456566 | G44: =Tax_CoRE!G48 -> 3.400970867 | H44: =Tax_CoRE!H48 -> 3.082759598 | I44: =Tax_CoRE!I48 -> 3.266705832 | J44: =Tax_CoRE!J48 -> 3.413222284 | K44: =Tax_CoRE!K48 -> 3.580907084
A45: =ROW() -> 45 | B45: Total Building Block Revenue Requirement | C45: =SUMPRODUCT(E$19:K$19,E45:K45) -> 295.4863697 | D45: =SUM(G45:K45) -> 392.6140088 | G45: =SUM(G40:G44) -> 76.09047194 | H45: =SUM(H40:H44) -> 78.02078215 | I45: =SUM(I40:I44) -> 79.08505706 | J45: =SUM(J40:J44) -> 79.7594186 | K45: =SUM(K40:K44) -> 79.65827905
A46: =ROW() -> 46 | B46: Total Tariff Revenue | C46: 295.4863697 | D46: =SUM(G46:K46) -> 392.0367599 | G46: =G73 -> 78.06758495 | H46: =H73 -> 78.43856869 | I46: 78.43856869 | J46: 78.65346888 | K46: =K73 -> 78.43856869
A47: =ROW() -> 47 | B47: CHECK | C47: =IF(ROUND(C45-C46,6)=0,"OK","Error") -> OK
A48: =ROW() -> 48
A49: =ROW() -> 49 | B49: Real Cost of Service (FOR RECONCILIATION ONLY)
A50: =ROW() -> 50 | B50: ="Building Blocks [$m "&Inputs!D19&"]" -> Building Blocks [$m 31/12/2023] | C50: PV | D50: PV
A51: =ROW() -> 51 | B51: Return on Asset | C51: =SUMPRODUCT(E$21:K$21,E51:K51) -> 88.4177809 | D51: =SUM(G51:K51) -> 105.8584953 | G51: =G24*G20 -> 21.49257301 | H51: =H24*H20 -> 21.84513528 | I51: =I24*I20 -> 21.43327903 | J51: =J24*J20 -> 20.85707394 | K51: =K24*K20 -> 20.23043401
A52: =ROW() -> 52 | B52: Depreciation | C52: =SUMPRODUCT(E$21:K$21,E52:K52) -> 82.07728786 | D52: 98.09482709 | G52: =G26 -> 20.69467947 | H52: =H26 -> 20.49641331 | I52: =I26 -> 19.99655712 | J52: =J26 -> 18.84842327 | K52: =K26 -> 18.05875392
A53: =ROW() -> 53 | B53: Opex | C53: 112.4037847 | D53: 134.8374901 | G53: =G43*G17 -> 26.65708577 | H53: =H43*H17 -> 26.89454194 | I53: =I43*I17 -> 26.90441046 | J53: =J43*J17 -> 27.4196492 | K53: =K43*K17 -> 26.96180271
A54: =ROW() -> 54 | B54: Tax | C54: =SUMPRODUCT(E$21:K$21,E54:K54) -> 12.58751624 | D54: =SUM(G54:K54) -> 15.08579978 | G54: =G44*G$17 -> 3.221064738 | H54: =H44*H$17 -> 2.84819662 | I54: 2.944246061 | J54: 3.000975249 | K54: 3.071317115
A55: =ROW() -> 55 | B55: Total Building Block Revenue Requirement (Including Tax) | C55: =SUMPRODUCT(E$21:K$21,E55:K55) -> 295.4863697 | D55: 353.8766122 | G55: =SUM(G53,G52,G51,G54) -> 72.06540299 | H55: =SUM(H53,H52,H51,H54) -> 72.08428715 | I55: =SUM(I53,I52,I51,I54) -> 71.27849267 | J55: 70.12612165 | K55: 68.32230776
A56: =ROW() -> 56 | B56: Total Tariff Revenue | C56: 295.4863697 | D56: 353.5339537 | G56: =G46*G$17 -> 73.93792975 | H56: =H46*H$17 -> 72.47028488 | I56: 70.6958198 | J56: 69.15374791 | K56: 67.27617134
A57: =ROW() -> 57 | B57: CHECK | C57: =IF(ROUND(C45-C55,6)=0,"OK","Error") -> OK
A58: =ROW() -> 58
A59: =ROW() -> 59 | B59: Tariff Calculation
A60: =ROW() -> 60 | B60: X Factor | G60: X Factor 2025 | H60: X Factor 2026 | I60: X Factor 2027 | J60: X Factor 2028 | K60: X Factor 2029
A61: =ROW() -> 61 | B61: 1. Toll charge | G61: =SolverSheet!I13 -> 0.4816094245 | H61: =IF(H$9>Recalc_From_Year,"",SolverSheet!J13) ->  | I61: =IF(I$9>Recalc_From_Year,"",SolverSheet!K13) ->  | J61: =IF(J$9>Recalc_From_Year,"",SolverSheet!L13) ->  | K61: =IF(K$9>Recalc_From_Year,"",SolverSheet!M13) -> 
A62: =ROW() -> 62 | B62: 2. Reservation charge | G62: =SolverSheet!I14 -> 0.71567922 | H62: =IF(H$9>Recalc_From_Year,"",SolverSheet!J14) ->  | I62: =IF(I$9>Recalc_From_Year,"",SolverSheet!K14) ->  | J62: =IF(J$9>Recalc_From_Year,"",SolverSheet!L14) ->  | K62: =IF(K$9>Recalc_From_Year,"",SolverSheet!M14) -> 
A63: =ROW() -> 63 | B63: 3. Throughput charge | G63: =SolverSheet!I15 -> 0.6870789552 | H63: =IF(H$9>Recalc_From_Year,"",SolverSheet!J15) ->  | I63: =IF(I$9>Recalc_From_Year,"",SolverSheet!K15) ->  | J63: =IF(J$9>Recalc_From_Year,"",SolverSheet!L15) ->  | K63: =IF(K$9>Recalc_From_Year,"",SolverSheet!M15) -> 
A64: =ROW() -> 64
A65: =ROW() -> 65 | B65: Tariff [$ nominal]
A66: =ROW() -> 66 | B66: Toll charge | F66: =Revenue!CJ19 -> 0.131672 | G66: =F66*(1+G61) -> 0.1950864761 | H66: =IF(H61="",G66,G66*(1+H61)) -> 0.1950864761 | I66: =IF(I61="",H66,H66*(1+I61)) -> 0.1950864761 | J66: =IF(J61="",I66,I66*(1+J61)) -> 0.1950864761 | K66: =IF(K61="",J66,J66*(1+K61)) -> 0.1950864761
A67: =ROW() -> 67 | B67: Reservation charge | F67: =Revenue!CJ20 -> 0.000798 | G67: =F67*(1+G62) -> 0.001369112018 | H67: =IF(H62="",G67,G67*(1+H62)) -> 0.001369112018 | I67: 0.001369112018 | J67: 0.001369112018 | K67: 0.001369112018
A68: =ROW() -> 68 | B68: Throughput charge | F68: =Revenue!CJ21 -> 0.000215 | G68: =F68*(1+G63) -> 0.0003627219754 | H68: =IF(H63="",G68,G68*(1+H63)) -> 0.0003627219754 | I68: 0.0003627219754 | J68: 0.0003627219754 | K68: 0.0003627219754
A69: =ROW() -> 69 | B69: Tariff Revenue [m$ nominal] | C69: Building Block PV | D69: Tariff Revenue PV
A70: =ROW() -> 70 | B70: Toll charge | C70: =C$45*Load_Total!CK26 -> 33.38995978 | D70: =SUMPRODUCT(E$19:K$19,E70:K70) -> 33.38995979 | G70: =Revenue!CK14 -> 8.777134779 | H70: =Revenue!CL14 -> 8.876823968 | I70: =Revenue!CM14 -> 8.876823968 | J70: =Revenue!CN14 -> 8.901144034 | K70: =Revenue!CO14 -> 8.876823968
A71: =ROW() -> 71 | B71: Reservation charge | C71: =C$45*Load_Total!CK27 -> 213.3411589 | D71: =SUMPRODUCT(E$19:K$19,E71:K71) -> 213.3411589 | G71: =Revenue!CK15 -> 56.4017921 | H71: =Revenue!CL15 -> 56.62161852 | I71: =Revenue!CM15 -> 56.62161852 | J71: =Revenue!CN15 -> 56.77674624 | K71: =Revenue!CO15 -> 56.62161852
A72: =ROW() -> 72 | B72: Throughput charge | C72: =C$45*Load_Total!CK28 -> 48.755251 | D72: =SUMPRODUCT(E$19:K$19,E72:K72) -> 48.755251 | G72: =Revenue!CK16 -> 12.88865807 | H72: =Revenue!CL16 -> 12.9401262 | I72: =Revenue!CM16 -> 12.9401262 | J72: =Revenue!CN16 -> 12.9755786 | K72: =Revenue!CO16 -> 12.9401262
